Workbook

Sheet Sample Report (hidden)
A2: Date
A3: Hen
A4: Program
A5: Start at 999999
A6: Sequence component 1 | B6: Time 1 | C6: Seqeunce Component 2 | D6: Time 2 | E6: Seqeunce Component 3 | F6: Time 3 | G6: Correct 0 = No 1=Yes | J6: Seqeunce | K6: Time
A7: 12 | B7: 7 | C7: 12 | D7: 42 | E7: 13 | F7: 18 | G7: if 77 new line, if 31 or 41 = yes new line on 77, | J7: =string of Seqeunce compponent 1, 2 & 3 | K7: =time 3
A8: This continues until ther is a 1 on its own to indicate start of summary data
J9: 10-19 =1
A10: Summary Data | J10: 20-29 =2
A11: Correct | B11: Incorrect | C11: Rft | D11: total | E11: Av Correct | F11: Av Incorrect | G11: Percent correct | H11: Time | J11: in this example the seqeunce would be 111
A12: 40 | B12: 33 | C12: 40 | D12: 73 | E12: 23.95 | F12: 15 | G12: 54 | H12: 806

Sheet Summary
A2: Day | B2: Date | C2: Average Response Rate | D2: Target % | E2: RF for non correct sequence | F2: U Value | K2: Block 1 | L2: Block 2 | M2: Block 3 | N2: Block 4 | O2: Block 5 | P2: Block 6
A3: 1 | B3: ='!MC1682I.sha'!B2:C2 -> <date> | C3: =('!MC1682I.sha'!F184/60)/'!MC1682I.sha'!Q3 -> 2.245318352 | D3: ='!MC1682I.sha'!N20/'!MC1682I.sha'!Q3 -> 0.02247191011 | E3: =SUM('!MC1682I.sha'!L20:Q20)/'!MC1682I.sha'!Q3 -> 0.9831460674 | F3: ='!MC1682I.sha'!Q16 -> 0.2624993634 | J3: Average Response Rate | K3: =AVERAGE(C3:C7) -> 2.128596363 | L3: =AVERAGE(C8:C12) -> 2.171206714 | M3: =AVERAGE(C13:C17) -> 2.096747211 | N3: =AVERAGE(C18:C22) -> 2.088774693 | O3: =AVERAGE(C23:C27) -> 2.076739041 | P3: =AVERAGE(C28:C32) -> 2.013760526
A4: 2 | B4: ='!MC17A2I.sha'!B2:C2 -> <date> | C4: =('!MC17A2I.sha'!F193/60)/'!MC17A2I.sha'!Q3 -> 2.137878788 | D4: ='!MC17A2I.sha'!N20/'!MC17A2I.sha'!Q3 -> 0.0320855615 | E4: =SUM('!MC17A2I.sha'!L20:Q20)/'!MC17A2I.sha'!Q3 -> 0.9625668449 | F4: ='!MC17A2I.sha'!Q16 -> 0.2618355039 | J4: Target % | K4: =AVERAGE(D3:D7) -> 0.08314834645 | L4: =AVERAGE(D8:D12) -> 0.2038966371 | M4: =AVERAGE(D13:D17) -> 0.3449329285 | N4: =AVERAGE(D18:D22) -> 0.415460236 | O4: =AVERAGE(D23:D27) -> 0.4390328475 | P4: =AVERAGE(D28:D32) -> 0.5323747933
A5: 3 | B5: ='!MC1891I.sha'!B2:C2 -> <date> | C5: =('!MC1891I.sha'!F194/60)/'!MC1891I.sha'!Q3 -> 2.10670194 | D5: ='!MC1891I.sha'!N20/'!MC1891I.sha'!Q3 -> 0.0582010582 | E5: =SUM('!MC1891I.sha'!L20:Q20)/'!MC1891I.sha'!Q3 -> 1.037037037 | F5: ='!MC1891I.sha'!Q16 -> 0.2426178752 | J5: CCRF | K5: =AVERAGE(E3:E7) -> 1.023726037 | L5: =AVERAGE(E8:E12) -> 1.310585854 | M5: =AVERAGE(E13:E17) -> 2.026066062 | N5: =AVERAGE(E18:E22) -> 2.728911441 | O5: =AVERAGE(E23:E27) -> 2.385741598 | P5: =AVERAGE(E28:E32) -> 3.155783352
A6: 4 | B6: ='!MC19A5I.sha'!B2:C2 -> <date> | C6: =('!MC19A5I.sha'!F198/60)/'!MC19A5I.sha'!Q3 -> 2.077864583 | D6: ='!MC19A5I.sha'!N20/'!MC19A5I.sha'!Q3 -> 0.1302083333 | E6: =SUM('!MC19A5I.sha'!L20:Q20)/'!MC19A5I.sha'!Q3 -> 1.046875 | F6: ='!MC19A5I.sha'!Q16 -> 0.2261914378 | J6: U Value | K6: =AVERAGE(F3:F7) -> 0.2482992002 | L6: =AVERAGE(F8:F12) -> 0.2699224367 | M6: =AVERAGE(F13:F17) -> 0.2690911858 | N6: =AVERAGE(F18:F22) -> 0.2630977432 | O6: =AVERAGE(F23:F27) -> 0.2156174659 | P6: =AVERAGE(F28:F32) -> 0.2210989959
A7: 5 | B7: ='!MC2092I.sha'!B2:C2 -> <date> | C7: =('!MC2092I.sha'!F197/60)/'!MC2092I.sha'!Q3 -> 2.07521815 | D7: ='!MC2092I.sha'!N20/'!MC2092I.sha'!Q3 -> 0.1727748691 | E7: =SUM('!MC2092I.sha'!L20:Q20)/'!MC2092I.sha'!Q3 -> 1.089005236 | F7: ='!MC2092I.sha'!Q16 -> 0.2483518208
A8: 6 | B8: ='!MC2194I.sha'!B2:C2 -> <date> | C8: =('!MC2194I.sha'!F179/60)/'!MC2194I.sha'!Q3 -> 2.073121387 | D8: ='!MC2194I.sha'!N20/'!MC2194I.sha'!Q3 -> 0.2312138728 | E8: =SUM('!MC2194I.sha'!L20:Q20)/'!MC2194I.sha'!Q3 -> 1.786127168 | F8: ='!MC2194I.sha'!Q16 -> 0.2855974325
A9: 7 | B9: ='!MC22A3I.sha'!B2:C2 -> <date> | C9: =('!MC22A3I.sha'!F157/60)/'!MC22A3I.sha'!Q3 -> 2.127373068 | D9: ='!MC22A3I.sha'!N20/'!MC22A3I.sha'!Q3 -> 0.2649006623 | E9: =SUM('!MC22A3I.sha'!L20:Q20)/'!MC22A3I.sha'!Q3 -> 1.331125828 | F9: ='!MC22A3I.sha'!Q16 -> 0.2440332587 | G9: =K3 -> 2.128596363 | H9: =L3 -> 2.171206714 | I9: 2.096747211 | J9: 2.088774693 | K9: 2.076739041 | L9: 2.013760526 | M9: =K4 -> 0.08314834645 | N9: =L4 -> 0.2038966371 | O9: 0.3449329285 | P9: 0.415460236 | Q9: 0.4390328475 | R9: 0.5323747933 | S9: =K6 -> 0.2482992002 | T9: =L6 -> 0.2699224367 | U9: 0.2690911858 | V9: 0.2630977432 | W9: 0.2156174659 | X9: 0.2210989959
A10: 8 | B10: ='!MC2391I.sha'!B2:C2 -> <date> | C10: =('!MC2391I.sha'!F175/60)/'!MC2391I.sha'!Q3 -> 2.360749507 | D10: ='!MC2391I.sha'!N20/'!MC2391I.sha'!Q3 -> 0.224852071 | E10: =SUM('!MC2391I.sha'!L20:Q20)/'!MC2391I.sha'!Q3 -> 1.213017751 | F10: ='!MC2391I.sha'!Q16 -> 0.2736302275 | G10: =STDEV($C3:$C7) -> 0.07002231605 | H10: =STDEV($C8:$C12) -> 0.1198904236 | I10: =STDEV($C13:$C17) -> 0.04782240113 | J10: =STDEV($C18:$C22) -> 0.0149738806 | K10: =STDEV($C23:$C27) -> 0.02011434679 | L10: =STDEV($C28:$C32) -> 0.03359794863 | M10: =STDEV($D3:$D7) -> 0.06549610877 | N10: =STDEV($D8:$D12) -> 0.05744512136 | O10: =STDEV($D13:$D17) -> 0.1514268079 | P10: =STDEV($D18:$D22) -> 0.05211444608 | Q10: =STDEV($D23:$D27) -> 0.05873505645 | R10: =STDEV($D28:$D32) -> 0.05771788578 | S10: =STDEV($F3:$F7) -> 0.01504916554 | T10: =STDEV($F8:$F12) -> 0.01682741177 | U10: =STDEV($F13:$F17) -> 0.02816446494 | V10: =STDEV($F18:$F22) -> 0.02186081357 | W10: =STDEV($F23:$F27) -> 0.03516135969 | X10: =STDEV($F28:$F32) -> 0.02791463935
A11: 9 | B11: ='!MC2493I.sha'!B2:C2 -> <date> | C11: =('!MC2493I.sha'!F197/60)/'!MC2493I.sha'!Q3 -> 2.080715532 | D11: ='!MC2493I.sha'!N20/'!MC2493I.sha'!Q3 -> 0.1151832461 | E11: =SUM('!MC2493I.sha'!L20:Q20)/'!MC2493I.sha'!Q3 -> 1.083769634 | F11: ='!MC2493I.sha'!Q16 -> 0.2636420642
A12: 10 | B12: ='!MC2695I.sha'!B2:C2 -> <date> | C12: =('!MC2695I.sha'!F186/60)/'!MC2695I.sha'!Q3 -> 2.214074074 | D12: ='!MC2695I.sha'!N20/'!MC2695I.sha'!Q3 -> 0.1833333333 | E12: =SUM('!MC2695I.sha'!L20:Q20)/'!MC2695I.sha'!Q3 -> 1.138888889 | F12: ='!MC2695I.sha'!Q16 -> 0.2827092003
A13: 11 | B13: ='!MC2795I.sha'!B2:C2 -> <date> | C13: =('!MC2795I.sha'!F201/60)/'!MC2795I.sha'!Q3 -> 2.048888889 | D13: ='!MC2795I.sha'!N20/'!MC2795I.sha'!Q3 -> 0.1897435897 | E13: =SUM('!MC2795I.sha'!L20:Q20)/'!MC2795I.sha'!Q3 -> 1.605128205 | F13: ='!MC2795I.sha'!Q16 -> 0.2647993014
A14: 12 | B14: ='!MC28A1I.sha'!B2:C2 -> <date> | C14: =('!MC28A1I.sha'!F118/60)/'!MC28A1I.sha'!Q3 -> 2.145684524 | D14: ='!MC28A1I.sha'!N20/'!MC28A1I.sha'!Q3 -> 0.3571428571 | E14: =SUM('!MC28A1I.sha'!L20:Q20)/'!MC28A1I.sha'!Q3 -> 1.6875 | F14: ='!MC28A1I.sha'!Q16 -> 0.2596546121
A15: 13 | B15: ='!MC29A1I.sha'!B2:C2 -> <date> | C15: =('!MC29A1I.sha'!F79/60)/'!MC29A1I.sha'!Q3 -> 2.055936073 | D15: ='!MC29A1I.sha'!N20/'!MC29A1I.sha'!Q3 -> 0.5479452055 | E15: =SUM('!MC29A1I.sha'!L20:Q20)/'!MC29A1I.sha'!Q3 -> 3.767123288 | F15: ='!MC29A1I.sha'!Q16 -> 0.2441993845
A16: 14 | B16: ='!MC3094I.sha'!B2:C2 -> <date> | C16: =('!MC3094I.sha'!F192/60)/'!MC3094I.sha'!Q3 -> 2.148297491 | D16: ='!MC3094I.sha'!N20/'!MC3094I.sha'!Q3 -> 0.2043010753 | E16: =SUM('!MC3094I.sha'!L20:Q20)/'!MC3094I.sha'!Q3 -> 1.134408602 | F16: ='!MC3094I.sha'!Q16 -> 0.3175570624
A17: 15 | B17: ='!MC31A0I.sha'!B2:C2 -> <date> | C17: =('!MC31A0I.sha'!F100/60)/'!MC31A0I.sha'!Q3 -> 2.084929078 | D17: ='!MC31A0I.sha'!N20/'!MC31A0I.sha'!Q3 -> 0.4255319149 | E17: =SUM('!MC31A0I.sha'!L20:Q20)/'!MC31A0I.sha'!Q3 -> 1.936170213 | F17: ='!MC31A0I.sha'!Q16 -> 0.2592455686
A18: 16 | B18: ='!N10293I.sha'!B2:C2 -> <date> | C18: =('!N10293I.sha'!F112/60)/'!N10293I.sha'!Q3 -> 2.10581761 | D18: ='!N10293I.sha'!N20/'!N10293I.sha'!Q3 -> 0.3773584906 | E18: =SUM('!N10293I.sha'!L20:Q20)/'!N10293I.sha'!Q3 -> 2.79245283 | F18: ='!N10293I.sha'!Q16 -> 0.2872570984
A19: 17 | B19: ='!N103A1I.sha'!B2:C2 -> <date> | C19: =('!N103A1I.sha'!F100/60)/'!N103A1I.sha'!Q3 -> 2.093617021 | D19: ='!N103A1I.sha'!N20/'!N103A1I.sha'!Q3 -> 0.4255319149 | E19: =SUM('!N103A1I.sha'!L20:Q20)/'!N103A1I.sha'!Q3 -> 3 | F19: ='!N103A1I.sha'!Q16 -> 0.2666322548
A20: 18 | B20: ='!N104B0I.sha'!B2:C2 -> <date> | C20: =('!N104B0I.sha'!F105/60)/'!N104B0I.sha'!Q3 -> 2.084006734 | D20: ='!N104B0I.sha'!N20/'!N104B0I.sha'!Q3 -> 0.404040404 | E20: =SUM('!N104B0I.sha'!L20:Q20)/'!N104B0I.sha'!Q3 -> 2.96969697 | F20: ='!N104B0I.sha'!Q16 -> 0.2775846236
A21: 19 | B21: ='!N10583I.sha'!B2:C2 -> <date> | C21: =('!N10583I.sha'!F114/60)/'!N10583I.sha'!Q3 -> 2.094598765 | D21: ='!N10583I.sha'!N20/'!N10583I.sha'!Q3 -> 0.3703703704 | E21: =SUM('!N10583I.sha'!L20:Q20)/'!N10583I.sha'!Q3 -> 2.657407407 | F21: ='!N10583I.sha'!Q16 -> 0.2523981362
A22: 20 | B22: ='!N10690I.sha'!B2:C2 -> <date> | C22: =('!N10690I.sha'!F86/60)/'!N10690I.sha'!Q3 -> 2.065833333 | D22: ='!N10690I.sha'!N20/'!N10690I.sha'!Q3 -> 0.5 | E22: =SUM('!N10690I.sha'!L20:Q20)/'!N10690I.sha'!Q3 -> 2.225 | F22: ='!N10690I.sha'!Q16 -> 0.2316166033
A23: 21 | B23: ='!N10795I.sha'!B2:C2 -> <date> | C23: =('!N10795I.sha'!F102/60)/'!N10795I.sha'!Q3 -> 2.097048611 | D23: ='!N10795I.sha'!N20/'!N10795I.sha'!Q3 -> 0.4166666667 | E23: =SUM('!N10795I.sha'!L20:Q20)/'!N10795I.sha'!Q3 -> 2.947916667 | F23: ='!N10795I.sha'!Q16 -> 0.2773481405
A24: 22 | B24: ='!N10894I.sha'!B2:C2 -> <date> | C24: =('!N10894I.sha'!F84/60)/'!N10894I.sha'!Q3 -> 2.088034188 | D24: ='!N10894I.sha'!N20/'!N10894I.sha'!Q3 -> 0.5128205128 | E24: =SUM('!N10894I.sha'!L20:Q20)/'!N10894I.sha'!Q3 -> 2.269230769 | F24: ='!N10894I.sha'!Q16 -> 0.1955270167
A25: 23 | B25: ='!N10995I.sha'!B2:C2 -> <date> | C25: =('!N10995I.sha'!F88/60)/'!N10995I.sha'!Q3 -> 2.046747967 | D25: ='!N10995I.sha'!N20/'!N10995I.sha'!Q3 -> 0.487804878 | E25: =SUM('!N10995I.sha'!L20:Q20)/'!N10995I.sha'!Q3 -> 2.170731707 | F25: ='!N10995I.sha'!Q16 -> 0.2000041332
A26: 24 | B26: ='!N110A1I.sha'!B2:C2 -> <date> | C26: =('!N110A1I.sha'!F113/60)/'!N110A1I.sha'!Q3 -> 2.066510903 | D26: ='!N110A1I.sha'!N20/'!N110A1I.sha'!Q3 -> 0.3738317757 | E26: =SUM('!N110A1I.sha'!L20:Q20)/'!N110A1I.sha'!Q3 -> 2.682242991 | F26: ='!N110A1I.sha'!Q16 -> 0.1939869783
A27: 25 | B27: ='!N111A2I.sha'!B2:C2 -> <date> | C27: =('!N111A2I.sha'!F105/60)/'!N111A2I.sha'!Q3 -> 2.085353535 | D27: ='!N111A2I.sha'!N20/'!N111A2I.sha'!Q3 -> 0.404040404 | E27: =SUM('!N111A2I.sha'!L20:Q20)/'!N111A2I.sha'!Q3 -> 1.858585859 | F27: ='!N111A2I.sha'!Q16 -> 0.211221061
A28: 26 | B28: ='!N11292I.sha'!B2:C2 -> <date> | C28: =('!N11292I.sha'!F87/60)/'!N11292I.sha'!Q3 -> 1.996707819 | D28: ='!N11292I.sha'!N20/'!N11292I.sha'!Q3 -> 0.4938271605 | E28: =SUM('!N11292I.sha'!L20:Q20)/'!N11292I.sha'!Q3 -> 2.197530864 | F28: ='!N11292I.sha'!Q16 -> 0.2184247939
A29: 27 | B29: ='!N11394I.sha'!B2:C2 -> <date> | C29: =('!N11394I.sha'!F80/60)/'!N11394I.sha'!Q3 -> 2.004954955 | D29: ='!N11394I.sha'!N20/'!N11394I.sha'!Q3 -> 0.5405405405 | E29: =SUM('!N11394I.sha'!L20:Q20)/'!N11394I.sha'!Q3 -> 2.378378378 | F29: ='!N11394I.sha'!Q16 -> 0.2295662214
A30: 28 | B30: ='!N11491I.sha'!B2:C2 -> <date> | C30: =('!N11491I.sha'!F90/60)/'!N11491I.sha'!Q3 -> 2.033134921 | D30: ='!N11491I.sha'!N20/'!N11491I.sha'!Q3 -> 0.4761904762 | E30: =SUM('!N11491I.sha'!L20:Q20)/'!N11491I.sha'!Q3 -> 3.321428571 | F30: ='!N11491I.sha'!Q16 -> 0.2359555467
A31: 29 | B31: ='!N11595I.sha'!B2:C2 -> <date> | C31: =('!N11595I.sha'!F82/60)/'!N11595I.sha'!Q3 -> 2.060307018 | D31: ='!N11595I.sha'!N20/'!N11595I.sha'!Q3 -> 0.5263157895 | E31: =SUM('!N11595I.sha'!L20:Q20)/'!N11595I.sha'!Q3 -> 3.631578947 | F31: ='!N11595I.sha'!Q16 -> 0.2468584402
A32: 30 | B32: ='!N11693I.sha'!B2:C2 -> <date> | C32: =('!N11693I.sha'!F70/60)/'!N11693I.sha'!Q3 -> 1.973697917 | D32: ='!N11693I.sha'!N20/'!N11693I.sha'!Q3 -> 0.625 | E32: =SUM('!N11693I.sha'!L20:Q20)/'!N11693I.sha'!Q3 -> 4.25 | F32: ='!N11693I.sha'!Q16 -> 0.1746899771

Sheet Start
F1: Use Folder 51 | H1: Auto Clean Up | J1: Correct sequence
F2: FALSE | H2: TRUE | J2: 211
A4: Working with Folder | G4: Process All/Or Pick A number: ALL or an integer
A5: F:\Possum Chapter\Raw Data\Ishan\repeat phase 1\ | G5: ALL
A6: Filenames:
A7: !N11693I.sha | G7: Paint Cells
A8: !MC1682I.sha | G8: FALSE
A9: !MC17A2I.sha
A10: !MC1891I.sha
A11: !MC19A5I.sha
A12: !MC2092I.sha
A13: !MC2194I.sha
A14: !MC22A3I.sha
A15: !MC2391I.sha
A16: !MC2493I.sha
A17: !MC2695I.sha
A18: !MC2795I.sha
A19: !MC28A1I.sha
A20: !MC29A1I.sha
A21: !MC3094I.sha
A22: !MC31A0I.sha
A23: !N10293I.sha
A24: !N103A1I.sha
A25: !N104B0I.sha
A26: !N10583I.sha
A27: !N10690I.sha
A28: !N10795I.sha
A29: !N10894I.sha
A30: !N10995I.sha
A31: !N110A1I.sha
A32: !N111A2I.sha
A33: !N11292I.sha
A34: !N11394I.sha
A35: !N11491I.sha
A36: !N11595I.sha

Sheet !MC1682I.sha
A1: Report for:!MC1682I.sha
A2: Date: | B2: <date>
A3: Hen: | B3: <hen> | F3: Correct Sequence | G3: =Start!J2 -> 211 | P3: Total Sequences in Data | Q3: =4994-COUNTBLANK(L7:L5000) -> 178 | V3: Total Sequences in Block Data | W3: =COUNTA(L7:L36) -> 30 | AA3: Total Sequences in Block Data | AB3: =COUNTA(L37:L65) -> 29 | AF3: Total Sequences in Block Data | AG3: =COUNTA(L66:L95) -> 30 | AK3: Total Sequences in Block Data | AL3: =COUNTA(L96:L125) -> 30 | AP3: Total Sequences in Block Data | AQ3: =COUNTA(L126:L154) -> 29 | AU3: Total Sequences in Block Data | AV3: =COUNTA(L155:L184) -> 30
P4: Total Sequences in Summary | Q4: =SUM(O7:O14) -> 178 | V4: Total Sequences in Block Summary | W4: =SUM(U7:U14) -> 30 | AA4: Total Sequences in Block Summary | AB4: =SUM(Z7:Z14) -> 29 | AF4: Total Sequences in Block Summary | AG4: =SUM(AE7:AE14) -> 30 | AK4: Total Sequences in Block Summary | AL4: =SUM(AJ7:AJ14) -> 30 | AP4: Total Sequences in Block Summary | AQ4: =SUM(AO7:AO14) -> 29 | AU4: Total Sequences in Block Summary | AV4: =SUM(AT7:AT14) -> 30
T5: Block 1 | Y5: Block 2 | AD5: Block 3 | AI5: Block 4 | AN5: Block 5 | AS5: Block 6
A6: Sequence Component 1 | B6: Time 1 | C6: Sequence Component 2 | D6: Time 2 | E6: Sequence Component 3 | F6: Time 3 | G6: Sequence Component 4 | H6: Time 4 | I6: Sequence Component 5 | J6: Time 5 | K6: Correct? 0=No 1=Yes | L6: Sequence | N6: Frequency | P6: Relative Frequency | Q6: Variability | T6: Frequency | V6: Relative Frequency | W6: Variability | Y6: Frequency | AA6: Relative Frequency | AB6: Variability | AD6: Frequency | AF6: Relative Frequency | AG6: Variability | AI6: Frequency | AK6: Relative Frequency | AL6: Variability | AN6: Frequency | AP6: Relative Frequency | AQ6: Variability | AS6: Frequency | AU6: Relative Frequency | AV6: Variability
A7: 12 | B7: 9 | C7: 24 | D7: 25 | E7: 24 | F7: 31 | K7: 0 | L7: 122 | N7: 111 | O7: =COUNTIF($L$7:$L$500,N7) -> 56 | P7: =O7/$Q$4 -> 0.3146067416 | Q7: =IF(P7=0,0,(P7*((LOG(P7))/LOG(2)))) -> -0.5248831264 | T7: =N7 -> 111 | U7: =COUNTIF(L7:L36,T7) -> 10 | V7: =U7/(W4-U11) -> 0.3333333333 | W7: =IF(V7=0,0,(V7*((LOG(V7))/LOG(2)))) -> -0.5283208336 | Y7: =N7 -> 111 | Z7: =COUNTIF(L37:L65,Y7) -> 5 | AA7: =Z7/(AB4-Z11) -> 0.1724137931 | AB7: =IF(AA7=0,0,(AA7*((LOG(AA7))/LOG(2)))) -> -0.4372505 | AD7: =N7 -> 111 | AE7: =COUNTIF(L66:L95,AD7) -> 10 | AF7: =AE7/(AG4-AE11) -> 0.3333333333 | AG7: =IF(AF7=0,0,(AF7*((LOG(AF7))/LOG(2)))) -> -0.5283208336 | AI7: =N7 -> 111 | AJ7: =COUNTIF(L96:L125,AI7) -> 8 | AK7: =AJ7/(AL4-AJ11) -> 0.2857142857 | AL7: =IF(AK7=0,0,(AK7*((LOG(AK7))/LOG(2)))) -> -0.5163871206 | AN7: =N7 -> 111 | AO7: =COUNTIF(L126:L154,AN7) -> 14 | AP7: =AO7/(AQ4-AO11) -> 0.5 | AQ7: =IF(AP7=0,0,(AP7*((LOG(AP7))/LOG(2)))) -> -0.5 | AS7: =N7 -> 111 | AT7: =COUNTIF(L155:L184,AS7) -> 9 | AU7: =AT7/(AV4-AT11) -> 0.3103448276 | AV7: =IF(AU7=0,0,(AU7*((LOG(AU7))/LOG(2)))) -> -0.5238794463
A8: 12 | B8: 129 | C8: 13 | D8: 133 | E8: 13 | F8: 140 | K8: 0 | L8: 111 | N8: 112 | O8: 72 | P8: 0.404494382 | Q8: -0.5281921737 | T8: 112 | U8: =COUNTIF(L7:L36,T8) -> 15 | V8: =U8/(W4-U11) -> 0.5 | W8: =IF(V8=0,0,(V8*((LOG(V8))/LOG(2)))) -> -0.5 | Y8: 112 | Z8: =COUNTIF(L37:L65,Y8) -> 14 | AA8: =Z8/(AB4-Z11) -> 0.4827586207 | AB8: =IF(AA8=0,0,(AA8*((LOG(AA8))/LOG(2)))) -> -0.5071987939 | AD8: 112 | AE8: =COUNTIF(L66:L95,AD8) -> 11 | AF8: =AE8/(AG4-AE11) -> 0.3666666667 | AG8: =IF(AF8=0,0,(AF8*((LOG(AF8))/LOG(2)))) -> -0.5307349582 | AI8: 112 | AJ8: =COUNTIF(L96:L125,AI8) -> 8 | AK8: =AJ8/(AL4-AJ11) -> 0.2857142857 | AL8: =IF(AK8=0,0,(AK8*((LOG(AK8))/LOG(2)))) -> -0.5163871206 | AN8: 112 | AO8: =COUNTIF(L126:L154,AN8) -> 10 | AP8: =AO8/(AQ4-AO11) -> 0.3571428571 | AQ8: =IF(AP8=0,0,(AP8*((LOG(AP8))/LOG(2)))) -> -0.5305095811 | AS8: 112 | AT8: =COUNTIF(L155:L184,AS8) -> 14 | AU8: =AT8/(AV4-AT11) -> 0.4827586207 | AV8: =IF(AU8=0,0,(AU8*((LOG(AU8))/LOG(2)))) -> -0.5071987939
A9: 12 | B9: 238 | C9: 24 | D9: 252 | E9: 24 | F9: 304 | K9: 0 | L9: 122 | N9: 121 | O9: 7 | P9: 0.0393258427 | Q9: -0.1835879189 | T9: 121 | U9: =COUNTIF(L7:L36,T9) -> 0 | V9: =U9/(W4-U11) -> 0 | W9: =IF(V9=0,0,(V9*((LOG(V9))/LOG(2)))) -> 0 | Y9: 121 | Z9: =COUNTIF(L37:L65,Y9) -> 1 | AA9: =Z9/(AB4-Z11) -> 0.03448275862 | AB9: =IF(AA9=0,0,(AA9*((LOG(AA9))/LOG(2)))) -> -0.167516586 | AD9: 121 | AE9: =COUNTIF(L66:L95,AD9) -> 1 | AF9: =AE9/(AG4-AE11) -> 0.03333333333 | AG9: =IF(AF9=0,0,(AF9*((LOG(AF9))/LOG(2)))) -> -0.1635630199 | AI9: 121 | AJ9: =COUNTIF(L96:L125,AI9) -> 2 | AK9: =AJ9/(AL4-AJ11) -> 0.07142857143 | AL9: =IF(AK9=0,0,(AK9*((LOG(AK9))/LOG(2)))) -> -0.271953923 | AN9: 121 | AO9: =COUNTIF(L126:L154,AN9) -> 3 | AP9: =AO9/(AQ4-AO11) -> 0.1071428571 | AQ9: =IF(AP9=0,0,(AP9*((LOG(AP9))/LOG(2)))) -> -0.3452563309 | AS9: 121 | AT9: =COUNTIF(L155:L184,AS9) -> 0 | AU9: =AT9/(AV4-AT11) -> 0 | AV9: =IF(AU9=0,0,(AU9*((LOG(AU9))/LOG(2)))) -> 0
A10: 12 | B10: 397 | C10: 13 | D10: 401 | E10: 24 | F10: 422 | K10: 0 | L10: 112 | N10: 122 | O10: 35 | P10: 0.1966292135 | Q10: -0.4613806994 | T10: 122 | U10: =COUNTIF(L7:L36,T10) -> 5 | V10: =U10/(W4-U11) -> 0.1666666667 | W10: =IF(V10=0,0,(V10*((LOG(V10))/LOG(2)))) -> -0.4308270835 | Y10: 122 | Z10: =COUNTIF(L37:L65,Y10) -> 8 | AA10: =Z10/(AB4-Z11) -> 0.275862069 | AB10: =IF(AA10=0,0,(AA10*((LOG(AA10))/LOG(2)))) -> -0.5125464814 | AD10: 122 | AE10: =COUNTIF(L66:L95,AD10) -> 7 | AF10: =AE10/(AG4-AE11) -> 0.2333333333 | AG10: =IF(AF10=0,0,(AF10*((LOG(AF10))/LOG(2)))) -> -0.4898916572 | AI10: 122 | AJ10: =COUNTIF(L96:L125,AI10) -> 9 | AK10: =AJ10/(AL4-AJ11) -> 0.3214285714 | AL10: =IF(AK10=0,0,(AK10*((LOG(AK10))/LOG(2)))) -> -0.5263167602 | AN10: 122 | AO10: =COUNTIF(L126:L154,AN10) -> 1 | AP10: =AO10/(AQ4-AO11) -> 0.03571428571 | AQ10: =IF(AP10=0,0,(AP10*((LOG(AP10))/LOG(2)))) -> -0.1716912472 | AS10: 122 | AT10: =COUNTIF(L155:L184,AS10) -> 5 | AU10: =AT10/(AV4-AT11) -> 0.1724137931 | AV10: =IF(AU10=0,0,(AU10*((LOG(AU10))/LOG(2)))) -> -0.4372505
A11: 12 | B11: 516 | C11: 13 | D11: 525 | E11: 24 | F11: 535 | K11: 0 | L11: 112 | N11: 211 | O11: 4 | P11: 0.02247191011 | Q11: -0.1230501895 | T11: 211 | U11: =COUNTIF(L7:L36,T11) -> 0 | Y11: 211 | Z11: =COUNTIF(L37:L65,Y11) -> 0 | AD11: 211 | AE11: =COUNTIF(L66:L95,AD11) -> 0 | AI11: 211 | AJ11: =COUNTIF(L96:L125,AI11) -> 2 | AN11: 211 | AO11: =COUNTIF(L126:L154,AN11) -> 1 | AS11: 211 | AT11: =COUNTIF(L155:L184,AS11) -> 1
A12: 12 | B12: 633 | C12: 13 | D12: 646 | E12: 24 | F12: 658 | K12: 0 | L12: 112 | N12: 212 | O12: 3 | P12: 0.01685393258 | Q12: -0.09928265613 | T12: 212 | U12: =COUNTIF(L7:L36,T12) -> 0 | V12: =U12/(W4-U11) -> 0 | W12: =IF(V12=0,0,(V12*((LOG(V12))/LOG(2)))) -> 0 | Y12: 212 | Z12: =COUNTIF(L37:L65,Y12) -> 1 | AA12: =Z12/(AB4-Z11) -> 0.03448275862 | AB12: =IF(AA12=0,0,(AA12*((LOG(AA12))/LOG(2)))) -> -0.167516586 | AD12: 212 | AE12: =COUNTIF(L66:L95,AD12) -> 1 | AF12: =AE12/(AG4-AE11) -> 0.03333333333 | AG12: =IF(AF12=0,0,(AF12*((LOG(AF12))/LOG(2)))) -> -0.1635630199 | AI12: 212 | AJ12: =COUNTIF(L96:L125,AI12) -> 0 | AK12: =AJ12/(AL4-AJ11) -> 0 | AL12: =IF(AK12=0,0,(AK12*((LOG(AK12))/LOG(2)))) -> 0 | AN12: 212 | AO12: =COUNTIF(L126:L154,AN12) -> 0 | AP12: =AO12/(AQ4-AO11) -> 0 | AQ12: =IF(AP12=0,0,(AP12*((LOG(AP12))/LOG(2)))) -> 0 | AS12: 212 | AT12: =COUNTIF(L155:L184,AS12) -> 1 | AU12: =AT12/(AV4-AT11) -> 0.03448275862 | AV12: =IF(AU12=0,0,(AU12*((LOG(AU12))/LOG(2)))) -> -0.167516586
A13: 12 | B13: 754 | C13: 13 | D13: 757 | E13: 24 | F13: 776 | K13: 0 | L13: 112 | N13: 221 | O13: 0 | P13: 0 | Q13: 0 | T13: 221 | U13: =COUNTIF(L7:L36,T13) -> 0 | V13: =U13/(W4-U11) -> 0 | W13: =IF(V13=0,0,(V13*((LOG(V13))/LOG(2)))) -> 0 | Y13: 221 | Z13: =COUNTIF(L37:L65,Y13) -> 0 | AA13: =Z13/(AB4-Z11) -> 0 | AB13: =IF(AA13=0,0,(AA13*((LOG(AA13))/LOG(2)))) -> 0 | AD13: 221 | AE13: =COUNTIF(L66:L95,AD13) -> 0 | AF13: =AE13/(AG4-AE11) -> 0 | AG13: =IF(AF13=0,0,(AF13*((LOG(AF13))/LOG(2)))) -> 0 | AI13: 221 | AJ13: =COUNTIF(L96:L125,AI13) -> 0 | AK13: =AJ13/(AL4-AJ11) -> 0 | AL13: =IF(AK13=0,0,(AK13*((LOG(AK13))/LOG(2)))) -> 0 | AN13: 221 | AO13: =COUNTIF(L126:L154,AN13) -> 0 | AP13: =AO13/(AQ4-AO11) -> 0 | AQ13: =IF(AP13=0,0,(AP13*((LOG(AP13))/LOG(2)))) -> 0 | AS13: 221 | AT13: =COUNTIF(L155:L184,AS13) -> 0 | AU13: =AT13/(AV4-AT11) -> 0 | AV13: =IF(AU13=0,0,(AU13*((LOG(AU13))/LOG(2)))) -> 0
A14: 12 | B14: 871 | C14: 24 | D14: 895 | E14: 24 | F14: 899 | K14: 0 | L14: 122 | N14: 222 | O14: 1 | P14: 0.005617977528 | Q14: -0.04199850242 | T14: 222 | U14: =COUNTIF(L7:L36,T14) -> 0 | V14: =U14/(W4-U11) -> 0 | W14: =IF(V14=0,0,(V14*((LOG(V14))/LOG(2)))) -> 0 | Y14: 222 | Z14: =COUNTIF(L37:L65,Y14) -> 0 | AA14: =Z14/(AB4-Z11) -> 0 | AB14: =IF(AA14=0,0,(AA14*((LOG(AA14))/LOG(2)))) -> 0 | AD14: 222 | AE14: =COUNTIF(L66:L95,AD14) -> 0 | AF14: =AE14/(AG4-AE11) -> 0 | AG14: =IF(AF14=0,0,(AF14*((LOG(AF14))/LOG(2)))) -> 0 | AI14: 222 | AJ14: =COUNTIF(L96:L125,AI14) -> 1 | AK14: =AJ14/(AL4-AJ11) -> 0.03571428571 | AL14: =IF(AK14=0,0,(AK14*((LOG(AK14))/LOG(2)))) -> -0.1716912472 | AN14: 222 | AO14: =COUNTIF(L126:L154,AN14) -> 0 | AP14: =AO14/(AQ4-AO11) -> 0 | AQ14: =IF(AP14=0,0,(AP14*((LOG(AP14))/LOG(2)))) -> 0 | AS14: 222 | AT14: =COUNTIF(L155:L184,AS14) -> 0 | AU14: =AT14/(AV4-AT11) -> 0 | AV14: =IF(AU14=0,0,(AU14*((LOG(AU14))/LOG(2)))) -> 0
A15: 12 | B15: 993 | C15: 13 | D15: 996 | E15: 13 | F15: 1001 | K15: 0 | L15: 111 | P15: =SUM(P7:P14) -> 1 | Q15: =-SUM(Q7:Q14) -> 1.962375266 | V15: =SUM(V7:V14) -> 1 | W15: =-SUM(W7:W14) -> 1.459147917 | AA15: =SUM(AA7:AA14) -> 1 | AB15: =-SUM(AB7:AB14) -> 1.792028947 | AF15: =SUM(AF7:AF14) -> 1 | AG15: =-SUM(AG7:AG14) -> 1.876073489 | AK15: =SUM(AK7:AK14) -> 1 | AL15: =-SUM(AL7:AL14) -> 2.002736172 | AP15: =SUM(AP7:AP14) -> 1 | AQ15: =-SUM(AQ7:AQ14) -> 1.547457159 | AU15: =SUM(AU7:AU14) -> 1 | AV15: =-SUM(AV7:AV14) -> 1.635845326
A16: 12 | B16: 1097 | C16: 13 | D16: 1100 | E16: 24 | F16: 1119 | K16: 0 | L16: 112 | P16: U= | Q16: =Q15/(LOG(Q4)/LOG(2)) -> 0.2624993634 | V16: U1= | W16: =W15/(LOG(W4)/LOG(2)) -> 0.2973671185 | AA16: U2= | AB16: =AB15/(LOG(AB4)/LOG(2)) -> 0.3688834825 | AF16: U3= | AG16: =AG15/(LOG(AG4)/LOG(2)) -> 0.382334485 | AK16: U4= | AL16: =AL15/(LOG(AL4)/LOG(2)) -> 0.4081477124 | AP16: U5= | AQ16: =AQ15/(LOG(AQ4)/LOG(2)) -> 0.3185391546 | AU16: U6= | AV16: =AV15/(LOG(AV4)/LOG(2)) -> 0.3333771753
A17: 12 | B17: 1215 | C17: 13 | D17: 1221 | E17: 24 | F17: 1235 | K17: 0 | L17: 112
A18: 12 | B18: 1330 | C18: 13 | D18: 1338 | E18: 24 | F18: 1350 | K18: 0 | L18: 112
A19: 12 | B19: 1445 | C19: 13 | D19: 1448 | E19: 13 | F19: 1453 | K19: 0 | L19: 111 | N19: Total Target Seq
A20: 12 | B20: 1551 | C20: 13 | D20: 1553 | E20: 24 | F20: 1568 | K20: 0 | L20: 112 | N20: =COUNTIF(L7:L184,G3) -> 4 | P20: 30 | Q20: 29 | R20: 30 | S20: 30 | T20: 29 | U20: 30
A21: 12 | B21: 1659 | C21: 13 | D21: 1663 | E21: 13 | F21: 1668 | K21: 0 | L21: 111 | P21: % of reinforcement given in 6 equal intervals based on number of trials
A22: 12 | B22: 1765 | C22: 13 | D22: 1768 | E22: 24 | F22: 1780 | K22: 0 | L22: 112 | P22: %_1 | Q22: %_2 | R22: %_3 | S22: %_4 | T22: %_5 | U22: %_6
A23: 12 | B23: 1874 | C23: 13 | D23: 1878 | E23: 13 | F23: 1885 | K23: 0 | L23: 111 | O23: target sequence | P23: =$G$3 -> 211 | Q23: 211 | R23: 211 | S23: 211 | T23: 211 | U23: 211
A24: 12 | B24: 1979 | C24: 13 | D24: 1982 | E24: 24 | F24: 1994 | K24: 0 | L24: 112 | O24: total reinforcement | P24: =U11 -> 0 | Q24: =Z11 -> 0 | R24: =AE11 -> 0 | S24: =AJ11 -> 2 | T24: =AO11 -> 1 | U24: =AT11 -> 1
A25: 12 | B25: 2091 | C25: 13 | D25: 2096 | E25: 24 | F25: 2110 | K25: 0 | L25: 112 | O25: % target
A26: 12 | B26: 2204 | C26: 13 | D26: 2208 | E26: 13 | F26: 2212 | K26: 0 | L26: 111 | O26: CCRF
A27: 12 | B27: 2307 | C27: 13 | D27: 2310 | E27: 24 | F27: 2328 | K27: 0 | L27: 112 | O27: % CCRf
A28: 12 | B28: 2423 | C28: 13 | D28: 2426 | E28: 24 | F28: 2438 | K28: 0 | L28: 112 | O28: average response rate | P28: =F36/P20 -> 112.2 | Q28: =(F65-F36)/Q20 -> 136.4827586 | R28: =(F95-F65)/R20 -> 125.9666667 | S28: =(F125-F95)/S20 -> 183.6 | T28: =(F154-F125)/T20 -> 123 | U28: =(F184-F154)/U20 -> 126.7333333
A29: 12 | B29: 2536 | C29: 13 | D29: 2539 | E29: 13 | F29: 2547 | K29: 0 | L29: 111
A30: 12 | B30: 2643 | C30: 24 | D30: 2670 | E30: 24 | F30: 2676 | K30: 0 | L30: 122
A31: 12 | B31: 2777 | C31: 13 | D31: 2781 | E31: 13 | F31: 2792 | K31: 0 | L31: 111
A32: 12 | B32: 2886 | C32: 13 | D32: 2890 | E32: 24 | F32: 2904 | K32: 0 | L32: 112
A33: 12 | B33: 3000 | C33: 13 | D33: 3007 | E33: 24 | F33: 3019 | K33: 0 | L33: 112
A34: 12 | B34: 3116 | C34: 13 | D34: 3118 | E34: 13 | F34: 3124 | K34: 0 | L34: 111
A35: 12 | B35: 3247 | C35: 24 | D35: 3257 | E35: 24 | F35: 3264 | K35: 0 | L35: 122
A36: 12 | B36: 3358 | C36: 13 | D36: 3360 | E36: 13 | F36: 3366 | K36: 0 | L36: 111
A37: 12 | B37: 3483 | C37: 13 | D37: 3491 | E37: 24 | F37: 3505 | K37: 0 | L37: 112
A38: 12 | B38: 3604 | C38: 13 | D38: 3609 | E38: 24 | F38: 3624 | K38: 0 | L38: 112
A39: 12 | B39: 3719 | C39: 13 | D39: 3721 | E39: 13 | F39: 3732 | K39: 0 | L39: 111
A40: 12 | B40: 3828 | C40: 13 | D40: 3834 | E40: 24 | F40: 3847 | K40: 0 | L40: 112
A41: 12 | B41: 3943 | C41: 24 | D41: 3967 | E41: 24 | F41: 3979 | K41: 0 | L41: 122
A42: 12 | B42: 4076 | C42: 13 | D42: 4082 | E42: 24 | F42: 4094 | K42: 0 | L42: 112
A43: 12 | B43: 4189 | C43: 24 | D43: 4208 | E43: 24 | F43: 4230 | K43: 0 | L43: 122
A44: 12 | B44: 4322 | C44: 13 | D44: 4327 | E44: 24 | F44: 4337 | K44: 0 | L44: 112
A45: 12 | B45: 4432 | C45: 13 | D45: 4437 | E45: 24 | F45: 4449 | K45: 0 | L45: 112
A46: 12 | B46: 4544 | C46: 24 | D46: 4570 | E46: 24 | F46: 4575 | K46: 0 | L46: 122
A47: 12 | B47: 4671 | C47: 13 | D47: 4676 | E47: 24 | F47: 4687 | K47: 0 | L47: 112
A48: 12 | B48: 4780 | C48: 13 | D48: 4786 | E48: 13 | F48: 4788 | K48: 0 | L48: 111
A49: 12 | B49: 4913 | C49: 13 | D49: 4919 | E49: 13 | F49: 4926 | K49: 0 | L49: 111
A50: 21 | B50: 5027 | C50: 11 | D50: 5036 | E50: 22 | F50: 5052 | K50: 0 | L50: 212
A51: 12 | B51: 5146 | C51: 24 | D51: 5164 | E51: 24 | F51: 5171 | K51: 0 | L51: 122
A52: 12 | B52: 5274 | C52: 13 | D52: 5277 | E52: 24 | F52: 5291 | K52: 0 | L52: 112
A53: 12 | B53: 5385 | C53: 13 | D53: 5389 | E53: 24 | F53: 5403 | K53: 0 | L53: 112
A54: 12 | B54: 5518 | C54: 24 | D54: 5538 | E54: 24 | F54: 5548 | K54: 0 | L54: 122
A55: 12 | B55: 5708 | C55: 13 | D55: 5724 | E55: 24 | F55: 5736 | K55: 0 | L55: 112
A56: 12 | B56: 5839 | C56: 13 | D56: 5843 | E56: 24 | F56: 5855 | K56: 0 | L56: 112
A57: 12 | B57: 5954 | C57: 24 | D57: 5958 | E57: 13 | F57: 5969 | K57: 0 | L57: 121
A58: 12 | B58: 6069 | C58: 13 | D58: 6075 | E58: 24 | F58: 6085 | K58: 0 | L58: 112
A59: 12 | B59: 6254 | C59: 24 | D59: 6267 | E59: 24 | F59: 6277 | K59: 0 | L59: 122
A60: 12 | B60: 6372 | C60: 13 | D60: 6376 | E60: 24 | F60: 6392 | K60: 0 | L60: 112
A61: 12 | B61: 6497 | C61: 24 | D61: 6506 | E61: 24 | F61: 6513 | K61: 0 | L61: 122
A62: 12 | B62: 6608 | C62: 24 | D62: 6627 | E62: 24 | F62: 6648 | K62: 0 | L62: 122
A63: 12 | B63: 7009 | C63: 13 | D63: 7013 | E63: 13 | F63: 7019 | K63: 0 | L63: 111
A64: 12 | B64: 7114 | C64: 13 | D64: 7118 | E64: 13 | F64: 7123 | K64: 0 | L64: 111
A65: 12 | B65: 7303 | C65: 13 | D65: 7310 | E65: 24 | F65: 7324 | K65: 0 | L65: 112
A66: 12 | B66: 7418 | C66: 13 | D66: 7423 | E66: 24 | F66: 7436 | K66: 0 | L66: 112
A67: 12 | B67: 7528 | C67: 13 | D67: 7533 | E67: 24 | F67: 7545 | K67: 0 | L67: 112
A68: 12 | B68: 7638 | C68: 24 | D68: 7657 | E68: 24 | F68: 7664 | K68: 0 | L68: 122
A69: 12 | B69: 7760 | C69: 13 | D69: 7766 | E69: 24 | F69: 7781 | K69: 0 | L69: 112
A70: 12 | B70: 7876 | C70: 13 | D70: 7878 | E70: 13 | F70: 7885 | K70: 0 | L70: 111
A71: 12 | B71: 7981 | C71: 13 | D71: 7986 | E71: 13 | F71: 7992 | K71: 0 | L71: 111
A72: 12 | B72: 8128 | C72: 24 | D72: 8142 | E72: 13 | F72: 8159 | K72: 0 | L72: 121
A73: 12 | B73: 8254 | C73: 24 | D73: 8275 | E73: 24 | F73: 8279 | K73: 0 | L73: 122
A74: 12 | B74: 8373 | C74: 13 | D74: 8380 | E74: 24 | F74: 8391 | K74: 0 | L74: 112
A75: 12 | B75: 8486 | C75: 13 | D75: 8491 | E75: 13 | F75: 8499 | K75: 0 | L75: 111
A76: 12 | B76: 8595 | C76: 13 | D76: 8600 | E76: 24 | F76: 8611 | K76: 0 | L76: 112
A77: 12 | B77: 8711 | C77: 24 | D77: 8725 | E77: 24 | F77: 8730 | K77: 0 | L77: 122
A78: 12 | B78: 8841 | C78: 24 | D78: 8855 | E78: 24 | F78: 8859 | K78: 0 | L78: 122
A79: 12 | B79: 8969 | C79: 13 | D79: 8976 | E79: 24 | F79: 8987 | K79: 0 | L79: 112
A80: 12 | B80: 9110 | C80: 13 | D80: 9115 | E80: 24 | F80: 9128 | K80: 0 | L80: 112
A81: 12 | B81: 9219 | C81: 13 | D81: 9233 | E81: 13 | F81: 9238 | K81: 0 | L81: 111
A82: 12 | B82: 9344 | C82: 13 | D82: 9350 | E82: 24 | F82: 9361 | K82: 0 | L82: 112
A83: 12 | B83: 9461 | C83: 13 | D83: 9463 | E83: 13 | F83: 9465 | K83: 0 | L83: 111
A84: 12 | B84: 9562 | C84: 13 | D84: 9569 | E84: 24 | F84: 9579 | K84: 0 | L84: 112
A85: 12 | B85: 9713 | C85: 24 | D85: 9731 | E85: 24 | F85: 9738 | K85: 0 | L85: 122
A86: 12 | B86: 9832 | C86: 13 | D86: 9836 | E86: 13 | F86: 9841 | K86: 0 | L86: 111
A87: 12 | B87: 9937 | C87: 13 | D87: 9945 | E87: 13 | F87: 9947 | K87: 0 | L87: 111
A88: 12 | B88: 10173 | C88: 13 | D88: 10181 | E88: 13 | F88: 10185 | K88: 0 | L88: 111
A89: 12 | B89: 10280 | C89: 13 | D89: 10285 | E89: 13 | F89: 10292 | K89: 0 | L89: 111
A90: 12 | B90: 10488 | C90: 24 | D90: 10510 | E90: 24 | F90: 10517 | K90: 0 | L90: 122
A91: 12 | B91: 10612 | C91: 13 | D91: 10616 | E91: 24 | F91: 10630 | K91: 0 | L91: 112
A92: 12 | B92: 10728 | C92: 13 | D92: 10733 | E92: 24 | F92: 10753 | K92: 0 | L92: 112
A93: 12 | B93: 10850 | C93: 24 | D93: 10867 | E93: 24 | F93: 10871 | K93: 0 | L93: 122
A94: 12 | B94: 10962 | C94: 13 | D94: 10966 | E94: 13 | F94: 10971 | K94: 0 | L94: 111
A95: 21 | B95: 11077 | C95: 11 | D95: 11091 | E95: 22 | F95: 11103 | K95: 0 | L95: 212
A96: 12 | B96: 11780 | C96: 24 | D96: 11794 | E96: 13 | F96: 11809 | K96: 0 | L96: 121
A97: 12 | B97: 11903 | C97: 13 | D97: 11906 | E97: 13 | F97: 11912 | K97: 0 | L97: 111
A98: 12 | B98: 12174 | C98: 13 | D98: 12178 | E98: 13 | F98: 12186 | K98: 0 | L98: 111
A99: 12 | B99: 12325 | C99: 13 | D99: 12331 | E99: 13 | F99: 12336 | K99: 0 | L99: 111
A100: 12 | B100: 12432 | C100: 13 | D100: 12435 | E100: 24 | F100: 12448 | K100: 0 | L100: 112
A101: 12 | B101: 12577 | C101: 13 | D101: 12582 | E101: 13 | F101: 12587 | K101: 0 | L101: 111
A102: 12 | B102: 12683 | C102: 13 | D102: 12688 | E102: 24 | F102: 12700 | K102: 0 | L102: 112
A103: 12 | B103: 12796 | C103: 24 | D103: 12813 | E103: 24 | F103: 12820 | K103: 0 | L103: 122
A104: 12 | B104: 13012 | C104: 24 | D104: 13024 | E104: 24 | F104: 13032 | K104: 0 | L104: 122
A105: 12 | B105: 13125 | C105: 13 | D105: 13129 | E105: 13 | F105: 13135 | K105: 0 | L105: 111
A106: 12 | B106: 13230 | C106: 13 | D106: 13234 | E106: 13 | F106: 13241 | K106: 0 | L106: 111
A107: 12 | B107: 13369 | C107: 24 | D107: 13386 | E107: 24 | F107: 13395 | K107: 0 | L107: 122
A108: 12 | B108: 13490 | C108: 24 | D108: 13521 | E108: 24 | F108: 13528 | K108: 0 | L108: 122
A109: 12 | B109: 13627 | C109: 24 | D109: 13641 | E109: 24 | F109: 13646 | K109: 0 | L109: 122
A110: 12 | B110: 13741 | C110: 13 | D110: 13753 | E110: 24 | F110: 13765 | K110: 0 | L110: 112
A111: 12 | B111: 13866 | C111: 13 | D111: 13870 | E111: 24 | F111: 13881 | K111: 0 | L111: 112
A112: 12 | B112: 13978 | C112: 13 | D112: 13983 | E112: 24 | F112: 13995 | K112: 0 | L112: 112
A113: 12 | B113: 14088 | C113: 13 | D113: 14092 | E113: 13 | F113: 14122 | K113: 0 | L113: 111
A114: 12 | B114: 14220 | C114: 24 | D114: 14233 | E114: 24 | F114: 14238 | K114: 0 | L114: 122
A115: 12 | B115: 14485 | C115: 13 | D115: 14489 | E115: 13 | F115: 14495 | K115: 0 | L115: 111
A116: 12 | B116: 14614 | C116: 13 | D116: 14626 | E116: 24 | F116: 14639 | K116: 0 | L116: 112
A117: 12 | B117: 14732 | C117: 13 | D117: 14739 | E117: 24 | F117: 14759 | K117: 0 | L117: 112
A118: 12 | B118: 14857 | C118: 24 | D118: 14867 | E118: 24 | F118: 14872 | K118: 0 | L118: 122
A119: 12 | B119: 14967 | C119: 13 | D119: 14972 | E119: 24 | F119: 14982 | K119: 0 | L119: 112
A120: 12 | B120: 15107 | C120: 24 | D120: 15116 | E120: 13 | F120: 15132 | K120: 0 | L120: 121
A121: 21 | B121: 15316 | C121: 11 | D121: 15378 | E121: 11 | F121: 15386 | K121: 0 | L121: 211
A122: 21 | B122: 15766 | C122: 11 | D122: 15775 | E122: 11 | F122: 15779 | K122: 0 | L122: 211
A123: 21 | B123: 16365 | C123: 22 | D123: 16370 | E123: 24 | F123: 16379 | K123: 0 | L123: 222
A124: 12 | B124: 16475 | C124: 24 | D124: 16487 | E124: 24 | F124: 16491 | K124: 0 | L124: 122
A125: 12 | B125: 16586 | C125: 24 | D125: 16607 | E125: 24 | F125: 16611 | K125: 0 | L125: 122
A126: 12 | B126: 16723 | C126: 13 | D126: 16726 | E126: 24 | F126: 16738 | K126: 0 | L126: 112
A127: 12 | B127: 16851 | C127: 13 | D127: 16858 | E127: 13 | F127: 16869 | K127: 0 | L127: 111
A128: 21 | B128: 16965 | C128: 11 | D128: 16968 | E128: 11 | F128: 16981 | K128: 0 | L128: 211
A129: 12 | B129: 17238 | C129: 13 | D129: 17250 | E129: 13 | F129: 17261 | K129: 0 | L129: 111
A130: 12 | B130: 17354 | C130: 13 | D130: 17357 | E130: 13 | F130: 17361 | K130: 0 | L130: 111
A131: 12 | B131: 17459 | C131: 24 | D131: 17469 | E131: 13 | F131: 17474 | K131: 0 | L131: 121
A132: 12 | B132: 17585 | C132: 13 | D132: 17591 | E132: 13 | F132: 17600 | K132: 0 | L132: 111
A133: 12 | B133: 17697 | C133: 13 | D133: 17703 | E133: 13 | F133: 17717 | K133: 0 | L133: 111
A134: 12 | B134: 17812 | C134: 13 | D134: 17815 | E134: 13 | F134: 17820 | K134: 0 | L134: 111
A135: 12 | B135: 17914 | C135: 13 | D135: 17920 | E135: 13 | F135: 17926 | K135: 0 | L135: 111
A136: 12 | B136: 18018 | C136: 24 | D136: 18022 | E136: 13 | F136: 18027 | K136: 0 | L136: 121
A137: 12 | B137: 18180 | C137: 13 | D137: 18186 | E137: 24 | F137: 18201 | K137: 0 | L137: 112
A138: 12 | B138: 18294 | C138: 24 | D138: 18297 | E138: 13 | F138: 18301 | K138: 0 | L138: 121
A139: 12 | B139: 18398 | C139: 13 | D139: 18405 | E139: 13 | F139: 18412 | K139: 0 | L139: 111
A140: 12 | B140: 18511 | C140: 13 | D140: 18520 | E140: 24 | F140: 18531 | K140: 0 | L140: 112
A141: 12 | B141: 18701 | C141: 13 | D141: 18706 | E141: 24 | F141: 18718 | K141: 0 | L141: 112
A142: 12 | B142: 18814 | C142: 13 | D142: 18827 | E142: 24 | F142: 18847 | K142: 0 | L142: 112
A143: 12 | B143: 18942 | C143: 13 | D143: 18944 | E143: 13 | F143: 18953 | K143: 0 | L143: 111
A144: 12 | B144: 19047 | C144: 13 | D144: 19053 | E144: 13 | F144: 19072 | K144: 0 | L144: 111
A145: 12 | B145: 19168 | C145: 13 | D145: 19172 | E145: 24 | F145: 19185 | K145: 0 | L145: 112
A146: 12 | B146: 19281 | C146: 13 | D146: 19283 | E146: 13 | F146: 19291 | K146: 0 | L146: 111
A147: 12 | B147: 19386 | C147: 13 | D147: 19389 | E147: 24 | F147: 19404 | K147: 0 | L147: 112
A148: 12 | B148: 19499 | C148: 13 | D148: 19502 | E148: 13 | F148: 19510 | K148: 0 | L148: 111
A149: 12 | B149: 19607 | C149: 13 | D149: 19617 | E149: 13 | F149: 19625 | K149: 0 | L149: 111
A150: 12 | B150: 19722 | C150: 13 | D150: 19726 | E150: 24 | F150: 19738 | K150: 0 | L150: 112
A151: 12 | B151: 19830 | C151: 13 | D151: 19835 | E151: 13 | F151: 19839 | K151: 0 | L151: 111
A152: 12 | B152: 19934 | C152: 24 | D152: 19945 | E152: 24 | F152: 19950 | K152: 0 | L152: 122
A153: 12 | B153: 20044 | C153: 13 | D153: 20048 | E153: 24 | F153: 20061 | K153: 0 | L153: 112
A154: 12 | B154: 20155 | C154: 13 | D154: 20165 | E154: 24 | F154: 20178 | K154: 0 | L154: 112
A155: 12 | B155: 20273 | C155: 13 | D155: 20282 | E155: 24 | F155: 20298 | K155: 0 | L155: 112
A156: 12 | B156: 20397 | C156: 13 | D156: 20408 | E156: 24 | F156: 20419 | K156: 0 | L156: 112
A157: 12 | B157: 20517 | C157: 13 | D157: 20526 | E157: 24 | F157: 20539 | K157: 0 | L157: 112
A158: 12 | B158: 20636 | C158: 24 | D158: 20649 | E158: 24 | F158: 20654 | K158: 0 | L158: 122
A159: 12 | B159: 20750 | C159: 13 | D159: 20753 | E159: 24 | F159: 20767 | K159: 0 | L159: 112
A160: 12 | B160: 20860 | C160: 13 | D160: 20863 | E160: 13 | F160: 20870 | K160: 0 | L160: 111
A161: 12 | B161: 20974 | C161: 13 | D161: 20979 | E161: 13 | F161: 20985 | K161: 0 | L161: 111
A162: 21 | B162: 21086 | C162: 11 | D162: 21103 | E162: 22 | F162: 21117 | K162: 0 | L162: 212
A163: 12 | B163: 21211 | C163: 13 | D163: 21215 | E163: 13 | F163: 21224 | K163: 0 | L163: 111
A164: 12 | B164: 21318 | C164: 13 | D164: 21322 | E164: 24 | F164: 21337 | K164: 0 | L164: 112
A165: 12 | B165: 21431 | C165: 13 | D165: 21433 | E165: 24 | F165: 21449 | K165: 0 | L165: 112
A166: 12 | B166: 21544 | C166: 13 | D166: 21551 | E166: 13 | F166: 21558 | K166: 0 | L166: 111
A167: 12 | B167: 21653 | C167: 13 | D167: 21658 | E167: 24 | F167: 21670 | K167: 0 | L167: 112
A168: 12 | B168: 21765 | C168: 24 | D168: 21778 | E168: 24 | F168: 21785 | K168: 0 | L168: 122
A169: 12 | B169: 21882 | C169: 13 | D169: 21887 | E169: 13 | F169: 21893 | K169: 0 | L169: 111
A170: 12 | B170: 21988 | C170: 24 | D170: 22000 | E170: 24 | F170: 22004 | K170: 0 | L170: 122
A171: 12 | B171: 22155 | C171: 13 | D171: 22161 | E171: 13 | F171: 22168 | K171: 0 | L171: 111
A172: 12 | B172: 22267 | C172: 13 | D172: 22280 | E172: 24 | F172: 22291 | K172: 0 | L172: 112
A173: 12 | B173: 22388 | C173: 24 | D173: 22404 | E173: 24 | F173: 22413 | K173: 0 | L173: 122
A174: 12 | B174: 22508 | C174: 13 | D174: 22511 | E174: 13 | F174: 22516 | K174: 0 | L174: 111
A175: 21 | B175: 22618 | C175: 11 | D175: 22625 | E175: 11 | F175: 22629 | K175: 0 | L175: 211
A176: 12 | B176: 23040 | C176: 13 | D176: 23044 | E176: 24 | F176: 23058 | K176: 0 | L176: 112
A177: 12 | B177: 23153 | C177: 13 | D177: 23157 | E177: 24 | F177: 23167 | K177: 0 | L177: 112
A178: 12 | B178: 23263 | C178: 13 | D178: 23267 | E178: 24 | F178: 23279 | K178: 0 | L178: 112
A179: 12 | B179: 23377 | C179: 13 | D179: 23380 | E179: 13 | F179: 23384 | K179: 0 | L179: 111
A180: 12 | B180: 23519 | C180: 13 | D180: 23525 | E180: 24 | F180: 23535 | K180: 0 | L180: 112
A181: 12 | B181: 23634 | C181: 13 | D181: 23637 | E181: 24 | F181: 23650 | K181: 0 | L181: 112
A182: 12 | B182: 23742 | C182: 13 | D182: 23744 | E182: 13 | F182: 23749 | K182: 0 | L182: 111
A183: 12 | B183: 23846 | C183: 24 | D183: 23858 | E183: 24 | F183: 23867 | K183: 0 | L183: 122
A184: 12 | B184: 23961 | C184: 13 | D184: 23968 | E184: 24 | F184: 23980 | L184: 112

Sheet !MC17A2I.sha
A1: Report for:!MC17A2I.sha
A2: Date: | B2: <date>
A3: Hen: | B3: <hen> | F3: Correct Sequence | G3: =Start!J2 -> 211 | P3: Total Sequences in Data | Q3: =4994-COUNTBLANK(L7:L5000) -> 187 | V3: Total Sequences in Block Data | W3: =COUNTA(L7:L37) -> 31 | AA3: Total Sequences in Block Data | AB3: =COUNTA(L38:L68) -> 31 | AF3: Total Sequences in Block Data | AG3: =COUNTA(L69:L100) -> 32 | AK3: Total Sequences in Block Data | AL3: =COUNTA(L101:L131) -> 31 | AP3: Total Sequences in Block Data | AQ3: =COUNTA(L132:L162) -> 31 | AU3: Total Sequences in Block Data | AV3: =COUNTA(L163:L193) -> 31
P4: Total Sequences in Summary | Q4: =SUM(O7:O14) -> 187 | V4: Total Sequences in Block Summary | W4: =SUM(U7:U14) -> 31 | AA4: Total Sequences in Block Summary | AB4: =SUM(Z7:Z14) -> 31 | AF4: Total Sequences in Block Summary | AG4: =SUM(AE7:AE14) -> 32 | AK4: Total Sequences in Block Summary | AL4: =SUM(AJ7:AJ14) -> 31 | AP4: Total Sequences in Block Summary | AQ4: =SUM(AO7:AO14) -> 31 | AU4: Total Sequences in Block Summary | AV4: =SUM(AT7:AT14) -> 31
T5: Block 1 | Y5: Block 2 | AD5: Block 3 | AI5: Block 4 | AN5: Block 5 | AS5: Block 6
A6: Sequence Component 1 | B6: Time 1 | C6: Sequence Component 2 | D6: Time 2 | E6: Sequence Component 3 | F6: Time 3 | G6: Sequence Component 4 | H6: Time 4 | I6: Sequence Component 5 | J6: Time 5 | K6: Correct? 0=No 1=Yes | L6: Sequence | N6: Frequency | P6: Relative Frequency | Q6: Variability | T6: Frequency | V6: Relative Frequency | W6: Variability | Y6: Frequency | AA6: Relative Frequency | AB6: Variability | AD6: Frequency | AF6: Relative Frequency | AG6: Variability | AI6: Frequency | AK6: Relative Frequency | AL6: Variability | AN6: Frequency | AP6: Relative Frequency | AQ6: Variability | AS6: Frequency | AU6: Relative Frequency | AV6: Variability
A7: 12 | B7: 101 | C7: 24 | D7: 110 | E7: 13 | F7: 125 | K7: 0 | L7: 121 | N7: 111 | O7: =COUNTIF($L$7:$L$500,N7) -> 71 | P7: =O7/$Q$4 -> 0.3796791444 | Q7: =IF(P7=0,0,(P7*((LOG(P7))/LOG(2)))) -> -0.5304677068 | T7: =N7 -> 111 | U7: =COUNTIF(L7:L37,T7) -> 10 | V7: =U7/(W4-U11) -> 0.3225806452 | W7: =IF(V7=0,0,(V7*((LOG(V7))/LOG(2)))) -> -0.526538134 | Y7: =N7 -> 111 | Z7: =COUNTIF(L38:L68,Y7) -> 9 | AA7: =Z7/(AB4-Z11) -> 0.3 | AB7: =IF(AA7=0,0,(AA7*((LOG(AA7))/LOG(2)))) -> -0.5210896782 | AD7: =N7 -> 111 | AE7: =COUNTIF(L69:L100,AD7) -> 16 | AF7: =AE7/(AG4-AE11) -> 0.5 | AG7: =IF(AF7=0,0,(AF7*((LOG(AF7))/LOG(2)))) -> -0.5 | AI7: =N7 -> 111 | AJ7: =COUNTIF(L101:L131,AI7) -> 14 | AK7: =AJ7/(AL4-AJ11) -> 0.4516129032 | AL7: =IF(AK7=0,0,(AK7*((LOG(AK7))/LOG(2)))) -> -0.5179283689 | AN7: =N7 -> 111 | AO7: =COUNTIF(L132:L162,AN7) -> 12 | AP7: =AO7/(AQ4-AO11) -> 0.4285714286 | AQ7: =IF(AP7=0,0,(AP7*((LOG(AP7))/LOG(2)))) -> -0.5238824663 | AS7: =N7 -> 111 | AT7: =COUNTIF(L163:L193,AS7) -> 10 | AU7: =AT7/(AV4-AT11) -> 0.3448275862 | AV7: =IF(AU7=0,0,(AU7*((LOG(AU7))/LOG(2)))) -> -0.5296734139
A8: 21 | B8: 225 | C8: 22 | D8: 232 | E8: 24 | F8: 235 | K8: 0 | L8: 222 | N8: 112 | O8: 74 | P8: 0.3957219251 | Q8: -0.5292547646 | T8: 112 | U8: =COUNTIF(L7:L37,T8) -> 13 | V8: =U8/(W4-U11) -> 0.4193548387 | W8: =IF(V8=0,0,(V8*((LOG(V8))/LOG(2)))) -> -0.5257688935 | Y8: 112 | Z8: =COUNTIF(L38:L68,Y8) -> 14 | AA8: =Z8/(AB4-Z11) -> 0.4666666667 | AB8: =IF(AA8=0,0,(AA8*((LOG(AA8))/LOG(2)))) -> -0.5131166477 | AD8: 112 | AE8: =COUNTIF(L69:L100,AD8) -> 11 | AF8: =AE8/(AG4-AE11) -> 0.34375 | AG8: =IF(AF8=0,0,(AF8*((LOG(AF8))/LOG(2)))) -> -0.5295703811 | AI8: 112 | AJ8: =COUNTIF(L101:L131,AI8) -> 13 | AK8: =AJ8/(AL4-AJ11) -> 0.4193548387 | AL8: =IF(AK8=0,0,(AK8*((LOG(AK8))/LOG(2)))) -> -0.5257688935 | AN8: 112 | AO8: =COUNTIF(L132:L162,AN8) -> 7 | AP8: =AO8/(AQ4-AO11) -> 0.25 | AQ8: =IF(AP8=0,0,(AP8*((LOG(AP8))/LOG(2)))) -> -0.5 | AS8: 112 | AT8: =COUNTIF(L163:L193,AS8) -> 16 | AU8: =AT8/(AV4-AT11) -> 0.5517241379 | AV8: =IF(AU8=0,0,(AU8*((LOG(AU8))/LOG(2)))) -> -0.4733688249
A9: 12 | B9: 329 | C9: 13 | D9: 331 | E9: 13 | F9: 336 | K9: 0 | L9: 111 | N9: 121 | O9: 8 | P9: 0.04278074866 | Q9: -0.1945195491 | T9: 121 | U9: =COUNTIF(L7:L37,T9) -> 1 | V9: =U9/(W4-U11) -> 0.03225806452 | W9: =IF(V9=0,0,(V9*((LOG(V9))/LOG(2)))) -> -0.1598127842 | Y9: 121 | Z9: =COUNTIF(L38:L68,Y9) -> 0 | AA9: =Z9/(AB4-Z11) -> 0 | AB9: =IF(AA9=0,0,(AA9*((LOG(AA9))/LOG(2)))) -> 0 | AD9: 121 | AE9: =COUNTIF(L69:L100,AD9) -> 1 | AF9: =AE9/(AG4-AE11) -> 0.03125 | AG9: =IF(AF9=0,0,(AF9*((LOG(AF9))/LOG(2)))) -> -0.15625 | AI9: 121 | AJ9: =COUNTIF(L101:L131,AI9) -> 1 | AK9: =AJ9/(AL4-AJ11) -> 0.03225806452 | AL9: =IF(AK9=0,0,(AK9*((LOG(AK9))/LOG(2)))) -> -0.1598127842 | AN9: 121 | AO9: =COUNTIF(L132:L162,AN9) -> 3 | AP9: =AO9/(AQ4-AO11) -> 0.1071428571 | AQ9: =IF(AP9=0,0,(AP9*((LOG(AP9))/LOG(2)))) -> -0.3452563309 | AS9: 121 | AT9: =COUNTIF(L163:L193,AS9) -> 2 | AU9: =AT9/(AV4-AT11) -> 0.06896551724 | AV9: =IF(AU9=0,0,(AU9*((LOG(AU9))/LOG(2)))) -> -0.2660676548
A10: 12 | B10: 432 | C10: 13 | D10: 437 | E10: 24 | F10: 449 | K10: 0 | L10: 112 | N10: 122 | O10: 22 | P10: 0.1176470588 | Q10: -0.3632309225 | T10: 122 | U10: =COUNTIF(L7:L37,T10) -> 5 | V10: =U10/(W4-U11) -> 0.1612903226 | W10: =IF(V10=0,0,(V10*((LOG(V10))/LOG(2)))) -> -0.4245593896 | Y10: 122 | Z10: =COUNTIF(L38:L68,Y10) -> 7 | AA10: =Z10/(AB4-Z11) -> 0.2333333333 | AB10: =IF(AA10=0,0,(AA10*((LOG(AA10))/LOG(2)))) -> -0.4898916572 | AD10: 122 | AE10: =COUNTIF(L69:L100,AD10) -> 3 | AF10: =AE10/(AG4-AE11) -> 0.09375 | AG10: =IF(AF10=0,0,(AF10*((LOG(AF10))/LOG(2)))) -> -0.3201597656 | AI10: 122 | AJ10: =COUNTIF(L101:L131,AI10) -> 3 | AK10: =AJ10/(AL4-AJ11) -> 0.09677419355 | AL10: =IF(AK10=0,0,(AK10*((LOG(AK10))/LOG(2)))) -> -0.3260548848 | AN10: 122 | AO10: =COUNTIF(L132:L162,AN10) -> 3 | AP10: =AO10/(AQ4-AO11) -> 0.1071428571 | AQ10: =IF(AP10=0,0,(AP10*((LOG(AP10))/LOG(2)))) -> -0.3452563309 | AS10: 122 | AT10: =COUNTIF(L163:L193,AS10) -> 1 | AU10: =AT10/(AV4-AT11) -> 0.03448275862 | AV10: =IF(AU10=0,0,(AU10*((LOG(AU10))/LOG(2)))) -> -0.167516586
A11: 12 | B11: 545 | C11: 13 | D11: 551 | E11: 24 | F11: 562 | K11: 0 | L11: 112 | N11: 211 | O11: 6 | P11: 0.0320855615 | Q11: -0.159206373 | T11: 211 | U11: =COUNTIF(L7:L37,T11) -> 0 | Y11: 211 | Z11: =COUNTIF(L38:L68,Y11) -> 1 | AD11: 211 | AE11: =COUNTIF(L69:L100,AD11) -> 0 | AI11: 211 | AJ11: =COUNTIF(L101:L131,AI11) -> 0 | AN11: 211 | AO11: =COUNTIF(L132:L162,AN11) -> 3 | AS11: 211 | AT11: =COUNTIF(L163:L193,AS11) -> 2
A12: 12 | B12: 657 | C12: 13 | D12: 660 | E12: 13 | F12: 667 | K12: 0 | L12: 111 | N12: 212 | O12: 4 | P12: 0.02139037433 | Q12: -0.1186501489 | T12: 212 | U12: =COUNTIF(L7:L37,T12) -> 1 | V12: =U12/(W4-U11) -> 0.03225806452 | W12: =IF(V12=0,0,(V12*((LOG(V12))/LOG(2)))) -> -0.1598127842 | Y12: 212 | Z12: =COUNTIF(L38:L68,Y12) -> 0 | AA12: =Z12/(AB4-Z11) -> 0 | AB12: =IF(AA12=0,0,(AA12*((LOG(AA12))/LOG(2)))) -> 0 | AD12: 212 | AE12: =COUNTIF(L69:L100,AD12) -> 1 | AF12: =AE12/(AG4-AE11) -> 0.03125 | AG12: =IF(AF12=0,0,(AF12*((LOG(AF12))/LOG(2)))) -> -0.15625 | AI12: 212 | AJ12: =COUNTIF(L101:L131,AI12) -> 0 | AK12: =AJ12/(AL4-AJ11) -> 0 | AL12: =IF(AK12=0,0,(AK12*((LOG(AK12))/LOG(2)))) -> 0 | AN12: 212 | AO12: =COUNTIF(L132:L162,AN12) -> 2 | AP12: =AO12/(AQ4-AO11) -> 0.07142857143 | AQ12: =IF(AP12=0,0,(AP12*((LOG(AP12))/LOG(2)))) -> -0.271953923 | AS12: 212 | AT12: =COUNTIF(L163:L193,AS12) -> 0 | AU12: =AT12/(AV4-AT11) -> 0 | AV12: =IF(AU12=0,0,(AU12*((LOG(AU12))/LOG(2)))) -> 0
A13: 12 | B13: 765 | C13: 24 | D13: 779 | E13: 24 | F13: 784 | K13: 0 | L13: 122 | N13: 221 | O13: 1 | P13: 0.005347593583 | Q13: -0.04035772438 | T13: 221 | U13: =COUNTIF(L7:L37,T13) -> 0 | V13: =U13/(W4-U11) -> 0 | W13: =IF(V13=0,0,(V13*((LOG(V13))/LOG(2)))) -> 0 | Y13: 221 | Z13: =COUNTIF(L38:L68,Y13) -> 0 | AA13: =Z13/(AB4-Z11) -> 0 | AB13: =IF(AA13=0,0,(AA13*((LOG(AA13))/LOG(2)))) -> 0 | AD13: 221 | AE13: =COUNTIF(L69:L100,AD13) -> 0 | AF13: =AE13/(AG4-AE11) -> 0 | AG13: =IF(AF13=0,0,(AF13*((LOG(AF13))/LOG(2)))) -> 0 | AI13: 221 | AJ13: =COUNTIF(L101:L131,AI13) -> 0 | AK13: =AJ13/(AL4-AJ11) -> 0 | AL13: =IF(AK13=0,0,(AK13*((LOG(AK13))/LOG(2)))) -> 0 | AN13: 221 | AO13: =COUNTIF(L132:L162,AN13) -> 1 | AP13: =AO13/(AQ4-AO11) -> 0.03571428571 | AQ13: =IF(AP13=0,0,(AP13*((LOG(AP13))/LOG(2)))) -> -0.1716912472 | AS13: 221 | AT13: =COUNTIF(L163:L193,AS13) -> 0 | AU13: =AT13/(AV4-AT11) -> 0 | AV13: =IF(AU13=0,0,(AU13*((LOG(AU13))/LOG(2)))) -> 0
A14: 12 | B14: 883 | C14: 13 | D14: 891 | E14: 24 | F14: 903 | K14: 0 | L14: 112 | N14: 222 | O14: 1 | P14: 0.005347593583 | Q14: -0.04035772438 | T14: 222 | U14: =COUNTIF(L7:L37,T14) -> 1 | V14: =U14/(W4-U11) -> 0.03225806452 | W14: =IF(V14=0,0,(V14*((LOG(V14))/LOG(2)))) -> -0.1598127842 | Y14: 222 | Z14: =COUNTIF(L38:L68,Y14) -> 0 | AA14: =Z14/(AB4-Z11) -> 0 | AB14: =IF(AA14=0,0,(AA14*((LOG(AA14))/LOG(2)))) -> 0 | AD14: 222 | AE14: =COUNTIF(L69:L100,AD14) -> 0 | AF14: =AE14/(AG4-AE11) -> 0 | AG14: =IF(AF14=0,0,(AF14*((LOG(AF14))/LOG(2)))) -> 0 | AI14: 222 | AJ14: =COUNTIF(L101:L131,AI14) -> 0 | AK14: =AJ14/(AL4-AJ11) -> 0 | AL14: =IF(AK14=0,0,(AK14*((LOG(AK14))/LOG(2)))) -> 0 | AN14: 222 | AO14: =COUNTIF(L132:L162,AN14) -> 0 | AP14: =AO14/(AQ4-AO11) -> 0 | AQ14: =IF(AP14=0,0,(AP14*((LOG(AP14))/LOG(2)))) -> 0 | AS14: 222 | AT14: =COUNTIF(L163:L193,AS14) -> 0 | AU14: =AT14/(AV4-AT11) -> 0 | AV14: =IF(AU14=0,0,(AU14*((LOG(AU14))/LOG(2)))) -> 0
A15: 12 | B15: 996 | C15: 13 | D15: 1002 | E15: 13 | F15: 1007 | K15: 0 | L15: 111 | P15: =SUM(P7:P14) -> 1 | Q15: =-SUM(Q7:Q14) -> 1.976044914 | V15: =SUM(V7:V14) -> 1 | W15: =-SUM(W7:W14) -> 1.95630477 | AA15: =SUM(AA7:AA14) -> 1 | AB15: =-SUM(AB7:AB14) -> 1.524097983 | AF15: =SUM(AF7:AF14) -> 1 | AG15: =-SUM(AG7:AG14) -> 1.662230147 | AK15: =SUM(AK7:AK14) -> 1 | AL15: =-SUM(AL7:AL14) -> 1.529564931 | AP15: =SUM(AP7:AP14) -> 1 | AQ15: =-SUM(AQ7:AQ14) -> 2.158040298 | AU15: =SUM(AU7:AU14) -> 1 | AV15: =-SUM(AV7:AV14) -> 1.43662648
A16: 12 | B16: 1102 | C16: 13 | D16: 1104 | E16: 24 | F16: 1118 | K16: 0 | L16: 112 | P16: U= | Q16: =Q15/(LOG(Q4)/LOG(2)) -> 0.2618355039 | V16: U1= | W16: =W15/(LOG(W4)/LOG(2)) -> 0.3948783309 | AA16: U2= | AB16: =AB15/(LOG(AB4)/LOG(2)) -> 0.3076377857 | AF16: U3= | AG16: =AG15/(LOG(AG4)/LOG(2)) -> 0.3324460293 | AK16: U4= | AL16: =AL15/(LOG(AL4)/LOG(2)) -> 0.3087412843 | AP16: U5= | AQ16: =AQ15/(LOG(AQ4)/LOG(2)) -> 0.435598463 | AU16: U6= | AV16: =AV15/(LOG(AV4)/LOG(2)) -> 0.2899817427
A17: 12 | B17: 1235 | C17: 24 | D17: 1257 | E17: 24 | F17: 1262 | K17: 0 | L17: 122
A18: 21 | B18: 1447 | C18: 11 | D18: 1464 | E18: 22 | F18: 1482 | K18: 0 | L18: 212
A19: 12 | B19: 1578 | C19: 13 | D19: 1582 | E19: 13 | F19: 1590 | K19: 0 | L19: 111 | N19: Total Target Seq
A20: 12 | B20: 1687 | C20: 13 | D20: 1693 | E20: 24 | F20: 1703 | K20: 0 | L20: 112 | N20: =COUNTIF(L7:L193,G3) -> 6 | P20: 31 | Q20: 31 | R20: 32 | S20: 31 | T20: 31 | U20: 31
A21: 12 | B21: 1797 | C21: 13 | D21: 1800 | E21: 13 | F21: 1804 | K21: 0 | L21: 111 | P21: % of reinforcement given in 6 equal intervals based on number of trials
A22: 12 | B22: 1904 | C22: 13 | D22: 1909 | E22: 24 | F22: 1922 | K22: 0 | L22: 112 | P22: %_1 | Q22: %_2 | R22: %_3 | S22: %_4 | T22: %_5 | U22: %_6
A23: 12 | B23: 2085 | C23: 13 | D23: 2096 | E23: 24 | F23: 2107 | K23: 0 | L23: 112 | O23: target sequence | P23: =$G$3 -> 211 | Q23: 211 | R23: 211 | S23: 211 | T23: 211 | U23: 211
A24: 12 | B24: 2209 | C24: 13 | D24: 2213 | E24: 24 | F24: 2222 | K24: 0 | L24: 112 | O24: total reinforcement | P24: =U11 -> 0 | Q24: =Z11 -> 1 | R24: =AE11 -> 0 | S24: =AJ11 -> 0 | T24: =AO11 -> 3 | U24: =AT11 -> 2
A25: 12 | B25: 2323 | C25: 13 | D25: 2328 | E25: 13 | F25: 2334 | K25: 0 | L25: 111 | O25: % target
A26: 12 | B26: 2429 | C26: 13 | D26: 2434 | E26: 24 | F26: 2445 | K26: 0 | L26: 112 | O26: CCRF
A27: 12 | B27: 2538 | C27: 13 | D27: 2543 | E27: 13 | F27: 2549 | K27: 0 | L27: 111 | O27: % CCRf
A28: 12 | B28: 2642 | C28: 13 | D28: 2649 | E28: 24 | F28: 2660 | K28: 0 | L28: 112 | O28: average response rate | P28: =F37/P20 -> 118.8387097 | Q28: =(F68-F37)/Q20 -> 122.6129032 | R28: =(F100-F68)/R20 -> 130.0625 | S28: =(F131-F100)/S20 -> 130.4193548 | T28: =(F162-F131)/T20 -> 138.0645161 | U28: =(F193-F162)/U20 -> 129.5806452
A29: 12 | B29: 2769 | C29: 24 | D29: 2780 | E29: 24 | F29: 2796 | K29: 0 | L29: 122
A30: 12 | B30: 2890 | C30: 24 | D30: 2903 | E30: 24 | F30: 2906 | K30: 0 | L30: 122
A31: 12 | B31: 2998 | C31: 13 | D31: 3001 | E31: 13 | F31: 3010 | K31: 0 | L31: 111
A32: 12 | B32: 3120 | C32: 24 | D32: 3133 | E32: 24 | F32: 3140 | K32: 0 | L32: 122
A33: 12 | B33: 3235 | C33: 13 | D33: 3239 | E33: 24 | F33: 3249 | K33: 0 | L33: 112
A34: 12 | B34: 3342 | C34: 13 | D34: 3351 | E34: 24 | F34: 3361 | K34: 0 | L34: 112
A35: 12 | B35: 3453 | C35: 13 | D35: 3457 | E35: 13 | F35: 3465 | K35: 0 | L35: 111
A36: 12 | B36: 3559 | C36: 13 | D36: 3562 | E36: 24 | F36: 3574 | K36: 0 | L36: 112
A37: 12 | B37: 3675 | C37: 13 | D37: 3680 | E37: 13 | F37: 3684 | K37: 0 | L37: 111
A38: 12 | B38: 3780 | C38: 24 | D38: 3789 | E38: 24 | F38: 3793 | K38: 0 | L38: 122
A39: 21 | B39: 3891 | C39: 11 | D39: 3898 | E39: 11 | F39: 3904 | K39: 0 | L39: 211
A40: 12 | B40: 4173 | C40: 13 | D40: 4184 | E40: 24 | F40: 4199 | K40: 0 | L40: 112
A41: 12 | B41: 4296 | C41: 13 | D41: 4300 | E41: 24 | F41: 4311 | K41: 0 | L41: 112
A42: 12 | B42: 4408 | C42: 13 | D42: 4411 | E42: 24 | F42: 4423 | K42: 0 | L42: 112
A43: 12 | B43: 4517 | C43: 13 | D43: 4521 | E43: 13 | F43: 4526 | K43: 0 | L43: 111
A44: 12 | B44: 4622 | C44: 13 | D44: 4631 | E44: 24 | F44: 4645 | K44: 0 | L44: 112
A45: 12 | B45: 4774 | C45: 13 | D45: 4780 | E45: 13 | F45: 4789 | K45: 0 | L45: 111
A46: 12 | B46: 4889 | C46: 13 | D46: 4895 | E46: 24 | F46: 4907 | K46: 0 | L46: 112
A47: 12 | B47: 5004 | C47: 13 | D47: 5008 | E47: 13 | F47: 5017 | K47: 0 | L47: 111
A48: 12 | B48: 5113 | C48: 13 | D48: 5118 | E48: 13 | F48: 5123 | K48: 0 | L48: 111
A49: 12 | B49: 5218 | C49: 13 | D49: 5221 | E49: 13 | F49: 5230 | K49: 0 | L49: 111
A50: 12 | B50: 5326 | C50: 13 | D50: 5333 | E50: 13 | F50: 5336 | K50: 0 | L50: 111
A51: 12 | B51: 5430 | C51: 13 | D51: 5440 | E51: 24 | F51: 5459 | K51: 0 | L51: 112
A52: 12 | B52: 5557 | C52: 24 | D52: 5574 | E52: 24 | F52: 5582 | K52: 0 | L52: 122
A53: 12 | B53: 5677 | C53: 13 | D53: 5679 | E53: 24 | F53: 5698 | K53: 0 | L53: 112
A54: 12 | B54: 5791 | C54: 13 | D54: 5793 | E54: 13 | F54: 5811 | K54: 0 | L54: 111
A55: 12 | B55: 5921 | C55: 24 | D55: 5950 | E55: 24 | F55: 5954 | K55: 0 | L55: 122
A56: 12 | B56: 6049 | C56: 24 | D56: 6068 | E56: 24 | F56: 6076 | K56: 0 | L56: 122
A57: 12 | B57: 6173 | C57: 24 | D57: 6191 | E57: 24 | F57: 6196 | K57: 0 | L57: 122
A58: 12 | B58: 6290 | C58: 13 | D58: 6302 | E58: 24 | F58: 6312 | K58: 0 | L58: 112
A59: 12 | B59: 6417 | C59: 13 | D59: 6421 | E59: 24 | F59: 6432 | K59: 0 | L59: 112
A60: 12 | B60: 6530 | C60: 13 | D60: 6540 | E60: 24 | F60: 6553 | K60: 0 | L60: 112
A61: 12 | B61: 6651 | C61: 13 | D61: 6656 | E61: 24 | F61: 6667 | K61: 0 | L61: 112
A62: 12 | B62: 6762 | C62: 13 | D62: 6780 | E62: 13 | F62: 6785 | K62: 0 | L62: 111
A63: 12 | B63: 6878 | C63: 13 | D63: 6881 | E63: 13 | F63: 6886 | K63: 0 | L63: 111
A64: 12 | B64: 6987 | C64: 13 | D64: 6991 | E64: 24 | F64: 7008 | K64: 0 | L64: 112
A65: 12 | B65: 7105 | C65: 13 | D65: 7108 | E65: 24 | F65: 7118 | K65: 0 | L65: 112
A66: 12 | B66: 7214 | C66: 24 | D66: 7227 | E66: 24 | F66: 7232 | K66: 0 | L66: 122
A67: 12 | B67: 7327 | C67: 13 | D67: 7330 | E67: 24 | F67: 7345 | K67: 0 | L67: 112
A68: 12 | B68: 7468 | C68: 24 | D68: 7481 | E68: 24 | F68: 7485 | K68: 0 | L68: 122
A69: 12 | B69: 7580 | C69: 13 | D69: 7587 | E69: 24 | F69: 7598 | K69: 0 | L69: 112
A70: 12 | B70: 7694 | C70: 13 | D70: 7697 | E70: 13 | F70: 7704 | K70: 0 | L70: 111
A71: 12 | B71: 7799 | C71: 13 | D71: 7806 | E71: 13 | F71: 7809 | K71: 0 | L71: 111
A72: 12 | B72: 7906 | C72: 24 | D72: 7919 | E72: 24 | F72: 7926 | K72: 0 | L72: 122
A73: 12 | B73: 8019 | C73: 13 | D73: 8024 | E73: 13 | F73: 8027 | K73: 0 | L73: 111
A74: 12 | B74: 8687 | C74: 13 | D74: 8691 | E74: 13 | F74: 8697 | K74: 0 | L74: 111
A75: 21 | B75: 8795 | C75: 11 | D75: 8804 | E75: 22 | F75: 8817 | K75: 0 | L75: 212
A76: 12 | B76: 8913 | C76: 13 | D76: 8919 | E76: 24 | F76: 8930 | K76: 0 | L76: 112
A77: 12 | B77: 9022 | C77: 13 | D77: 9025 | E77: 13 | F77: 9032 | K77: 0 | L77: 111
A78: 12 | B78: 9128 | C78: 13 | D78: 9131 | E78: 24 | F78: 9141 | K78: 0 | L78: 112
A79: 12 | B79: 9240 | C79: 13 | D79: 9244 | E79: 13 | F79: 9249 | K79: 0 | L79: 111
A80: 12 | B80: 9345 | C80: 13 | D80: 9349 | E80: 24 | F80: 9360 | K80: 0 | L80: 112
A81: 12 | B81: 9455 | C81: 13 | D81: 9460 | E81: 13 | F81: 9467 | K81: 0 | L81: 111
A82: 12 | B82: 9561 | C82: 13 | D82: 9564 | E82: 13 | F82: 9570 | K82: 0 | L82: 111
A83: 12 | B83: 9666 | C83: 13 | D83: 9671 | E83: 13 | F83: 9679 | K83: 0 | L83: 111
A84: 12 | B84: 9805 | C84: 13 | D84: 9810 | E84: 24 | F84: 9821 | K84: 0 | L84: 112
A85: 12 | B85: 9916 | C85: 13 | D85: 9920 | E85: 24 | F85: 9930 | K85: 0 | L85: 112
A86: 12 | B86: 10025 | C86: 13 | D86: 10034 | E86: 24 | F86: 10046 | K86: 0 | L86: 112
A87: 12 | B87: 10142 | C87: 13 | D87: 10149 | E87: 24 | F87: 10159 | K87: 0 | L87: 112
A88: 12 | B88: 10267 | C88: 13 | D88: 10271 | E88: 24 | F88: 10284 | K88: 0 | L88: 112
A89: 12 | B89: 10379 | C89: 13 | D89: 10382 | E89: 24 | F89: 10397 | K89: 0 | L89: 112
A90: 12 | B90: 10494 | C90: 24 | D90: 10508 | E90: 24 | F90: 10512 | K90: 0 | L90: 122
A91: 12 | B91: 10608 | C91: 13 | D91: 10622 | E91: 13 | F91: 10626 | K91: 0 | L91: 111
A92: 12 | B92: 10725 | C92: 13 | D92: 10731 | E92: 24 | F92: 10740 | K92: 0 | L92: 112
A93: 12 | B93: 10835 | C93: 13 | D93: 10839 | E93: 13 | F93: 10846 | K93: 0 | L93: 111
A94: 12 | B94: 10960 | C94: 24 | D94: 10973 | E94: 13 | F94: 10992 | K94: 0 | L94: 121
A95: 12 | B95: 11086 | C95: 13 | D95: 11092 | E95: 13 | F95: 11098 | K95: 0 | L95: 111
A96: 12 | B96: 11202 | C96: 13 | D96: 11206 | E96: 13 | F96: 11213 | K96: 0 | L96: 111
A97: 12 | B97: 11307 | C97: 13 | D97: 11309 | E97: 13 | F97: 11316 | K97: 0 | L97: 111
A98: 12 | B98: 11410 | C98: 13 | D98: 11416 | E98: 13 | F98: 11422 | K98: 0 | L98: 111
A99: 12 | B99: 11522 | C99: 24 | D99: 11533 | E99: 24 | F99: 11540 | K99: 0 | L99: 122
A100: 12 | B100: 11634 | C100: 13 | D100: 11639 | E100: 13 | F100: 11647 | K100: 0 | L100: 111
A101: 12 | B101: 11748 | C101: 13 | D101: 11756 | E101: 13 | F101: 11762 | K101: 0 | L101: 111
A102: 12 | B102: 11943 | C102: 13 | D102: 11948 | E102: 13 | F102: 11956 | K102: 0 | L102: 111
A103: 12 | B103: 12050 | C103: 13 | D103: 12053 | E103: 24 | F103: 12064 | K103: 0 | L103: 112
A104: 12 | B104: 12158 | C104: 24 | D104: 12173 | E104: 24 | F104: 12177 | K104: 0 | L104: 122
A105: 12 | B105: 12276 | C105: 13 | D105: 12285 | E105: 13 | F105: 12291 | K105: 0 | L105: 111
A106: 12 | B106: 12397 | C106: 13 | D106: 12404 | E106: 24 | F106: 12412 | K106: 0 | L106: 112
A107: 12 | B107: 12508 | C107: 13 | D107: 12519 | E107: 13 | F107: 12524 | K107: 0 | L107: 111
A108: 12 | B108: 12620 | C108: 13 | D108: 12627 | E108: 24 | F108: 12637 | K108: 0 | L108: 112
A109: 12 | B109: 12734 | C109: 13 | D109: 12738 | E109: 24 | F109: 12749 | K109: 0 | L109: 112
A110: 12 | B110: 12845 | C110: 13 | D110: 12856 | E110: 13 | F110: 12861 | K110: 0 | L110: 111
A111: 12 | B111: 12953 | C111: 13 | D111: 12957 | E111: 24 | F111: 12967 | K111: 0 | L111: 112
A112: 12 | B112: 13071 | C112: 13 | D112: 13074 | E112: 13 | F112: 13080 | K112: 0 | L112: 111
A113: 12 | B113: 13186 | C113: 13 | D113: 13189 | E113: 24 | F113: 13201 | K113: 0 | L113: 112
A114: 12 | B114: 13294 | C114: 13 | D114: 13299 | E114: 24 | F114: 13311 | K114: 0 | L114: 112
A115: 12 | B115: 13404 | C115: 13 | D115: 13411 | E115: 13 | F115: 13414 | K115: 0 | L115: 111
A116: 12 | B116: 13508 | C116: 13 | D116: 13513 | E116: 24 | F116: 13522 | K116: 0 | L116: 112
A117: 12 | B117: 13634 | C117: 13 | D117: 13639 | E117: 24 | F117: 13651 | K117: 0 | L117: 112
A118: 12 | B118: 13745 | C118: 13 | D118: 13754 | E118: 13 | F118: 13758 | K118: 0 | L118: 111
A119: 12 | B119: 13930 | C119: 13 | D119: 13935 | E119: 13 | F119: 13944 | K119: 0 | L119: 111
A120: 12 | B120: 14041 | C120: 13 | D120: 14051 | E120: 24 | F120: 14061 | K120: 0 | L120: 112
A121: 12 | B121: 14301 | C121: 24 | D121: 14314 | E121: 24 | F121: 14320 | K121: 0 | L121: 122
A122: 12 | B122: 14416 | C122: 13 | D122: 14420 | E122: 13 | F122: 14427 | K122: 0 | L122: 111
A123: 12 | B123: 14534 | C123: 13 | D123: 14538 | E123: 24 | F123: 14551 | K123: 0 | L123: 112
A124: 12 | B124: 14650 | C124: 13 | D124: 14653 | E124: 24 | F124: 14663 | K124: 0 | L124: 112
A125: 12 | B125: 14772 | C125: 24 | D125: 14783 | E125: 13 | F125: 14793 | K125: 0 | L125: 121
A126: 12 | B126: 14897 | C126: 13 | D126: 14902 | E126: 13 | F126: 14907 | K126: 0 | L126: 111
A127: 12 | B127: 15159 | C127: 13 | D127: 15170 | E127: 24 | F127: 15186 | K127: 0 | L127: 112
A128: 12 | B128: 15282 | C128: 13 | D128: 15287 | E128: 13 | F128: 15295 | K128: 0 | L128: 111
A129: 12 | B129: 15433 | C129: 24 | D129: 15451 | E129: 24 | F129: 15456 | K129: 0 | L129: 122
A130: 12 | B130: 15562 | C130: 13 | D130: 15565 | E130: 13 | F130: 15571 | K130: 0 | L130: 111
A131: 12 | B131: 15679 | C131: 13 | D131: 15685 | E131: 13 | F131: 15690 | K131: 0 | L131: 111
A132: 12 | B132: 15789 | C132: 13 | D132: 15791 | E132: 13 | F132: 15793 | K132: 0 | L132: 111
A133: 12 | B133: 15895 | C133: 13 | D133: 15902 | E133: 24 | F133: 15912 | K133: 0 | L133: 112
A134: 12 | B134: 16017 | C134: 24 | D134: 16032 | E134: 13 | F134: 16048 | K134: 0 | L134: 121
A135: 12 | B135: 16169 | C135: 13 | D135: 16172 | E135: 24 | F135: 16184 | K135: 0 | L135: 112
A136: 12 | B136: 16296 | C136: 24 | D136: 16306 | E136: 13 | F136: 16324 | K136: 0 | L136: 121
A137: 12 | B137: 16427 | C137: 13 | D137: 16492 | E137: 24 | F137: 16508 | K137: 0 | L137: 112
A138: 12 | B138: 16731 | C138: 13 | D138: 16740 | E138: 13 | F138: 16748 | K138: 0 | L138: 111
A139: 12 | B139: 16848 | C139: 13 | D139: 16872 | E139: 24 | F139: 16884 | K139: 0 | L139: 112
A140: 12 | B140: 16980 | C140: 13 | D140: 16987 | E140: 13 | F140: 16990 | K140: 0 | L140: 111
A141: 12 | B141: 17086 | C141: 13 | D141: 17090 | E141: 13 | F141: 17098 | K141: 0 | L141: 111
A142: 12 | B142: 17201 | C142: 13 | D142: 17204 | E142: 13 | F142: 17211 | K142: 0 | L142: 111
A143: 12 | B143: 17313 | C143: 13 | D143: 17318 | E143: 13 | F143: 17326 | K143: 0 | L143: 111
A144: 12 | B144: 17488 | C144: 13 | D144: 17494 | E144: 13 | F144: 17500 | K144: 0 | L144: 111
A145: 12 | B145: 17596 | C145: 13 | D145: 17606 | E145: 24 | F145: 17616 | K145: 0 | L145: 112
A146: 12 | B146: 17721 | C146: 13 | D146: 17729 | E146: 13 | F146: 17737 | K146: 0 | L146: 111
A147: 21 | B147: 17880 | C147: 11 | D147: 17927 | E147: 11 | F147: 17932 | K147: 0 | L147: 211
A148: 12 | B148: 18129 | C148: 13 | D148: 18133 | E148: 13 | F148: 18139 | K148: 0 | L148: 111
A149: 12 | B149: 18236 | C149: 13 | D149: 18241 | E149: 13 | F149: 18246 | K149: 0 | L149: 111
A150: 21 | B150: 18342 | C150: 11 | D150: 18350 | E150: 11 | F150: 18357 | K150: 0 | L150: 211
A151: 21 | B151: 18588 | C151: 11 | D151: 18597 | E151: 11 | F151: 18605 | K151: 0 | L151: 211
A152: 12 | B152: 18757 | C152: 24 | D152: 18789 | E152: 24 | F152: 18798 | K152: 0 | L152: 122
A153: 21 | B153: 18897 | C153: 11 | D153: 18907 | E153: 22 | F153: 18919 | K153: 0 | L153: 212
A154: 12 | B154: 19026 | C154: 13 | D154: 19031 | E154: 24 | F154: 19042 | K154: 0 | L154: 112
A155: 12 | B155: 19136 | C155: 24 | D155: 19151 | E155: 24 | F155: 19156 | K155: 0 | L155: 122
A156: 12 | B156: 19276 | C156: 13 | D156: 19281 | E156: 13 | F156: 19284 | K156: 0 | L156: 111
A157: 12 | B157: 19383 | C157: 24 | D157: 19393 | E157: 24 | F157: 19397 | K157: 0 | L157: 122
A158: 21 | B158: 19493 | C158: 11 | D158: 19503 | E158: 22 | F158: 19518 | K158: 0 | L158: 212
A159: 12 | B159: 19613 | C159: 24 | D159: 19626 | E159: 13 | F159: 19647 | K159: 0 | L159: 121
A160: 12 | B160: 19743 | C160: 13 | D160: 19748 | E160: 24 | F160: 19759 | K160: 0 | L160: 112
A161: 12 | B161: 19851 | C161: 13 | D161: 19853 | E161: 13 | F161: 19858 | K161: 0 | L161: 111
A162: 21 | B162: 19951 | C162: 22 | D162: 19959 | E162: 13 | F162: 19970 | K162: 0 | L162: 221
A163: 12 | B163: 20146 | C163: 13 | D163: 20151 | E163: 24 | F163: 20170 | K163: 0 | L163: 112
A164: 12 | B164: 20268 | C164: 13 | D164: 20273 | E164: 24 | F164: 20284 | K164: 0 | L164: 112
A165: 12 | B165: 20379 | C165: 13 | D165: 20383 | E165: 13 | F165: 20389 | K165: 0 | L165: 111
A166: 12 | B166: 20504 | C166: 13 | D166: 20508 | E166: 24 | F166: 20521 | K166: 0 | L166: 112
A167: 12 | B167: 20619 | C167: 13 | D167: 20624 | E167: 24 | F167: 20637 | K167: 0 | L167: 112
A168: 12 | B168: 20731 | C168: 13 | D168: 20735 | E168: 13 | F168: 20740 | K168: 0 | L168: 111
A169: 12 | B169: 20835 | C169: 13 | D169: 20840 | E169: 13 | F169: 20851 | K169: 0 | L169: 111
A170: 12 | B170: 20946 | C170: 13 | D170: 20951 | E170: 13 | F170: 20958 | K170: 0 | L170: 111
A171: 21 | B171: 21052 | C171: 11 | D171: 21063 | E171: 11 | F171: 21068 | K171: 0 | L171: 211
A172: 12 | B172: 21307 | C172: 13 | D172: 21311 | E172: 24 | F172: 21324 | K172: 0 | L172: 112
A173: 12 | B173: 21418 | C173: 13 | D173: 21420 | E173: 24 | F173: 21433 | K173: 0 | L173: 112
A174: 12 | B174: 21525 | C174: 13 | D174: 21527 | E174: 13 | F174: 21531 | K174: 0 | L174: 111
A175: 12 | B175: 21627 | C175: 24 | D175: 21640 | E175: 13 | F175: 21659 | K175: 0 | L175: 121
A176: 12 | B176: 21754 | C176: 13 | D176: 21758 | E176: 24 | F176: 21768 | K176: 0 | L176: 112
A177: 12 | B177: 21864 | C177: 13 | D177: 21872 | E177: 24 | F177: 21882 | K177: 0 | L177: 112
A178: 12 | B178: 21987 | C178: 13 | D178: 21991 | E178: 24 | F178: 22003 | K178: 0 | L178: 112
A179: 12 | B179: 22098 | C179: 13 | D179: 22105 | E179: 24 | F179: 22119 | K179: 0 | L179: 112
A180: 12 | B180: 22294 | C180: 24 | D180: 22312 | E180: 24 | F180: 22325 | K180: 0 | L180: 122
A181: 12 | B181: 22423 | C181: 13 | D181: 22429 | E181: 24 | F181: 22440 | K181: 0 | L181: 112
A182: 12 | B182: 22534 | C182: 13 | D182: 22537 | E182: 13 | F182: 22540 | K182: 0 | L182: 111
A183: 12 | B183: 22661 | C183: 13 | D183: 22667 | E183: 13 | F183: 22673 | K183: 0 | L183: 111
A184: 12 | B184: 22768 | C184: 13 | D184: 22794 | E184: 13 | F184: 22799 | K184: 0 | L184: 111
A185: 12 | B185: 22896 | C185: 24 | D185: 22912 | E185: 13 | F185: 22925 | K185: 0 | L185: 121
A186: 12 | B186: 23019 | C186: 13 | D186: 23021 | E186: 13 | F186: 23026 | K186: 0 | L186: 111
A187: 21 | B187: 23123 | C187: 11 | D187: 23132 | E187: 11 | F187: 23139 | K187: 0 | L187: 211
A188: 12 | B188: 23399 | C188: 13 | D188: 23405 | E188: 24 | F188: 23426 | K188: 0 | L188: 112
A189: 12 | B189: 23521 | C189: 13 | D189: 23526 | E189: 13 | F189: 23530 | K189: 0 | L189: 111
A190: 12 | B190: 23625 | C190: 13 | D190: 23632 | E190: 24 | F190: 23642 | K190: 0 | L190: 112
A191: 12 | B191: 23737 | C191: 13 | D191: 23742 | E191: 24 | F191: 23752 | K191: 0 | L191: 112
A192: 12 | B192: 23849 | C192: 13 | D192: 23853 | E192: 24 | F192: 23864 | K192: 0 | L192: 112
A193: 12 | B193: 23966 | C193: 13 | D193: 23975 | E193: 24 | F193: 23987 | L193: 112

Sheet !MC1891I.sha
A1: Report for:!MC1891I.sha
A2: Date: | B2: <date>
A3: Hen: | B3: <hen> | F3: Correct Sequence | G3: =Start!J2 -> 211 | P3: Total Sequences in Data | Q3: =4994-COUNTBLANK(L7:L5000) -> 189 | V3: Total Sequences in Block Data | W3: =COUNTA(L7:L38) -> 32 | AA3: Total Sequences in Block Data | AB3: =COUNTA(L39:L69) -> 31 | AF3: Total Sequences in Block Data | AG3: =COUNTA(L70:L101) -> 32 | AK3: Total Sequences in Block Data | AL3: =COUNTA(L102:L132) -> 31 | AP3: Total Sequences in Block Data | AQ3: =COUNTA(L133:L164) -> 32 | AU3: Total Sequences in Block Data | AV3: =COUNTA(L165:L195) -> 31
P4: Total Sequences in Summary | Q4: =SUM(O7:O14) -> 188 | V4: Total Sequences in Block Summary | W4: =SUM(U7:U14) -> 32 | AA4: Total Sequences in Block Summary | AB4: =SUM(Z7:Z14) -> 31 | AF4: Total Sequences in Block Summary | AG4: =SUM(AE7:AE14) -> 32 | AK4: Total Sequences in Block Summary | AL4: =SUM(AJ7:AJ14) -> 31 | AP4: Total Sequences in Block Summary | AQ4: =SUM(AO7:AO14) -> 32 | AU4: Total Sequences in Block Summary | AV4: =SUM(AT7:AT14) -> 30
T5: Block 1 | Y5: Block 2 | AD5: Block 3 | AI5: Block 4 | AN5: Block 5 | AS5: Block 6
A6: Sequence Component 1 | B6: Time 1 | C6: Sequence Component 2 | D6: Time 2 | E6: Sequence Component 3 | F6: Time 3 | G6: Sequence Component 4 | H6: Time 4 | I6: Sequence Component 5 | J6: Time 5 | K6: Correct? 0=No 1=Yes | L6: Sequence | N6: Frequency | P6: Relative Frequency | Q6: Variability | T6: Frequency | V6: Relative Frequency | W6: Variability | Y6: Frequency | AA6: Relative Frequency | AB6: Variability | AD6: Frequency | AF6: Relative Frequency | AG6: Variability | AI6: Frequency | AK6: Relative Frequency | AL6: Variability | AN6: Frequency | AP6: Relative Frequency | AQ6: Variability | AS6: Frequency | AU6: Relative Frequency | AV6: Variability
A7: 12 | B7: 49 | C7: 13 | D7: 60 | E7: 24 | F7: 72 | K7: 0 | L7: 112 | N7: 111 | O7: =COUNTIF($L$7:$L$500,N7) -> 107 | P7: =O7/$Q$4 -> 0.5691489362 | Q7: =IF(P7=0,0,(P7*((LOG(P7))/LOG(2)))) -> -0.4627874446 | T7: =N7 -> 111 | U7: =COUNTIF(L7:L38,T7) -> 19 | V7: =U7/(W4-U11) -> 0.59375 | W7: =IF(V7=0,0,(V7*((LOG(V7))/LOG(2)))) -> -0.4465430389 | Y7: =N7 -> 111 | Z7: =COUNTIF(L39:L69,Y7) -> 13 | AA7: =Z7/(AB4-Z11) -> 0.4642857143 | AB7: =IF(AA7=0,0,(AA7*((LOG(AA7))/LOG(2)))) -> -0.5139249161 | AD7: =N7 -> 111 | AE7: =COUNTIF(L70:L101,AD7) -> 17 | AF7: =AE7/(AG4-AE11) -> 0.5666666667 | AG7: =IF(AF7=0,0,(AF7*((LOG(AF7))/LOG(2)))) -> -0.4643423941 | AI7: =N7 -> 111 | AJ7: =COUNTIF(L102:L132,AI7) -> 18 | AK7: =AJ7/(AL4-AJ11) -> 0.6666666667 | AL7: =IF(AK7=0,0,(AK7*((LOG(AK7))/LOG(2)))) -> -0.3899750005 | AN7: =N7 -> 111 | AO7: =COUNTIF(L133:L164,AN7) -> 16 | AP7: =AO7/(AQ4-AO11) -> 0.5 | AQ7: =IF(AP7=0,0,(AP7*((LOG(AP7))/LOG(2)))) -> -0.5 | AS7: =N7 -> 111 | AT7: =COUNTIF(L165:L195,AS7) -> 24 | AU7: =AT7/(AV4-AT11) -> 0.8571428571 | AV7: =IF(AU7=0,0,(AU7*((LOG(AU7))/LOG(2)))) -> -0.1906220754
A8: 12 | B8: 165 | C8: 13 | D8: 170 | E8: 13 | F8: 175 | K8: 0 | L8: 111 | N8: 112 | O8: 42 | P8: 0.2234042553 | Q8: -0.4830606384 | T8: 112 | U8: =COUNTIF(L7:L38,T8) -> 4 | V8: =U8/(W4-U11) -> 0.125 | W8: =IF(V8=0,0,(V8*((LOG(V8))/LOG(2)))) -> -0.375 | Y8: 112 | Z8: =COUNTIF(L39:L69,Y8) -> 9 | AA8: =Z8/(AB4-Z11) -> 0.3214285714 | AB8: =IF(AA8=0,0,(AA8*((LOG(AA8))/LOG(2)))) -> -0.5263167602 | AD8: 112 | AE8: =COUNTIF(L70:L101,AD8) -> 8 | AF8: =AE8/(AG4-AE11) -> 0.2666666667 | AG8: =IF(AF8=0,0,(AF8*((LOG(AF8))/LOG(2)))) -> -0.5085041588 | AI8: 112 | AJ8: =COUNTIF(L102:L132,AI8) -> 5 | AK8: =AJ8/(AL4-AJ11) -> 0.1851851852 | AL8: =IF(AK8=0,0,(AK8*((LOG(AK8))/LOG(2)))) -> -0.4505480384 | AN8: 112 | AO8: =COUNTIF(L133:L164,AN8) -> 12 | AP8: =AO8/(AQ4-AO11) -> 0.375 | AQ8: =IF(AP8=0,0,(AP8*((LOG(AP8))/LOG(2)))) -> -0.5306390622 | AS8: 112 | AT8: =COUNTIF(L165:L195,AS8) -> 4 | AU8: =AT8/(AV4-AT11) -> 0.1428571429 | AV8: =IF(AU8=0,0,(AU8*((LOG(AU8))/LOG(2)))) -> -0.4010507032
A9: 12 | B9: 313 | C9: 24 | D9: 331 | E9: 13 | F9: 344 | K9: 0 | L9: 121 | N9: 121 | O9: 18 | P9: 0.09574468085 | Q9: -0.3240635601 | T9: 121 | U9: =COUNTIF(L7:L38,T9) -> 4 | V9: =U9/(W4-U11) -> 0.125 | W9: =IF(V9=0,0,(V9*((LOG(V9))/LOG(2)))) -> -0.375 | Y9: 121 | Z9: =COUNTIF(L39:L69,Y9) -> 6 | AA9: =Z9/(AB4-Z11) -> 0.2142857143 | AB9: =IF(AA9=0,0,(AA9*((LOG(AA9))/LOG(2)))) -> -0.4762269474 | AD9: 121 | AE9: =COUNTIF(L70:L101,AD9) -> 2 | AF9: =AE9/(AG4-AE11) -> 0.06666666667 | AG9: =IF(AF9=0,0,(AF9*((LOG(AF9))/LOG(2)))) -> -0.260459373 | AI9: 121 | AJ9: =COUNTIF(L102:L132,AI9) -> 4 | AK9: =AJ9/(AL4-AJ11) -> 0.1481481481 | AL9: =IF(AK9=0,0,(AK9*((LOG(AK9))/LOG(2)))) -> -0.4081314818 | AN9: 121 | AO9: =COUNTIF(L133:L164,AN9) -> 2 | AP9: =AO9/(AQ4-AO11) -> 0.0625 | AQ9: =IF(AP9=0,0,(AP9*((LOG(AP9))/LOG(2)))) -> -0.25 | AS9: 121 | AT9: =COUNTIF(L165:L195,AS9) -> 0 | AU9: =AT9/(AV4-AT11) -> 0 | AV9: =IF(AU9=0,0,(AU9*((LOG(AU9))/LOG(2)))) -> 0
A10: 12 | B10: 440 | C10: 13 | D10: 445 | E10: 13 | F10: 453 | K10: 0 | L10: 111 | N10: 122 | O10: 4 | P10: 0.02127659574 | Q10: -0.1181827415 | T10: 122 | U10: =COUNTIF(L7:L38,T10) -> 2 | V10: =U10/(W4-U11) -> 0.0625 | W10: =IF(V10=0,0,(V10*((LOG(V10))/LOG(2)))) -> -0.25 | Y10: 122 | Z10: =COUNTIF(L39:L69,Y10) -> 0 | AA10: =Z10/(AB4-Z11) -> 0 | AB10: =IF(AA10=0,0,(AA10*((LOG(AA10))/LOG(2)))) -> 0 | AD10: 122 | AE10: =COUNTIF(L70:L101,AD10) -> 1 | AF10: =AE10/(AG4-AE11) -> 0.03333333333 | AG10: =IF(AF10=0,0,(AF10*((LOG(AF10))/LOG(2)))) -> -0.1635630199 | AI10: 122 | AJ10: =COUNTIF(L102:L132,AI10) -> 0 | AK10: =AJ10/(AL4-AJ11) -> 0 | AL10: =IF(AK10=0,0,(AK10*((LOG(AK10))/LOG(2)))) -> 0 | AN10: 122 | AO10: =COUNTIF(L133:L164,AN10) -> 1 | AP10: =AO10/(AQ4-AO11) -> 0.03125 | AQ10: =IF(AP10=0,0,(AP10*((LOG(AP10))/LOG(2)))) -> -0.15625 | AS10: 122 | AT10: =COUNTIF(L165:L195,AS10) -> 0 | AU10: =AT10/(AV4-AT11) -> 0 | AV10: =IF(AU10=0,0,(AU10*((LOG(AU10))/LOG(2)))) -> 0
A11: 12 | B11: 548 | C11: 13 | D11: 552 | E11: 13 | F11: 559 | K11: 0 | L11: 111 | N11: 211 | O11: 11 | P11: 0.0585106383 | Q11: -0.2396102636 | T11: 211 | U11: =COUNTIF(L7:L38,T11) -> 0 | Y11: 211 | Z11: =COUNTIF(L39:L69,Y11) -> 3 | AD11: 211 | AE11: =COUNTIF(L70:L101,AD11) -> 2 | AI11: 211 | AJ11: =COUNTIF(L102:L132,AI11) -> 4 | AN11: 211 | AO11: =COUNTIF(L133:L164,AN11) -> 0 | AS11: 211 | AT11: =COUNTIF(L165:L195,AS11) -> 2
A12: 12 | B12: 654 | C12: 13 | D12: 657 | E12: 13 | F12: 668 | K12: 0 | L12: 111 | N12: 212 | O12: 3 | P12: 0.01595744681 | Q12: -0.09525999496 | T12: 212 | U12: =COUNTIF(L7:L38,T12) -> 2 | V12: =U12/(W4-U11) -> 0.0625 | W12: =IF(V12=0,0,(V12*((LOG(V12))/LOG(2)))) -> -0.25 | Y12: 212 | Z12: =COUNTIF(L39:L69,Y12) -> 0 | AA12: =Z12/(AB4-Z11) -> 0 | AB12: =IF(AA12=0,0,(AA12*((LOG(AA12))/LOG(2)))) -> 0 | AD12: 212 | AE12: =COUNTIF(L70:L101,AD12) -> 0 | AF12: =AE12/(AG4-AE11) -> 0 | AG12: =IF(AF12=0,0,(AF12*((LOG(AF12))/LOG(2)))) -> 0 | AI12: 212 | AJ12: =COUNTIF(L102:L132,AI12) -> 0 | AK12: =AJ12/(AL4-AJ11) -> 0 | AL12: =IF(AK12=0,0,(AK12*((LOG(AK12))/LOG(2)))) -> 0 | AN12: 212 | AO12: =COUNTIF(L133:L164,AN12) -> 1 | AP12: =AO12/(AQ4-AO11) -> 0.03125 | AQ12: =IF(AP12=0,0,(AP12*((LOG(AP12))/LOG(2)))) -> -0.15625 | AS12: 212 | AT12: =COUNTIF(L165:L195,AS12) -> 0 | AU12: =AT12/(AV4-AT11) -> 0 | AV12: =IF(AU12=0,0,(AU12*((LOG(AU12))/LOG(2)))) -> 0
A13: 12 | B13: 764 | C13: 24 | D13: 781 | E13: 24 | F13: 786 | K13: 0 | L13: 122 | N13: 221 | O13: 2 | P13: 0.01063829787 | Q13: -0.06972966863 | T13: 221 | U13: =COUNTIF(L7:L38,T13) -> 0 | V13: =U13/(W4-U11) -> 0 | W13: =IF(V13=0,0,(V13*((LOG(V13))/LOG(2)))) -> 0 | Y13: 221 | Z13: =COUNTIF(L39:L69,Y13) -> 0 | AA13: =Z13/(AB4-Z11) -> 0 | AB13: =IF(AA13=0,0,(AA13*((LOG(AA13))/LOG(2)))) -> 0 | AD13: 221 | AE13: =COUNTIF(L70:L101,AD13) -> 2 | AF13: =AE13/(AG4-AE11) -> 0.06666666667 | AG13: =IF(AF13=0,0,(AF13*((LOG(AF13))/LOG(2)))) -> -0.260459373 | AI13: 221 | AJ13: =COUNTIF(L102:L132,AI13) -> 0 | AK13: =AJ13/(AL4-AJ11) -> 0 | AL13: =IF(AK13=0,0,(AK13*((LOG(AK13))/LOG(2)))) -> 0 | AN13: 221 | AO13: =COUNTIF(L133:L164,AN13) -> 0 | AP13: =AO13/(AQ4-AO11) -> 0 | AQ13: =IF(AP13=0,0,(AP13*((LOG(AP13))/LOG(2)))) -> 0 | AS13: 221 | AT13: =COUNTIF(L165:L195,AS13) -> 0 | AU13: =AT13/(AV4-AT11) -> 0 | AV13: =IF(AU13=0,0,(AU13*((LOG(AU13))/LOG(2)))) -> 0
A14: 12 | B14: 881 | C14: 13 | D14: 883 | E14: 13 | F14: 886 | K14: 0 | L14: 111 | N14: 222 | O14: 1 | P14: 0.005319148936 | Q14: -0.04018398325 | T14: 222 | U14: =COUNTIF(L7:L38,T14) -> 1 | V14: =U14/(W4-U11) -> 0.03125 | W14: =IF(V14=0,0,(V14*((LOG(V14))/LOG(2)))) -> -0.15625 | Y14: 222 | Z14: =COUNTIF(L39:L69,Y14) -> 0 | AA14: =Z14/(AB4-Z11) -> 0 | AB14: =IF(AA14=0,0,(AA14*((LOG(AA14))/LOG(2)))) -> 0 | AD14: 222 | AE14: =COUNTIF(L70:L101,AD14) -> 0 | AF14: =AE14/(AG4-AE11) -> 0 | AG14: =IF(AF14=0,0,(AF14*((LOG(AF14))/LOG(2)))) -> 0 | AI14: 222 | AJ14: =COUNTIF(L102:L132,AI14) -> 0 | AK14: =AJ14/(AL4-AJ11) -> 0 | AL14: =IF(AK14=0,0,(AK14*((LOG(AK14))/LOG(2)))) -> 0 | AN14: 222 | AO14: =COUNTIF(L133:L164,AN14) -> 0 | AP14: =AO14/(AQ4-AO11) -> 0 | AQ14: =IF(AP14=0,0,(AP14*((LOG(AP14))/LOG(2)))) -> 0 | AS14: 222 | AT14: =COUNTIF(L165:L195,AS14) -> 0 | AU14: =AT14/(AV4-AT11) -> 0 | AV14: =IF(AU14=0,0,(AU14*((LOG(AU14))/LOG(2)))) -> 0
A15: 12 | B15: 982 | C15: 13 | D15: 1002 | E15: 24 | F15: 1005 | K15: 0 | L15: 112 | P15: =SUM(P7:P14) -> 1 | Q15: =-SUM(Q7:Q14) -> 1.832878295 | V15: =SUM(V7:V14) -> 1 | W15: =-SUM(W7:W14) -> 1.852793039 | AA15: =SUM(AA7:AA14) -> 1 | AB15: =-SUM(AB7:AB14) -> 1.516468624 | AF15: =SUM(AF7:AF14) -> 1 | AG15: =-SUM(AG7:AG14) -> 1.657328319 | AK15: =SUM(AK7:AK14) -> 1 | AL15: =-SUM(AL7:AL14) -> 1.248654521 | AP15: =SUM(AP7:AP14) -> 1 | AQ15: =-SUM(AQ7:AQ14) -> 1.593139062 | AU15: =SUM(AU7:AU14) -> 1 | AV15: =-SUM(AV7:AV14) -> 0.5916727786
A16: 12 | B16: 1179 | C16: 24 | D16: 1217 | E16: 13 | F16: 1221 | K16: 0 | L16: 121 | P16: U= | Q16: =Q15/(LOG(Q4)/LOG(2)) -> 0.2426178752 | V16: U1= | W16: =W15/(LOG(W4)/LOG(2)) -> 0.3705586078 | AA16: U2= | AB16: =AB15/(LOG(AB4)/LOG(2)) -> 0.3060978065 | AF16: U3= | AG16: =AG15/(LOG(AG4)/LOG(2)) -> 0.3314656638 | AK16: U4= | AL16: =AL15/(LOG(AL4)/LOG(2)) -> 0.2520397745 | AP16: U5= | AQ16: =AQ15/(LOG(AQ4)/LOG(2)) -> 0.3186278124 | AU16: U6= | AV16: =AV15/(LOG(AV4)/LOG(2)) -> 0.1205799818
A17: 12 | B17: 1314 | C17: 13 | D17: 1322 | E17: 13 | F17: 1331 | K17: 0 | L17: 111
A18: 12 | B18: 1453 | C18: 13 | D18: 1459 | E18: 13 | F18: 1473 | K18: 0 | L18: 111
A19: 12 | B19: 1571 | C19: 13 | D19: 1581 | E19: 13 | F19: 1591 | K19: 0 | L19: 111 | N19: Total Target Seq
A20: 12 | B20: 1701 | C20: 24 | D20: 1737 | E20: 24 | F20: 1759 | K20: 0 | L20: 122 | N20: =COUNTIF(L7:L195,G3) -> 11 | P20: 32 | Q20: 31 | R20: 32 | S20: 31 | T20: 32 | U20: 31
A21: 12 | B21: 1860 | C21: 13 | D21: 1870 | E21: 13 | F21: 1880 | K21: 0 | L21: 111 | P21: % of reinforcement given in 6 equal intervals based on number of trials
A22: 12 | B22: 2003 | C22: 13 | D22: 2008 | E22: 13 | F22: 2018 | K22: 0 | L22: 111 | P22: %_1 | Q22: %_2 | R22: %_3 | S22: %_4 | T22: %_5 | U22: %_6
A23: 12 | B23: 2118 | C23: 13 | D23: 2129 | E23: 13 | F23: 2144 | K23: 0 | L23: 111 | O23: target sequence | P23: =$G$3 -> 211 | Q23: 211 | R23: 211 | S23: 211 | T23: 211 | U23: 211
A24: 12 | B24: 2247 | C24: 13 | D24: 2252 | E24: 13 | F24: 2258 | K24: 0 | L24: 111 | O24: total reinforcement | P24: =U11 -> 0 | Q24: =Z11 -> 3 | R24: =AE11 -> 2 | S24: =AJ11 -> 4 | T24: =AO11 -> 0 | U24: =AT11 -> 2
A25: 21 | B25: 2438 | C25: 11 | D25: 2441 | E25: 22 | F25: 2455 | K25: 0 | L25: 212 | O25: % target
A26: 12 | B26: 2580 | C26: 13 | D26: 2599 | E26: 24 | F26: 2603 | K26: 0 | L26: 112 | O26: CCRF
A27: 12 | B27: 2698 | C27: 13 | D27: 2707 | E27: 13 | F27: 2719 | K27: 0 | L27: 111 | O27: % CCRf
A28: 12 | B28: 2815 | C28: 13 | D28: 2823 | E28: 13 | F28: 2834 | K28: 0 | L28: 111 | O28: average response rate | P28: =F38/P20 -> 126.9375 | Q28: =(F69-F38)/Q20 -> 139.3870968 | R28: =(F101-F69)/R20 -> 124.90625 | S28: =(F132-F101)/S20 -> 129.4193548 | T28: =(F164-F132)/T20 -> 117.59375 | U28: =(F195-F164)/U20 -> -650.1612903
A29: 21 | B29: 2933 | C29: 22 | D29: 2943 | E29: 24 | F29: 2948 | K29: 0 | L29: 222
A30: 12 | B30: 3079 | C30: 13 | D30: 3111 | E30: 13 | F30: 3126 | K30: 0 | L30: 111
A31: 21 | B31: 3219 | C31: 11 | D31: 3222 | E31: 22 | F31: 3229 | K31: 0 | L31: 212
A32: 12 | B32: 3324 | C32: 13 | D32: 3328 | E32: 13 | F32: 3335 | K32: 0 | L32: 111
A33: 12 | B33: 3438 | C33: 13 | D33: 3445 | E33: 24 | F33: 3457 | K33: 0 | L33: 112
A34: 12 | B34: 3558 | C34: 13 | D34: 3563 | E34: 13 | F34: 3577 | K34: 0 | L34: 111
A35: 12 | B35: 3672 | C35: 24 | D35: 3700 | E35: 13 | F35: 3706 | K35: 0 | L35: 121
A36: 12 | B36: 3812 | C36: 24 | D36: 3818 | E36: 13 | F36: 3827 | K36: 0 | L36: 121
A37: 12 | B37: 3932 | C37: 13 | D37: 3944 | E37: 13 | F37: 3951 | K37: 0 | L37: 111
A38: 12 | B38: 4045 | C38: 13 | D38: 4056 | E38: 13 | F38: 4062 | K38: 0 | L38: 111
A39: 12 | B39: 4188 | C39: 24 | D39: 4192 | E39: 13 | F39: 4202 | K39: 0 | L39: 121
A40: 12 | B40: 4307 | C40: 13 | D40: 4314 | E40: 24 | F40: 4321 | K40: 0 | L40: 112
A41: 12 | B41: 4427 | C41: 24 | D41: 4431 | E41: 13 | F41: 4439 | K41: 0 | L41: 121
A42: 12 | B42: 4535 | C42: 13 | D42: 4539 | E42: 24 | F42: 4562 | K42: 0 | L42: 112
A43: 12 | B43: 4661 | C43: 13 | D43: 4690 | E43: 24 | F43: 4703 | K43: 0 | L43: 112
A44: 12 | B44: 4807 | C44: 13 | D44: 4821 | E44: 13 | F44: 4837 | K44: 0 | L44: 111
A45: 12 | B45: 4994 | C45: 24 | D45: 4999 | E45: 13 | F45: 5026 | K45: 0 | L45: 121
A46: 12 | B46: 5122 | C46: 13 | D46: 5128 | E46: 13 | F46: 5139 | K46: 0 | L46: 111
A47: 12 | B47: 5265 | C47: 13 | D47: 5269 | E47: 13 | F47: 5284 | K47: 0 | L47: 111
A48: 12 | B48: 5427 | C48: 13 | D48: 5459 | E48: 13 | F48: 5463 | K48: 0 | L48: 111
A49: 12 | B49: 5556 | C49: 13 | D49: 5562 | E49: 13 | F49: 5566 | K49: 0 | L49: 111
A50: 12 | B50: 5664 | C50: 24 | D50: 5672 | E50: 13 | F50: 5682 | K50: 0 | L50: 121
A51: 12 | B51: 5821 | C51: 13 | D51: 5829 | E51: 13 | F51: 5832 | K51: 0 | L51: 111
A52: 12 | B52: 5928 | C52: 13 | D52: 5931 | E52: 24 | F52: 5942 | K52: 0 | L52: 112
A53: 12 | B53: 6071 | C53: 13 | D53: 6076 | E53: 13 | F53: 6083 | K53: 0 | L53: 111
A54: 12 | B54: 6304 | C54: 13 | D54: 6350 | E54: 24 | F54: 6355 | K54: 0 | L54: 112
A55: 12 | B55: 6450 | C55: 13 | D55: 6457 | E55: 13 | F55: 6462 | K55: 0 | L55: 111
A56: 12 | B56: 6594 | C56: 13 | D56: 6612 | E56: 24 | F56: 6629 | K56: 0 | L56: 112
A57: 12 | B57: 6731 | C57: 13 | D57: 6738 | E57: 24 | F57: 6747 | K57: 0 | L57: 112
A58: 12 | B58: 6859 | C58: 13 | D58: 6864 | E58: 13 | F58: 6876 | K58: 0 | L58: 111
A59: 12 | B59: 6973 | C59: 13 | D59: 6982 | E59: 13 | F59: 6995 | K59: 0 | L59: 111
A60: 12 | B60: 7185 | C60: 24 | D60: 7190 | E60: 13 | F60: 7195 | K60: 0 | L60: 121
A61: 21 | B61: 7298 | C61: 11 | D61: 7304 | E61: 11 | F61: 7311 | K61: 0 | L61: 211
A62: 12 | B62: 7496 | C62: 24 | D62: 7501 | E62: 13 | F62: 7511 | K62: 0 | L62: 121
A63: 21 | B63: 7607 | C63: 11 | D63: 7615 | E63: 11 | F63: 7625 | K63: 0 | L63: 211
A64: 12 | B64: 7789 | C64: 13 | D64: 7793 | E64: 13 | F64: 7800 | K64: 0 | L64: 111
A65: 12 | B65: 7895 | C65: 13 | D65: 7900 | E65: 24 | F65: 7913 | K65: 0 | L65: 112
A66: 12 | B66: 8007 | C66: 13 | D66: 8011 | E66: 13 | F66: 8025 | K66: 0 | L66: 111
A67: 21 | B67: 8124 | C67: 11 | D67: 8130 | E67: 11 | F67: 8140 | K67: 0 | L67: 211
A68: 12 | B68: 8247 | C68: 13 | D68: 8258 | E68: 24 | F68: 8265 | K68: 0 | L68: 112
A69: 12 | B69: 8361 | C69: 13 | D69: 8373 | E69: 13 | F69: 8383 | K69: 0 | L69: 111
A70: 21 | B70: 8480 | C70: 22 | D70: 8486 | E70: 13 | F70: 8489 | K70: 0 | L70: 221
A71: 12 | B71: 8602 | C71: 13 | D71: 8622 | E71: 13 | F71: 8633 | K71: 0 | L71: 111
A72: 12 | B72: 8737 | C72: 13 | D72: 8745 | E72: 24 | F72: 8755 | K72: 0 | L72: 112
A73: 12 | B73: 8848 | C73: 24 | D73: 8854 | E73: 13 | F73: 8857 | K73: 0 | L73: 121
A74: 12 | B74: 8953 | C74: 24 | D74: 8963 | E74: 13 | F74: 8971 | K74: 0 | L74: 121
A75: 12 | B75: 9075 | C75: 13 | D75: 9081 | E75: 24 | F75: 9088 | K75: 0 | L75: 112
A76: 12 | B76: 9182 | C76: 13 | D76: 9188 | E76: 13 | F76: 9201 | K76: 0 | L76: 111
A77: 12 | B77: 9369 | C77: 13 | D77: 9375 | E77: 24 | F77: 9399 | K77: 0 | L77: 112
A78: 12 | B78: 9505 | C78: 13 | D78: 9522 | E78: 13 | F78: 9538 | K78: 0 | L78: 111
A79: 12 | B79: 9634 | C79: 13 | D79: 9648 | E79: 24 | F79: 9652 | K79: 0 | L79: 112
A80: 12 | B80: 9748 | C80: 13 | D80: 9752 | E80: 13 | F80: 9764 | K80: 0 | L80: 111
A81: 12 | B81: 9883 | C81: 13 | D81: 9907 | E81: 13 | F81: 9924 | K81: 0 | L81: 111
A82: 12 | B82: 10022 | C82: 13 | D82: 10034 | E82: 13 | F82: 10038 | K82: 0 | L82: 111
A83: 12 | B83: 10130 | C83: 13 | D83: 10134 | E83: 13 | F83: 10139 | K83: 0 | L83: 111
A84: 12 | B84: 10232 | C84: 13 | D84: 10237 | E84: 13 | F84: 10261 | K84: 0 | L84: 111
A85: 21 | B85: 10357 | C85: 11 | D85: 10362 | E85: 11 | F85: 10370 | K85: 0 | L85: 211
A86: 12 | B86: 10582 | C86: 13 | D86: 10597 | E86: 13 | F86: 10601 | K86: 0 | L86: 111
A87: 12 | B87: 10697 | C87: 13 | D87: 10709 | E87: 13 | F87: 10713 | K87: 0 | L87: 111
A88: 12 | B88: 10810 | C88: 13 | D88: 10813 | E88: 13 | F88: 10819 | K88: 0 | L88: 111
A89: 21 | B89: 10918 | C89: 11 | D89: 10934 | E89: 11 | F89: 10938 | K89: 0 | L89: 211
A90: 12 | B90: 11098 | C90: 13 | D90: 11111 | E90: 13 | F90: 11122 | K90: 0 | L90: 111
A91: 12 | B91: 11221 | C91: 13 | D91: 11235 | E91: 13 | F91: 11245 | K91: 0 | L91: 111
A92: 12 | B92: 11340 | C92: 13 | D92: 11346 | E92: 13 | F92: 11356 | K92: 0 | L92: 111
A93: 12 | B93: 11452 | C93: 13 | D93: 11467 | E93: 24 | F93: 11471 | K93: 0 | L93: 112
A94: 21 | B94: 11572 | C94: 22 | D94: 11579 | E94: 13 | F94: 11587 | K94: 0 | L94: 221
A95: 12 | B95: 11684 | C95: 13 | D95: 11687 | E95: 13 | F95: 11699 | K95: 0 | L95: 111
A96: 12 | B96: 11801 | C96: 13 | D96: 11807 | E96: 24 | F96: 11820 | K96: 0 | L96: 112
A97: 12 | B97: 11914 | C97: 13 | D97: 11917 | E97: 24 | F97: 11929 | K97: 0 | L97: 112
A98: 12 | B98: 12023 | C98: 24 | D98: 12025 | E98: 24 | F98: 12039 | K98: 0 | L98: 122
A99: 12 | B99: 12136 | C99: 13 | D99: 12143 | E99: 13 | F99: 12155 | K99: 0 | L99: 111
A100: 12 | B100: 12253 | C100: 13 | D100: 12263 | E100: 24 | F100: 12275 | K100: 0 | L100: 112
A101: 12 | B101: 12368 | C101: 13 | D101: 12372 | E101: 13 | F101: 12380 | K101: 0 | L101: 111
A102: 12 | B102: 12477 | C102: 13 | D102: 12481 | E102: 13 | F102: 12491 | K102: 0 | L102: 111
A103: 12 | B103: 12593 | C103: 13 | D103: 12598 | E103: 13 | F103: 12606 | K103: 0 | L103: 111
A104: 21 | B104: 12739 | C104: 11 | D104: 12751 | E104: 11 | F104: 12763 | K104: 0 | L104: 211
A105: 12 | B105: 12970 | C105: 13 | D105: 12975 | E105: 13 | F105: 12987 | K105: 0 | L105: 111
A106: 12 | B106: 13082 | C106: 13 | D106: 13096 | E106: 13 | F106: 13108 | K106: 0 | L106: 111
A107: 21 | B107: 13225 | C107: 11 | D107: 13233 | E107: 11 | F107: 13252 | K107: 0 | L107: 211
A108: 21 | B108: 13376 | C108: 11 | D108: 13387 | E108: 11 | F108: 13402 | K108: 0 | L108: 211
A109: 12 | B109: 13683 | C109: 13 | D109: 13687 | E109: 13 | F109: 13694 | K109: 0 | L109: 111
A110: 12 | B110: 13791 | C110: 13 | D110: 13807 | E110: 13 | F110: 13814 | K110: 0 | L110: 111
A111: 12 | B111: 13909 | C111: 13 | D111: 13933 | E111: 13 | F111: 13937 | K111: 0 | L111: 111
A112: 12 | B112: 14032 | C112: 13 | D112: 14038 | E112: 13 | F112: 14050 | K112: 0 | L112: 111
A113: 12 | B113: 14145 | C113: 13 | D113: 14155 | E113: 13 | F113: 14167 | K113: 0 | L113: 111
A114: 12 | B114: 14271 | C114: 13 | D114: 14277 | E114: 13 | F114: 14290 | K114: 0 | L114: 111
A115: 12 | B115: 14385 | C115: 13 | D115: 14387 | E115: 13 | F115: 14393 | K115: 0 | L115: 111
A116: 12 | B116: 14489 | C116: 13 | D116: 14494 | E116: 13 | F116: 14501 | K116: 0 | L116: 111
A117: 12 | B117: 14596 | C117: 13 | D117: 14603 | E117: 13 | F117: 14614 | K117: 0 | L117: 111
A118: 12 | B118: 14709 | C118: 13 | D118: 14717 | E118: 13 | F118: 14729 | K118: 0 | L118: 111
A119: 12 | B119: 14824 | C119: 13 | D119: 14830 | E119: 24 | F119: 14842 | K119: 0 | L119: 112
A120: 12 | B120: 14953 | C120: 13 | D120: 14972 | E120: 24 | F120: 14987 | K120: 0 | L120: 112
A121: 12 | B121: 15082 | C121: 24 | D121: 15095 | E121: 13 | F121: 15099 | K121: 0 | L121: 121
A122: 12 | B122: 15195 | C122: 13 | D122: 15200 | E122: 24 | F122: 15212 | K122: 0 | L122: 112
A123: 12 | B123: 15306 | C123: 13 | D123: 15311 | E123: 13 | F123: 15316 | K123: 0 | L123: 111
A124: 21 | B124: 15412 | C124: 11 | D124: 15417 | E124: 11 | F124: 15424 | K124: 0 | L124: 211
A125: 12 | B125: 15538 | C125: 24 | D125: 15543 | E125: 13 | F125: 15556 | K125: 0 | L125: 121
A126: 12 | B126: 15651 | C126: 24 | D126: 15670 | E126: 13 | F126: 15695 | K126: 0 | L126: 121
A127: 12 | B127: 15793 | C127: 24 | D127: 15806 | E127: 13 | F127: 15825 | K127: 0 | L127: 121
A128: 12 | B128: 15920 | C128: 13 | D128: 15922 | E128: 13 | F128: 15927 | K128: 0 | L128: 111
A129: 12 | B129: 16023 | C129: 13 | D129: 16025 | E129: 24 | F129: 16046 | K129: 0 | L129: 112
A130: 12 | B130: 16142 | C130: 13 | D130: 16147 | E130: 24 | F130: 16163 | K130: 0 | L130: 112
A131: 12 | B131: 16262 | C131: 13 | D131: 16267 | E131: 13 | F131: 16278 | K131: 0 | L131: 111
A132: 12 | B132: 16373 | C132: 13 | D132: 16380 | E132: 13 | F132: 16392 | K132: 0 | L132: 111
A133: 12 | B133: 16487 | C133: 13 | D133: 16495 | E133: 24 | F133: 16506 | K133: 0 | L133: 112
A134: 12 | B134: 16600 | C134: 13 | D134: 16605 | E134: 13 | F134: 16634 | K134: 0 | L134: 111
A135: 12 | B135: 16728 | C135: 13 | D135: 16731 | E135: 13 | F135: 16735 | K135: 0 | L135: 111
A136: 12 | B136: 16830 | C136: 13 | D136: 16841 | E136: 24 | F136: 16853 | K136: 0 | L136: 112
A137: 12 | B137: 16948 | C137: 13 | D137: 16954 | E137: 24 | F137: 16967 | K137: 0 | L137: 112
A138: 12 | B138: 17064 | C138: 13 | D138: 17069 | E138: 24 | F138: 17083 | K138: 0 | L138: 112
A139: 12 | B139: 17182 | C139: 13 | D139: 17187 | E139: 24 | F139: 17199 | K139: 0 | L139: 112
A140: 12 | B140: 17293 | C140: 13 | D140: 17300 | E140: 13 | F140: 17329 | K140: 0 | L140: 111
A141: 12 | B141: 17423 | C141: 13 | D141: 17434 | E141: 24 | F141: 17448 | K141: 0 | L141: 112
A142: 12 | B142: 17543 | C142: 13 | D142: 17550 | E142: 24 | F142: 17564 | K142: 0 | L142: 112
A143: 12 | B143: 17664 | C143: 13 | D143: 17670 | E143: 13 | F143: 17678 | K143: 0 | L143: 111
A144: 12 | B144: 17773 | C144: 13 | D144: 17779 | E144: 13 | F144: 17807 | K144: 0 | L144: 111
A145: 12 | B145: 17904 | C145: 24 | D145: 17927 | E145: 13 | F145: 17950 | K145: 0 | L145: 121
A146: 12 | B146: 18075 | C146: 13 | D146: 18079 | E146: 13 | F146: 18117 | K146: 0 | L146: 111
A147: 12 | B147: 18212 | C147: 13 | D147: 18215 | E147: 13 | F147: 18219 | K147: 0 | L147: 111
A148: 12 | B148: 18314 | C148: 13 | D148: 18319 | E148: 13 | F148: 18327 | K148: 0 | L148: 111
A149: 12 | B149: 18421 | C149: 13 | D149: 18426 | E149: 13 | F149: 18432 | K149: 0 | L149: 111
A150: 12 | B150: 18525 | C150: 13 | D150: 18528 | E150: 13 | F150: 18535 | K150: 0 | L150: 111
A151: 12 | B151: 18629 | C151: 24 | D151: 18648 | E151: 13 | F151: 18675 | K151: 0 | L151: 121
A152: 12 | B152: 18774 | C152: 13 | D152: 18778 | E152: 13 | F152: 18783 | K152: 0 | L152: 111
A153: 12 | B153: 18877 | C153: 13 | D153: 18881 | E153: 13 | F153: 18886 | K153: 0 | L153: 111
A154: 12 | B154: 18993 | C154: 13 | D154: 18999 | E154: 13 | F154: 19003 | K154: 0 | L154: 111
A155: 12 | B155: 19104 | C155: 13 | D155: 19108 | E155: 24 | F155: 19119 | K155: 0 | L155: 112
A156: 12 | B156: 19214 | C156: 13 | D156: 19218 | E156: 24 | F156: 19234 | K156: 0 | L156: 112
A157: 12 | B157: 19332 | C157: 13 | D157: 19338 | E157: 24 | F157: 19351 | K157: 0 | L157: 112
A158: 12 | B158: 19447 | C158: 24 | D158: 19471 | E158: 24 | F158: 19478 | K158: 0 | L158: 122
A159: 12 | B159: 19573 | C159: 13 | D159: 19579 | E159: 13 | F159: 19585 | K159: 0 | L159: 111
A160: 12 | B160: 19686 | C160: 13 | D160: 19690 | E160: 13 | F160: 19695 | K160: 0 | L160: 111
A161: 21 | B161: 19788 | C161: 11 | D161: 19805 | E161: 22 | F161: 19817 | K161: 0 | L161: 212
A162: 12 | B162: 19911 | C162: 13 | D162: 19919 | E162: 24 | F162: 19934 | K162: 0 | L162: 112
A163: 12 | B163: 20028 | C163: 13 | D163: 20040 | E163: 13 | F163: 20046 | K163: 0 | L163: 111
A164: 12 | B164: 20138 | C164: 13 | D164: 20143 | E164: 24 | F164: 20155 | K164: 0 | L164: 112
A165: 12 | B165: 20257 | C165: 13 | D165: 20261 | E165: 13 | F165: 20267 | K165: 0 | L165: 111
A166: 12 | B166: 20362 | C166: 13 | D166: 20372 | E166: 13 | F166: 20378 | K166: 0 | L166: 111
A167: 12 | B167: 20475 | C167: 13 | D167: 20480 | E167: 13 | F167: 20486 | K167: 0 | L167: 111
A168: 12 | B168: 20588 | C168: 13 | D168: 20592 | E168: 13 | F168: 20597 | K168: 0 | L168: 111
A169: 12 | B169: 20699 | C169: 13 | D169: 20704 | E169: 13 | F169: 20709 | K169: 0 | L169: 111
A170: 12 | B170: 20817 | C170: 13 | D170: 20821 | E170: 13 | F170: 20829 | K170: 0 | L170: 111
A171: 12 | B171: 20930 | C171: 13 | D171: 20934 | E171: 13 | F171: 20941 | K171: 0 | L171: 111
A172: 12 | B172: 21044 | C172: 13 | D172: 21048 | E172: 13 | F172: 21053 | K172: 0 | L172: 111
A173: 12 | B173: 21149 | C173: 13 | D173: 21156 | E173: 13 | F173: 21168 | K173: 0 | L173: 111
A174: 12 | B174: 21263 | C174: 13 | D174: 21271 | E174: 13 | F174: 21275 | K174: 0 | L174: 111
A175: 12 | B175: 21378 | C175: 13 | D175: 21383 | E175: 13 | F175: 21387 | K175: 0 | L175: 111
A176: 12 | B176: 21493 | C176: 13 | D176: 21499 | E176: 13 | F176: 21507 | K176: 0 | L176: 111
A177: 21 | B177: 21607 | C177: 11 | D177: 21618 | E177: 11 | F177: 21622 | K177: 0 | L177: 211
A178: 12 | B178: 21919 | C178: 13 | D178: 21923 | E178: 13 | F178: 21931 | K178: 0 | L178: 111
A179: 12 | B179: 22026 | C179: 13 | D179: 22031 | E179: 13 | F179: 22037 | K179: 0 | L179: 111
A180: 12 | B180: 22139 | C180: 13 | D180: 22145 | E180: 13 | F180: 22151 | K180: 0 | L180: 111
A181: 12 | B181: 22246 | C181: 13 | D181: 22261 | E181: 24 | F181: 22280 | K181: 0 | L181: 112
A182: 12 | B182: 22381 | C182: 13 | D182: 22391 | E182: 13 | F182: 22396 | K182: 0 | L182: 111
A183: 12 | B183: 22491 | C183: 13 | D183: 22503 | E183: 13 | F183: 22510 | K183: 0 | L183: 111
A184: 12 | B184: 22606 | C184: 13 | D184: 22612 | E184: 13 | F184: 22618 | K184: 0 | L184: 111
A185: 12 | B185: 22713 | C185: 13 | D185: 22716 | E185: 13 | F185: 22728 | K185: 0 | L185: 111
A186: 12 | B186: 22831 | C186: 13 | D186: 22838 | E186: 24 | F186: 22849 | K186: 0 | L186: 112
A187: 21 | B187: 22950 | C187: 11 | D187: 22958 | E187: 11 | F187: 22968 | K187: 0 | L187: 211
A188: 12 | B188: 23231 | C188: 13 | D188: 23236 | E188: 13 | F188: 23242 | K188: 0 | L188: 111
A189: 12 | B189: 23346 | C189: 13 | D189: 23352 | E189: 24 | F189: 23363 | K189: 0 | L189: 112
A190: 12 | B190: 23459 | C190: 13 | D190: 23461 | E190: 13 | F190: 23465 | K190: 0 | L190: 111
A191: 12 | B191: 23560 | C191: 13 | D191: 23565 | E191: 13 | F191: 23570 | K191: 0 | L191: 111
A192: 12 | B192: 23665 | C192: 13 | D192: 23668 | E192: 13 | F192: 23673 | K192: 0 | L192: 111
A193: 12 | B193: 23768 | C193: 13 | D193: 23770 | E193: 24 | F193: 23783 | K193: 0 | L193: 112
A194: 12 | B194: 23878 | C194: 13 | D194: 23884 | E194: 13 | F194: 23890 | K194: 0 | L194: 111
A195: 12 | B195: 23994 | L195: 1

Sheet !MC19A5I.sha
A1: Report for:!MC19A5I.sha
A2: Date: | B2: <date>
A3: Hen: | B3: <hen> | F3: Correct Sequence | G3: =Start!J2 -> 211 | P3: Total Sequences in Data | Q3: =4994-COUNTBLANK(L7:L5000) -> 192 | V3: Total Sequences in Block Data | W3: =COUNTA(L7:L38) -> 32 | AA3: Total Sequences in Block Data | AB3: =COUNTA(L39:L70) -> 32 | AF3: Total Sequences in Block Data | AG3: =COUNTA(L71:L102) -> 32 | AK3: Total Sequences in Block Data | AL3: =COUNTA(L103:L134) -> 32 | AP3: Total Sequences in Block Data | AQ3: =COUNTA(L135:L166) -> 32 | AU3: Total Sequences in Block Data | AV3: =COUNTA(L167:L198) -> 32
P4: Total Sequences in Summary | Q4: =SUM(O7:O14) -> 192 | V4: Total Sequences in Block Summary | W4: =SUM(U7:U14) -> 32 | AA4: Total Sequences in Block Summary | AB4: =SUM(Z7:Z14) -> 32 | AF4: Total Sequences in Block Summary | AG4: =SUM(AE7:AE14) -> 32 | AK4: Total Sequences in Block Summary | AL4: =SUM(AJ7:AJ14) -> 32 | AP4: Total Sequences in Block Summary | AQ4: =SUM(AO7:AO14) -> 32 | AU4: Total Sequences in Block Summary | AV4: =SUM(AT7:AT14) -> 32
T5: Block 1 | Y5: Block 2 | AD5: Block 3 | AI5: Block 4 | AN5: Block 5 | AS5: Block 6
A6: Sequence Component 1 | B6: Time 1 | C6: Sequence Component 2 | D6: Time 2 | E6: Sequence Component 3 | F6: Time 3 | G6: Sequence Component 4 | H6: Time 4 | I6: Sequence Component 5 | J6: Time 5 | K6: Correct? 0=No 1=Yes | L6: Sequence | N6: Frequency | P6: Relative Frequency | Q6: Variability | T6: Frequency | V6: Relative Frequency | W6: Variability | Y6: Frequency | AA6: Relative Frequency | AB6: Variability | AD6: Frequency | AF6: Relative Frequency | AG6: Variability | AI6: Frequency | AK6: Relative Frequency | AL6: Variability | AN6: Frequency | AP6: Relative Frequency | AQ6: Variability | AS6: Frequency | AU6: Relative Frequency | AV6: Variability
A7: 12 | B7: 182 | C7: 13 | D7: 187 | E7: 13 | F7: 191 | K7: 0 | L7: 111 | N7: 111 | O7: =COUNTIF($L$7:$L$500,N7) -> 113 | P7: =O7/$Q$4 -> 0.5885416667 | Q7: =IF(P7=0,0,(P7*((LOG(P7))/LOG(2)))) -> -0.4501069783 | T7: =N7 -> 111 | U7: =COUNTIF(L7:L38,T7) -> 20 | V7: =U7/(W4-U11) -> 0.6451612903 | W7: =IF(V7=0,0,(V7*((LOG(V7))/LOG(2)))) -> -0.4079149777 | Y7: =N7 -> 111 | Z7: =COUNTIF(L39:L70,Y7) -> 21 | AA7: =Z7/(AB4-Z11) -> 0.75 | AB7: =IF(AA7=0,0,(AA7*((LOG(AA7))/LOG(2)))) -> -0.3112781245 | AD7: =N7 -> 111 | AE7: =COUNTIF(L71:L102,AD7) -> 24 | AF7: =AE7/(AG4-AE11) -> 0.8 | AG7: =IF(AF7=0,0,(AF7*((LOG(AF7))/LOG(2)))) -> -0.2575424759 | AI7: =N7 -> 111 | AJ7: =COUNTIF(L103:L134,AI7) -> 18 | AK7: =AJ7/(AL4-AJ11) -> 0.6923076923 | AL7: =IF(AK7=0,0,(AK7*((LOG(AK7))/LOG(2)))) -> -0.3672794193 | AN7: =N7 -> 111 | AO7: =COUNTIF(L135:L166,AN7) -> 9 | AP7: =AO7/(AQ4-AO11) -> 0.4090909091 | AQ7: =IF(AP7=0,0,(AP7*((LOG(AP7))/LOG(2)))) -> -0.5275254343 | AS7: =N7 -> 111 | AT7: =COUNTIF(L167:L198,AS7) -> 21 | AU7: =AT7/(AV4-AT11) -> 0.7 | AV7: =IF(AU7=0,0,(AU7*((LOG(AU7))/LOG(2)))) -> -0.360201221
A8: 12 | B8: 283 | C8: 13 | D8: 286 | E8: 13 | F8: 289 | K8: 0 | L8: 111 | N8: 112 | O8: 39 | P8: 0.203125 | Q8: -0.4670981823 | T8: 112 | U8: =COUNTIF(L7:L38,T8) -> 7 | V8: =U8/(W4-U11) -> 0.2258064516 | W8: =IF(V8=0,0,(V8*((LOG(V8))/LOG(2)))) -> -0.4847706361 | Y8: 112 | Z8: =COUNTIF(L39:L70,Y8) -> 5 | AA8: =Z8/(AB4-Z11) -> 0.1785714286 | AB8: =IF(AA8=0,0,(AA8*((LOG(AA8))/LOG(2)))) -> -0.4438262191 | AD8: 112 | AE8: =COUNTIF(L71:L102,AD8) -> 5 | AF8: =AE8/(AG4-AE11) -> 0.1666666667 | AG8: =IF(AF8=0,0,(AF8*((LOG(AF8))/LOG(2)))) -> -0.4308270835 | AI8: 112 | AJ8: =COUNTIF(L103:L134,AI8) -> 5 | AK8: =AJ8/(AL4-AJ11) -> 0.1923076923 | AL8: =IF(AK8=0,0,(AK8*((LOG(AK8))/LOG(2)))) -> -0.4574060814 | AN8: 112 | AO8: =COUNTIF(L135:L166,AN8) -> 8 | AP8: =AO8/(AQ4-AO11) -> 0.3636363636 | AQ8: =IF(AP8=0,0,(AP8*((LOG(AP8))/LOG(2)))) -> -0.5307024068 | AS8: 112 | AT8: =COUNTIF(L167:L198,AS8) -> 9 | AU8: =AT8/(AV4-AT11) -> 0.3 | AV8: =IF(AU8=0,0,(AU8*((LOG(AU8))/LOG(2)))) -> -0.5210896782
A9: 21 | B9: 389 | C9: 11 | D9: 402 | E9: 11 | F9: 408 | K9: 0 | L9: 211 | N9: 121 | O9: 4 | P9: 0.02083333333 | Q9: -0.1163533854 | T9: 121 | U9: =COUNTIF(L7:L38,T9) -> 1 | V9: =U9/(W4-U11) -> 0.03225806452 | W9: =IF(V9=0,0,(V9*((LOG(V9))/LOG(2)))) -> -0.1598127842 | Y9: 121 | Z9: =COUNTIF(L39:L70,Y9) -> 0 | AA9: =Z9/(AB4-Z11) -> 0 | AB9: =IF(AA9=0,0,(AA9*((LOG(AA9))/LOG(2)))) -> 0 | AD9: 121 | AE9: =COUNTIF(L71:L102,AD9) -> 1 | AF9: =AE9/(AG4-AE11) -> 0.03333333333 | AG9: =IF(AF9=0,0,(AF9*((LOG(AF9))/LOG(2)))) -> -0.1635630199 | AI9: 121 | AJ9: =COUNTIF(L103:L134,AI9) -> 0 | AK9: =AJ9/(AL4-AJ11) -> 0 | AL9: =IF(AK9=0,0,(AK9*((LOG(AK9))/LOG(2)))) -> 0 | AN9: 121 | AO9: =COUNTIF(L135:L166,AN9) -> 2 | AP9: =AO9/(AQ4-AO11) -> 0.09090909091 | AQ9: =IF(AP9=0,0,(AP9*((LOG(AP9))/LOG(2)))) -> -0.3144937835 | AS9: 121 | AT9: =COUNTIF(L167:L198,AS9) -> 0 | AU9: =AT9/(AV4-AT11) -> 0 | AV9: =IF(AU9=0,0,(AU9*((LOG(AU9))/LOG(2)))) -> 0
A10: 12 | B10: 576 | C10: 13 | D10: 585 | E10: 24 | F10: 595 | K10: 0 | L10: 112 | N10: 122 | O10: 8 | P10: 0.04166666667 | Q10: -0.1910401042 | T10: 122 | U10: =COUNTIF(L7:L38,T10) -> 2 | V10: =U10/(W4-U11) -> 0.06451612903 | W10: =IF(V10=0,0,(V10*((LOG(V10))/LOG(2)))) -> -0.2551094394 | Y10: 122 | Z10: =COUNTIF(L39:L70,Y10) -> 2 | AA10: =Z10/(AB4-Z11) -> 0.07142857143 | AB10: =IF(AA10=0,0,(AA10*((LOG(AA10))/LOG(2)))) -> -0.271953923 | AD10: 122 | AE10: =COUNTIF(L71:L102,AD10) -> 0 | AF10: =AE10/(AG4-AE11) -> 0 | AG10: =IF(AF10=0,0,(AF10*((LOG(AF10))/LOG(2)))) -> 0 | AI10: 122 | AJ10: =COUNTIF(L103:L134,AI10) -> 1 | AK10: =AJ10/(AL4-AJ11) -> 0.03846153846 | AL10: =IF(AK10=0,0,(AK10*((LOG(AK10))/LOG(2)))) -> -0.180786143 | AN10: 122 | AO10: =COUNTIF(L135:L166,AN10) -> 3 | AP10: =AO10/(AQ4-AO11) -> 0.1363636364 | AQ10: =IF(AP10=0,0,(AP10*((LOG(AP10))/LOG(2)))) -> -0.3919730615 | AS10: 122 | AT10: =COUNTIF(L167:L198,AS10) -> 0 | AU10: =AT10/(AV4-AT11) -> 0 | AV10: =IF(AU10=0,0,(AU10*((LOG(AU10))/LOG(2)))) -> 0
A11: 12 | B11: 693 | C11: 24 | D11: 704 | E11: 24 | F11: 708 | K11: 0 | L11: 122 | N11: 211 | O11: 25 | P11: 0.1302083333 | Q11: -0.3829565509 | T11: 211 | U11: =COUNTIF(L7:L38,T11) -> 1 | Y11: 211 | Z11: =COUNTIF(L39:L70,Y11) -> 4 | AD11: 211 | AE11: =COUNTIF(L71:L102,AD11) -> 2 | AI11: 211 | AJ11: =COUNTIF(L103:L134,AI11) -> 6 | AN11: 211 | AO11: =COUNTIF(L135:L166,AN11) -> 10 | AS11: 211 | AT11: =COUNTIF(L167:L198,AS11) -> 2
A12: 12 | B12: 804 | C12: 13 | D12: 809 | E12: 24 | F12: 821 | K12: 0 | L12: 112 | N12: 212 | O12: 1 | P12: 0.005208333333 | Q12: -0.03950501302 | T12: 212 | U12: =COUNTIF(L7:L38,T12) -> 0 | V12: =U12/(W4-U11) -> 0 | W12: =IF(V12=0,0,(V12*((LOG(V12))/LOG(2)))) -> 0 | Y12: 212 | Z12: =COUNTIF(L39:L70,Y12) -> 0 | AA12: =Z12/(AB4-Z11) -> 0 | AB12: =IF(AA12=0,0,(AA12*((LOG(AA12))/LOG(2)))) -> 0 | AD12: 212 | AE12: =COUNTIF(L71:L102,AD12) -> 0 | AF12: =AE12/(AG4-AE11) -> 0 | AG12: =IF(AF12=0,0,(AF12*((LOG(AF12))/LOG(2)))) -> 0 | AI12: 212 | AJ12: =COUNTIF(L103:L134,AI12) -> 1 | AK12: =AJ12/(AL4-AJ11) -> 0.03846153846 | AL12: =IF(AK12=0,0,(AK12*((LOG(AK12))/LOG(2)))) -> -0.180786143 | AN12: 212 | AO12: =COUNTIF(L135:L166,AN12) -> 0 | AP12: =AO12/(AQ4-AO11) -> 0 | AQ12: =IF(AP12=0,0,(AP12*((LOG(AP12))/LOG(2)))) -> 0 | AS12: 212 | AT12: =COUNTIF(L167:L198,AS12) -> 0 | AU12: =AT12/(AV4-AT11) -> 0 | AV12: =IF(AU12=0,0,(AU12*((LOG(AU12))/LOG(2)))) -> 0
A13: 12 | B13: 915 | C13: 13 | D13: 918 | E13: 13 | F13: 924 | K13: 0 | L13: 111 | N13: 221 | O13: 0 | P13: 0 | Q13: 0 | T13: 221 | U13: =COUNTIF(L7:L38,T13) -> 0 | V13: =U13/(W4-U11) -> 0 | W13: =IF(V13=0,0,(V13*((LOG(V13))/LOG(2)))) -> 0 | Y13: 221 | Z13: =COUNTIF(L39:L70,Y13) -> 0 | AA13: =Z13/(AB4-Z11) -> 0 | AB13: =IF(AA13=0,0,(AA13*((LOG(AA13))/LOG(2)))) -> 0 | AD13: 221 | AE13: =COUNTIF(L71:L102,AD13) -> 0 | AF13: =AE13/(AG4-AE11) -> 0 | AG13: =IF(AF13=0,0,(AF13*((LOG(AF13))/LOG(2)))) -> 0 | AI13: 221 | AJ13: =COUNTIF(L103:L134,AI13) -> 0 | AK13: =AJ13/(AL4-AJ11) -> 0 | AL13: =IF(AK13=0,0,(AK13*((LOG(AK13))/LOG(2)))) -> 0 | AN13: 221 | AO13: =COUNTIF(L135:L166,AN13) -> 0 | AP13: =AO13/(AQ4-AO11) -> 0 | AQ13: =IF(AP13=0,0,(AP13*((LOG(AP13))/LOG(2)))) -> 0 | AS13: 221 | AT13: =COUNTIF(L167:L198,AS13) -> 0 | AU13: =AT13/(AV4-AT11) -> 0 | AV13: =IF(AU13=0,0,(AU13*((LOG(AU13))/LOG(2)))) -> 0
A14: 12 | B14: 1021 | C14: 24 | D14: 1035 | E14: 13 | F14: 1054 | K14: 0 | L14: 121 | N14: 222 | O14: 2 | P14: 0.01041666667 | Q14: -0.06859335938 | T14: 222 | U14: =COUNTIF(L7:L38,T14) -> 1 | V14: =U14/(W4-U11) -> 0.03225806452 | W14: =IF(V14=0,0,(V14*((LOG(V14))/LOG(2)))) -> -0.1598127842 | Y14: 222 | Z14: =COUNTIF(L39:L70,Y14) -> 0 | AA14: =Z14/(AB4-Z11) -> 0 | AB14: =IF(AA14=0,0,(AA14*((LOG(AA14))/LOG(2)))) -> 0 | AD14: 222 | AE14: =COUNTIF(L71:L102,AD14) -> 0 | AF14: =AE14/(AG4-AE11) -> 0 | AG14: =IF(AF14=0,0,(AF14*((LOG(AF14))/LOG(2)))) -> 0 | AI14: 222 | AJ14: =COUNTIF(L103:L134,AI14) -> 1 | AK14: =AJ14/(AL4-AJ11) -> 0.03846153846 | AL14: =IF(AK14=0,0,(AK14*((LOG(AK14))/LOG(2)))) -> -0.180786143 | AN14: 222 | AO14: =COUNTIF(L135:L166,AN14) -> 0 | AP14: =AO14/(AQ4-AO11) -> 0 | AQ14: =IF(AP14=0,0,(AP14*((LOG(AP14))/LOG(2)))) -> 0 | AS14: 222 | AT14: =COUNTIF(L167:L198,AS14) -> 0 | AU14: =AT14/(AV4-AT11) -> 0 | AV14: =IF(AU14=0,0,(AU14*((LOG(AU14))/LOG(2)))) -> 0
A15: 12 | B15: 1175 | C15: 13 | D15: 1180 | E15: 13 | F15: 1184 | K15: 0 | L15: 111 | P15: =SUM(P7:P14) -> 1 | Q15: =-SUM(Q7:Q14) -> 1.715653573 | V15: =SUM(V7:V14) -> 1 | W15: =-SUM(W7:W14) -> 1.467420622 | AA15: =SUM(AA7:AA14) -> 1 | AB15: =-SUM(AB7:AB14) -> 1.027058267 | AF15: =SUM(AF7:AF14) -> 1 | AG15: =-SUM(AG7:AG14) -> 0.8519325792 | AK15: =SUM(AK7:AK14) -> 1 | AL15: =-SUM(AL7:AL14) -> 1.36704393 | AP15: =SUM(AP7:AP14) -> 1 | AQ15: =-SUM(AQ7:AQ14) -> 1.764694686 | AU15: =SUM(AU7:AU14) -> 1 | AV15: =-SUM(AV7:AV14) -> 0.8812908992
A16: 12 | B16: 1277 | C16: 13 | D16: 1281 | E16: 13 | F16: 1289 | K16: 0 | L16: 111 | P16: U= | Q16: =Q15/(LOG(Q4)/LOG(2)) -> 0.2261914378 | V16: U1= | W16: =W15/(LOG(W4)/LOG(2)) -> 0.2934841243 | AA16: U2= | AB16: =AB15/(LOG(AB4)/LOG(2)) -> 0.2054116533 | AF16: U3= | AG16: =AG15/(LOG(AG4)/LOG(2)) -> 0.1703865158 | AK16: U4= | AL16: =AL15/(LOG(AL4)/LOG(2)) -> 0.2734087859 | AP16: U5= | AQ16: =AQ15/(LOG(AQ4)/LOG(2)) -> 0.3529389372 | AU16: U6= | AV16: =AV15/(LOG(AV4)/LOG(2)) -> 0.1762581798
A17: 12 | B17: 1387 | C17: 13 | D17: 1393 | E17: 24 | F17: 1405 | K17: 0 | L17: 112
A18: 12 | B18: 1499 | C18: 13 | D18: 1504 | E18: 13 | F18: 1510 | K18: 0 | L18: 111
A19: 12 | B19: 1605 | C19: 13 | D19: 1612 | E19: 13 | F19: 1617 | K19: 0 | L19: 111 | N19: Total Target Seq
A20: 12 | B20: 1729 | C20: 13 | D20: 1736 | E20: 24 | F20: 1747 | K20: 0 | L20: 112 | N20: =COUNTIF(L7:L198,G3) -> 25 | P20: 32 | Q20: 32 | R20: 32 | S20: 32 | T20: 32 | U20: 32
A21: 12 | B21: 1839 | C21: 13 | D21: 1843 | E21: 13 | F21: 1848 | K21: 0 | L21: 111 | P21: % of reinforcement given in 6 equal intervals based on number of trials
A22: 12 | B22: 1994 | C22: 13 | D22: 2010 | E22: 24 | F22: 2023 | K22: 0 | L22: 112 | P22: %_1 | Q22: %_2 | R22: %_3 | S22: %_4 | T22: %_5 | U22: %_6
A23: 12 | B23: 2118 | C23: 13 | D23: 2125 | E23: 13 | F23: 2131 | K23: 0 | L23: 111 | O23: target sequence | P23: =$G$3 -> 211 | Q23: 211 | R23: 211 | S23: 211 | T23: 211 | U23: 211
A24: 12 | B24: 2226 | C24: 13 | D24: 2228 | E24: 13 | F24: 2234 | K24: 0 | L24: 111 | O24: total reinforcement | P24: =U11 -> 1 | Q24: =Z11 -> 4 | R24: =AE11 -> 2 | S24: =AJ11 -> 6 | T24: =AO11 -> 10 | U24: =AT11 -> 2
A25: 12 | B25: 2327 | C25: 13 | D25: 2338 | E25: 13 | F25: 2343 | K25: 0 | L25: 111 | O25: % target
A26: 12 | B26: 2441 | C26: 13 | D26: 2446 | E26: 13 | F26: 2451 | K26: 0 | L26: 111 | O26: CCRF
A27: 12 | B27: 2559 | C27: 13 | D27: 2563 | E27: 13 | F27: 2568 | K27: 0 | L27: 111 | O27: % CCRf
A28: 12 | B28: 2675 | C28: 13 | D28: 2683 | E28: 24 | F28: 2696 | K28: 0 | L28: 112 | O28: average response rate | P28: =F38/P20 -> 122.84375 | Q28: =(F70-F38)/Q20 -> 154 | R28: =(F102-F70)/R20 -> 114.90625 | S28: =(F134-F102)/S20 -> 114.53125 | T28: =(F166-F134)/T20 -> 123.28125 | U28: =(F198-F166)/U20 -> 118.46875
A29: 12 | B29: 2799 | C29: 13 | D29: 2809 | E29: 24 | F29: 2822 | K29: 0 | L29: 112
A30: 12 | B30: 2927 | C30: 13 | D30: 2936 | E30: 13 | F30: 2944 | K30: 0 | L30: 111
A31: 12 | B31: 3046 | C31: 13 | D31: 3054 | E31: 13 | F31: 3058 | K31: 0 | L31: 111
A32: 12 | B32: 3153 | C32: 24 | D32: 3167 | E32: 24 | F32: 3171 | K32: 0 | L32: 122
A33: 12 | B33: 3270 | C33: 13 | D33: 3272 | E33: 13 | F33: 3285 | K33: 0 | L33: 111
A34: 12 | B34: 3465 | C34: 13 | D34: 3476 | E34: 13 | F34: 3480 | K34: 0 | L34: 111
A35: 12 | B35: 3574 | C35: 13 | D35: 3583 | E35: 13 | F35: 3590 | K35: 0 | L35: 111
A36: 12 | B36: 3693 | C36: 13 | D36: 3698 | E36: 13 | F36: 3704 | K36: 0 | L36: 111
A37: 12 | B37: 3810 | C37: 13 | D37: 3815 | E37: 13 | F37: 3820 | K37: 0 | L37: 111
A38: 21 | B38: 3918 | C38: 22 | D38: 3924 | E38: 24 | F38: 3931 | K38: 0 | L38: 222
A39: 12 | B39: 4023 | C39: 13 | D39: 4026 | E39: 13 | F39: 4031 | K39: 0 | L39: 111
A40: 12 | B40: 4124 | C40: 13 | D40: 4131 | E40: 13 | F40: 4137 | K40: 0 | L40: 111
A41: 12 | B41: 4233 | C41: 13 | D41: 4237 | E41: 13 | F41: 4243 | K41: 0 | L41: 111
A42: 12 | B42: 4339 | C42: 13 | D42: 4344 | E42: 13 | F42: 4347 | K42: 0 | L42: 111
A43: 12 | B43: 4451 | C43: 24 | D43: 4470 | E43: 24 | F43: 4481 | K43: 0 | L43: 122
A44: 12 | B44: 4580 | C44: 13 | D44: 4597 | E44: 13 | F44: 4604 | K44: 0 | L44: 111
A45: 12 | B45: 4697 | C45: 13 | D45: 4702 | E45: 13 | F45: 4707 | K45: 0 | L45: 111
A46: 12 | B46: 5779 | C46: 13 | D46: 5783 | E46: 13 | F46: 5790 | K46: 0 | L46: 111
A47: 21 | B47: 5890 | C47: 11 | D47: 5900 | E47: 11 | F47: 5910 | K47: 0 | L47: 211
A48: 12 | B48: 6086 | C48: 13 | D48: 6097 | E48: 24 | F48: 6118 | K48: 0 | L48: 112
A49: 12 | B49: 6212 | C49: 13 | D49: 6219 | E49: 13 | F49: 6224 | K49: 0 | L49: 111
A50: 21 | B50: 6320 | C50: 11 | D50: 6333 | E50: 11 | F50: 6340 | K50: 0 | L50: 211
A51: 12 | B51: 6506 | C51: 13 | D51: 6510 | E51: 13 | F51: 6517 | K51: 0 | L51: 111
A52: 12 | B52: 6611 | C52: 13 | D52: 6618 | E52: 24 | F52: 6633 | K52: 0 | L52: 112
A53: 12 | B53: 6767 | C53: 13 | D53: 6777 | E53: 13 | F53: 6782 | K53: 0 | L53: 111
A54: 12 | B54: 6877 | C54: 13 | D54: 6885 | E54: 13 | F54: 6891 | K54: 0 | L54: 111
A55: 12 | B55: 6983 | C55: 13 | D55: 6986 | E55: 13 | F55: 6990 | K55: 0 | L55: 111
A56: 12 | B56: 7142 | C56: 13 | D56: 7148 | E56: 13 | F56: 7155 | K56: 0 | L56: 111
A57: 21 | B57: 7250 | C57: 11 | D57: 7262 | E57: 11 | F57: 7271 | K57: 0 | L57: 211
A58: 12 | B58: 7373 | C58: 13 | D58: 7385 | E58: 24 | F58: 7394 | K58: 0 | L58: 112
A59: 12 | B59: 7488 | C59: 13 | D59: 7497 | E59: 13 | F59: 7505 | K59: 0 | L59: 111
A60: 12 | B60: 7598 | C60: 13 | D60: 7602 | E60: 13 | F60: 7608 | K60: 0 | L60: 111
A61: 21 | B61: 7705 | C61: 11 | D61: 7717 | E61: 11 | F61: 7724 | K61: 0 | L61: 211
A62: 12 | B62: 7865 | C62: 24 | D62: 7883 | E62: 24 | F62: 7890 | K62: 0 | L62: 122
A63: 12 | B63: 8017 | C63: 13 | D63: 8025 | E63: 13 | F63: 8033 | K63: 0 | L63: 111
A64: 12 | B64: 8139 | C64: 13 | D64: 8148 | E64: 13 | F64: 8155 | K64: 0 | L64: 111
A65: 12 | B65: 8249 | C65: 13 | D65: 8256 | E65: 13 | F65: 8263 | K65: 0 | L65: 111
A66: 12 | B66: 8357 | C66: 13 | D66: 8361 | E66: 24 | F66: 8382 | K66: 0 | L66: 112
A67: 12 | B67: 8490 | C67: 13 | D67: 8499 | E67: 13 | F67: 8506 | K67: 0 | L67: 111
A68: 12 | B68: 8602 | C68: 13 | D68: 8609 | E68: 13 | F68: 8619 | K68: 0 | L68: 111
A69: 12 | B69: 8726 | C69: 13 | D69: 8737 | E69: 13 | F69: 8744 | K69: 0 | L69: 111
A70: 12 | B70: 8838 | C70: 13 | D70: 8846 | E70: 24 | F70: 8859 | K70: 0 | L70: 112
A71: 12 | B71: 8953 | C71: 13 | D71: 8961 | E71: 24 | F71: 8973 | K71: 0 | L71: 112
A72: 12 | B72: 9073 | C72: 13 | D72: 9081 | E72: 24 | F72: 9093 | K72: 0 | L72: 112
A73: 12 | B73: 9185 | C73: 13 | D73: 9188 | E73: 13 | F73: 9193 | K73: 0 | L73: 111
A74: 12 | B74: 9287 | C74: 13 | D74: 9298 | E74: 13 | F74: 9304 | K74: 0 | L74: 111
A75: 12 | B75: 9402 | C75: 13 | D75: 9405 | E75: 13 | F75: 9412 | K75: 0 | L75: 111
A76: 12 | B76: 9517 | C76: 13 | D76: 9531 | E76: 24 | F76: 9543 | K76: 0 | L76: 112
A77: 12 | B77: 9636 | C77: 13 | D77: 9639 | E77: 13 | F77: 9644 | K77: 0 | L77: 111
A78: 12 | B78: 9738 | C78: 13 | D78: 9742 | E78: 13 | F78: 9748 | K78: 0 | L78: 111
A79: 12 | B79: 9846 | C79: 13 | D79: 9854 | E79: 13 | F79: 9860 | K79: 0 | L79: 111
A80: 12 | B80: 9955 | C80: 24 | D80: 9967 | E80: 13 | F80: 9981 | K80: 0 | L80: 121
A81: 12 | B81: 10073 | C81: 13 | D81: 10078 | E81: 13 | F81: 10081 | K81: 0 | L81: 111
A82: 12 | B82: 10181 | C82: 13 | D82: 10186 | E82: 13 | F82: 10192 | K82: 0 | L82: 111
A83: 12 | B83: 10284 | C83: 13 | D83: 10288 | E83: 13 | F83: 10295 | K83: 0 | L83: 111
A84: 12 | B84: 10391 | C84: 13 | D84: 10399 | E84: 24 | F84: 10420 | K84: 0 | L84: 112
A85: 12 | B85: 10514 | C85: 13 | D85: 10520 | E85: 13 | F85: 10522 | K85: 0 | L85: 111
A86: 12 | B86: 10615 | C86: 13 | D86: 10618 | E86: 13 | F86: 10623 | K86: 0 | L86: 111
A87: 12 | B87: 10715 | C87: 13 | D87: 10718 | E87: 13 | F87: 10724 | K87: 0 | L87: 111
A88: 12 | B88: 10830 | C88: 13 | D88: 10839 | E88: 13 | F88: 10847 | K88: 0 | L88: 111
A89: 21 | B89: 10946 | C89: 11 | D89: 10958 | E89: 11 | F89: 10966 | K89: 0 | L89: 211
A90: 12 | B90: 11185 | C90: 13 | D90: 11189 | E90: 13 | F90: 11195 | K90: 0 | L90: 111
A91: 21 | B91: 11292 | C91: 11 | D91: 11298 | E91: 11 | F91: 11304 | K91: 0 | L91: 211
A92: 12 | B92: 11429 | C92: 13 | D92: 11433 | E92: 13 | F92: 11439 | K92: 0 | L92: 111
A93: 12 | B93: 11533 | C93: 13 | D93: 11537 | E93: 13 | F93: 11548 | K93: 0 | L93: 111
A94: 12 | B94: 11653 | C94: 13 | D94: 11658 | E94: 13 | F94: 11665 | K94: 0 | L94: 111
A95: 12 | B95: 11759 | C95: 13 | D95: 11766 | E95: 13 | F95: 11772 | K95: 0 | L95: 111
A96: 12 | B96: 11867 | C96: 13 | D96: 11875 | E96: 24 | F96: 11891 | K96: 0 | L96: 112
A97: 12 | B97: 11984 | C97: 13 | D97: 11990 | E97: 13 | F97: 11995 | K97: 0 | L97: 111
A98: 12 | B98: 12090 | C98: 13 | D98: 12098 | E98: 13 | F98: 12105 | K98: 0 | L98: 111
A99: 12 | B99: 12198 | C99: 13 | D99: 12207 | E99: 13 | F99: 12214 | K99: 0 | L99: 111
A100: 12 | B100: 12310 | C100: 13 | D100: 12315 | E100: 13 | F100: 12321 | K100: 0 | L100: 111
A101: 12 | B101: 12414 | C101: 13 | D101: 12418 | E101: 13 | F101: 12427 | K101: 0 | L101: 111
A102: 12 | B102: 12525 | C102: 13 | D102: 12530 | E102: 13 | F102: 12536 | K102: 0 | L102: 111
A103: 12 | B103: 12635 | C103: 13 | D103: 12640 | E103: 13 | F103: 12645 | K103: 0 | L103: 111
A104: 12 | B104: 12741 | C104: 13 | D104: 12745 | E104: 24 | F104: 12761 | K104: 0 | L104: 112
A105: 12 | B105: 12856 | C105: 13 | D105: 12861 | E105: 13 | F105: 12866 | K105: 0 | L105: 111
A106: 12 | B106: 12961 | C106: 13 | D106: 12967 | E106: 13 | F106: 12971 | K106: 0 | L106: 111
A107: 12 | B107: 13063 | C107: 13 | D107: 13067 | E107: 13 | F107: 13073 | K107: 0 | L107: 111
A108: 12 | B108: 13168 | C108: 13 | D108: 13173 | E108: 13 | F108: 13180 | K108: 0 | L108: 111
A109: 21 | B109: 13277 | C109: 11 | D109: 13287 | E109: 11 | F109: 13294 | K109: 0 | L109: 211
A110: 12 | B110: 13388 | C110: 13 | D110: 13394 | E110: 13 | F110: 13400 | K110: 0 | L110: 111
A111: 21 | B111: 13500 | C111: 22 | D111: 13509 | E111: 24 | F111: 13517 | K111: 0 | L111: 222
A112: 12 | B112: 13611 | C112: 13 | D112: 13617 | E112: 13 | F112: 13625 | K112: 0 | L112: 111
A113: 12 | B113: 13719 | C113: 13 | D113: 13729 | E113: 13 | F113: 13735 | K113: 0 | L113: 111
A114: 12 | B114: 13834 | C114: 13 | D114: 13843 | E114: 13 | F114: 13852 | K114: 0 | L114: 111
A115: 12 | B115: 13949 | C115: 24 | D115: 13977 | E115: 24 | F115: 13986 | K115: 0 | L115: 122
A116: 12 | B116: 14082 | C116: 13 | D116: 14095 | E116: 13 | F116: 14103 | K116: 0 | L116: 111
A117: 12 | B117: 14198 | C117: 13 | D117: 14203 | E117: 13 | F117: 14209 | K117: 0 | L117: 111
A118: 12 | B118: 14304 | C118: 13 | D118: 14307 | E118: 13 | F118: 14312 | K118: 0 | L118: 111
A119: 12 | B119: 14409 | C119: 13 | D119: 14412 | E119: 13 | F119: 14417 | K119: 0 | L119: 111
A120: 12 | B120: 14513 | C120: 13 | D120: 14518 | E120: 13 | F120: 14525 | K120: 0 | L120: 111
A121: 12 | B121: 14618 | C121: 13 | D121: 14622 | E121: 13 | F121: 14627 | K121: 0 | L121: 111
A122: 21 | B122: 14724 | C122: 11 | D122: 14732 | E122: 11 | F122: 14737 | K122: 0 | L122: 211
A123: 12 | B123: 14866 | C123: 13 | D123: 14872 | E123: 24 | F123: 14887 | K123: 0 | L123: 112
A124: 12 | B124: 14985 | C124: 13 | D124: 14989 | E124: 13 | F124: 14994 | K124: 0 | L124: 111
A125: 21 | B125: 15094 | C125: 11 | D125: 15104 | E125: 11 | F125: 15110 | K125: 0 | L125: 211
A126: 21 | B126: 15225 | C126: 11 | D126: 15232 | E126: 22 | F126: 15247 | K126: 0 | L126: 212
A127: 12 | B127: 15340 | C127: 13 | D127: 15343 | E127: 13 | F127: 15347 | K127: 0 | L127: 111
A128: 21 | B128: 15446 | C128: 11 | D128: 15455 | E128: 11 | F128: 15460 | K128: 0 | L128: 211
A129: 21 | B129: 15564 | C129: 11 | D129: 15572 | E129: 11 | F129: 15580 | K129: 0 | L129: 211
A130: 12 | B130: 15707 | C130: 13 | D130: 15714 | E130: 24 | F130: 15724 | K130: 0 | L130: 112
A131: 12 | B131: 15827 | C131: 13 | D131: 15835 | E131: 24 | F131: 15851 | K131: 0 | L131: 112
A132: 12 | B132: 15946 | C132: 13 | D132: 15951 | E132: 24 | F132: 15962 | K132: 0 | L132: 112
A133: 12 | B133: 16066 | C133: 13 | D133: 16070 | E133: 13 | F133: 16077 | K133: 0 | L133: 111
A134: 21 | B134: 16176 | C134: 11 | D134: 16193 | E134: 11 | F134: 16201 | K134: 0 | L134: 211
A135: 21 | B135: 16322 | C135: 11 | D135: 16330 | E135: 11 | F135: 16336 | K135: 0 | L135: 211
A136: 12 | B136: 16480 | C136: 24 | D136: 16496 | E136: 24 | F136: 16503 | K136: 0 | L136: 122
A137: 21 | B137: 16605 | C137: 11 | D137: 16618 | E137: 11 | F137: 16626 | K137: 0 | L137: 211
A138: 12 | B138: 16753 | C138: 13 | D138: 16758 | E138: 13 | F138: 16763 | K138: 0 | L138: 111
A139: 12 | B139: 16857 | C139: 13 | D139: 16864 | E139: 13 | F139: 16869 | K139: 0 | L139: 111
A140: 21 | B140: 16961 | C140: 11 | D140: 16970 | E140: 11 | F140: 16974 | K140: 0 | L140: 211
A141: 21 | B141: 17069 | C141: 11 | D141: 17077 | E141: 11 | F141: 17096 | K141: 0 | L141: 211
A142: 12 | B142: 17252 | C142: 13 | D142: 17256 | E142: 24 | F142: 17267 | K142: 0 | L142: 112
A143: 21 | B143: 17363 | C143: 11 | D143: 17373 | E143: 11 | F143: 17382 | K143: 0 | L143: 211
A144: 12 | B144: 17505 | C144: 13 | D144: 17513 | E144: 24 | F144: 17536 | K144: 0 | L144: 112
A145: 12 | B145: 17641 | C145: 13 | D145: 17647 | E145: 13 | F145: 17652 | K145: 0 | L145: 111
A146: 21 | B146: 17747 | C146: 11 | D146: 17755 | E146: 11 | F146: 17761 | K146: 0 | L146: 211
A147: 12 | B147: 17866 | C147: 24 | D147: 17884 | E147: 24 | F147: 17892 | K147: 0 | L147: 122
A148: 12 | B148: 17987 | C148: 13 | D148: 17996 | E148: 24 | F148: 18007 | K148: 0 | L148: 112
A149: 12 | B149: 18106 | C149: 13 | D149: 18115 | E149: 24 | F149: 18130 | K149: 0 | L149: 112
A150: 12 | B150: 18224 | C150: 13 | D150: 18228 | E150: 13 | F150: 18233 | K150: 0 | L150: 111
A151: 21 | B151: 18328 | C151: 11 | D151: 18335 | E151: 11 | F151: 18340 | K151: 0 | L151: 211
A152: 12 | B152: 18445 | C152: 13 | D152: 18455 | E152: 24 | F152: 18465 | K152: 0 | L152: 112
A153: 12 | B153: 18559 | C153: 13 | D153: 18564 | E153: 13 | F153: 18569 | K153: 0 | L153: 111
A154: 12 | B154: 18661 | C154: 13 | D154: 18664 | E154: 13 | F154: 18669 | K154: 0 | L154: 111
A155: 12 | B155: 18765 | C155: 13 | D155: 18770 | E155: 13 | F155: 18781 | K155: 0 | L155: 111
A156: 12 | B156: 18876 | C156: 13 | D156: 18880 | E156: 24 | F156: 18891 | K156: 0 | L156: 112
A157: 21 | B157: 18990 | C157: 11 | D157: 19002 | E157: 11 | F157: 19015 | K157: 0 | L157: 211
A158: 12 | B158: 19113 | C158: 24 | D158: 19124 | E158: 24 | F158: 19131 | K158: 0 | L158: 122
A159: 21 | B159: 19227 | C159: 11 | D159: 19236 | E159: 11 | F159: 19242 | K159: 0 | L159: 211
A160: 12 | B160: 19365 | C160: 24 | D160: 19380 | E160: 13 | F160: 19397 | K160: 0 | L160: 121
A161: 21 | B161: 19493 | C161: 11 | D161: 19503 | E161: 11 | F161: 19514 | K161: 0 | L161: 211
A162: 12 | B162: 19667 | C162: 24 | D162: 19680 | E162: 13 | F162: 19691 | K162: 0 | L162: 121
A163: 12 | B163: 19795 | C163: 13 | D163: 19801 | E163: 13 | F163: 19807 | K163: 0 | L163: 111
A164: 12 | B164: 19909 | C164: 13 | D164: 19914 | E164: 24 | F164: 19927 | K164: 0 | L164: 112
A165: 12 | B165: 20020 | C165: 13 | D165: 20028 | E165: 13 | F165: 20034 | K165: 0 | L165: 111
A166: 12 | B166: 20129 | C166: 13 | D166: 20132 | E166: 24 | F166: 20146 | K166: 0 | L166: 112
A167: 12 | B167: 20253 | C167: 13 | D167: 20257 | E167: 24 | F167: 20269 | K167: 0 | L167: 112
A168: 12 | B168: 20366 | C168: 13 | D168: 20371 | E168: 13 | F168: 20378 | K168: 0 | L168: 111
A169: 12 | B169: 20479 | C169: 13 | D169: 20484 | E169: 24 | F169: 20495 | K169: 0 | L169: 112
A170: 12 | B170: 20588 | C170: 13 | D170: 20594 | E170: 13 | F170: 20599 | K170: 0 | L170: 111
A171: 12 | B171: 20703 | C171: 13 | D171: 20714 | E171: 24 | F171: 20725 | K171: 0 | L171: 112
A172: 12 | B172: 20829 | C172: 13 | D172: 20834 | E172: 13 | F172: 20843 | K172: 0 | L172: 111
A173: 12 | B173: 20939 | C173: 13 | D173: 20944 | E173: 13 | F173: 20948 | K173: 0 | L173: 111
A174: 12 | B174: 21113 | C174: 13 | D174: 21118 | E174: 13 | F174: 21123 | K174: 0 | L174: 111
A175: 21 | B175: 21222 | C175: 11 | D175: 21239 | E175: 11 | F175: 21247 | K175: 0 | L175: 211
A176: 12 | B176: 21349 | C176: 13 | D176: 21355 | E176: 24 | F176: 21373 | K176: 0 | L176: 112
A177: 12 | B177: 21476 | C177: 13 | D177: 21481 | E177: 24 | F177: 21497 | K177: 0 | L177: 112
A178: 12 | B178: 21592 | C178: 13 | D178: 21597 | E178: 13 | F178: 21610 | K178: 0 | L178: 111
A179: 12 | B179: 21719 | C179: 13 | D179: 21724 | E179: 13 | F179: 21730 | K179: 0 | L179: 111
A180: 12 | B180: 21829 | C180: 13 | D180: 21835 | E180: 13 | F180: 21840 | K180: 0 | L180: 111
A181: 12 | B181: 21933 | C181: 13 | D181: 21940 | E181: 13 | F181: 21946 | K181: 0 | L181: 111
A182: 12 | B182: 22059 | C182: 13 | D182: 22064 | E182: 13 | F182: 22071 | K182: 0 | L182: 111
A183: 12 | B183: 22187 | C183: 13 | D183: 22192 | E183: 13 | F183: 22199 | K183: 0 | L183: 111
A184: 12 | B184: 22293 | C184: 13 | D184: 22297 | E184: 24 | F184: 22316 | K184: 0 | L184: 112
A185: 12 | B185: 22413 | C185: 13 | D185: 22421 | E185: 13 | F185: 22427 | K185: 0 | L185: 111
A186: 12 | B186: 22537 | C186: 13 | D186: 22541 | E186: 13 | F186: 22546 | K186: 0 | L186: 111
A187: 21 | B187: 22644 | C187: 11 | D187: 22655 | E187: 11 | F187: 22660 | K187: 0 | L187: 211
A188: 12 | B188: 22760 | C188: 13 | D188: 22765 | E188: 24 | F188: 22780 | K188: 0 | L188: 112
A189: 12 | B189: 22880 | C189: 13 | D189: 22885 | E189: 13 | F189: 22892 | K189: 0 | L189: 111
A190: 12 | B190: 22988 | C190: 13 | D190: 22994 | E190: 13 | F190: 22999 | K190: 0 | L190: 111
A191: 12 | B191: 23101 | C191: 13 | D191: 23106 | E191: 13 | F191: 23110 | K191: 0 | L191: 111
A192: 12 | B192: 23205 | C192: 13 | D192: 23213 | E192: 24 | F192: 23223 | K192: 0 | L192: 112
A193: 12 | B193: 23320 | C193: 13 | D193: 23329 | E193: 13 | F193: 23336 | K193: 0 | L193: 111
A194: 12 | B194: 23469 | C194: 13 | D194: 23474 | E194: 13 | F194: 23478 | K194: 0 | L194: 111
A195: 12 | B195: 23573 | C195: 13 | D195: 23581 | E195: 24 | F195: 23595 | K195: 0 | L195: 112
A196: 12 | B196: 23692 | C196: 13 | D196: 23695 | E196: 13 | F196: 23700 | K196: 0 | L196: 111
A197: 12 | B197: 23802 | C197: 13 | D197: 23808 | E197: 13 | F197: 23827 | K197: 0 | L197: 111
A198: 12 | B198: 23922 | C198: 13 | D198: 23930 | E198: 13 | F198: 23937 | L198: 111

Sheet !MC2092I.sha
A1: Report for:!MC2092I.sha
A2: Date: | B2: <date>
A3: Hen: | B3: <hen> | F3: Correct Sequence | G3: =Start!J2 -> 211 | P3: Total Sequences in Data | Q3: =4994-COUNTBLANK(L7:L5000) -> 191 | V3: Total Sequences in Block Data | W3: =COUNTA(L7:L38) -> 32 | AA3: Total Sequences in Block Data | AB3: =COUNTA(L39:L70) -> 32 | AF3: Total Sequences in Block Data | AG3: =COUNTA(L71:L101) -> 31 | AK3: Total Sequences in Block Data | AL3: =COUNTA(L102:L133) -> 32 | AP3: Total Sequences in Block Data | AQ3: =COUNTA(L134:L165) -> 32 | AU3: Total Sequences in Block Data | AV3: =COUNTA(L166:L197) -> 32
P4: Total Sequences in Summary | Q4: =SUM(O7:O14) -> 191 | V4: Total Sequences in Block Summary | W4: =SUM(U7:U14) -> 32 | AA4: Total Sequences in Block Summary | AB4: =SUM(Z7:Z14) -> 32 | AF4: Total Sequences in Block Summary | AG4: =SUM(AE7:AE14) -> 31 | AK4: Total Sequences in Block Summary | AL4: =SUM(AJ7:AJ14) -> 32 | AP4: Total Sequences in Block Summary | AQ4: =SUM(AO7:AO14) -> 32 | AU4: Total Sequences in Block Summary | AV4: =SUM(AT7:AT14) -> 32
T5: Block 1 | Y5: Block 2 | AD5: Block 3 | AI5: Block 4 | AN5: Block 5 | AS5: Block 6
A6: Sequence Component 1 | B6: Time 1 | C6: Sequence Component 2 | D6: Time 2 | E6: Sequence Component 3 | F6: Time 3 | G6: Sequence Component 4 | H6: Time 4 | I6: Sequence Component 5 | J6: Time 5 | K6: Correct? 0=No 1=Yes | L6: Sequence | N6: Frequency | P6: Relative Frequency | Q6: Variability | T6: Frequency | V6: Relative Frequency | W6: Variability | Y6: Frequency | AA6: Relative Frequency | AB6: Variability | AD6: Frequency | AF6: Relative Frequency | AG6: Variability | AI6: Frequency | AK6: Relative Frequency | AL6: Variability | AN6: Frequency | AP6: Relative Frequency | AQ6: Variability | AS6: Frequency | AU6: Relative Frequency | AV6: Variability
A7: 12 | B7: 14 | C7: 24 | D7: 30 | E7: 13 | F7: 38 | K7: 0 | L7: 121 | N7: 111 | O7: =COUNTIF($L$7:$L$500,N7) -> 91 | P7: =O7/$Q$4 -> 0.4764397906 | Q7: =IF(P7=0,0,(P7*((LOG(P7))/LOG(2)))) -> -0.5096162884 | T7: =N7 -> 111 | U7: =COUNTIF(L7:L38,T7) -> 25 | V7: =U7/(W4-U11) -> 0.8064516129 | W7: =IF(V7=0,0,(V7*((LOG(V7))/LOG(2)))) -> -0.2502742908 | Y7: =N7 -> 111 | Z7: =COUNTIF(L39:L70,Y7) -> 19 | AA7: =Z7/(AB4-Z11) -> 0.6333333333 | AB7: =IF(AA7=0,0,(AA7*((LOG(AA7))/LOG(2)))) -> -0.4173432854 | AD7: =N7 -> 111 | AE7: =COUNTIF(L71:L101,AD7) -> 21 | AF7: =AE7/(AG4-AE11) -> 0.75 | AG7: =IF(AF7=0,0,(AF7*((LOG(AF7))/LOG(2)))) -> -0.3112781245 | AI7: =N7 -> 111 | AJ7: =COUNTIF(L102:L133,AI7) -> 12 | AK7: =AJ7/(AL4-AJ11) -> 0.48 | AL7: =IF(AK7=0,0,(AK7*((LOG(AK7))/LOG(2)))) -> -0.5082689707 | AN7: =N7 -> 111 | AO7: =COUNTIF(L134:L165,AN7) -> 9 | AP7: =AO7/(AQ4-AO11) -> 0.36 | AQ7: =IF(AP7=0,0,(AP7*((LOG(AP7))/LOG(2)))) -> -0.5306152278 | AS7: =N7 -> 111 | AT7: =COUNTIF(L166:L197,AS7) -> 5 | AU7: =AT7/(AV4-AT11) -> 0.2631578947 | AV7: =IF(AU7=0,0,(AU7*((LOG(AU7))/LOG(2)))) -> -0.5068419523
A8: 21 | B8: 137 | C8: 11 | D8: 145 | E8: 11 | F8: 155 | K8: 0 | L8: 211 | N8: 112 | O8: 52 | P8: 0.2722513089 | Q8: -0.511012742 | T8: 112 | U8: =COUNTIF(L7:L38,T8) -> 5 | V8: =U8/(W4-U11) -> 0.1612903226 | W8: =IF(V8=0,0,(V8*((LOG(V8))/LOG(2)))) -> -0.4245593896 | Y8: 112 | Z8: =COUNTIF(L39:L70,Y8) -> 10 | AA8: =Z8/(AB4-Z11) -> 0.3333333333 | AB8: =IF(AA8=0,0,(AA8*((LOG(AA8))/LOG(2)))) -> -0.5283208336 | AD8: 112 | AE8: =COUNTIF(L71:L101,AD8) -> 7 | AF8: =AE8/(AG4-AE11) -> 0.25 | AG8: =IF(AF8=0,0,(AF8*((LOG(AF8))/LOG(2)))) -> -0.5 | AI8: 112 | AJ8: =COUNTIF(L102:L133,AI8) -> 10 | AK8: =AJ8/(AL4-AJ11) -> 0.4 | AL8: =IF(AK8=0,0,(AK8*((LOG(AK8))/LOG(2)))) -> -0.528771238 | AN8: 112 | AO8: =COUNTIF(L134:L165,AN8) -> 10 | AP8: =AO8/(AQ4-AO11) -> 0.4 | AQ8: =IF(AP8=0,0,(AP8*((LOG(AP8))/LOG(2)))) -> -0.528771238 | AS8: 112 | AT8: =COUNTIF(L166:L197,AS8) -> 10 | AU8: =AT8/(AV4-AT11) -> 0.5263157895 | AV8: =IF(AU8=0,0,(AU8*((LOG(AU8))/LOG(2)))) -> -0.487368115
A9: 12 | B9: 314 | C9: 13 | D9: 320 | E9: 24 | F9: 337 | K9: 0 | L9: 112 | N9: 121 | O9: 2 | P9: 0.01047120419 | Q9: -0.06887360029 | T9: 121 | U9: =COUNTIF(L7:L38,T9) -> 1 | V9: =U9/(W4-U11) -> 0.03225806452 | W9: =IF(V9=0,0,(V9*((LOG(V9))/LOG(2)))) -> -0.1598127842 | Y9: 121 | Z9: =COUNTIF(L39:L70,Y9) -> 0 | AA9: =Z9/(AB4-Z11) -> 0 | AB9: =IF(AA9=0,0,(AA9*((LOG(AA9))/LOG(2)))) -> 0 | AD9: 121 | AE9: =COUNTIF(L71:L101,AD9) -> 0 | AF9: =AE9/(AG4-AE11) -> 0 | AG9: =IF(AF9=0,0,(AF9*((LOG(AF9))/LOG(2)))) -> 0 | AI9: 121 | AJ9: =COUNTIF(L102:L133,AI9) -> 0 | AK9: =AJ9/(AL4-AJ11) -> 0 | AL9: =IF(AK9=0,0,(AK9*((LOG(AK9))/LOG(2)))) -> 0 | AN9: 121 | AO9: =COUNTIF(L134:L165,AN9) -> 0 | AP9: =AO9/(AQ4-AO11) -> 0 | AQ9: =IF(AP9=0,0,(AP9*((LOG(AP9))/LOG(2)))) -> 0 | AS9: 121 | AT9: =COUNTIF(L166:L197,AS9) -> 1 | AU9: =AT9/(AV4-AT11) -> 0.05263157895 | AV9: =IF(AU9=0,0,(AU9*((LOG(AU9))/LOG(2)))) -> -0.2235751323
A10: 12 | B10: 433 | C10: 13 | D10: 437 | E10: 13 | F10: 443 | K10: 0 | L10: 111 | N10: 122 | O10: 3 | P10: 0.01570680628 | Q10: -0.09412250776 | T10: 122 | U10: =COUNTIF(L7:L38,T10) -> 0 | V10: =U10/(W4-U11) -> 0 | W10: =IF(V10=0,0,(V10*((LOG(V10))/LOG(2)))) -> 0 | Y10: 122 | Z10: =COUNTIF(L39:L70,Y10) -> 0 | AA10: =Z10/(AB4-Z11) -> 0 | AB10: =IF(AA10=0,0,(AA10*((LOG(AA10))/LOG(2)))) -> 0 | AD10: 122 | AE10: =COUNTIF(L71:L101,AD10) -> 0 | AF10: =AE10/(AG4-AE11) -> 0 | AG10: =IF(AF10=0,0,(AF10*((LOG(AF10))/LOG(2)))) -> 0 | AI10: 122 | AJ10: =COUNTIF(L102:L133,AI10) -> 0 | AK10: =AJ10/(AL4-AJ11) -> 0 | AL10: =IF(AK10=0,0,(AK10*((LOG(AK10))/LOG(2)))) -> 0 | AN10: 122 | AO10: =COUNTIF(L134:L165,AN10) -> 2 | AP10: =AO10/(AQ4-AO11) -> 0.08 | AQ10: =IF(AP10=0,0,(AP10*((LOG(AP10))/LOG(2)))) -> -0.2915084952 | AS10: 122 | AT10: =COUNTIF(L166:L197,AS10) -> 1 | AU10: =AT10/(AV4-AT11) -> 0.05263157895 | AV10: =IF(AU10=0,0,(AU10*((LOG(AU10))/LOG(2)))) -> -0.2235751323
A11: 12 | B11: 539 | C11: 13 | D11: 545 | E11: 13 | F11: 550 | K11: 0 | L11: 111 | N11: 211 | O11: 33 | P11: 0.1727748691 | Q11: -0.4376447402 | T11: 211 | U11: =COUNTIF(L7:L38,T11) -> 1 | Y11: 211 | Z11: =COUNTIF(L39:L70,Y11) -> 2 | AD11: 211 | AE11: =COUNTIF(L71:L101,AD11) -> 3 | AI11: 211 | AJ11: =COUNTIF(L102:L133,AI11) -> 7 | AN11: 211 | AO11: =COUNTIF(L134:L165,AN11) -> 7 | AS11: 211 | AT11: =COUNTIF(L166:L197,AS11) -> 13
A12: 12 | B12: 644 | C12: 13 | D12: 650 | E12: 13 | F12: 654 | K12: 0 | L12: 111 | N12: 212 | O12: 8 | P12: 0.04188481675 | Q12: -0.1917247677 | T12: 212 | U12: =COUNTIF(L7:L38,T12) -> 0 | V12: =U12/(W4-U11) -> 0 | W12: =IF(V12=0,0,(V12*((LOG(V12))/LOG(2)))) -> 0 | Y12: 212 | Z12: =COUNTIF(L39:L70,Y12) -> 1 | AA12: =Z12/(AB4-Z11) -> 0.03333333333 | AB12: =IF(AA12=0,0,(AA12*((LOG(AA12))/LOG(2)))) -> -0.1635630199 | AD12: 212 | AE12: =COUNTIF(L71:L101,AD12) -> 0 | AF12: =AE12/(AG4-AE11) -> 0 | AG12: =IF(AF12=0,0,(AF12*((LOG(AF12))/LOG(2)))) -> 0 | AI12: 212 | AJ12: =COUNTIF(L102:L133,AI12) -> 3 | AK12: =AJ12/(AL4-AJ11) -> 0.12 | AL12: =IF(AK12=0,0,(AK12*((LOG(AK12))/LOG(2)))) -> -0.3670672427 | AN12: 212 | AO12: =COUNTIF(L134:L165,AN12) -> 3 | AP12: =AO12/(AQ4-AO11) -> 0.12 | AQ12: =IF(AP12=0,0,(AP12*((LOG(AP12))/LOG(2)))) -> -0.3670672427 | AS12: 212 | AT12: =COUNTIF(L166:L197,AS12) -> 1 | AU12: =AT12/(AV4-AT11) -> 0.05263157895 | AV12: =IF(AU12=0,0,(AU12*((LOG(AU12))/LOG(2)))) -> -0.2235751323
A13: 12 | B13: 749 | C13: 13 | D13: 752 | E13: 13 | F13: 756 | K13: 0 | L13: 111 | N13: 221 | O13: 0 | P13: 0 | Q13: 0 | T13: 221 | U13: =COUNTIF(L7:L38,T13) -> 0 | V13: =U13/(W4-U11) -> 0 | W13: =IF(V13=0,0,(V13*((LOG(V13))/LOG(2)))) -> 0 | Y13: 221 | Z13: =COUNTIF(L39:L70,Y13) -> 0 | AA13: =Z13/(AB4-Z11) -> 0 | AB13: =IF(AA13=0,0,(AA13*((LOG(AA13))/LOG(2)))) -> 0 | AD13: 221 | AE13: =COUNTIF(L71:L101,AD13) -> 0 | AF13: =AE13/(AG4-AE11) -> 0 | AG13: =IF(AF13=0,0,(AF13*((LOG(AF13))/LOG(2)))) -> 0 | AI13: 221 | AJ13: =COUNTIF(L102:L133,AI13) -> 0 | AK13: =AJ13/(AL4-AJ11) -> 0 | AL13: =IF(AK13=0,0,(AK13*((LOG(AK13))/LOG(2)))) -> 0 | AN13: 221 | AO13: =COUNTIF(L134:L165,AN13) -> 0 | AP13: =AO13/(AQ4-AO11) -> 0 | AQ13: =IF(AP13=0,0,(AP13*((LOG(AP13))/LOG(2)))) -> 0 | AS13: 221 | AT13: =COUNTIF(L166:L197,AS13) -> 0 | AU13: =AT13/(AV4-AT11) -> 0 | AV13: =IF(AU13=0,0,(AU13*((LOG(AU13))/LOG(2)))) -> 0
A14: 12 | B14: 850 | C14: 13 | D14: 853 | E14: 13 | F14: 860 | K14: 0 | L14: 111 | N14: 222 | O14: 2 | P14: 0.01047120419 | Q14: -0.06887360029 | T14: 222 | U14: =COUNTIF(L7:L38,T14) -> 0 | V14: =U14/(W4-U11) -> 0 | W14: =IF(V14=0,0,(V14*((LOG(V14))/LOG(2)))) -> 0 | Y14: 222 | Z14: =COUNTIF(L39:L70,Y14) -> 0 | AA14: =Z14/(AB4-Z11) -> 0 | AB14: =IF(AA14=0,0,(AA14*((LOG(AA14))/LOG(2)))) -> 0 | AD14: 222 | AE14: =COUNTIF(L71:L101,AD14) -> 0 | AF14: =AE14/(AG4-AE11) -> 0 | AG14: =IF(AF14=0,0,(AF14*((LOG(AF14))/LOG(2)))) -> 0 | AI14: 222 | AJ14: =COUNTIF(L102:L133,AI14) -> 0 | AK14: =AJ14/(AL4-AJ11) -> 0 | AL14: =IF(AK14=0,0,(AK14*((LOG(AK14))/LOG(2)))) -> 0 | AN14: 222 | AO14: =COUNTIF(L134:L165,AN14) -> 1 | AP14: =AO14/(AQ4-AO11) -> 0.04 | AQ14: =IF(AP14=0,0,(AP14*((LOG(AP14))/LOG(2)))) -> -0.1857542476 | AS14: 222 | AT14: =COUNTIF(L166:L197,AS14) -> 1 | AU14: =AT14/(AV4-AT11) -> 0.05263157895 | AV14: =IF(AU14=0,0,(AU14*((LOG(AU14))/LOG(2)))) -> -0.2235751323
A15: 12 | B15: 957 | C15: 13 | D15: 966 | E15: 13 | F15: 974 | K15: 0 | L15: 111 | P15: =SUM(P7:P14) -> 1 | Q15: =-SUM(Q7:Q14) -> 1.881868247 | V15: =SUM(V7:V14) -> 1 | W15: =-SUM(W7:W14) -> 0.8346464646 | AA15: =SUM(AA7:AA14) -> 1 | AB15: =-SUM(AB7:AB14) -> 1.109227139 | AF15: =SUM(AF7:AF14) -> 1 | AG15: =-SUM(AG7:AG14) -> 0.8112781245 | AK15: =SUM(AK7:AK14) -> 1 | AL15: =-SUM(AL7:AL14) -> 1.404107451 | AP15: =SUM(AP7:AP14) -> 1 | AQ15: =-SUM(AQ7:AQ14) -> 1.903716451 | AU15: =SUM(AU7:AU14) -> 1 | AV15: =-SUM(AV7:AV14) -> 1.888510596
A16: 12 | B16: 1078 | C16: 13 | D16: 1087 | E16: 24 | F16: 1099 | K16: 0 | L16: 112 | P16: U= | Q16: =Q15/(LOG(Q4)/LOG(2)) -> 0.2483518208 | V16: U1= | W16: =W15/(LOG(W4)/LOG(2)) -> 0.1669292929 | AA16: U2= | AB16: =AB15/(LOG(AB4)/LOG(2)) -> 0.2218454278 | AF16: U3= | AG16: =AG15/(LOG(AG4)/LOG(2)) -> 0.1637557484 | AK16: U4= | AL16: =AL15/(LOG(AL4)/LOG(2)) -> 0.2808214903 | AP16: U5= | AQ16: =AQ15/(LOG(AQ4)/LOG(2)) -> 0.3807432902 | AU16: U6= | AV16: =AV15/(LOG(AV4)/LOG(2)) -> 0.3777021193
A17: 12 | B17: 1195 | C17: 13 | D17: 1199 | E17: 13 | F17: 1207 | K17: 0 | L17: 111
A18: 12 | B18: 1315 | C18: 13 | D18: 1327 | E18: 13 | F18: 1334 | K18: 0 | L18: 111
A19: 12 | B19: 1427 | C19: 13 | D19: 1431 | E19: 13 | F19: 1439 | K19: 0 | L19: 111 | N19: Total Target Seq
A20: 12 | B20: 1534 | C20: 13 | D20: 1541 | E20: 13 | F20: 1545 | K20: 0 | L20: 111 | N20: =COUNTIF(L7:L197,G3) -> 33 | P20: 32 | Q20: 32 | R20: 31 | S20: 32 | T20: 32 | U20: 32
A21: 12 | B21: 1649 | C21: 13 | D21: 1672 | E21: 13 | F21: 1679 | K21: 0 | L21: 111 | P21: % of reinforcement given in 6 equal intervals based on number of trials
A22: 12 | B22: 1775 | C22: 13 | D22: 1780 | E22: 13 | F22: 1787 | K22: 0 | L22: 111 | P22: %_1 | Q22: %_2 | R22: %_3 | S22: %_4 | T22: %_5 | U22: %_6
A23: 12 | B23: 1885 | C23: 13 | D23: 1889 | E23: 13 | F23: 1894 | K23: 0 | L23: 111 | O23: target sequence | P23: =$G$3 -> 211 | Q23: 211 | R23: 211 | S23: 211 | T23: 211 | U23: 211
A24: 12 | B24: 1986 | C24: 13 | D24: 1990 | E24: 13 | F24: 1995 | K24: 0 | L24: 111 | O24: total reinforcement | P24: =U11 -> 1 | Q24: =Z11 -> 2 | R24: =AE11 -> 3 | S24: =AJ11 -> 7 | T24: =AO11 -> 7 | U24: =AT11 -> 13
A25: 12 | B25: 2109 | C25: 13 | D25: 2114 | E25: 13 | F25: 2120 | K25: 0 | L25: 111 | O25: % target
A26: 12 | B26: 2224 | C26: 13 | D26: 2230 | E26: 13 | F26: 2237 | K26: 0 | L26: 111 | O26: CCRF
A27: 12 | B27: 2345 | C27: 13 | D27: 2355 | E27: 13 | F27: 2362 | K27: 0 | L27: 111 | O27: % CCRf
A28: 12 | B28: 2461 | C28: 13 | D28: 2472 | E28: 24 | F28: 2485 | K28: 0 | L28: 112 | O28: average response rate | P28: =F38/P20 -> 112.1875 | Q28: =(F70-F38)/Q20 -> 126.5625 | R28: =(F101-F70)/R20 -> 121.0967742 | S28: =(F133-F101)/S20 -> 130.78125 | T28: =(F165-F133)/T20 -> 125.4375 | U28: =(F197-F165)/U20 -> 130.90625
A29: 12 | B29: 2579 | C29: 13 | D29: 2585 | E29: 13 | F29: 2590 | K29: 0 | L29: 111
A30: 12 | B30: 2695 | C30: 13 | D30: 2701 | E30: 24 | F30: 2718 | K30: 0 | L30: 112
A31: 12 | B31: 2817 | C31: 13 | D31: 2821 | E31: 13 | F31: 2826 | K31: 0 | L31: 111
A32: 12 | B32: 2925 | C32: 13 | D32: 2932 | E32: 24 | F32: 2945 | K32: 0 | L32: 112
A33: 12 | B33: 3042 | C33: 13 | D33: 3049 | E33: 13 | F33: 3054 | K33: 0 | L33: 111
A34: 12 | B34: 3154 | C34: 13 | D34: 3159 | E34: 13 | F34: 3163 | K34: 0 | L34: 111
A35: 12 | B35: 3258 | C35: 13 | D35: 3262 | E35: 13 | F35: 3266 | K35: 0 | L35: 111
A36: 12 | B36: 3361 | C36: 13 | D36: 3366 | E36: 13 | F36: 3371 | K36: 0 | L36: 111
A37: 12 | B37: 3465 | C37: 13 | D37: 3469 | E37: 13 | F37: 3474 | K37: 0 | L37: 111
A38: 12 | B38: 3574 | C38: 13 | D38: 3583 | E38: 13 | F38: 3590 | K38: 0 | L38: 111
A39: 12 | B39: 3687 | C39: 13 | D39: 3692 | E39: 13 | F39: 3698 | K39: 0 | L39: 111
A40: 12 | B40: 3803 | C40: 13 | D40: 3808 | E40: 13 | F40: 3818 | K40: 0 | L40: 111
A41: 12 | B41: 3918 | C41: 13 | D41: 3927 | E41: 24 | F41: 3940 | K41: 0 | L41: 112
A42: 12 | B42: 4049 | C42: 13 | D42: 4054 | E42: 13 | F42: 4062 | K42: 0 | L42: 111
A43: 12 | B43: 4169 | C43: 13 | D43: 4173 | E43: 24 | F43: 4186 | K43: 0 | L43: 112
A44: 12 | B44: 4299 | C44: 13 | D44: 4303 | E44: 13 | F44: 4309 | K44: 0 | L44: 111
A45: 12 | B45: 4407 | C45: 13 | D45: 4416 | E45: 13 | F45: 4422 | K45: 0 | L45: 111
A46: 12 | B46: 4530 | C46: 13 | D46: 4536 | E46: 24 | F46: 4549 | K46: 0 | L46: 112
A47: 12 | B47: 4672 | C47: 13 | D47: 4676 | E47: 13 | F47: 4682 | K47: 0 | L47: 111
A48: 12 | B48: 4776 | C48: 13 | D48: 4780 | E48: 13 | F48: 4785 | K48: 0 | L48: 111
A49: 21 | B49: 4880 | C49: 11 | D49: 4891 | E49: 11 | F49: 4898 | K49: 0 | L49: 211
A50: 12 | B50: 5137 | C50: 13 | D50: 5143 | E50: 13 | F50: 5148 | K50: 0 | L50: 111
A51: 12 | B51: 5253 | C51: 13 | D51: 5257 | E51: 24 | F51: 5270 | K51: 0 | L51: 112
A52: 12 | B52: 5366 | C52: 13 | D52: 5371 | E52: 13 | F52: 5376 | K52: 0 | L52: 111
A53: 12 | B53: 5568 | C53: 13 | D53: 5586 | E53: 13 | F53: 5591 | K53: 0 | L53: 111
A54: 12 | B54: 5718 | C54: 13 | D54: 5724 | E54: 24 | F54: 5746 | K54: 0 | L54: 112
A55: 12 | B55: 5849 | C55: 13 | D55: 5854 | E55: 13 | F55: 5861 | K55: 0 | L55: 111
A56: 12 | B56: 5956 | C56: 13 | D56: 5960 | E56: 13 | F56: 5965 | K56: 0 | L56: 111
A57: 12 | B57: 6069 | C57: 13 | D57: 6073 | E57: 13 | F57: 6078 | K57: 0 | L57: 111
A58: 21 | B58: 6175 | C58: 11 | D58: 6184 | E58: 22 | F58: 6198 | K58: 0 | L58: 212
A59: 12 | B59: 6302 | C59: 13 | D59: 6308 | E59: 13 | F59: 6312 | K59: 0 | L59: 111
A60: 12 | B60: 6409 | C60: 13 | D60: 6414 | E60: 13 | F60: 6421 | K60: 0 | L60: 111
A61: 21 | B61: 6517 | C61: 11 | D61: 6526 | E61: 11 | F61: 6531 | K61: 0 | L61: 211
A62: 12 | B62: 6666 | C62: 13 | D62: 6671 | E62: 13 | F62: 6676 | K62: 0 | L62: 111
A63: 12 | B63: 6775 | C63: 13 | D63: 6784 | E63: 24 | F63: 6796 | K63: 0 | L63: 112
A64: 12 | B64: 6899 | C64: 13 | D64: 6904 | E64: 24 | F64: 6914 | K64: 0 | L64: 112
A65: 12 | B65: 7012 | C65: 13 | D65: 7027 | E65: 24 | F65: 7043 | K65: 0 | L65: 112
A66: 12 | B66: 7140 | C66: 13 | D66: 7145 | E66: 24 | F66: 7158 | K66: 0 | L66: 112
A67: 12 | B67: 7270 | C67: 13 | D67: 7298 | E67: 13 | F67: 7303 | K67: 0 | L67: 111
A68: 12 | B68: 7406 | C68: 13 | D68: 7411 | E68: 24 | F68: 7423 | K68: 0 | L68: 112
A69: 12 | B69: 7522 | C69: 13 | D69: 7532 | E69: 13 | F69: 7536 | K69: 0 | L69: 111
A70: 12 | B70: 7629 | C70: 13 | D70: 7632 | E70: 13 | F70: 7640 | K70: 0 | L70: 111
A71: 12 | B71: 7734 | C71: 13 | D71: 7744 | E71: 24 | F71: 7756 | K71: 0 | L71: 112
A72: 12 | B72: 7852 | C72: 13 | D72: 7856 | E72: 13 | F72: 7862 | K72: 0 | L72: 111
A73: 12 | B73: 8002 | C73: 13 | D73: 8028 | E73: 13 | F73: 8036 | K73: 0 | L73: 111
A74: 12 | B74: 8131 | C74: 13 | D74: 8135 | E74: 13 | F74: 8139 | K74: 0 | L74: 111
A75: 12 | B75: 8233 | C75: 13 | D75: 8236 | E75: 13 | F75: 8242 | K75: 0 | L75: 111
A76: 12 | B76: 8336 | C76: 13 | D76: 8347 | E76: 13 | F76: 8353 | K76: 0 | L76: 111
A77: 12 | B77: 8447 | C77: 13 | D77: 8451 | E77: 13 | F77: 8455 | K77: 0 | L77: 111
A78: 12 | B78: 8564 | C78: 13 | D78: 8578 | E78: 24 | F78: 8594 | K78: 0 | L78: 112
A79: 12 | B79: 8693 | C79: 13 | D79: 8700 | E79: 13 | F79: 8705 | K79: 0 | L79: 111
A80: 21 | B80: 8799 | C80: 11 | D80: 8808 | E80: 11 | F80: 8812 | K80: 0 | L80: 211
A81: 12 | B81: 8994 | C81: 13 | D81: 8999 | E81: 24 | F81: 9014 | K81: 0 | L81: 112
A82: 21 | B82: 9111 | C82: 11 | D82: 9121 | E82: 11 | F82: 9133 | K82: 0 | L82: 211
A83: 12 | B83: 9249 | C83: 13 | D83: 9258 | E83: 13 | F83: 9264 | K83: 0 | L83: 111
A84: 12 | B84: 9369 | C84: 13 | D84: 9373 | E84: 13 | F84: 9377 | K84: 0 | L84: 111
A85: 12 | B85: 9473 | C85: 13 | D85: 9484 | E85: 13 | F85: 9493 | K85: 0 | L85: 111
A86: 12 | B86: 9588 | C86: 13 | D86: 9593 | E86: 24 | F86: 9605 | K86: 0 | L86: 112
A87: 12 | B87: 9726 | C87: 13 | D87: 9731 | E87: 13 | F87: 9733 | K87: 0 | L87: 111
A88: 12 | B88: 9826 | C88: 13 | D88: 9828 | E88: 13 | F88: 9832 | K88: 0 | L88: 111
A89: 12 | B89: 9928 | C89: 13 | D89: 9934 | E89: 13 | F89: 9941 | K89: 0 | L89: 111
A90: 12 | B90: 10039 | C90: 13 | D90: 10048 | E90: 24 | F90: 10067 | K90: 0 | L90: 112
A91: 12 | B91: 10165 | C91: 13 | D91: 10175 | E91: 13 | F91: 10181 | K91: 0 | L91: 111
A92: 12 | B92: 10278 | C92: 13 | D92: 10284 | E92: 13 | F92: 10290 | K92: 0 | L92: 111
A93: 21 | B93: 10384 | C93: 11 | D93: 10392 | E93: 11 | F93: 10397 | K93: 0 | L93: 211
A94: 12 | B94: 10578 | C94: 13 | D94: 10584 | E94: 13 | F94: 10590 | K94: 0 | L94: 111
A95: 12 | B95: 10691 | C95: 13 | D95: 10698 | E95: 24 | F95: 10709 | K95: 0 | L95: 112
A96: 12 | B96: 10813 | C96: 13 | D96: 10818 | E96: 13 | F96: 10832 | K96: 0 | L96: 111
A97: 12 | B97: 10934 | C97: 13 | D97: 10938 | E97: 13 | F97: 10945 | K97: 0 | L97: 111
A98: 12 | B98: 11054 | C98: 13 | D98: 11059 | E98: 13 | F98: 11065 | K98: 0 | L98: 111
A99: 12 | B99: 11163 | C99: 13 | D99: 11168 | E99: 24 | F99: 11179 | K99: 0 | L99: 112
A100: 12 | B100: 11273 | C100: 13 | D100: 11275 | E100: 13 | F100: 11280 | K100: 0 | L100: 111
A101: 12 | B101: 11381 | C101: 13 | D101: 11387 | E101: 13 | F101: 11394 | K101: 0 | L101: 111
A102: 12 | B102: 11499 | C102: 13 | D102: 11506 | E102: 13 | F102: 11512 | K102: 0 | L102: 111
A103: 12 | B103: 11612 | C103: 13 | D103: 11618 | E103: 13 | F103: 11673 | K103: 0 | L103: 111
A104: 12 | B104: 11829 | C104: 13 | D104: 11835 | E104: 24 | F104: 11846 | K104: 0 | L104: 112
A105: 21 | B105: 11941 | C105: 11 | D105: 11950 | E105: 11 | F105: 11955 | K105: 0 | L105: 211
A106: 12 | B106: 12147 | C106: 13 | D106: 12153 | E106: 13 | F106: 12158 | K106: 0 | L106: 111
A107: 21 | B107: 12251 | C107: 11 | D107: 12260 | E107: 11 | F107: 12269 | K107: 0 | L107: 211
A108: 21 | B108: 12391 | C108: 11 | D108: 12400 | E108: 22 | F108: 12418 | K108: 0 | L108: 212
A109: 12 | B109: 12519 | C109: 13 | D109: 12530 | E109: 24 | F109: 12542 | K109: 0 | L109: 112
A110: 12 | B110: 12637 | C110: 13 | D110: 12646 | E110: 13 | F110: 12653 | K110: 0 | L110: 111
A111: 21 | B111: 12750 | C111: 11 | D111: 12758 | E111: 11 | F111: 12764 | K111: 0 | L111: 211
A112: 12 | B112: 12914 | C112: 13 | D112: 12939 | E112: 24 | F112: 12950 | K112: 0 | L112: 112
A113: 12 | B113: 13048 | C113: 13 | D113: 13053 | E113: 13 | F113: 13066 | K113: 0 | L113: 111
A114: 21 | B114: 13157 | C114: 11 | D114: 13168 | E114: 11 | F114: 13173 | K114: 0 | L114: 211
A115: 12 | B115: 13350 | C115: 13 | D115: 13361 | E115: 13 | F115: 13371 | K115: 0 | L115: 111
A116: 12 | B116: 13466 | C116: 13 | D116: 13471 | E116: 13 | F116: 13476 | K116: 0 | L116: 111
A117: 12 | B117: 13577 | C117: 13 | D117: 13585 | E117: 24 | F117: 13596 | K117: 0 | L117: 112
A118: 12 | B118: 13698 | C118: 13 | D118: 13703 | E118: 24 | F118: 13715 | K118: 0 | L118: 112
A119: 12 | B119: 13816 | C119: 13 | D119: 13826 | E119: 24 | F119: 13837 | K119: 0 | L119: 112
A120: 21 | B120: 13934 | C120: 11 | D120: 13942 | E120: 11 | F120: 13949 | K120: 0 | L120: 211
A121: 21 | B121: 14088 | C121: 11 | D121: 14099 | E121: 22 | F121: 14115 | K121: 0 | L121: 212
A122: 12 | B122: 14210 | C122: 13 | D122: 14217 | E122: 13 | F122: 14223 | K122: 0 | L122: 111
A123: 12 | B123: 14321 | C123: 13 | D123: 14330 | E123: 13 | F123: 14335 | K123: 0 | L123: 111
A124: 12 | B124: 14429 | C124: 13 | D124: 14433 | E124: 24 | F124: 14455 | K124: 0 | L124: 112
A125: 12 | B125: 14599 | C125: 13 | D125: 14605 | E125: 13 | F125: 14612 | K125: 0 | L125: 111
A126: 21 | B126: 14708 | C126: 11 | D126: 14716 | E126: 11 | F126: 14720 | K126: 0 | L126: 211
A127: 12 | B127: 14849 | C127: 13 | D127: 14863 | E127: 24 | F127: 14873 | K127: 0 | L127: 112
A128: 12 | B128: 14968 | C128: 13 | D128: 14974 | E128: 24 | F128: 14985 | K128: 0 | L128: 112
A129: 12 | B129: 15080 | C129: 13 | D129: 15087 | E129: 24 | F129: 15102 | K129: 0 | L129: 112
A130: 12 | B130: 15206 | C130: 13 | D130: 15212 | E130: 13 | F130: 15217 | K130: 0 | L130: 111
A131: 12 | B131: 15314 | C131: 13 | D131: 15318 | E131: 13 | F131: 15330 | K131: 0 | L131: 111
A132: 21 | B132: 15430 | C132: 11 | D132: 15437 | E132: 11 | F132: 15444 | K132: 0 | L132: 211
A133: 21 | B133: 15541 | C133: 11 | D133: 15560 | E133: 22 | F133: 15579 | K133: 0 | L133: 212
A134: 12 | B134: 15673 | C134: 13 | D134: 15677 | E134: 24 | F134: 15691 | K134: 0 | L134: 112
A135: 12 | B135: 15788 | C135: 13 | D135: 15792 | E135: 13 | F135: 15797 | K135: 0 | L135: 111
A136: 21 | B136: 15892 | C136: 11 | D136: 15901 | E136: 11 | F136: 15922 | K136: 0 | L136: 211
A137: 21 | B137: 16048 | C137: 11 | D137: 16057 | E137: 11 | F137: 16069 | K137: 0 | L137: 211
A138: 21 | B138: 16251 | C138: 11 | D138: 16260 | E138: 11 | F138: 16266 | K138: 0 | L138: 211
A139: 21 | B139: 16368 | C139: 11 | D139: 16376 | E139: 22 | F139: 16391 | K139: 0 | L139: 212
A140: 12 | B140: 16491 | C140: 24 | D140: 16503 | E140: 24 | F140: 16511 | K140: 0 | L140: 122
A141: 21 | B141: 16606 | C141: 11 | D141: 16614 | E141: 11 | F141: 16659 | K141: 0 | L141: 211
A142: 21 | B142: 16773 | C142: 22 | D142: 16826 | E142: 24 | F142: 16834 | K142: 0 | L142: 222
A143: 12 | B143: 16936 | C143: 13 | D143: 16940 | E143: 24 | F143: 16951 | K143: 0 | L143: 112
A144: 12 | B144: 17045 | C144: 13 | D144: 17053 | E144: 13 | F144: 17059 | K144: 0 | L144: 111
A145: 12 | B145: 17156 | C145: 13 | D145: 17160 | E145: 24 | F145: 17171 | K145: 0 | L145: 112
A146: 12 | B146: 17267 | C146: 13 | D146: 17276 | E146: 24 | F146: 17286 | K146: 0 | L146: 112
A147: 12 | B147: 17387 | C147: 13 | D147: 17397 | E147: 13 | F147: 17422 | K147: 0 | L147: 111
A148: 21 | B148: 17516 | C148: 11 | D148: 17526 | E148: 11 | F148: 17535 | K148: 0 | L148: 211
A149: 12 | B149: 17655 | C149: 24 | D149: 17680 | E149: 24 | F149: 17687 | K149: 0 | L149: 122
A150: 12 | B150: 17784 | C150: 13 | D150: 17791 | E150: 13 | F150: 17797 | K150: 0 | L150: 111
A151: 21 | B151: 17893 | C151: 11 | D151: 17901 | E151: 11 | F151: 17907 | K151: 0 | L151: 211
A152: 12 | B152: 18051 | C152: 13 | D152: 18061 | E152: 24 | F152: 18071 | K152: 0 | L152: 112
A153: 12 | B153: 18167 | C153: 13 | D153: 18171 | E153: 13 | F153: 18176 | K153: 0 | L153: 111
A154: 21 | B154: 18268 | C154: 11 | D154: 18278 | E154: 11 | F154: 18283 | K154: 0 | L154: 211
A155: 21 | B155: 18384 | C155: 11 | D155: 18403 | E155: 22 | F155: 18417 | K155: 0 | L155: 212
A156: 21 | B156: 18514 | C156: 11 | D156: 18535 | E156: 22 | F156: 18548 | K156: 0 | L156: 212
A157: 12 | B157: 18644 | C157: 13 | D157: 18649 | E157: 13 | F157: 18654 | K157: 0 | L157: 111
A158: 12 | B158: 18757 | C158: 13 | D158: 18762 | E158: 13 | F158: 18789 | K158: 0 | L158: 111
A159: 12 | B159: 18889 | C159: 13 | D159: 18894 | E159: 24 | F159: 18905 | K159: 0 | L159: 112
A160: 12 | B160: 19002 | C160: 13 | D160: 19006 | E160: 24 | F160: 19019 | K160: 0 | L160: 112
A161: 12 | B161: 19117 | C161: 13 | D161: 19123 | E161: 24 | F161: 19133 | K161: 0 | L161: 112
A162: 12 | B162: 19233 | C162: 13 | D162: 19241 | E162: 24 | F162: 19251 | K162: 0 | L162: 112
A163: 12 | B163: 19350 | C163: 13 | D163: 19356 | E163: 13 | F163: 19364 | K163: 0 | L163: 111
A164: 12 | B164: 19460 | C164: 13 | D164: 19469 | E164: 24 | F164: 19485 | K164: 0 | L164: 112
A165: 12 | B165: 19580 | C165: 13 | D165: 19588 | E165: 13 | F165: 19593 | K165: 0 | L165: 111
A166: 21 | B166: 19686 | C166: 11 | D166: 19696 | E166: 11 | F166: 19700 | K166: 0 | L166: 211
A167: 12 | B167: 19837 | C167: 13 | D167: 19847 | E167: 24 | F167: 19858 | K167: 0 | L167: 112
A168: 12 | B168: 19961 | C168: 13 | D168: 19971 | E168: 24 | F168: 19981 | K168: 0 | L168: 112
A169: 21 | B169: 20080 | C169: 11 | D169: 20089 | E169: 11 | F169: 20094 | K169: 0 | L169: 211
A170: 12 | B170: 20219 | C170: 24 | D170: 20233 | E170: 13 | F170: 20256 | K170: 0 | L170: 121
A171: 21 | B171: 20349 | C171: 11 | D171: 20358 | E171: 11 | F171: 20377 | K171: 0 | L171: 211
A172: 21 | B172: 20469 | C172: 22 | D172: 20497 | E172: 24 | F172: 20504 | K172: 0 | L172: 222
A173: 12 | B173: 20608 | C173: 13 | D173: 20613 | E173: 24 | F173: 20623 | K173: 0 | L173: 112
A174: 12 | B174: 20721 | C174: 13 | D174: 20727 | E174: 13 | F174: 20734 | K174: 0 | L174: 111
A175: 12 | B175: 20833 | C175: 13 | D175: 20838 | E175: 24 | F175: 20850 | K175: 0 | L175: 112
A176: 21 | B176: 20942 | C176: 11 | D176: 20952 | E176: 11 | F176: 20982 | K176: 0 | L176: 211
A177: 21 | B177: 21109 | C177: 11 | D177: 21117 | E177: 11 | F177: 21130 | K177: 0 | L177: 211
A178: 12 | B178: 21301 | C178: 24 | D178: 21320 | E178: 24 | F178: 21328 | K178: 0 | L178: 122
A179: 21 | B179: 21425 | C179: 11 | D179: 21433 | E179: 11 | F179: 21443 | K179: 0 | L179: 211
A180: 12 | B180: 21576 | C180: 13 | D180: 21590 | E180: 24 | F180: 21601 | K180: 0 | L180: 112
A181: 12 | B181: 21697 | C181: 13 | D181: 21701 | E181: 24 | F181: 21712 | K181: 0 | L181: 112
A182: 12 | B182: 21808 | C182: 13 | D182: 21813 | E182: 13 | F182: 21818 | K182: 0 | L182: 111
A183: 12 | B183: 21933 | C183: 13 | D183: 21939 | E183: 24 | F183: 21951 | K183: 0 | L183: 112
A184: 12 | B184: 22048 | C184: 13 | D184: 22052 | E184: 13 | F184: 22075 | K184: 0 | L184: 111
A185: 12 | B185: 22186 | C185: 13 | D185: 22199 | E185: 24 | F185: 22211 | K185: 0 | L185: 112
A186: 21 | B186: 22305 | C186: 11 | D186: 22315 | E186: 11 | F186: 22327 | K186: 0 | L186: 211
A187: 21 | B187: 22444 | C187: 11 | D187: 22452 | E187: 11 | F187: 22463 | K187: 0 | L187: 211
A188: 12 | B188: 22636 | C188: 13 | D188: 22657 | E188: 24 | F188: 22669 | K188: 0 | L188: 112
A189: 21 | B189: 22761 | C189: 11 | D189: 22776 | E189: 11 | F189: 22781 | K189: 0 | L189: 211
A190: 21 | B190: 22894 | C190: 11 | D190: 22931 | E190: 11 | F190: 22945 | K190: 0 | L190: 211
A191: 12 | B191: 23063 | C191: 13 | D191: 23072 | E191: 13 | F191: 23080 | K191: 0 | L191: 111
A192: 21 | B192: 23178 | C192: 11 | D192: 23192 | E192: 22 | F192: 23203 | K192: 0 | L192: 212
A193: 12 | B193: 23308 | C193: 13 | D193: 23315 | E193: 13 | F193: 23326 | K193: 0 | L193: 111
A194: 21 | B194: 23424 | C194: 11 | D194: 23434 | E194: 11 | F194: 23439 | K194: 0 | L194: 211
A195: 12 | B195: 23531 | C195: 13 | D195: 23537 | E195: 24 | F195: 23553 | K195: 0 | L195: 112
A196: 21 | B196: 23648 | C196: 11 | D196: 23658 | E196: 11 | F196: 23663 | K196: 0 | L196: 211
A197: 21 | B197: 23764 | C197: 11 | D197: 23775 | E197: 11 | F197: 23782 | K197: 0 | L197: 211

Sheet !MC2194I.sha
A1: Report for:!MC2194I.sha
A2: Date: | B2: <date>
A3: Hen: | B3: <hen> | F3: Correct Sequence | G3: =Start!J2 -> 211 | P3: Total Sequences in Data | Q3: =4994-COUNTBLANK(L7:L5000) -> 173 | V3: Total Sequences in Block Data | W3: =COUNTA(L7:L35) -> 29 | AA3: Total Sequences in Block Data | AB3: =COUNTA(L36:L64) -> 29 | AF3: Total Sequences in Block Data | AG3: =COUNTA(L65:L92) -> 28 | AK3: Total Sequences in Block Data | AL3: =COUNTA(L93:L121) -> 29 | AP3: Total Sequences in Block Data | AQ3: =COUNTA(L122:L150) -> 29 | AU3: Total Sequences in Block Data | AV3: =COUNTA(L151:L179) -> 29
P4: Total Sequences in Summary | Q4: =SUM(O7:O14) -> 173 | V4: Total Sequences in Block Summary | W4: =SUM(U7:U14) -> 29 | AA4: Total Sequences in Block Summary | AB4: =SUM(Z7:Z14) -> 29 | AF4: Total Sequences in Block Summary | AG4: =SUM(AE7:AE14) -> 28 | AK4: Total Sequences in Block Summary | AL4: =SUM(AJ7:AJ14) -> 29 | AP4: Total Sequences in Block Summary | AQ4: =SUM(AO7:AO14) -> 29 | AU4: Total Sequences in Block Summary | AV4: =SUM(AT7:AT14) -> 29
T5: Block 1 | Y5: Block 2 | AD5: Block 3 | AI5: Block 4 | AN5: Block 5 | AS5: Block 6
A6: Sequence Component 1 | B6: Time 1 | C6: Sequence Component 2 | D6: Time 2 | E6: Sequence Component 3 | F6: Time 3 | G6: Sequence Component 4 | H6: Time 4 | I6: Sequence Component 5 | J6: Time 5 | K6: Correct? 0=No 1=Yes | L6: Sequence | N6: Frequency | P6: Relative Frequency | Q6: Variability | T6: Frequency | V6: Relative Frequency | W6: Variability | Y6: Frequency | AA6: Relative Frequency | AB6: Variability | AD6: Frequency | AF6: Relative Frequency | AG6: Variability | AI6: Frequency | AK6: Relative Frequency | AL6: Variability | AN6: Frequency | AP6: Relative Frequency | AQ6: Variability | AS6: Frequency | AU6: Relative Frequency | AV6: Variability
A7: 12 | B7: 12 | C7: 13 | D7: 20 | E7: 13 | F7: 24 | K7: 0 | L7: 111 | N7: 111 | O7: =COUNTIF($L$7:$L$500,N7) -> 69 | P7: =O7/$Q$4 -> 0.3988439306 | Q7: =IF(P7=0,0,(P7*((LOG(P7))/LOG(2)))) -> -0.5289084404 | T7: =N7 -> 111 | U7: =COUNTIF(L7:L35,T7) -> 19 | V7: =U7/(W4-U11) -> 0.7307692308 | W7: =IF(V7=0,0,(V7*((LOG(V7))/LOG(2)))) -> -0.3306819957 | Y7: =N7 -> 111 | Z7: =COUNTIF(L36:L64,Y7) -> 9 | AA7: =Z7/(AB4-Z11) -> 0.4090909091 | AB7: =IF(AA7=0,0,(AA7*((LOG(AA7))/LOG(2)))) -> -0.5275254343 | AD7: =N7 -> 111 | AE7: =COUNTIF(L65:L92,AD7) -> 7 | AF7: =AE7/(AG4-AE11) -> 0.3888888889 | AG7: =IF(AF7=0,0,(AF7*((LOG(AF7))/LOG(2)))) -> -0.5298883642 | AI7: =N7 -> 111 | AJ7: =COUNTIF(L93:L121,AI7) -> 7 | AK7: =AJ7/(AL4-AJ11) -> 0.3333333333 | AL7: =IF(AK7=0,0,(AK7*((LOG(AK7))/LOG(2)))) -> -0.5283208336 | AN7: =N7 -> 111 | AO7: =COUNTIF(L122:L150,AN7) -> 16 | AP7: =AO7/(AQ4-AO11) -> 0.6666666667 | AQ7: =IF(AP7=0,0,(AP7*((LOG(AP7))/LOG(2)))) -> -0.3899750005 | AS7: =N7 -> 111 | AT7: =COUNTIF(L151:L179,AS7) -> 11 | AU7: =AT7/(AV4-AT11) -> 0.5 | AV7: =IF(AU7=0,0,(AU7*((LOG(AU7))/LOG(2)))) -> -0.5
A8: 12 | B8: 128 | C8: 13 | D8: 133 | E8: 24 | F8: 146 | K8: 0 | L8: 112 | N8: 112 | O8: 40 | P8: 0.2312138728 | Q8: -0.4884855798 | T8: 112 | U8: =COUNTIF(L7:L35,T8) -> 5 | V8: =U8/(W4-U11) -> 0.1923076923 | W8: =IF(V8=0,0,(V8*((LOG(V8))/LOG(2)))) -> -0.4574060814 | Y8: 112 | Z8: =COUNTIF(L36:L64,Y8) -> 8 | AA8: =Z8/(AB4-Z11) -> 0.3636363636 | AB8: =IF(AA8=0,0,(AA8*((LOG(AA8))/LOG(2)))) -> -0.5307024068 | AD8: 112 | AE8: =COUNTIF(L65:L92,AD8) -> 7 | AF8: =AE8/(AG4-AE11) -> 0.3888888889 | AG8: =IF(AF8=0,0,(AF8*((LOG(AF8))/LOG(2)))) -> -0.5298883642 | AI8: 112 | AJ8: =COUNTIF(L93:L121,AI8) -> 8 | AK8: =AJ8/(AL4-AJ11) -> 0.380952381 | AL8: =IF(AK8=0,0,(AK8*((LOG(AK8))/LOG(2)))) -> -0.5304066372 | AN8: 112 | AO8: =COUNTIF(L122:L150,AN8) -> 4 | AP8: =AO8/(AQ4-AO11) -> 0.1666666667 | AQ8: =IF(AP8=0,0,(AP8*((LOG(AP8))/LOG(2)))) -> -0.4308270835 | AS8: 112 | AT8: =COUNTIF(L151:L179,AS8) -> 8 | AU8: =AT8/(AV4-AT11) -> 0.3636363636 | AV8: =IF(AU8=0,0,(AU8*((LOG(AU8))/LOG(2)))) -> -0.5307024068
A9: 12 | B9: 241 | C9: 13 | D9: 249 | E9: 13 | F9: 258 | K9: 0 | L9: 111 | N9: 121 | O9: 13 | P9: 0.07514450867 | Q9: -0.2806037608 | T9: 121 | U9: =COUNTIF(L7:L35,T9) -> 2 | V9: =U9/(W4-U11) -> 0.07692307692 | W9: =IF(V9=0,0,(V9*((LOG(V9))/LOG(2)))) -> -0.2846492091 | Y9: 121 | Z9: =COUNTIF(L36:L64,Y9) -> 2 | AA9: =Z9/(AB4-Z11) -> 0.09090909091 | AB9: =IF(AA9=0,0,(AA9*((LOG(AA9))/LOG(2)))) -> -0.3144937835 | AD9: 121 | AE9: =COUNTIF(L65:L92,AD9) -> 0 | AF9: =AE9/(AG4-AE11) -> 0 | AG9: =IF(AF9=0,0,(AF9*((LOG(AF9))/LOG(2)))) -> 0 | AI9: 121 | AJ9: =COUNTIF(L93:L121,AI9) -> 4 | AK9: =AJ9/(AL4-AJ11) -> 0.1904761905 | AL9: =IF(AK9=0,0,(AK9*((LOG(AK9))/LOG(2)))) -> -0.4556795091 | AN9: 121 | AO9: =COUNTIF(L122:L150,AN9) -> 3 | AP9: =AO9/(AQ4-AO11) -> 0.125 | AQ9: =IF(AP9=0,0,(AP9*((LOG(AP9))/LOG(2)))) -> -0.375 | AS9: 121 | AT9: =COUNTIF(L151:L179,AS9) -> 2 | AU9: =AT9/(AV4-AT11) -> 0.09090909091 | AV9: =IF(AU9=0,0,(AU9*((LOG(AU9))/LOG(2)))) -> -0.3144937835
A10: 12 | B10: 353 | C10: 13 | D10: 359 | E10: 13 | F10: 363 | K10: 0 | L10: 111 | N10: 122 | O10: 4 | P10: 0.02312138728 | Q10: -0.125656144 | T10: 122 | U10: =COUNTIF(L7:L35,T10) -> 0 | V10: =U10/(W4-U11) -> 0 | W10: =IF(V10=0,0,(V10*((LOG(V10))/LOG(2)))) -> 0 | Y10: 122 | Z10: =COUNTIF(L36:L64,Y10) -> 0 | AA10: =Z10/(AB4-Z11) -> 0 | AB10: =IF(AA10=0,0,(AA10*((LOG(AA10))/LOG(2)))) -> 0 | AD10: 122 | AE10: =COUNTIF(L65:L92,AD10) -> 4 | AF10: =AE10/(AG4-AE11) -> 0.2222222222 | AG10: =IF(AF10=0,0,(AF10*((LOG(AF10))/LOG(2)))) -> -0.4822055559 | AI10: 122 | AJ10: =COUNTIF(L93:L121,AI10) -> 0 | AK10: =AJ10/(AL4-AJ11) -> 0 | AL10: =IF(AK10=0,0,(AK10*((LOG(AK10))/LOG(2)))) -> 0 | AN10: 122 | AO10: =COUNTIF(L122:L150,AN10) -> 0 | AP10: =AO10/(AQ4-AO11) -> 0 | AQ10: =IF(AP10=0,0,(AP10*((LOG(AP10))/LOG(2)))) -> 0 | AS10: 122 | AT10: =COUNTIF(L151:L179,AS10) -> 0 | AU10: =AT10/(AV4-AT11) -> 0 | AV10: =IF(AU10=0,0,(AU10*((LOG(AU10))/LOG(2)))) -> 0
A11: 12 | B11: 465 | C11: 13 | D11: 473 | E11: 13 | F11: 479 | K11: 0 | L11: 111 | N11: 211 | O11: 40 | P11: 0.2312138728 | Q11: -0.4884855798 | T11: 211 | U11: =COUNTIF(L7:L35,T11) -> 3 | Y11: 211 | Z11: =COUNTIF(L36:L64,Y11) -> 7 | AD11: 211 | AE11: =COUNTIF(L65:L92,AD11) -> 10 | AI11: 211 | AJ11: =COUNTIF(L93:L121,AI11) -> 8 | AN11: 211 | AO11: =COUNTIF(L122:L150,AN11) -> 5 | AS11: 211 | AT11: =COUNTIF(L151:L179,AS11) -> 7
A12: 12 | B12: 584 | C12: 13 | D12: 590 | E12: 13 | F12: 596 | K12: 0 | L12: 111 | N12: 212 | O12: 6 | P12: 0.03468208092 | Q12: -0.1681964992 | T12: 212 | U12: =COUNTIF(L7:L35,T12) -> 0 | V12: =U12/(W4-U11) -> 0 | W12: =IF(V12=0,0,(V12*((LOG(V12))/LOG(2)))) -> 0 | Y12: 212 | Z12: =COUNTIF(L36:L64,Y12) -> 3 | AA12: =Z12/(AB4-Z11) -> 0.1363636364 | AB12: =IF(AA12=0,0,(AA12*((LOG(AA12))/LOG(2)))) -> -0.3919730615 | AD12: 212 | AE12: =COUNTIF(L65:L92,AD12) -> 0 | AF12: =AE12/(AG4-AE11) -> 0 | AG12: =IF(AF12=0,0,(AF12*((LOG(AF12))/LOG(2)))) -> 0 | AI12: 212 | AJ12: =COUNTIF(L93:L121,AI12) -> 2 | AK12: =AJ12/(AL4-AJ11) -> 0.09523809524 | AL12: =IF(AK12=0,0,(AK12*((LOG(AK12))/LOG(2)))) -> -0.3230778498 | AN12: 212 | AO12: =COUNTIF(L122:L150,AN12) -> 0 | AP12: =AO12/(AQ4-AO11) -> 0 | AQ12: =IF(AP12=0,0,(AP12*((LOG(AP12))/LOG(2)))) -> 0 | AS12: 212 | AT12: =COUNTIF(L151:L179,AS12) -> 1 | AU12: =AT12/(AV4-AT11) -> 0.04545454545 | AV12: =IF(AU12=0,0,(AU12*((LOG(AU12))/LOG(2)))) -> -0.2027014372
A13: 12 | B13: 695 | C13: 24 | D13: 712 | E13: 13 | F13: 734 | K13: 0 | L13: 121 | N13: 221 | O13: 0 | P13: 0 | Q13: 0 | T13: 221 | U13: =COUNTIF(L7:L35,T13) -> 0 | V13: =U13/(W4-U11) -> 0 | W13: =IF(V13=0,0,(V13*((LOG(V13))/LOG(2)))) -> 0 | Y13: 221 | Z13: =COUNTIF(L36:L64,Y13) -> 0 | AA13: =Z13/(AB4-Z11) -> 0 | AB13: =IF(AA13=0,0,(AA13*((LOG(AA13))/LOG(2)))) -> 0 | AD13: 221 | AE13: =COUNTIF(L65:L92,AD13) -> 0 | AF13: =AE13/(AG4-AE11) -> 0 | AG13: =IF(AF13=0,0,(AF13*((LOG(AF13))/LOG(2)))) -> 0 | AI13: 221 | AJ13: =COUNTIF(L93:L121,AI13) -> 0 | AK13: =AJ13/(AL4-AJ11) -> 0 | AL13: =IF(AK13=0,0,(AK13*((LOG(AK13))/LOG(2)))) -> 0 | AN13: 221 | AO13: =COUNTIF(L122:L150,AN13) -> 0 | AP13: =AO13/(AQ4-AO11) -> 0 | AQ13: =IF(AP13=0,0,(AP13*((LOG(AP13))/LOG(2)))) -> 0 | AS13: 221 | AT13: =COUNTIF(L151:L179,AS13) -> 0 | AU13: =AT13/(AV4-AT11) -> 0 | AV13: =IF(AU13=0,0,(AU13*((LOG(AU13))/LOG(2)))) -> 0
A14: 12 | B14: 829 | C14: 13 | D14: 834 | E14: 13 | F14: 839 | K14: 0 | L14: 111 | N14: 222 | O14: 1 | P14: 0.005780346821 | Q14: -0.04297472964 | T14: 222 | U14: =COUNTIF(L7:L35,T14) -> 0 | V14: =U14/(W4-U11) -> 0 | W14: =IF(V14=0,0,(V14*((LOG(V14))/LOG(2)))) -> 0 | Y14: 222 | Z14: =COUNTIF(L36:L64,Y14) -> 0 | AA14: =Z14/(AB4-Z11) -> 0 | AB14: =IF(AA14=0,0,(AA14*((LOG(AA14))/LOG(2)))) -> 0 | AD14: 222 | AE14: =COUNTIF(L65:L92,AD14) -> 0 | AF14: =AE14/(AG4-AE11) -> 0 | AG14: =IF(AF14=0,0,(AF14*((LOG(AF14))/LOG(2)))) -> 0 | AI14: 222 | AJ14: =COUNTIF(L93:L121,AI14) -> 0 | AK14: =AJ14/(AL4-AJ11) -> 0 | AL14: =IF(AK14=0,0,(AK14*((LOG(AK14))/LOG(2)))) -> 0 | AN14: 222 | AO14: =COUNTIF(L122:L150,AN14) -> 1 | AP14: =AO14/(AQ4-AO11) -> 0.04166666667 | AQ14: =IF(AP14=0,0,(AP14*((LOG(AP14))/LOG(2)))) -> -0.1910401042 | AS14: 222 | AT14: =COUNTIF(L151:L179,AS14) -> 0 | AU14: =AT14/(AV4-AT11) -> 0 | AV14: =IF(AU14=0,0,(AU14*((LOG(AU14))/LOG(2)))) -> 0
A15: 21 | B15: 937 | C15: 11 | D15: 945 | E15: 11 | F15: 950 | K15: 0 | L15: 211 | P15: =SUM(P7:P14) -> 1 | Q15: =-SUM(Q7:Q14) -> 2.123310734 | V15: =SUM(V7:V14) -> 1 | W15: =-SUM(W7:W14) -> 1.072737286 | AA15: =SUM(AA7:AA14) -> 1 | AB15: =-SUM(AB7:AB14) -> 1.764694686 | AF15: =SUM(AF7:AF14) -> 1 | AG15: =-SUM(AG7:AG14) -> 1.541982284 | AK15: =SUM(AK7:AK14) -> 1 | AL15: =-SUM(AL7:AL14) -> 1.83748483 | AP15: =SUM(AP7:AP14) -> 1 | AQ15: =-SUM(AQ7:AQ14) -> 1.386842188 | AU15: =SUM(AU7:AU14) -> 1 | AV15: =-SUM(AV7:AV14) -> 1.547897628
A16: 12 | B16: 1077 | C16: 13 | D16: 1082 | E16: 13 | F16: 1089 | K16: 0 | L16: 111 | P16: U= | Q16: =Q15/(LOG(Q4)/LOG(2)) -> 0.2855974325 | V16: U1= | W16: =W15/(LOG(W4)/LOG(2)) -> 0.2208195724 | AA16: U2= | AB16: =AB15/(LOG(AB4)/LOG(2)) -> 0.3632568114 | AF16: U3= | AG16: =AG15/(LOG(AG4)/LOG(2)) -> 0.3207548245 | AK16: U4= | AL16: =AL15/(LOG(AL4)/LOG(2)) -> 0.3782404319 | AP16: U5= | AQ16: =AQ15/(LOG(AQ4)/LOG(2)) -> 0.2854770715 | AU16: U6= | AV16: =AV15/(LOG(AV4)/LOG(2)) -> 0.3186298236
A17: 12 | B17: 1184 | C17: 13 | D17: 1190 | E17: 13 | F17: 1195 | K17: 0 | L17: 111
A18: 12 | B18: 1297 | C18: 13 | D18: 1301 | E18: 13 | F18: 1306 | K18: 0 | L18: 111
A19: 12 | B19: 1403 | C19: 13 | D19: 1411 | E19: 13 | F19: 1418 | K19: 0 | L19: 111 | N19: Total Target Seq
A20: 21 | B20: 1513 | C20: 11 | D20: 1522 | E20: 11 | F20: 1526 | K20: 0 | L20: 211 | N20: =COUNTIF(L7:L179,G3) -> 40 | P20: 29 | Q20: 29 | R20: 28 | S20: 29 | T20: 29 | U20: 29
A21: 12 | B21: 1639 | C21: 13 | D21: 1643 | E21: 13 | F21: 1672 | K21: 0 | L21: 111 | P21: % of reinforcement given in 6 equal intervals based on number of trials
A22: 12 | B22: 1771 | C22: 13 | D22: 1777 | E22: 13 | F22: 1780 | K22: 0 | L22: 111 | P22: %_1 | Q22: %_2 | R22: %_3 | S22: %_4 | T22: %_5 | U22: %_6
A23: 12 | B23: 1881 | C23: 13 | D23: 1885 | E23: 24 | F23: 1897 | K23: 0 | L23: 112 | O23: target sequence | P23: =$G$3 -> 211 | Q23: 211 | R23: 211 | S23: 211 | T23: 211 | U23: 211
A24: 12 | B24: 1992 | C24: 13 | D24: 1998 | E24: 13 | F24: 2010 | K24: 0 | L24: 111 | O24: total reinforcement | P24: =U11 -> 3 | Q24: =Z11 -> 7 | R24: =AE11 -> 10 | S24: =AJ11 -> 8 | T24: =AO11 -> 5 | U24: =AT11 -> 7
A25: 12 | B25: 2109 | C25: 24 | D25: 2122 | E25: 13 | F25: 2140 | K25: 0 | L25: 121 | O25: % target
A26: 12 | B26: 2274 | C26: 13 | D26: 2278 | E26: 13 | F26: 2292 | K26: 0 | L26: 111 | O26: CCRF
A27: 12 | B27: 2390 | C27: 13 | D27: 2400 | E27: 13 | F27: 2425 | K27: 0 | L27: 111 | O27: % CCRf
A28: 12 | B28: 2520 | C28: 13 | D28: 2525 | E28: 24 | F28: 2536 | K28: 0 | L28: 112 | O28: average response rate | P28: =F35/P20 -> 119.7586207 | Q28: =(F64-F35)/Q20 -> 133.1724138 | R28: =(F92-F64)/R20 -> 126.9285714 | S28: =(F121-F92)/S20 -> 120.3793103 | T28: =(F150-F121)/T20 -> 123.1724138 | U28: =(F179-F150)/U20 -> 123
A29: 12 | B29: 2637 | C29: 13 | D29: 2645 | E29: 13 | F29: 2652 | K29: 0 | L29: 111
A30: 12 | B30: 2784 | C30: 13 | D30: 2810 | E30: 13 | F30: 2815 | K30: 0 | L30: 111
A31: 12 | B31: 2918 | C31: 13 | D31: 2924 | E31: 13 | F31: 2932 | K31: 0 | L31: 111
A32: 12 | B32: 3038 | C32: 13 | D32: 3044 | E32: 24 | F32: 3059 | K32: 0 | L32: 112
A33: 12 | B33: 3216 | C33: 13 | D33: 3235 | E33: 24 | F33: 3247 | K33: 0 | L33: 112
A34: 12 | B34: 3349 | C34: 13 | D34: 3358 | E34: 13 | F34: 3365 | K34: 0 | L34: 111
A35: 21 | B35: 3458 | C35: 11 | D35: 3467 | E35: 11 | F35: 3473 | K35: 0 | L35: 211
A36: 12 | B36: 3656 | C36: 13 | D36: 3666 | E36: 24 | F36: 3683 | K36: 0 | L36: 112
A37: 12 | B37: 3790 | C37: 13 | D37: 3796 | E37: 24 | F37: 3808 | K37: 0 | L37: 112
A38: 12 | B38: 3912 | C38: 13 | D38: 3919 | E38: 13 | F38: 3925 | K38: 0 | L38: 111
A39: 12 | B39: 4023 | C39: 13 | D39: 4027 | E39: 13 | F39: 4033 | K39: 0 | L39: 111
A40: 12 | B40: 4133 | C40: 13 | D40: 4138 | E40: 24 | F40: 4150 | K40: 0 | L40: 112
A41: 12 | B41: 4269 | C41: 24 | D41: 4280 | E41: 13 | F41: 4292 | K41: 0 | L41: 121
A42: 12 | B42: 4399 | C42: 13 | D42: 4413 | E42: 13 | F42: 4424 | K42: 0 | L42: 111
A43: 12 | B43: 4522 | C43: 13 | D43: 4526 | E43: 13 | F43: 4534 | K43: 0 | L43: 111
A44: 12 | B44: 4635 | C44: 13 | D44: 4641 | E44: 13 | F44: 4653 | K44: 0 | L44: 111
A45: 21 | B45: 4745 | C45: 11 | D45: 4755 | E45: 11 | F45: 4760 | K45: 0 | L45: 211
A46: 21 | B46: 4898 | C46: 11 | D46: 4905 | E46: 22 | F46: 4917 | K46: 0 | L46: 212
A47: 12 | B47: 5014 | C47: 13 | D47: 5022 | E47: 13 | F47: 5037 | K47: 0 | L47: 111
A48: 21 | B48: 5131 | C48: 11 | D48: 5140 | E48: 11 | F48: 5150 | K48: 0 | L48: 211
A49: 21 | B49: 5256 | C49: 11 | D49: 5265 | E49: 11 | F49: 5281 | K49: 0 | L49: 211
A50: 12 | B50: 5485 | C50: 24 | D50: 5497 | E50: 13 | F50: 5510 | K50: 0 | L50: 121
A51: 12 | B51: 5625 | C51: 13 | D51: 5660 | E51: 13 | F51: 5665 | K51: 0 | L51: 111
A52: 21 | B52: 5784 | C52: 11 | D52: 5806 | E52: 11 | F52: 5814 | K52: 0 | L52: 211
A53: 12 | B53: 5937 | C53: 13 | D53: 5948 | E53: 24 | F53: 5961 | K53: 0 | L53: 112
A54: 12 | B54: 6060 | C54: 13 | D54: 6068 | E54: 13 | F54: 6094 | K54: 0 | L54: 111
A55: 21 | B55: 6188 | C55: 11 | D55: 6201 | E55: 22 | F55: 6215 | K55: 0 | L55: 212
A56: 21 | B56: 6313 | C56: 11 | D56: 6323 | E56: 11 | F56: 6334 | K56: 0 | L56: 211
A57: 21 | B57: 6430 | C57: 11 | D57: 6438 | E57: 22 | F57: 6452 | K57: 0 | L57: 212
A58: 21 | B58: 6548 | C58: 11 | D58: 6558 | E58: 11 | F58: 6564 | K58: 0 | L58: 211
A59: 21 | B59: 6656 | C59: 11 | D59: 6664 | E59: 11 | F59: 6675 | K59: 0 | L59: 211
A60: 12 | B60: 6810 | C60: 13 | D60: 6816 | E60: 24 | F60: 6827 | K60: 0 | L60: 112
A61: 12 | B61: 6950 | C61: 13 | D61: 6957 | E61: 24 | F61: 6971 | K61: 0 | L61: 112
A62: 12 | B62: 7075 | C62: 13 | D62: 7081 | E62: 24 | F62: 7094 | K62: 0 | L62: 112
A63: 12 | B63: 7192 | C63: 13 | D63: 7200 | E63: 24 | F63: 7210 | K63: 0 | L63: 112
A64: 12 | B64: 7324 | C64: 13 | D64: 7328 | E64: 13 | F64: 7335 | K64: 0 | L64: 111
A65: 12 | B65: 7438 | C65: 13 | D65: 7447 | E65: 24 | F65: 7457 | K65: 0 | L65: 112
A66: 21 | B66: 7551 | C66: 11 | D66: 7560 | E66: 11 | F66: 7566 | K66: 0 | L66: 211
A67: 21 | B67: 7666 | C67: 11 | D67: 7693 | E67: 11 | F67: 7711 | K67: 0 | L67: 211
A68: 12 | B68: 7851 | C68: 24 | D68: 7871 | E68: 24 | F68: 7878 | K68: 0 | L68: 122
A69: 12 | B69: 7977 | C69: 13 | D69: 7983 | E69: 24 | F69: 7993 | K69: 0 | L69: 112
A70: 12 | B70: 8090 | C70: 24 | D70: 8102 | E70: 24 | F70: 8108 | K70: 0 | L70: 122
A71: 21 | B71: 8212 | C71: 11 | D71: 8220 | E71: 11 | F71: 8224 | K71: 0 | L71: 211
A72: 12 | B72: 8322 | C72: 13 | D72: 8329 | E72: 24 | F72: 8365 | K72: 0 | L72: 112
A73: 12 | B73: 8462 | C73: 24 | D73: 8472 | E73: 24 | F73: 8481 | K73: 0 | L73: 122
A74: 12 | B74: 8574 | C74: 13 | D74: 8584 | E74: 13 | F74: 8589 | K74: 0 | L74: 111
A75: 12 | B75: 8705 | C75: 13 | D75: 8715 | E75: 13 | F75: 8722 | K75: 0 | L75: 111
A76: 12 | B76: 8827 | C76: 13 | D76: 8833 | E76: 13 | F76: 8844 | K76: 0 | L76: 111
A77: 12 | B77: 8945 | C77: 24 | D77: 8955 | E77: 24 | F77: 8963 | K77: 0 | L77: 122
A78: 21 | B78: 9057 | C78: 11 | D78: 9067 | E78: 11 | F78: 9083 | K78: 0 | L78: 211
A79: 21 | B79: 9174 | C79: 11 | D79: 9182 | E79: 11 | F79: 9194 | K79: 0 | L79: 211
A80: 12 | B80: 9333 | C80: 13 | D80: 9344 | E80: 24 | F80: 9359 | K80: 0 | L80: 112
A81: 12 | B81: 9462 | C81: 13 | D81: 9465 | E81: 24 | F81: 9475 | K81: 0 | L81: 112
A82: 12 | B82: 9573 | C82: 13 | D82: 9577 | E82: 13 | F82: 9584 | K82: 0 | L82: 111
A83: 12 | B83: 9684 | C83: 13 | D83: 9691 | E83: 13 | F83: 9700 | K83: 0 | L83: 111
A84: 21 | B84: 9862 | C84: 11 | D84: 9878 | E84: 11 | F84: 9885 | K84: 0 | L84: 211
A85: 21 | B85: 9973 | C85: 11 | D85: 9982 | E85: 11 | F85: 9987 | K85: 0 | L85: 211
A86: 21 | B86: 10079 | C86: 11 | D86: 10091 | E86: 11 | F86: 10104 | K86: 0 | L86: 211
A87: 21 | B87: 10195 | C87: 11 | D87: 10207 | E87: 11 | F87: 10240 | K87: 0 | L87: 211
A88: 12 | B88: 10365 | C88: 13 | D88: 10370 | E88: 13 | F88: 10377 | K88: 0 | L88: 111
A89: 21 | B89: 10478 | C89: 11 | D89: 10486 | E89: 11 | F89: 10491 | K89: 0 | L89: 211
A90: 12 | B90: 10618 | C90: 13 | D90: 10624 | E90: 24 | F90: 10638 | K90: 0 | L90: 112
A91: 12 | B91: 10742 | C91: 13 | D91: 10747 | E91: 13 | F91: 10770 | K91: 0 | L91: 111
A92: 12 | B92: 10874 | C92: 13 | D92: 10879 | E92: 24 | F92: 10889 | K92: 0 | L92: 112
A93: 12 | B93: 10984 | C93: 13 | D93: 10989 | E93: 13 | F93: 10995 | K93: 0 | L93: 111
A94: 12 | B94: 11096 | C94: 13 | D94: 11102 | E94: 13 | F94: 11116 | K94: 0 | L94: 111
A95: 12 | B95: 11213 | C95: 24 | D95: 11224 | E95: 13 | F95: 11240 | K95: 0 | L95: 121
A96: 21 | B96: 11334 | C96: 11 | D96: 11341 | E96: 11 | F96: 11347 | K96: 0 | L96: 211
A97: 21 | B97: 11438 | C97: 11 | D97: 11446 | E97: 11 | F97: 11452 | K97: 0 | L97: 211
A98: 12 | B98: 11550 | C98: 13 | D98: 11556 | E98: 24 | F98: 11568 | K98: 0 | L98: 112
A99: 12 | B99: 11664 | C99: 24 | D99: 11675 | E99: 13 | F99: 11690 | K99: 0 | L99: 121
A100: 12 | B100: 11791 | C100: 13 | D100: 11795 | E100: 13 | F100: 11814 | K100: 0 | L100: 111
A101: 12 | B101: 11915 | C101: 13 | D101: 11925 | E101: 24 | F101: 11936 | K101: 0 | L101: 112
A102: 12 | B102: 12039 | C102: 13 | D102: 12043 | E102: 13 | F102: 12049 | K102: 0 | L102: 111
A103: 21 | B103: 12142 | C103: 11 | D103: 12150 | E103: 11 | F103: 12156 | K103: 0 | L103: 211
A104: 12 | B104: 12248 | C104: 13 | D104: 12258 | E104: 24 | F104: 12268 | K104: 0 | L104: 112
A105: 12 | B105: 12364 | C105: 24 | D105: 12373 | E105: 13 | F105: 12387 | K105: 0 | L105: 121
A106: 12 | B106: 12488 | C106: 13 | D106: 12493 | E106: 13 | F106: 12498 | K106: 0 | L106: 111
A107: 12 | B107: 12599 | C107: 13 | D107: 12604 | E107: 13 | F107: 12612 | K107: 0 | L107: 111
A108: 12 | B108: 12713 | C108: 13 | D108: 12718 | E108: 24 | F108: 12733 | K108: 0 | L108: 112
A109: 21 | B109: 12825 | C109: 11 | D109: 12835 | E109: 11 | F109: 12838 | K109: 0 | L109: 211
A110: 21 | B110: 12943 | C110: 11 | D110: 12950 | E110: 11 | F110: 12958 | K110: 0 | L110: 211
A111: 21 | B111: 13102 | C111: 11 | D111: 13119 | E111: 11 | F111: 13124 | K111: 0 | L111: 211
A112: 21 | B112: 13219 | C112: 11 | D112: 13235 | E112: 22 | F112: 13250 | K112: 0 | L112: 212
A113: 12 | B113: 13354 | C113: 13 | D113: 13378 | E113: 13 | F113: 13383 | K113: 0 | L113: 111
A114: 12 | B114: 13488 | C114: 13 | D114: 13494 | E114: 24 | F114: 13504 | K114: 0 | L114: 112
A115: 12 | B115: 13603 | C115: 13 | D115: 13607 | E115: 24 | F115: 13620 | K115: 0 | L115: 112
A116: 21 | B116: 13711 | C116: 11 | D116: 13721 | E116: 11 | F116: 13754 | K116: 0 | L116: 211
A117: 21 | B117: 13865 | C117: 11 | D117: 13874 | E117: 11 | F117: 13890 | K117: 0 | L117: 211
A118: 21 | B118: 14000 | C118: 11 | D118: 14012 | E118: 22 | F118: 14023 | K118: 0 | L118: 212
A119: 12 | B119: 14129 | C119: 13 | D119: 14133 | E119: 24 | F119: 14143 | K119: 0 | L119: 112
A120: 12 | B120: 14238 | C120: 13 | D120: 14242 | E120: 24 | F120: 14251 | K120: 0 | L120: 112
A121: 12 | B121: 14348 | C121: 24 | D121: 14357 | E121: 13 | F121: 14380 | K121: 0 | L121: 121
A122: 21 | B122: 14476 | C122: 11 | D122: 14486 | E122: 11 | F122: 14497 | K122: 0 | L122: 211
A123: 12 | B123: 14605 | C123: 13 | D123: 14619 | E123: 13 | F123: 14631 | K123: 0 | L123: 111
A124: 12 | B124: 14773 | C124: 13 | D124: 14776 | E124: 13 | F124: 14783 | K124: 0 | L124: 111
A125: 12 | B125: 14884 | C125: 13 | D125: 14889 | E125: 24 | F125: 14901 | K125: 0 | L125: 112
A126: 21 | B126: 14994 | C126: 11 | D126: 15002 | E126: 11 | F126: 15016 | K126: 0 | L126: 211
A127: 21 | B127: 15105 | C127: 22 | D127: 15109 | E127: 24 | F127: 15114 | K127: 0 | L127: 222
A128: 12 | B128: 15213 | C128: 13 | D128: 15217 | E128: 13 | F128: 15245 | K128: 0 | L128: 111
A129: 12 | B129: 15345 | C129: 13 | D129: 15353 | E129: 24 | F129: 15363 | K129: 0 | L129: 112
A130: 12 | B130: 15459 | C130: 13 | D130: 15464 | E130: 13 | F130: 15468 | K130: 0 | L130: 111
A131: 12 | B131: 15570 | C131: 24 | D131: 15579 | E131: 13 | F131: 15594 | K131: 0 | L131: 121
A132: 12 | B132: 15704 | C132: 13 | D132: 15714 | E132: 24 | F132: 15725 | K132: 0 | L132: 112
A133: 12 | B133: 15826 | C133: 13 | D133: 15834 | E133: 13 | F133: 15850 | K133: 0 | L133: 111
A134: 21 | B134: 15975 | C134: 11 | D134: 15988 | E134: 11 | F134: 15992 | K134: 0 | L134: 211
A135: 12 | B135: 16093 | C135: 24 | D135: 16105 | E135: 13 | F135: 16122 | K135: 0 | L135: 121
A136: 12 | B136: 16222 | C136: 13 | D136: 16227 | E136: 13 | F136: 16234 | K136: 0 | L136: 111
A137: 12 | B137: 16335 | C137: 13 | D137: 16338 | E137: 13 | F137: 16344 | K137: 0 | L137: 111
A138: 12 | B138: 16447 | C138: 13 | D138: 16455 | E138: 24 | F138: 16467 | K138: 0 | L138: 112
A139: 12 | B139: 16571 | C139: 13 | D139: 16574 | E139: 13 | F139: 16578 | K139: 0 | L139: 111
A140: 12 | B140: 16682 | C140: 13 | D140: 16687 | E140: 13 | F140: 16693 | K140: 0 | L140: 111
A141: 12 | B141: 16797 | C141: 13 | D141: 16802 | E141: 13 | F141: 16809 | K141: 0 | L141: 111
A142: 12 | B142: 16909 | C142: 13 | D142: 16913 | E142: 13 | F142: 16922 | K142: 0 | L142: 111
A143: 12 | B143: 17026 | C143: 24 | D143: 17043 | E143: 13 | F143: 17058 | K143: 0 | L143: 121
A144: 12 | B144: 17162 | C144: 13 | D144: 17169 | E144: 13 | F144: 17174 | K144: 0 | L144: 111
A145: 21 | B145: 17269 | C145: 11 | D145: 17278 | E145: 11 | F145: 17294 | K145: 0 | L145: 211
A146: 21 | B146: 17397 | C146: 11 | D146: 17405 | E146: 11 | F146: 17412 | K146: 0 | L146: 211
A147: 12 | B147: 17562 | C147: 13 | D147: 17578 | E147: 13 | F147: 17591 | K147: 0 | L147: 111
A148: 12 | B148: 17690 | C148: 13 | D148: 17698 | E148: 13 | F148: 17729 | K148: 0 | L148: 111
A149: 12 | B149: 17825 | C149: 13 | D149: 17830 | E149: 13 | F149: 17837 | K149: 0 | L149: 111
A150: 12 | B150: 17940 | C150: 13 | D150: 17945 | E150: 13 | F150: 17952 | K150: 0 | L150: 111
A151: 12 | B151: 18060 | C151: 13 | D151: 18064 | E151: 13 | F151: 18070 | K151: 0 | L151: 111
A152: 12 | B152: 18172 | C152: 13 | D152: 18176 | E152: 24 | F152: 18187 | K152: 0 | L152: 112
A153: 12 | B153: 18288 | C153: 13 | D153: 18293 | E153: 13 | F153: 18304 | K153: 0 | L153: 111
A154: 12 | B154: 18406 | C154: 13 | D154: 18412 | E154: 24 | F154: 18424 | K154: 0 | L154: 112
A155: 12 | B155: 18522 | C155: 13 | D155: 18526 | E155: 13 | F155: 18556 | K155: 0 | L155: 111
A156: 12 | B156: 18657 | C156: 13 | D156: 18664 | E156: 24 | F156: 18679 | K156: 0 | L156: 112
A157: 21 | B157: 18772 | C157: 11 | D157: 18781 | E157: 11 | F157: 18785 | K157: 0 | L157: 211
A158: 21 | B158: 18876 | C158: 11 | D158: 18885 | E158: 11 | F158: 18900 | K158: 0 | L158: 211
A159: 12 | B159: 19038 | C159: 24 | D159: 19051 | E159: 13 | F159: 19068 | K159: 0 | L159: 121
A160: 21 | B160: 19161 | C160: 11 | D160: 19170 | E160: 11 | F160: 19176 | K160: 0 | L160: 211
A161: 21 | B161: 19286 | C161: 11 | D161: 19315 | E161: 11 | F161: 19328 | K161: 0 | L161: 211
A162: 21 | B162: 19446 | C162: 11 | D162: 19456 | E162: 11 | F162: 19462 | K162: 0 | L162: 211
A163: 12 | B163: 19612 | C163: 13 | D163: 19616 | E163: 24 | F163: 19632 | K163: 0 | L163: 112
A164: 12 | B164: 19729 | C164: 13 | D164: 19733 | E164: 13 | F164: 19738 | K164: 0 | L164: 111
A165: 12 | B165: 19842 | C165: 13 | D165: 19847 | E165: 24 | F165: 19856 | K165: 0 | L165: 112
A166: 12 | B166: 19957 | C166: 13 | D166: 19970 | E166: 13 | F166: 19980 | K166: 0 | L166: 111
A167: 12 | B167: 20088 | C167: 13 | D167: 20093 | E167: 24 | F167: 20104 | K167: 0 | L167: 112
A168: 12 | B168: 20205 | C168: 13 | D168: 20210 | E168: 13 | F168: 20214 | K168: 0 | L168: 111
A169: 21 | B169: 20306 | C169: 11 | D169: 20315 | E169: 11 | F169: 20320 | K169: 0 | L169: 211
A170: 12 | B170: 20429 | C170: 13 | D170: 20438 | E170: 13 | F170: 20448 | K170: 0 | L170: 111
A171: 12 | B171: 20554 | C171: 13 | D171: 20561 | E171: 13 | F171: 20570 | K171: 0 | L171: 111
A172: 12 | B172: 20668 | C172: 24 | D172: 20677 | E172: 13 | F172: 20695 | K172: 0 | L172: 121
A173: 12 | B173: 20796 | C173: 13 | D173: 20800 | E173: 13 | F173: 20834 | K173: 0 | L173: 111
A174: 12 | B174: 20936 | C174: 13 | D174: 20940 | E174: 13 | F174: 20946 | K174: 0 | L174: 111
A175: 12 | B175: 21048 | C175: 13 | D175: 21053 | E175: 24 | F175: 21065 | K175: 0 | L175: 112
A176: 12 | B176: 21161 | C176: 13 | D176: 21165 | E176: 24 | F176: 21177 | K176: 0 | L176: 112
A177: 21 | B177: 21269 | C177: 11 | D177: 21286 | E177: 22 | F177: 21296 | K177: 0 | L177: 212
A178: 12 | B178: 21398 | C178: 13 | D178: 21404 | E178: 13 | F178: 21411 | K178: 0 | L178: 111
A179: 21 | B179: 21503 | C179: 11 | D179: 21512 | E179: 11 | F179: 21519 | K179: 1 | L179: 211

Sheet !MC22A3I.sha
A1: Report for:!MC22A3I.sha
A2: Date: | B2: <date>
A3: Hen: | B3: <hen> | F3: Correct Sequence | G3: =Start!J2 -> 211 | P3: Total Sequences in Data | Q3: =4994-COUNTBLANK(L7:L5000) -> 151 | V3: Total Sequences in Block Data | W3: =COUNTA(L7:L31) -> 25 | AA3: Total Sequences in Block Data | AB3: =COUNTA(L32:L56) -> 25 | AF3: Total Sequences in Block Data | AG3: =COUNTA(L57:L82) -> 26 | AK3: Total Sequences in Block Data | AL3: =COUNTA(L83:L107) -> 25 | AP3: Total Sequences in Block Data | AQ3: =COUNTA(L108:L132) -> 25 | AU3: Total Sequences in Block Data | AV3: =COUNTA(L133:L157) -> 25
P4: Total Sequences in Summary | Q4: =SUM(O7:O14) -> 151 | V4: Total Sequences in Block Summary | W4: =SUM(U7:U14) -> 25 | AA4: Total Sequences in Block Summary | AB4: =SUM(Z7:Z14) -> 25 | AF4: Total Sequences in Block Summary | AG4: =SUM(AE7:AE14) -> 26 | AK4: Total Sequences in Block Summary | AL4: =SUM(AJ7:AJ14) -> 25 | AP4: Total Sequences in Block Summary | AQ4: =SUM(AO7:AO14) -> 25 | AU4: Total Sequences in Block Summary | AV4: =SUM(AT7:AT14) -> 25
T5: Block 1 | Y5: Block 2 | AD5: Block 3 | AI5: Block 4 | AN5: Block 5 | AS5: Block 6
A6: Sequence Component 1 | B6: Time 1 | C6: Sequence Component 2 | D6: Time 2 | E6: Sequence Component 3 | F6: Time 3 | G6: Sequence Component 4 | H6: Time 4 | I6: Sequence Component 5 | J6: Time 5 | K6: Correct? 0=No 1=Yes | L6: Sequence | N6: Frequency | P6: Relative Frequency | Q6: Variability | T6: Frequency | V6: Relative Frequency | W6: Variability | Y6: Frequency | AA6: Relative Frequency | AB6: Variability | AD6: Frequency | AF6: Relative Frequency | AG6: Variability | AI6: Frequency | AK6: Relative Frequency | AL6: Variability | AN6: Frequency | AP6: Relative Frequency | AQ6: Variability | AS6: Frequency | AU6: Relative Frequency | AV6: Variability
A7: 21 | B7: 67 | C7: 11 | D7: 78 | E7: 11 | F7: 86 | K7: 0 | L7: 211 | N7: 111 | O7: =COUNTIF($L$7:$L$500,N7) -> 77 | P7: =O7/$Q$4 -> 0.5099337748 | Q7: =IF(P7=0,0,(P7*((LOG(P7))/LOG(2)))) -> -0.4954609357 | T7: =N7 -> 111 | U7: =COUNTIF(L7:L31,T7) -> 15 | V7: =U7/(W4-U11) -> 0.7894736842 | W7: =IF(V7=0,0,(V7*((LOG(V7))/LOG(2)))) -> -0.269239672 | Y7: =N7 -> 111 | Z7: =COUNTIF(L32:L56,Y7) -> 12 | AA7: =Z7/(AB4-Z11) -> 0.6666666667 | AB7: =IF(AA7=0,0,(AA7*((LOG(AA7))/LOG(2)))) -> -0.3899750005 | AD7: =N7 -> 111 | AE7: =COUNTIF(L57:L82,AD7) -> 18 | AF7: =AE7/(AG4-AE11) -> 0.7826086957 | AG7: =IF(AF7=0,0,(AF7*((LOG(AF7))/LOG(2)))) -> -0.2767593558 | AI7: =N7 -> 111 | AJ7: =COUNTIF(L83:L107,AI7) -> 9 | AK7: =AJ7/(AL4-AJ11) -> 0.6923076923 | AL7: =IF(AK7=0,0,(AK7*((LOG(AK7))/LOG(2)))) -> -0.3672794193 | AN7: =N7 -> 111 | AO7: =COUNTIF(L108:L132,AN7) -> 12 | AP7: =AO7/(AQ4-AO11) -> 0.5714285714 | AQ7: =IF(AP7=0,0,(AP7*((LOG(AP7))/LOG(2)))) -> -0.4613456697 | AS7: =N7 -> 111 | AT7: =COUNTIF(L133:L157,AS7) -> 11 | AU7: =AT7/(AV4-AT11) -> 0.6470588235 | AV7: =IF(AU7=0,0,(AU7*((LOG(AU7))/LOG(2)))) -> -0.406373144
A8: 12 | B8: 290 | C8: 13 | D8: 295 | E8: 13 | F8: 314 | K8: 0 | L8: 111 | N8: 112 | O8: 25 | P8: 0.1655629139 | Q8: -0.4295610181 | T8: 112 | U8: =COUNTIF(L7:L31,T8) -> 2 | V8: =U8/(W4-U11) -> 0.1052631579 | W8: =IF(V8=0,0,(V8*((LOG(V8))/LOG(2)))) -> -0.3418871067 | Y8: 112 | Z8: =COUNTIF(L32:L56,Y8) -> 3 | AA8: =Z8/(AB4-Z11) -> 0.1666666667 | AB8: =IF(AA8=0,0,(AA8*((LOG(AA8))/LOG(2)))) -> -0.4308270835 | AD8: 112 | AE8: =COUNTIF(L57:L82,AD8) -> 4 | AF8: =AE8/(AG4-AE11) -> 0.1739130435 | AG8: =IF(AF8=0,0,(AF8*((LOG(AF8))/LOG(2)))) -> -0.4388803402 | AI8: 112 | AJ8: =COUNTIF(L83:L107,AI8) -> 2 | AK8: =AJ8/(AL4-AJ11) -> 0.1538461538 | AL8: =IF(AK8=0,0,(AK8*((LOG(AK8))/LOG(2)))) -> -0.4154522643 | AN8: 112 | AO8: =COUNTIF(L108:L132,AN8) -> 8 | AP8: =AO8/(AQ4-AO11) -> 0.380952381 | AQ8: =IF(AP8=0,0,(AP8*((LOG(AP8))/LOG(2)))) -> -0.5304066372 | AS8: 112 | AT8: =COUNTIF(L133:L157,AS8) -> 6 | AU8: =AT8/(AV4-AT11) -> 0.3529411765 | AV8: =IF(AU8=0,0,(AU8*((LOG(AU8))/LOG(2)))) -> -0.5302942378
A9: 12 | B9: 417 | C9: 13 | D9: 426 | E9: 13 | F9: 432 | K9: 0 | L9: 111 | N9: 121 | O9: 4 | P9: 0.02649006623 | Q9: -0.1387656885 | T9: 121 | U9: =COUNTIF(L7:L31,T9) -> 1 | V9: =U9/(W4-U11) -> 0.05263157895 | W9: =IF(V9=0,0,(V9*((LOG(V9))/LOG(2)))) -> -0.2235751323 | Y9: 121 | Z9: =COUNTIF(L32:L56,Y9) -> 2 | AA9: =Z9/(AB4-Z11) -> 0.1111111111 | AB9: =IF(AA9=0,0,(AA9*((LOG(AA9))/LOG(2)))) -> -0.352213889 | AD9: 121 | AE9: =COUNTIF(L57:L82,AD9) -> 0 | AF9: =AE9/(AG4-AE11) -> 0 | AG9: =IF(AF9=0,0,(AF9*((LOG(AF9))/LOG(2)))) -> 0 | AI9: 121 | AJ9: =COUNTIF(L83:L107,AI9) -> 1 | AK9: =AJ9/(AL4-AJ11) -> 0.07692307692 | AL9: =IF(AK9=0,0,(AK9*((LOG(AK9))/LOG(2)))) -> -0.2846492091 | AN9: 121 | AO9: =COUNTIF(L108:L132,AN9) -> 0 | AP9: =AO9/(AQ4-AO11) -> 0 | AQ9: =IF(AP9=0,0,(AP9*((LOG(AP9))/LOG(2)))) -> 0 | AS9: 121 | AT9: =COUNTIF(L133:L157,AS9) -> 0 | AU9: =AT9/(AV4-AT11) -> 0 | AV9: =IF(AU9=0,0,(AU9*((LOG(AU9))/LOG(2)))) -> 0
A10: 12 | B10: 536 | C10: 13 | D10: 540 | E10: 13 | F10: 544 | K10: 0 | L10: 111 | N10: 122 | O10: 2 | P10: 0.01324503311 | Q10: -0.08262787734 | T10: 122 | U10: =COUNTIF(L7:L31,T10) -> 0 | V10: =U10/(W4-U11) -> 0 | W10: =IF(V10=0,0,(V10*((LOG(V10))/LOG(2)))) -> 0 | Y10: 122 | Z10: =COUNTIF(L32:L56,Y10) -> 0 | AA10: =Z10/(AB4-Z11) -> 0 | AB10: =IF(AA10=0,0,(AA10*((LOG(AA10))/LOG(2)))) -> 0 | AD10: 122 | AE10: =COUNTIF(L57:L82,AD10) -> 0 | AF10: =AE10/(AG4-AE11) -> 0 | AG10: =IF(AF10=0,0,(AF10*((LOG(AF10))/LOG(2)))) -> 0 | AI10: 122 | AJ10: =COUNTIF(L83:L107,AI10) -> 1 | AK10: =AJ10/(AL4-AJ11) -> 0.07692307692 | AL10: =IF(AK10=0,0,(AK10*((LOG(AK10))/LOG(2)))) -> -0.2846492091 | AN10: 122 | AO10: =COUNTIF(L108:L132,AN10) -> 1 | AP10: =AO10/(AQ4-AO11) -> 0.04761904762 | AQ10: =IF(AP10=0,0,(AP10*((LOG(AP10))/LOG(2)))) -> -0.2091579725 | AS10: 122 | AT10: =COUNTIF(L133:L157,AS10) -> 0 | AU10: =AT10/(AV4-AT11) -> 0 | AV10: =IF(AU10=0,0,(AU10*((LOG(AU10))/LOG(2)))) -> 0
A11: 12 | B11: 646 | C11: 24 | D11: 661 | E11: 13 | F11: 673 | K11: 0 | L11: 121 | N11: 211 | O11: 40 | P11: 0.2649006623 | Q11: -0.5076759323 | T11: 211 | U11: =COUNTIF(L7:L31,T11) -> 6 | Y11: 211 | Z11: =COUNTIF(L32:L56,Y11) -> 7 | AD11: 211 | AE11: =COUNTIF(L57:L82,AD11) -> 3 | AI11: 211 | AJ11: =COUNTIF(L83:L107,AI11) -> 12 | AN11: 211 | AO11: =COUNTIF(L108:L132,AN11) -> 4 | AS11: 211 | AT11: =COUNTIF(L133:L157,AS11) -> 8
A12: 12 | B12: 775 | C12: 13 | D12: 784 | E12: 13 | F12: 792 | K12: 0 | L12: 111 | N12: 212 | O12: 0 | P12: 0 | Q12: 0 | T12: 212 | U12: =COUNTIF(L7:L31,T12) -> 0 | V12: =U12/(W4-U11) -> 0 | W12: =IF(V12=0,0,(V12*((LOG(V12))/LOG(2)))) -> 0 | Y12: 212 | Z12: =COUNTIF(L32:L56,Y12) -> 0 | AA12: =Z12/(AB4-Z11) -> 0 | AB12: =IF(AA12=0,0,(AA12*((LOG(AA12))/LOG(2)))) -> 0 | AD12: 212 | AE12: =COUNTIF(L57:L82,AD12) -> 0 | AF12: =AE12/(AG4-AE11) -> 0 | AG12: =IF(AF12=0,0,(AF12*((LOG(AF12))/LOG(2)))) -> 0 | AI12: 212 | AJ12: =COUNTIF(L83:L107,AI12) -> 0 | AK12: =AJ12/(AL4-AJ11) -> 0 | AL12: =IF(AK12=0,0,(AK12*((LOG(AK12))/LOG(2)))) -> 0 | AN12: 212 | AO12: =COUNTIF(L108:L132,AN12) -> 0 | AP12: =AO12/(AQ4-AO11) -> 0 | AQ12: =IF(AP12=0,0,(AP12*((LOG(AP12))/LOG(2)))) -> 0 | AS12: 212 | AT12: =COUNTIF(L133:L157,AS12) -> 0 | AU12: =AT12/(AV4-AT11) -> 0 | AV12: =IF(AU12=0,0,(AU12*((LOG(AU12))/LOG(2)))) -> 0
A13: 12 | B13: 935 | C13: 13 | D13: 941 | E13: 24 | F13: 952 | K13: 0 | L13: 112 | N13: 221 | O13: 3 | P13: 0.01986754967 | Q13: -0.1123200445 | T13: 221 | U13: =COUNTIF(L7:L31,T13) -> 1 | V13: =U13/(W4-U11) -> 0.05263157895 | W13: =IF(V13=0,0,(V13*((LOG(V13))/LOG(2)))) -> -0.2235751323 | Y13: 221 | Z13: =COUNTIF(L32:L56,Y13) -> 1 | AA13: =Z13/(AB4-Z11) -> 0.05555555556 | AB13: =IF(AA13=0,0,(AA13*((LOG(AA13))/LOG(2)))) -> -0.2316625001 | AD13: 221 | AE13: =COUNTIF(L57:L82,AD13) -> 1 | AF13: =AE13/(AG4-AE11) -> 0.04347826087 | AG13: =IF(AF13=0,0,(AF13*((LOG(AF13))/LOG(2)))) -> -0.1966766068 | AI13: 221 | AJ13: =COUNTIF(L83:L107,AI13) -> 0 | AK13: =AJ13/(AL4-AJ11) -> 0 | AL13: =IF(AK13=0,0,(AK13*((LOG(AK13))/LOG(2)))) -> 0 | AN13: 221 | AO13: =COUNTIF(L108:L132,AN13) -> 0 | AP13: =AO13/(AQ4-AO11) -> 0 | AQ13: =IF(AP13=0,0,(AP13*((LOG(AP13))/LOG(2)))) -> 0 | AS13: 221 | AT13: =COUNTIF(L133:L157,AS13) -> 0 | AU13: =AT13/(AV4-AT11) -> 0 | AV13: =IF(AU13=0,0,(AU13*((LOG(AU13))/LOG(2)))) -> 0
A14: 12 | B14: 1048 | C14: 13 | D14: 1050 | E14: 13 | F14: 1056 | K14: 0 | L14: 111 | N14: 222 | O14: 0 | P14: 0 | Q14: 0 | T14: 222 | U14: =COUNTIF(L7:L31,T14) -> 0 | V14: =U14/(W4-U11) -> 0 | W14: =IF(V14=0,0,(V14*((LOG(V14))/LOG(2)))) -> 0 | Y14: 222 | Z14: =COUNTIF(L32:L56,Y14) -> 0 | AA14: =Z14/(AB4-Z11) -> 0 | AB14: =IF(AA14=0,0,(AA14*((LOG(AA14))/LOG(2)))) -> 0 | AD14: 222 | AE14: =COUNTIF(L57:L82,AD14) -> 0 | AF14: =AE14/(AG4-AE11) -> 0 | AG14: =IF(AF14=0,0,(AF14*((LOG(AF14))/LOG(2)))) -> 0 | AI14: 222 | AJ14: =COUNTIF(L83:L107,AI14) -> 0 | AK14: =AJ14/(AL4-AJ11) -> 0 | AL14: =IF(AK14=0,0,(AK14*((LOG(AK14))/LOG(2)))) -> 0 | AN14: 222 | AO14: =COUNTIF(L108:L132,AN14) -> 0 | AP14: =AO14/(AQ4-AO11) -> 0 | AQ14: =IF(AP14=0,0,(AP14*((LOG(AP14))/LOG(2)))) -> 0 | AS14: 222 | AT14: =COUNTIF(L133:L157,AS14) -> 0 | AU14: =AT14/(AV4-AT11) -> 0 | AV14: =IF(AU14=0,0,(AU14*((LOG(AU14))/LOG(2)))) -> 0
A15: 21 | B15: 1152 | C15: 11 | D15: 1161 | E15: 11 | F15: 1167 | K15: 0 | L15: 211 | P15: =SUM(P7:P14) -> 1 | Q15: =-SUM(Q7:Q14) -> 1.766411496 | V15: =SUM(V7:V14) -> 1 | W15: =-SUM(W7:W14) -> 1.058277043 | AA15: =SUM(AA7:AA14) -> 1 | AB15: =-SUM(AB7:AB14) -> 1.404678473 | AF15: =SUM(AF7:AF14) -> 1 | AG15: =-SUM(AG7:AG14) -> 0.9123163028 | AK15: =SUM(AK7:AK14) -> 1 | AL15: =-SUM(AL7:AL14) -> 1.352030102 | AP15: =SUM(AP7:AP14) -> 1 | AQ15: =-SUM(AQ7:AQ14) -> 1.20091028 | AU15: =SUM(AU7:AU14) -> 1 | AV15: =-SUM(AV7:AV14) -> 0.9366673819
A16: 12 | B16: 1306 | C16: 13 | D16: 1311 | E16: 13 | F16: 1318 | K16: 0 | L16: 111 | P16: U= | Q16: =Q15/(LOG(Q4)/LOG(2)) -> 0.2440332587 | V16: U1= | W16: =W15/(LOG(W4)/LOG(2)) -> 0.2278875572 | AA16: U2= | AB16: =AB15/(LOG(AB4)/LOG(2)) -> 0.302481045 | AF16: U3= | AG16: =AG15/(LOG(AG4)/LOG(2)) -> 0.194091693 | AK16: U4= | AL16: =AL15/(LOG(AL4)/LOG(2)) -> 0.2911438353 | AP16: U5= | AQ16: =AQ15/(LOG(AQ4)/LOG(2)) -> 0.2586019529 | AU16: U6= | AV16: =AV15/(LOG(AV4)/LOG(2)) -> 0.201700342
A17: 21 | B17: 1410 | C17: 11 | D17: 1420 | E17: 11 | F17: 1439 | K17: 0 | L17: 211
A18: 12 | B18: 1632 | C18: 13 | D18: 1637 | E18: 13 | F18: 1644 | K18: 0 | L18: 111
A19: 12 | B19: 1747 | C19: 13 | D19: 1761 | E19: 13 | F19: 1774 | K19: 0 | L19: 111 | N19: Total Target Seq
A20: 12 | B20: 1875 | C20: 13 | D20: 1881 | E20: 13 | F20: 1896 | K20: 0 | L20: 111 | N20: =COUNTIF(L7:L157,G3) -> 40 | P20: 25 | Q20: 25 | R20: 26 | S20: 25 | T20: 25 | U20: 25
A21: 21 | B21: 2005 | C21: 22 | D21: 2031 | E21: 13 | F21: 2048 | K21: 0 | L21: 221 | P21: % of reinforcement given in 6 equal intervals based on number of trials
A22: 12 | B22: 2151 | C22: 13 | D22: 2159 | E22: 24 | F22: 2170 | K22: 0 | L22: 112 | P22: %_1 | Q22: %_2 | R22: %_3 | S22: %_4 | T22: %_5 | U22: %_6
A23: 21 | B23: 2265 | C23: 11 | D23: 2276 | E23: 11 | F23: 2278 | K23: 0 | L23: 211 | O23: target sequence | P23: =$G$3 -> 211 | Q23: 211 | R23: 211 | S23: 211 | T23: 211 | U23: 211
A24: 21 | B24: 2384 | C24: 11 | D24: 2392 | E24: 11 | F24: 2396 | K24: 0 | L24: 211 | O24: total reinforcement | P24: =U11 -> 6 | Q24: =Z11 -> 7 | R24: =AE11 -> 3 | S24: =AJ11 -> 12 | T24: =AO11 -> 4 | U24: =AT11 -> 8
A25: 12 | B25: 2607 | C25: 13 | D25: 2624 | E25: 13 | F25: 2634 | K25: 0 | L25: 111 | O25: % target
A26: 12 | B26: 2730 | C26: 13 | D26: 2739 | E26: 13 | F26: 2745 | K26: 0 | L26: 111 | O26: CCRF
A27: 21 | B27: 2843 | C27: 11 | D27: 2852 | E27: 11 | F27: 2856 | K27: 0 | L27: 211 | O27: % CCRf
A28: 12 | B28: 2965 | C28: 13 | D28: 2970 | E28: 13 | F28: 2975 | K28: 0 | L28: 111 | O28: average response rate | P28: =F31/P20 -> 134.6 | Q28: =(F56-F31)/Q20 -> 133.8 | R28: =(F82-F56)/R20 -> 116.1923077 | S28: =(F107-F82)/S20 -> 135.72 | T28: =(F132-F107)/T20 -> 122.04 | U28: =(F157-F132)/U20 -> 123.96
A29: 12 | B29: 3080 | C29: 13 | D29: 3084 | E29: 13 | F29: 3089 | K29: 0 | L29: 111
A30: 12 | B30: 3216 | C30: 13 | D30: 3244 | E30: 13 | F30: 3250 | K30: 0 | L30: 111
A31: 12 | B31: 3354 | C31: 13 | D31: 3359 | E31: 13 | F31: 3365 | K31: 0 | L31: 111
A32: 21 | B32: 3458 | C32: 11 | D32: 3467 | E32: 11 | F32: 3472 | K32: 0 | L32: 211
A33: 12 | B33: 3595 | C33: 13 | D33: 3606 | E33: 13 | F33: 3617 | K33: 0 | L33: 111
A34: 12 | B34: 3719 | C34: 13 | D34: 3724 | E34: 13 | F34: 3733 | K34: 0 | L34: 111
A35: 12 | B35: 3841 | C35: 24 | D35: 3851 | E35: 13 | F35: 3864 | K35: 0 | L35: 121
A36: 21 | B36: 4006 | C36: 11 | D36: 4015 | E36: 11 | F36: 4066 | K36: 0 | L36: 211
A37: 12 | B37: 4168 | C37: 24 | D37: 4181 | E37: 13 | F37: 4202 | K37: 0 | L37: 121
A38: 12 | B38: 4314 | C38: 13 | D38: 4321 | E38: 13 | F38: 4351 | K38: 0 | L38: 111
A39: 21 | B39: 4459 | C39: 22 | D39: 4468 | E39: 13 | F39: 4484 | K39: 0 | L39: 221
A40: 21 | B40: 4582 | C40: 11 | D40: 4593 | E40: 11 | F40: 4600 | K40: 0 | L40: 211
A41: 12 | B41: 4765 | C41: 13 | D41: 4775 | E41: 13 | F41: 4784 | K41: 0 | L41: 111
A42: 12 | B42: 4888 | C42: 13 | D42: 4893 | E42: 24 | F42: 4910 | K42: 0 | L42: 112
A43: 12 | B43: 5011 | C43: 13 | D43: 5017 | E43: 24 | F43: 5027 | K43: 0 | L43: 112
A44: 12 | B44: 5129 | C44: 13 | D44: 5133 | E44: 13 | F44: 5138 | K44: 0 | L44: 111
A45: 21 | B45: 5233 | C45: 11 | D45: 5242 | E45: 11 | F45: 5246 | K45: 0 | L45: 211
A46: 12 | B46: 5368 | C46: 13 | D46: 5375 | E46: 24 | F46: 5388 | K46: 0 | L46: 112
A47: 12 | B47: 5498 | C47: 13 | D47: 5502 | E47: 13 | F47: 5517 | K47: 0 | L47: 111
A48: 12 | B48: 5622 | C48: 13 | D48: 5634 | E48: 13 | F48: 5659 | K48: 0 | L48: 111
A49: 21 | B49: 5755 | C49: 11 | D49: 5764 | E49: 11 | F49: 5769 | K49: 0 | L49: 211
A50: 12 | B50: 5904 | C50: 13 | D50: 5910 | E50: 13 | F50: 5918 | K50: 0 | L50: 111
A51: 12 | B51: 6020 | C51: 13 | D51: 6024 | E51: 13 | F51: 6034 | K51: 0 | L51: 111
A52: 21 | B52: 6136 | C52: 11 | D52: 6159 | E52: 11 | F52: 6164 | K52: 0 | L52: 211
A53: 21 | B53: 6295 | C53: 11 | D53: 6305 | E53: 11 | F53: 6310 | K53: 0 | L53: 211
A54: 12 | B54: 6441 | C54: 13 | D54: 6446 | E54: 13 | F54: 6454 | K54: 0 | L54: 111
A55: 12 | B55: 6567 | C55: 13 | D55: 6572 | E55: 13 | F55: 6579 | K55: 0 | L55: 111
A56: 12 | B56: 6683 | C56: 13 | D56: 6687 | E56: 13 | F56: 6710 | K56: 0 | L56: 111
A57: 12 | B57: 6812 | C57: 13 | D57: 6818 | E57: 13 | F57: 6823 | K57: 0 | L57: 111
A58: 12 | B58: 6925 | C58: 13 | D58: 6930 | E58: 13 | F58: 6938 | K58: 0 | L58: 111
A59: 12 | B59: 7041 | C59: 13 | D59: 7046 | E59: 13 | F59: 7050 | K59: 0 | L59: 111
A60: 21 | B60: 7147 | C60: 11 | D60: 7156 | E60: 11 | F60: 7161 | K60: 0 | L60: 211
A61: 12 | B61: 7282 | C61: 13 | D61: 7288 | E61: 13 | F61: 7297 | K61: 0 | L61: 111
A62: 12 | B62: 7402 | C62: 13 | D62: 7410 | E62: 24 | F62: 7431 | K62: 0 | L62: 112
A63: 12 | B63: 7533 | C63: 13 | D63: 7538 | E63: 13 | F63: 7563 | K63: 0 | L63: 111
A64: 12 | B64: 7663 | C64: 13 | D64: 7668 | E64: 13 | F64: 7677 | K64: 0 | L64: 111
A65: 12 | B65: 7778 | C65: 13 | D65: 7781 | E65: 13 | F65: 7787 | K65: 0 | L65: 111
A66: 21 | B66: 7885 | C66: 11 | D66: 7892 | E66: 11 | F66: 7900 | K66: 0 | L66: 211
A67: 12 | B67: 8019 | C67: 13 | D67: 8023 | E67: 13 | F67: 8028 | K67: 0 | L67: 111
A68: 12 | B68: 8127 | C68: 13 | D68: 8131 | E68: 13 | F68: 8139 | K68: 0 | L68: 111
A69: 12 | B69: 8239 | C69: 13 | D69: 8246 | E69: 24 | F69: 8255 | K69: 0 | L69: 112
A70: 12 | B70: 8358 | C70: 13 | D70: 8362 | E70: 24 | F70: 8376 | K70: 0 | L70: 112
A71: 12 | B71: 8476 | C71: 13 | D71: 8480 | E71: 13 | F71: 8485 | K71: 0 | L71: 111
A72: 21 | B72: 8578 | C72: 11 | D72: 8585 | E72: 11 | F72: 8591 | K72: 0 | L72: 211
A73: 12 | B73: 8698 | C73: 13 | D73: 8702 | E73: 13 | F73: 8710 | K73: 0 | L73: 111
A74: 12 | B74: 8818 | C74: 13 | D74: 8822 | E74: 13 | F74: 8827 | K74: 0 | L74: 111
A75: 12 | B75: 8925 | C75: 13 | D75: 8930 | E75: 24 | F75: 8940 | K75: 0 | L75: 112
A76: 21 | B76: 9032 | C76: 22 | D76: 9041 | E76: 13 | F76: 9050 | K76: 0 | L76: 221
A77: 12 | B77: 9147 | C77: 13 | D77: 9152 | E77: 13 | F77: 9161 | K77: 0 | L77: 111
A78: 12 | B78: 9261 | C78: 13 | D78: 9267 | E78: 13 | F78: 9277 | K78: 0 | L78: 111
A79: 12 | B79: 9377 | C79: 13 | D79: 9381 | E79: 13 | F79: 9402 | K79: 0 | L79: 111
A80: 12 | B80: 9503 | C80: 13 | D80: 9508 | E80: 13 | F80: 9515 | K80: 0 | L80: 111
A81: 12 | B81: 9613 | C81: 13 | D81: 9617 | E81: 13 | F81: 9622 | K81: 0 | L81: 111
A82: 12 | B82: 9722 | C82: 13 | D82: 9726 | E82: 13 | F82: 9731 | K82: 0 | L82: 111
A83: 12 | B83: 9830 | C83: 13 | D83: 9834 | E83: 13 | F83: 9843 | K83: 0 | L83: 111
A84: 12 | B84: 9951 | C84: 13 | D84: 9955 | E84: 13 | F84: 9964 | K84: 0 | L84: 111
A85: 12 | B85: 10135 | C85: 24 | D85: 10148 | E85: 24 | F85: 10156 | K85: 0 | L85: 122
A86: 21 | B86: 10260 | C86: 11 | D86: 10269 | E86: 11 | F86: 10273 | K86: 0 | L86: 211
A87: 12 | B87: 10403 | C87: 24 | D87: 10416 | E87: 13 | F87: 10437 | K87: 0 | L87: 121
A88: 21 | B88: 10536 | C88: 11 | D88: 10545 | E88: 11 | F88: 10553 | K88: 0 | L88: 211
A89: 12 | B89: 10689 | C89: 13 | D89: 10726 | E89: 13 | F89: 10737 | K89: 0 | L89: 111
A90: 21 | B90: 10833 | C90: 11 | D90: 10842 | E90: 11 | F90: 10846 | K90: 0 | L90: 211
A91: 12 | B91: 11018 | C91: 13 | D91: 11037 | E91: 13 | F91: 11048 | K91: 0 | L91: 111
A92: 21 | B92: 11143 | C92: 11 | D92: 11152 | E92: 11 | F92: 11156 | K92: 0 | L92: 211
A93: 21 | B93: 11255 | C93: 11 | D93: 11267 | E93: 11 | F93: 11283 | K93: 0 | L93: 211
A94: 21 | B94: 11421 | C94: 11 | D94: 11429 | E94: 11 | F94: 11443 | K94: 0 | L94: 211
A95: 12 | B95: 11562 | C95: 13 | D95: 11566 | E95: 13 | F95: 11599 | K95: 0 | L95: 111
A96: 12 | B96: 11697 | C96: 13 | D96: 11702 | E96: 13 | F96: 11724 | K96: 0 | L96: 111
A97: 21 | B97: 11817 | C97: 11 | D97: 11825 | E97: 11 | F97: 11834 | K97: 0 | L97: 211
A98: 21 | B98: 11924 | C98: 11 | D98: 11938 | E98: 11 | F98: 11947 | K98: 0 | L98: 211
A99: 12 | B99: 12088 | C99: 13 | D99: 12097 | E99: 13 | F99: 12132 | K99: 0 | L99: 111
A100: 21 | B100: 12224 | C100: 11 | D100: 12235 | E100: 11 | F100: 12239 | K100: 0 | L100: 211
A101: 12 | B101: 12370 | C101: 13 | D101: 12381 | E101: 13 | F101: 12390 | K101: 0 | L101: 111
A102: 12 | B102: 12488 | C102: 13 | D102: 12492 | E102: 24 | F102: 12501 | K102: 0 | L102: 112
A103: 21 | B103: 12593 | C103: 11 | D103: 12603 | E103: 11 | F103: 12614 | K103: 0 | L103: 211
A104: 21 | B104: 12717 | C104: 11 | D104: 12724 | E104: 11 | F104: 12730 | K104: 0 | L104: 211
A105: 21 | B105: 12846 | C105: 11 | D105: 12859 | E105: 11 | F105: 12880 | K105: 0 | L105: 211
A106: 12 | B106: 12981 | C106: 13 | D106: 12987 | E106: 24 | F106: 12997 | K106: 0 | L106: 112
A107: 12 | B107: 13093 | C107: 13 | D107: 13117 | E107: 13 | F107: 13124 | K107: 0 | L107: 111
A108: 12 | B108: 13226 | C108: 13 | D108: 13230 | E108: 13 | F108: 13236 | K108: 0 | L108: 111
A109: 12 | B109: 13337 | C109: 13 | D109: 13341 | E109: 13 | F109: 13368 | K109: 0 | L109: 111
A110: 12 | B110: 13473 | C110: 24 | D110: 13483 | E110: 24 | F110: 13491 | K110: 0 | L110: 122
A111: 12 | B111: 13587 | C111: 13 | D111: 13595 | E111: 13 | F111: 13601 | K111: 0 | L111: 111
A112: 12 | B112: 13704 | C112: 13 | D112: 13708 | E112: 13 | F112: 13713 | K112: 0 | L112: 111
A113: 12 | B113: 13818 | C113: 13 | D113: 13822 | E113: 24 | F113: 13835 | K113: 0 | L113: 112
A114: 12 | B114: 13936 | C114: 13 | D114: 13943 | E114: 24 | F114: 13952 | K114: 0 | L114: 112
A115: 12 | B115: 14055 | C115: 13 | D115: 14064 | E115: 24 | F115: 14076 | K115: 0 | L115: 112
A116: 12 | B116: 14179 | C116: 13 | D116: 14184 | E116: 24 | F116: 14194 | K116: 0 | L116: 112
A117: 12 | B117: 14294 | C117: 13 | D117: 14302 | E117: 24 | F117: 14333 | K117: 0 | L117: 112
A118: 21 | B118: 14426 | C118: 11 | D118: 14434 | E118: 11 | F118: 14439 | K118: 0 | L118: 211
A119: 12 | B119: 14562 | C119: 13 | D119: 14589 | E119: 13 | F119: 14599 | K119: 0 | L119: 111
A120: 21 | B120: 14695 | C120: 11 | D120: 14705 | E120: 11 | F120: 14711 | K120: 0 | L120: 211
A121: 12 | B121: 14854 | C121: 13 | D121: 14860 | E121: 24 | F121: 14872 | K121: 0 | L121: 112
A122: 12 | B122: 14977 | C122: 13 | D122: 14982 | E122: 13 | F122: 14991 | K122: 0 | L122: 111
A123: 12 | B123: 15091 | C123: 13 | D123: 15095 | E123: 13 | F123: 15101 | K123: 0 | L123: 111
A124: 12 | B124: 15203 | C124: 13 | D124: 15208 | E124: 24 | F124: 15219 | K124: 0 | L124: 112
A125: 21 | B125: 15311 | C125: 11 | D125: 15321 | E125: 11 | F125: 15325 | K125: 0 | L125: 211
A126: 12 | B126: 15426 | C126: 13 | D126: 15434 | E126: 24 | F126: 15445 | K126: 0 | L126: 112
A127: 12 | B127: 15555 | C127: 13 | D127: 15559 | E127: 13 | F127: 15567 | K127: 0 | L127: 111
A128: 12 | B128: 15666 | C128: 13 | D128: 15670 | E128: 13 | F128: 15680 | K128: 0 | L128: 111
A129: 21 | B129: 15772 | C129: 11 | D129: 15782 | E129: 11 | F129: 15787 | K129: 0 | L129: 211
A130: 12 | B130: 15898 | C130: 13 | D130: 15902 | E130: 13 | F130: 15939 | K130: 0 | L130: 111
A131: 12 | B131: 16041 | C131: 13 | D131: 16053 | E131: 13 | F131: 16063 | K131: 0 | L131: 111
A132: 12 | B132: 16155 | C132: 13 | D132: 16169 | E132: 13 | F132: 16175 | K132: 0 | L132: 111
A133: 21 | B133: 16270 | C133: 11 | D133: 16280 | E133: 11 | F133: 16286 | K133: 0 | L133: 211
A134: 12 | B134: 16419 | C134: 13 | D134: 16425 | E134: 13 | F134: 16433 | K134: 0 | L134: 111
A135: 12 | B135: 16536 | C135: 13 | D135: 16543 | E135: 13 | F135: 16552 | K135: 0 | L135: 111
A136: 21 | B136: 16645 | C136: 11 | D136: 16654 | E136: 11 | F136: 16662 | K136: 0 | L136: 211
A137: 21 | B137: 16775 | C137: 11 | D137: 16784 | E137: 11 | F137: 16792 | K137: 0 | L137: 211
A138: 21 | B138: 16939 | C138: 11 | D138: 16948 | E138: 11 | F138: 16953 | K138: 0 | L138: 211
A139: 12 | B139: 17073 | C139: 13 | D139: 17088 | E139: 13 | F139: 17104 | K139: 0 | L139: 111
A140: 12 | B140: 17206 | C140: 13 | D140: 17212 | E140: 13 | F140: 17219 | K140: 0 | L140: 111
A141: 12 | B141: 17320 | C141: 13 | D141: 17324 | E141: 24 | F141: 17335 | K141: 0 | L141: 112
A142: 12 | B142: 17441 | C142: 13 | D142: 17454 | E142: 13 | F142: 17462 | K142: 0 | L142: 111
A143: 12 | B143: 17566 | C143: 13 | D143: 17570 | E143: 13 | F143: 17575 | K143: 0 | L143: 111
A144: 12 | B144: 17676 | C144: 13 | D144: 17681 | E144: 13 | F144: 17707 | K144: 0 | L144: 111
A145: 21 | B145: 17800 | C145: 11 | D145: 17810 | E145: 11 | F145: 17815 | K145: 0 | L145: 211
A146: 12 | B146: 17922 | C146: 13 | D146: 17929 | E146: 24 | F146: 17942 | K146: 0 | L146: 112
A147: 21 | B147: 18033 | C147: 11 | D147: 18044 | E147: 11 | F147: 18048 | K147: 0 | L147: 211
A148: 12 | B148: 18173 | C148: 13 | D148: 18181 | E148: 24 | F148: 18193 | K148: 0 | L148: 112
A149: 12 | B149: 18297 | C149: 13 | D149: 18311 | E149: 24 | F149: 18321 | K149: 0 | L149: 112
A150: 21 | B150: 18414 | C150: 11 | D150: 18424 | E150: 11 | F150: 18429 | K150: 0 | L150: 211
A151: 12 | B151: 18546 | C151: 13 | D151: 18553 | E151: 13 | F151: 18571 | K151: 0 | L151: 111
A152: 12 | B152: 18671 | C152: 13 | D152: 18675 | E152: 24 | F152: 18686 | K152: 0 | L152: 112
A153: 12 | B153: 18791 | C153: 13 | D153: 18796 | E153: 13 | F153: 18804 | K153: 0 | L153: 111
A154: 12 | B154: 18904 | C154: 13 | D154: 18909 | E154: 13 | F154: 18915 | K154: 0 | L154: 111
A155: 12 | B155: 19019 | C155: 13 | D155: 19021 | E155: 13 | F155: 19034 | K155: 0 | L155: 111
A156: 12 | B156: 19134 | C156: 13 | D156: 19145 | E156: 24 | F156: 19163 | K156: 0 | L156: 112
A157: 21 | B157: 19256 | C157: 11 | D157: 19267 | E157: 11 | F157: 19274 | K157: 1 | L157: 211

Sheet !MC2391I.sha
A1: Report for:!MC2391I.sha
A2: Date: | B2: <date>
A3: Hen: | B3: <hen> | F3: Correct Sequence | G3: =Start!J2 -> 211 | P3: Total Sequences in Data | Q3: =4994-COUNTBLANK(L7:L5000) -> 169 | V3: Total Sequences in Block Data | W3: =COUNTA(L7:L34) -> 28 | AA3: Total Sequences in Block Data | AB3: =COUNTA(L35:L62) -> 28 | AF3: Total Sequences in Block Data | AG3: =COUNTA(L63:L91) -> 29 | AK3: Total Sequences in Block Data | AL3: =COUNTA(L92:L119) -> 28 | AP3: Total Sequences in Block Data | AQ3: =COUNTA(L120:L147) -> 28 | AU3: Total Sequences in Block Data | AV3: =COUNTA(L148:L175) -> 28
P4: Total Sequences in Summary | Q4: =SUM(O7:O14) -> 169 | V4: Total Sequences in Block Summary | W4: =SUM(U7:U14) -> 28 | AA4: Total Sequences in Block Summary | AB4: =SUM(Z7:Z14) -> 28 | AF4: Total Sequences in Block Summary | AG4: =SUM(AE7:AE14) -> 29 | AK4: Total Sequences in Block Summary | AL4: =SUM(AJ7:AJ14) -> 28 | AP4: Total Sequences in Block Summary | AQ4: =SUM(AO7:AO14) -> 28 | AU4: Total Sequences in Block Summary | AV4: =SUM(AT7:AT14) -> 28
T5: Block 1 | Y5: Block 2 | AD5: Block 3 | AI5: Block 4 | AN5: Block 5 | AS5: Block 6
A6: Sequence Component 1 | B6: Time 1 | C6: Sequence Component 2 | D6: Time 2 | E6: Sequence Component 3 | F6: Time 3 | G6: Sequence Component 4 | H6: Time 4 | I6: Sequence Component 5 | J6: Time 5 | K6: Correct? 0=No 1=Yes | L6: Sequence | N6: Frequency | P6: Relative Frequency | Q6: Variability | T6: Frequency | V6: Relative Frequency | W6: Variability | Y6: Frequency | AA6: Relative Frequency | AB6: Variability | AD6: Frequency | AF6: Relative Frequency | AG6: Variability | AI6: Frequency | AK6: Relative Frequency | AL6: Variability | AN6: Frequency | AP6: Relative Frequency | AQ6: Variability | AS6: Frequency | AU6: Relative Frequency | AV6: Variability
A7: 12 | B7: 12 | C7: 13 | D7: 26 | E7: 13 | F7: 40 | K7: 0 | L7: 111 | N7: 111 | O7: =COUNTIF($L$7:$L$500,N7) -> 86 | P7: =O7/$Q$4 -> 0.5088757396 | Q7: =IF(P7=0,0,(P7*((LOG(P7))/LOG(2)))) -> -0.495957767 | T7: =N7 -> 111 | U7: =COUNTIF(L7:L34,T7) -> 19 | V7: =U7/(W4-U11) -> 0.8260869565 | W7: =IF(V7=0,0,(V7*((LOG(V7))/LOG(2)))) -> -0.2276980178 | Y7: =N7 -> 111 | Z7: =COUNTIF(L35:L62,Y7) -> 15 | AA7: =Z7/(AB4-Z11) -> 0.625 | AB7: =IF(AA7=0,0,(AA7*((LOG(AA7))/LOG(2)))) -> -0.4237949407 | AD7: =N7 -> 111 | AE7: =COUNTIF(L63:L91,AD7) -> 14 | AF7: =AE7/(AG4-AE11) -> 0.7777777778 | AG7: =IF(AF7=0,0,(AF7*((LOG(AF7))/LOG(2)))) -> -0.2819989506 | AI7: =N7 -> 111 | AJ7: =COUNTIF(L92:L119,AI7) -> 14 | AK7: =AJ7/(AL4-AJ11) -> 0.8235294118 | AL7: =IF(AK7=0,0,(AK7*((LOG(AK7))/LOG(2)))) -> -0.2306771099 | AN7: =N7 -> 111 | AO7: =COUNTIF(L120:L147,AN7) -> 14 | AP7: =AO7/(AQ4-AO11) -> 0.5833333333 | AQ7: =IF(AP7=0,0,(AP7*((LOG(AP7))/LOG(2)))) -> -0.4536044209 | AS7: =N7 -> 111 | AT7: =COUNTIF(L148:L175,AS7) -> 10 | AU7: =AT7/(AV4-AT11) -> 0.4 | AV7: =IF(AU7=0,0,(AU7*((LOG(AU7))/LOG(2)))) -> -0.528771238
A8: 12 | B8: 142 | C8: 13 | D8: 151 | E8: 24 | F8: 164 | K8: 0 | L8: 112 | N8: 112 | O8: 19 | P8: 0.1124260355 | Q8: -0.3544738848 | T8: 112 | U8: =COUNTIF(L7:L34,T8) -> 2 | V8: =U8/(W4-U11) -> 0.08695652174 | W8: =IF(V8=0,0,(V8*((LOG(V8))/LOG(2)))) -> -0.3063966918 | Y8: 112 | Z8: =COUNTIF(L35:L62,Y8) -> 5 | AA8: =Z8/(AB4-Z11) -> 0.2083333333 | AB8: =IF(AA8=0,0,(AA8*((LOG(AA8))/LOG(2)))) -> -0.4714655012 | AD8: 112 | AE8: =COUNTIF(L63:L91,AD8) -> 3 | AF8: =AE8/(AG4-AE11) -> 0.1666666667 | AG8: =IF(AF8=0,0,(AF8*((LOG(AF8))/LOG(2)))) -> -0.4308270835 | AI8: 112 | AJ8: =COUNTIF(L92:L119,AI8) -> 2 | AK8: =AJ8/(AL4-AJ11) -> 0.1176470588 | AL8: =IF(AK8=0,0,(AK8*((LOG(AK8))/LOG(2)))) -> -0.3632309225 | AN8: 112 | AO8: =COUNTIF(L120:L147,AN8) -> 3 | AP8: =AO8/(AQ4-AO11) -> 0.125 | AQ8: =IF(AP8=0,0,(AP8*((LOG(AP8))/LOG(2)))) -> -0.375 | AS8: 112 | AT8: =COUNTIF(L148:L175,AS8) -> 4 | AU8: =AT8/(AV4-AT11) -> 0.16 | AV8: =IF(AU8=0,0,(AU8*((LOG(AU8))/LOG(2)))) -> -0.4230169904
A9: 12 | B9: 264 | C9: 13 | D9: 274 | E9: 13 | F9: 278 | K9: 0 | L9: 111 | N9: 121 | O9: 13 | P9: 0.07692307692 | Q9: -0.2846492091 | T9: 121 | U9: =COUNTIF(L7:L34,T9) -> 1 | V9: =U9/(W4-U11) -> 0.04347826087 | W9: =IF(V9=0,0,(V9*((LOG(V9))/LOG(2)))) -> -0.1966766068 | Y9: 121 | Z9: =COUNTIF(L35:L62,Y9) -> 4 | AA9: =Z9/(AB4-Z11) -> 0.1666666667 | AB9: =IF(AA9=0,0,(AA9*((LOG(AA9))/LOG(2)))) -> -0.4308270835 | AD9: 121 | AE9: =COUNTIF(L63:L91,AD9) -> 1 | AF9: =AE9/(AG4-AE11) -> 0.05555555556 | AG9: =IF(AF9=0,0,(AF9*((LOG(AF9))/LOG(2)))) -> -0.2316625001 | AI9: 121 | AJ9: =COUNTIF(L92:L119,AI9) -> 1 | AK9: =AJ9/(AL4-AJ11) -> 0.05882352941 | AL9: =IF(AK9=0,0,(AK9*((LOG(AK9))/LOG(2)))) -> -0.2404389907 | AN9: 121 | AO9: =COUNTIF(L120:L147,AN9) -> 2 | AP9: =AO9/(AQ4-AO11) -> 0.08333333333 | AQ9: =IF(AP9=0,0,(AP9*((LOG(AP9))/LOG(2)))) -> -0.2987468751 | AS9: 121 | AT9: =COUNTIF(L148:L175,AS9) -> 4 | AU9: =AT9/(AV4-AT11) -> 0.16 | AV9: =IF(AU9=0,0,(AU9*((LOG(AU9))/LOG(2)))) -> -0.4230169904
A10: 12 | B10: 384 | C10: 13 | D10: 393 | E10: 13 | F10: 401 | K10: 0 | L10: 111 | N10: 122 | O10: 4 | P10: 0.02366863905 | Q10: -0.1278314659 | T10: 122 | U10: =COUNTIF(L7:L34,T10) -> 0 | V10: =U10/(W4-U11) -> 0 | W10: =IF(V10=0,0,(V10*((LOG(V10))/LOG(2)))) -> 0 | Y10: 122 | Z10: =COUNTIF(L35:L62,Y10) -> 0 | AA10: =Z10/(AB4-Z11) -> 0 | AB10: =IF(AA10=0,0,(AA10*((LOG(AA10))/LOG(2)))) -> 0 | AD10: 122 | AE10: =COUNTIF(L63:L91,AD10) -> 0 | AF10: =AE10/(AG4-AE11) -> 0 | AG10: =IF(AF10=0,0,(AF10*((LOG(AF10))/LOG(2)))) -> 0 | AI10: 122 | AJ10: =COUNTIF(L92:L119,AI10) -> 0 | AK10: =AJ10/(AL4-AJ11) -> 0 | AL10: =IF(AK10=0,0,(AK10*((LOG(AK10))/LOG(2)))) -> 0 | AN10: 122 | AO10: =COUNTIF(L120:L147,AN10) -> 1 | AP10: =AO10/(AQ4-AO11) -> 0.04166666667 | AQ10: =IF(AP10=0,0,(AP10*((LOG(AP10))/LOG(2)))) -> -0.1910401042 | AS10: 122 | AT10: =COUNTIF(L148:L175,AS10) -> 3 | AU10: =AT10/(AV4-AT11) -> 0.12 | AV10: =IF(AU10=0,0,(AU10*((LOG(AU10))/LOG(2)))) -> -0.3670672427
A11: 12 | B11: 591 | C11: 13 | D11: 594 | E11: 24 | F11: 604 | K11: 0 | L11: 112 | N11: 211 | O11: 38 | P11: 0.224852071 | Q11: -0.4840956986 | T11: 211 | U11: =COUNTIF(L7:L34,T11) -> 5 | Y11: 211 | Z11: =COUNTIF(L35:L62,Y11) -> 4 | AD11: 211 | AE11: =COUNTIF(L63:L91,AD11) -> 11 | AI11: 211 | AJ11: =COUNTIF(L92:L119,AI11) -> 11 | AN11: 211 | AO11: =COUNTIF(L120:L147,AN11) -> 4 | AS11: 211 | AT11: =COUNTIF(L148:L175,AS11) -> 3
A12: 12 | B12: 703 | C12: 13 | D12: 713 | E12: 13 | F12: 721 | K12: 0 | L12: 111 | N12: 212 | O12: 5 | P12: 0.02958579882 | Q12: -0.1502648326 | T12: 212 | U12: =COUNTIF(L7:L34,T12) -> 0 | V12: =U12/(W4-U11) -> 0 | W12: =IF(V12=0,0,(V12*((LOG(V12))/LOG(2)))) -> 0 | Y12: 212 | Z12: =COUNTIF(L35:L62,Y12) -> 0 | AA12: =Z12/(AB4-Z11) -> 0 | AB12: =IF(AA12=0,0,(AA12*((LOG(AA12))/LOG(2)))) -> 0 | AD12: 212 | AE12: =COUNTIF(L63:L91,AD12) -> 0 | AF12: =AE12/(AG4-AE11) -> 0 | AG12: =IF(AF12=0,0,(AF12*((LOG(AF12))/LOG(2)))) -> 0 | AI12: 212 | AJ12: =COUNTIF(L92:L119,AI12) -> 0 | AK12: =AJ12/(AL4-AJ11) -> 0 | AL12: =IF(AK12=0,0,(AK12*((LOG(AK12))/LOG(2)))) -> 0 | AN12: 212 | AO12: =COUNTIF(L120:L147,AN12) -> 2 | AP12: =AO12/(AQ4-AO11) -> 0.08333333333 | AQ12: =IF(AP12=0,0,(AP12*((LOG(AP12))/LOG(2)))) -> -0.2987468751 | AS12: 212 | AT12: =COUNTIF(L148:L175,AS12) -> 3 | AU12: =AT12/(AV4-AT11) -> 0.12 | AV12: =IF(AU12=0,0,(AU12*((LOG(AU12))/LOG(2)))) -> -0.3670672427
A13: 12 | B13: 823 | C13: 13 | D13: 828 | E13: 13 | F13: 835 | K13: 0 | L13: 111 | N13: 221 | O13: 4 | P13: 0.02366863905 | Q13: -0.1278314659 | T13: 221 | U13: =COUNTIF(L7:L34,T13) -> 1 | V13: =U13/(W4-U11) -> 0.04347826087 | W13: =IF(V13=0,0,(V13*((LOG(V13))/LOG(2)))) -> -0.1966766068 | Y13: 221 | Z13: =COUNTIF(L35:L62,Y13) -> 0 | AA13: =Z13/(AB4-Z11) -> 0 | AB13: =IF(AA13=0,0,(AA13*((LOG(AA13))/LOG(2)))) -> 0 | AD13: 221 | AE13: =COUNTIF(L63:L91,AD13) -> 0 | AF13: =AE13/(AG4-AE11) -> 0 | AG13: =IF(AF13=0,0,(AF13*((LOG(AF13))/LOG(2)))) -> 0 | AI13: 221 | AJ13: =COUNTIF(L92:L119,AI13) -> 0 | AK13: =AJ13/(AL4-AJ11) -> 0 | AL13: =IF(AK13=0,0,(AK13*((LOG(AK13))/LOG(2)))) -> 0 | AN13: 221 | AO13: =COUNTIF(L120:L147,AN13) -> 2 | AP13: =AO13/(AQ4-AO11) -> 0.08333333333 | AQ13: =IF(AP13=0,0,(AP13*((LOG(AP13))/LOG(2)))) -> -0.2987468751 | AS13: 221 | AT13: =COUNTIF(L148:L175,AS13) -> 1 | AU13: =AT13/(AV4-AT11) -> 0.04 | AV13: =IF(AU13=0,0,(AU13*((LOG(AU13))/LOG(2)))) -> -0.1857542476
A14: 12 | B14: 927 | C14: 13 | D14: 938 | E14: 13 | F14: 942 | K14: 0 | L14: 111 | N14: 222 | O14: 0 | P14: 0 | Q14: 0 | T14: 222 | U14: =COUNTIF(L7:L34,T14) -> 0 | V14: =U14/(W4-U11) -> 0 | W14: =IF(V14=0,0,(V14*((LOG(V14))/LOG(2)))) -> 0 | Y14: 222 | Z14: =COUNTIF(L35:L62,Y14) -> 0 | AA14: =Z14/(AB4-Z11) -> 0 | AB14: =IF(AA14=0,0,(AA14*((LOG(AA14))/LOG(2)))) -> 0 | AD14: 222 | AE14: =COUNTIF(L63:L91,AD14) -> 0 | AF14: =AE14/(AG4-AE11) -> 0 | AG14: =IF(AF14=0,0,(AF14*((LOG(AF14))/LOG(2)))) -> 0 | AI14: 222 | AJ14: =COUNTIF(L92:L119,AI14) -> 0 | AK14: =AJ14/(AL4-AJ11) -> 0 | AL14: =IF(AK14=0,0,(AK14*((LOG(AK14))/LOG(2)))) -> 0 | AN14: 222 | AO14: =COUNTIF(L120:L147,AN14) -> 0 | AP14: =AO14/(AQ4-AO11) -> 0 | AQ14: =IF(AP14=0,0,(AP14*((LOG(AP14))/LOG(2)))) -> 0 | AS14: 222 | AT14: =COUNTIF(L148:L175,AS14) -> 0 | AU14: =AT14/(AV4-AT11) -> 0 | AV14: =IF(AU14=0,0,(AU14*((LOG(AU14))/LOG(2)))) -> 0
A15: 12 | B15: 1096 | C15: 13 | D15: 1101 | E15: 13 | F15: 1114 | K15: 0 | L15: 111 | P15: =SUM(P7:P14) -> 1 | Q15: =-SUM(Q7:Q14) -> 2.025104324 | V15: =SUM(V7:V14) -> 1 | W15: =-SUM(W7:W14) -> 0.9274479232 | AA15: =SUM(AA7:AA14) -> 1 | AB15: =-SUM(AB7:AB14) -> 1.326087525 | AF15: =SUM(AF7:AF14) -> 1 | AG15: =-SUM(AG7:AG14) -> 0.9444885342 | AK15: =SUM(AK7:AK14) -> 1 | AL15: =-SUM(AL7:AL14) -> 0.8343470231 | AP15: =SUM(AP7:AP14) -> 1 | AQ15: =-SUM(AQ7:AQ14) -> 1.91588515 | AU15: =SUM(AU7:AU14) -> 1 | AV15: =-SUM(AV7:AV14) -> 2.294693952
A16: 12 | B16: 1248 | C16: 13 | D16: 1252 | E16: 13 | F16: 1290 | K16: 0 | L16: 111 | P16: U= | Q16: =Q15/(LOG(Q4)/LOG(2)) -> 0.2736302275 | V16: U1= | W16: =W15/(LOG(W4)/LOG(2)) -> 0.1929227066 | AA16: U2= | AB16: =AB15/(LOG(AB4)/LOG(2)) -> 0.2758455631 | AF16: U3= | AG16: =AG15/(LOG(AG4)/LOG(2)) -> 0.1944199731 | AK16: U4= | AL16: =AL15/(LOG(AL4)/LOG(2)) -> 0.1735563603 | AP16: U5= | AQ16: =AQ15/(LOG(AQ4)/LOG(2)) -> 0.3985320787 | AU16: U6= | AV16: =AV15/(LOG(AV4)/LOG(2)) -> 0.4773298391
A17: 12 | B17: 1392 | C17: 13 | D17: 1399 | E17: 13 | F17: 1407 | K17: 0 | L17: 111
A18: 21 | B18: 1521 | C18: 11 | D18: 1530 | E18: 11 | F18: 1535 | K18: 0 | L18: 211
A19: 12 | B19: 1733 | C19: 13 | D19: 1738 | E19: 13 | F19: 1747 | K19: 0 | L19: 111 | N19: Total Target Seq
A20: 12 | B20: 1845 | C20: 13 | D20: 1861 | E20: 13 | F20: 1871 | K20: 0 | L20: 111 | N20: =COUNTIF(L7:L175,G3) -> 38 | P20: 28 | Q20: 28 | R20: 29 | S20: 28 | T20: 28 | U20: 28
A21: 12 | B21: 1971 | C21: 13 | D21: 1975 | E21: 13 | F21: 1983 | K21: 0 | L21: 111 | P21: % of reinforcement given in 6 equal intervals based on number of trials
A22: 12 | B22: 2087 | C22: 13 | D22: 2098 | E22: 13 | F22: 2108 | K22: 0 | L22: 111 | P22: %_1 | Q22: %_2 | R22: %_3 | S22: %_4 | T22: %_5 | U22: %_6
A23: 12 | B23: 2209 | C23: 13 | D23: 2214 | E23: 13 | F23: 2223 | K23: 0 | L23: 111 | O23: target sequence | P23: =$G$3 -> 211 | Q23: 211 | R23: 211 | S23: 211 | T23: 211 | U23: 211
A24: 21 | B24: 2315 | C24: 11 | D24: 2325 | E24: 11 | F24: 2331 | K24: 0 | L24: 211 | O24: total reinforcement | P24: =U11 -> 5 | Q24: =Z11 -> 4 | R24: =AE11 -> 11 | S24: =AJ11 -> 11 | T24: =AO11 -> 4 | U24: =AT11 -> 3
A25: 12 | B25: 2546 | C25: 13 | D25: 2551 | E25: 13 | F25: 2559 | K25: 0 | L25: 111 | O25: % target
A26: 21 | B26: 2651 | C26: 11 | D26: 2660 | E26: 11 | F26: 2669 | K26: 0 | L26: 211 | O26: CCRF
A27: 12 | B27: 2798 | C27: 13 | D27: 2803 | E27: 13 | F27: 2808 | K27: 0 | L27: 111 | O27: % CCRf
A28: 21 | B28: 2900 | C28: 11 | D28: 2909 | E28: 11 | F28: 2917 | K28: 0 | L28: 211 | O28: average response rate | P28: =F34/P20 -> 137.1785714 | Q28: =(F62-F34)/Q20 -> 132.0714286 | R28: =(F91-F62)/R20 -> 140.2068966 | S28: =(F119-F91)/S20 -> 136.1785714 | T28: =(F147-F119)/T20 -> 125.1785714 | U28: =(F175-F147)/U20 -> 179.1071429
A29: 21 | B29: 3143 | C29: 22 | D29: 3152 | E29: 13 | F29: 3161 | K29: 0 | L29: 221
A30: 12 | B30: 3260 | C30: 13 | D30: 3272 | E30: 13 | F30: 3284 | K30: 0 | L30: 111
A31: 12 | B31: 3395 | C31: 24 | D31: 3406 | E31: 13 | F31: 3426 | K31: 0 | L31: 121
A32: 21 | B32: 3518 | C32: 11 | D32: 3528 | E32: 11 | F32: 3535 | K32: 0 | L32: 211
A33: 12 | B33: 3686 | C33: 13 | D33: 3700 | E33: 13 | F33: 3706 | K33: 0 | L33: 111
A34: 12 | B34: 3809 | C34: 13 | D34: 3814 | E34: 13 | F34: 3841 | K34: 0 | L34: 111
A35: 12 | B35: 3942 | C35: 13 | D35: 3947 | E35: 13 | F35: 3954 | K35: 0 | L35: 111
A36: 12 | B36: 4056 | C36: 13 | D36: 4064 | E36: 24 | F36: 4074 | K36: 0 | L36: 112
A37: 12 | B37: 4174 | C37: 24 | D37: 4187 | E37: 13 | F37: 4204 | K37: 0 | L37: 121
A38: 12 | B38: 4303 | C38: 24 | D38: 4316 | E38: 13 | F38: 4336 | K38: 0 | L38: 121
A39: 21 | B39: 4440 | C39: 11 | D39: 4450 | E39: 11 | F39: 4455 | K39: 0 | L39: 211
A40: 12 | B40: 4612 | C40: 13 | D40: 4622 | E40: 24 | F40: 4632 | K40: 0 | L40: 112
A41: 12 | B41: 4736 | C41: 13 | D41: 4743 | E41: 13 | F41: 4769 | K41: 0 | L41: 111
A42: 21 | B42: 4863 | C42: 11 | D42: 4872 | E42: 11 | F42: 4877 | K42: 0 | L42: 211
A43: 21 | B43: 4994 | C43: 11 | D43: 5001 | E43: 11 | F43: 5009 | K43: 0 | L43: 211
A44: 12 | B44: 5221 | C44: 13 | D44: 5235 | E44: 13 | F44: 5246 | K44: 0 | L44: 111
A45: 12 | B45: 5345 | C45: 13 | D45: 5348 | E45: 13 | F45: 5372 | K45: 0 | L45: 111
A46: 12 | B46: 5471 | C46: 13 | D46: 5476 | E46: 13 | F46: 5502 | K46: 0 | L46: 111
A47: 12 | B47: 5602 | C47: 13 | D47: 5606 | E47: 24 | F47: 5617 | K47: 0 | L47: 112
A48: 12 | B48: 5720 | C48: 13 | D48: 5724 | E48: 13 | F48: 5730 | K48: 0 | L48: 111
A49: 12 | B49: 5843 | C49: 24 | D49: 5857 | E49: 13 | F49: 5875 | K49: 0 | L49: 121
A50: 12 | B50: 5974 | C50: 13 | D50: 5979 | E50: 24 | F50: 5988 | K50: 0 | L50: 112
A51: 12 | B51: 6095 | C51: 13 | D51: 6103 | E51: 13 | F51: 6129 | K51: 0 | L51: 111
A52: 12 | B52: 6234 | C52: 13 | D52: 6238 | E52: 13 | F52: 6243 | K52: 0 | L52: 111
A53: 12 | B53: 6340 | C53: 13 | D53: 6347 | E53: 24 | F53: 6372 | K53: 0 | L53: 112
A54: 12 | B54: 6480 | C54: 13 | D54: 6485 | E54: 13 | F54: 6492 | K54: 0 | L54: 111
A55: 12 | B55: 6600 | C55: 13 | D55: 6605 | E55: 13 | F55: 6638 | K55: 0 | L55: 111
A56: 12 | B56: 6738 | C56: 13 | D56: 6753 | E56: 13 | F56: 6760 | K56: 0 | L56: 111
A57: 21 | B57: 6857 | C57: 11 | D57: 6866 | E57: 11 | F57: 6871 | K57: 0 | L57: 211
A58: 12 | B58: 7009 | C58: 13 | D58: 7014 | E58: 13 | F58: 7020 | K58: 0 | L58: 111
A59: 12 | B59: 7133 | C59: 13 | D59: 7138 | E59: 13 | F59: 7143 | K59: 0 | L59: 111
A60: 12 | B60: 7247 | C60: 13 | D60: 7254 | E60: 13 | F60: 7284 | K60: 0 | L60: 111
A61: 12 | B61: 7390 | C61: 24 | D61: 7401 | E61: 13 | F61: 7421 | K61: 0 | L61: 121
A62: 12 | B62: 7513 | C62: 13 | D62: 7535 | E62: 13 | F62: 7539 | K62: 0 | L62: 111
A63: 21 | B63: 7639 | C63: 11 | D63: 7647 | E63: 11 | F63: 7652 | K63: 0 | L63: 211
A64: 12 | B64: 7795 | C64: 13 | D64: 7803 | E64: 24 | F64: 7816 | K64: 0 | L64: 112
A65: 12 | B65: 7917 | C65: 13 | D65: 7922 | E65: 13 | F65: 7970 | K65: 0 | L65: 111
A66: 12 | B66: 8070 | C66: 13 | D66: 8074 | E66: 13 | F66: 8079 | K66: 0 | L66: 111
A67: 21 | B67: 8181 | C67: 11 | D67: 8190 | E67: 11 | F67: 8195 | K67: 0 | L67: 211
A68: 12 | B68: 8334 | C68: 13 | D68: 8347 | E68: 13 | F68: 8359 | K68: 0 | L68: 111
A69: 12 | B69: 8466 | C69: 13 | D69: 8473 | E69: 13 | F69: 8482 | K69: 0 | L69: 111
A70: 21 | B70: 8577 | C70: 11 | D70: 8586 | E70: 11 | F70: 8591 | K70: 0 | L70: 211
A71: 21 | B71: 8709 | C71: 11 | D71: 8717 | E71: 11 | F71: 8729 | K71: 0 | L71: 211
A72: 12 | B72: 8950 | C72: 13 | D72: 8954 | E72: 24 | F72: 8969 | K72: 0 | L72: 112
A73: 21 | B73: 9061 | C73: 11 | D73: 9071 | E73: 11 | F73: 9079 | K73: 0 | L73: 211
A74: 21 | B74: 9203 | C74: 11 | D74: 9216 | E74: 11 | F74: 9226 | K74: 0 | L74: 211
A75: 21 | B75: 9365 | C75: 11 | D75: 9374 | E75: 11 | F75: 9383 | K75: 0 | L75: 211
A76: 21 | B76: 9530 | C76: 11 | D76: 9562 | E76: 11 | F76: 9576 | K76: 0 | L76: 211
A77: 12 | B77: 9785 | C77: 13 | D77: 9789 | E77: 13 | F77: 9797 | K77: 0 | L77: 111
A78: 12 | B78: 9902 | C78: 13 | D78: 9907 | E78: 13 | F78: 9916 | K78: 0 | L78: 111
A79: 12 | B79: 10033 | C79: 13 | D79: 10040 | E79: 24 | F79: 10051 | K79: 0 | L79: 112
A80: 12 | B80: 10150 | C80: 13 | D80: 10155 | E80: 13 | F80: 10161 | K80: 0 | L80: 111
A81: 12 | B81: 10264 | C81: 13 | D81: 10268 | E81: 13 | F81: 10276 | K81: 0 | L81: 111
A82: 21 | B82: 10368 | C82: 11 | D82: 10383 | E82: 11 | F82: 10389 | K82: 0 | L82: 211
A83: 12 | B83: 10538 | C83: 13 | D83: 10551 | E83: 13 | F83: 10561 | K83: 0 | L83: 111
A84: 21 | B84: 10658 | C84: 11 | D84: 10665 | E84: 11 | F84: 10669 | K84: 0 | L84: 211
A85: 12 | B85: 10791 | C85: 13 | D85: 10798 | E85: 13 | F85: 10804 | K85: 0 | L85: 111
A86: 12 | B86: 10908 | C86: 13 | D86: 10914 | E86: 13 | F86: 10939 | K86: 0 | L86: 111
A87: 12 | B87: 11040 | C87: 24 | D87: 11050 | E87: 13 | F87: 11067 | K87: 0 | L87: 121
A88: 12 | B88: 11168 | C88: 13 | D88: 11173 | E88: 13 | F88: 11178 | K88: 0 | L88: 111
A89: 12 | B89: 11280 | C89: 13 | D89: 11285 | E89: 13 | F89: 11291 | K89: 0 | L89: 111
A90: 21 | B90: 11384 | C90: 11 | D90: 11393 | E90: 11 | F90: 11397 | K90: 0 | L90: 211
A91: 12 | B91: 11584 | C91: 13 | D91: 11593 | E91: 13 | F91: 11605 | K91: 0 | L91: 111
A92: 12 | B92: 11709 | C92: 24 | D92: 11720 | E92: 13 | F92: 11742 | K92: 0 | L92: 121
A93: 12 | B93: 11864 | C93: 13 | D93: 11886 | E93: 13 | F93: 11891 | K93: 0 | L93: 111
A94: 12 | B94: 11992 | C94: 13 | D94: 12001 | E94: 13 | F94: 12010 | K94: 0 | L94: 111
A95: 12 | B95: 12124 | C95: 13 | D95: 12128 | E95: 13 | F95: 12135 | K95: 0 | L95: 111
A96: 12 | B96: 12237 | C96: 13 | D96: 12242 | E96: 13 | F96: 12252 | K96: 0 | L96: 111
A97: 12 | B97: 12358 | C97: 13 | D97: 12365 | E97: 13 | F97: 12374 | K97: 0 | L97: 111
A98: 12 | B98: 12474 | C98: 13 | D98: 12478 | E98: 13 | F98: 12485 | K98: 0 | L98: 111
A99: 21 | B99: 12586 | C99: 11 | D99: 12596 | E99: 11 | F99: 12601 | K99: 0 | L99: 211
A100: 21 | B100: 12696 | C100: 11 | D100: 12734 | E100: 11 | F100: 12748 | K100: 0 | L100: 211
A101: 12 | B101: 12933 | C101: 13 | D101: 12938 | E101: 13 | F101: 12945 | K101: 0 | L101: 111
A102: 21 | B102: 13044 | C102: 11 | D102: 13054 | E102: 11 | F102: 13058 | K102: 0 | L102: 211
A103: 21 | B103: 13180 | C103: 11 | D103: 13200 | E103: 11 | F103: 13211 | K103: 0 | L103: 211
A104: 12 | B104: 13360 | C104: 13 | D104: 13365 | E104: 13 | F104: 13374 | K104: 0 | L104: 111
A105: 12 | B105: 13480 | C105: 13 | D105: 13484 | E105: 13 | F105: 13493 | K105: 0 | L105: 111
A106: 21 | B106: 13594 | C106: 11 | D106: 13603 | E106: 11 | F106: 13607 | K106: 0 | L106: 211
A107: 12 | B107: 13719 | C107: 13 | D107: 13731 | E107: 13 | F107: 13740 | K107: 0 | L107: 111
A108: 21 | B108: 13832 | C108: 11 | D108: 13843 | E108: 11 | F108: 13851 | K108: 0 | L108: 211
A109: 21 | B109: 13986 | C109: 11 | D109: 13995 | E109: 11 | F109: 14008 | K109: 0 | L109: 211
A110: 21 | B110: 14108 | C110: 11 | D110: 14117 | E110: 11 | F110: 14128 | K110: 0 | L110: 211
A111: 21 | B111: 14252 | C111: 11 | D111: 14261 | E111: 11 | F111: 14266 | K111: 0 | L111: 211
A112: 12 | B112: 14398 | C112: 13 | D112: 14410 | E112: 13 | F112: 14425 | K112: 0 | L112: 111
A113: 21 | B113: 14523 | C113: 11 | D113: 14533 | E113: 11 | F113: 14538 | K113: 0 | L113: 211
A114: 12 | B114: 14648 | C114: 13 | D114: 14654 | E114: 24 | F114: 14666 | K114: 0 | L114: 112
A115: 12 | B115: 14773 | C115: 13 | D115: 14777 | E115: 24 | F115: 14789 | K115: 0 | L115: 112
A116: 21 | B116: 14884 | C116: 11 | D116: 14893 | E116: 11 | F116: 14898 | K116: 0 | L116: 211
A117: 12 | B117: 15073 | C117: 13 | D117: 15096 | E117: 13 | F117: 15161 | K117: 0 | L117: 111
A118: 12 | B118: 15263 | C118: 13 | D118: 15268 | E118: 13 | F118: 15300 | K118: 0 | L118: 111
A119: 12 | B119: 15405 | C119: 13 | D119: 15411 | E119: 13 | F119: 15418 | K119: 0 | L119: 111
A120: 12 | B120: 15527 | C120: 13 | D120: 15536 | E120: 24 | F120: 15547 | K120: 0 | L120: 112
A121: 21 | B121: 15647 | C121: 11 | D121: 15656 | E121: 11 | F121: 15661 | K121: 0 | L121: 211
A122: 21 | B122: 15753 | C122: 11 | D122: 15761 | E122: 22 | F122: 15766 | K122: 0 | L122: 212
A123: 21 | B123: 15866 | C123: 11 | D123: 15871 | E123: 22 | F123: 15882 | K123: 0 | L123: 212
A124: 12 | B124: 15985 | C124: 13 | D124: 15988 | E124: 13 | F124: 16017 | K124: 0 | L124: 111
A125: 12 | B125: 16118 | C125: 13 | D125: 16126 | E125: 13 | F125: 16133 | K125: 0 | L125: 111
A126: 12 | B126: 16238 | C126: 13 | D126: 16261 | E126: 13 | F126: 16267 | K126: 0 | L126: 111
A127: 12 | B127: 16373 | C127: 13 | D127: 16377 | E127: 13 | F127: 16382 | K127: 0 | L127: 111
A128: 12 | B128: 16480 | C128: 13 | D128: 16490 | E128: 13 | F128: 16510 | K128: 0 | L128: 111
A129: 12 | B129: 16603 | C129: 13 | D129: 16613 | E129: 13 | F129: 16618 | K129: 0 | L129: 111
A130: 12 | B130: 16714 | C130: 13 | D130: 16731 | E130: 13 | F130: 16735 | K130: 0 | L130: 111
A131: 21 | B131: 16834 | C131: 11 | D131: 16842 | E131: 11 | F131: 16852 | K131: 0 | L131: 211
A132: 12 | B132: 16983 | C132: 13 | D132: 16987 | E132: 13 | F132: 16997 | K132: 0 | L132: 111
A133: 21 | B133: 17089 | C133: 11 | D133: 17098 | E133: 11 | F133: 17107 | K133: 0 | L133: 211
A134: 21 | B134: 17311 | C134: 22 | D134: 17315 | E134: 13 | F134: 17320 | K134: 0 | L134: 221
A135: 12 | B135: 17426 | C135: 24 | D135: 17435 | E135: 13 | F135: 17439 | K135: 0 | L135: 121
A136: 12 | B136: 17540 | C136: 24 | D136: 17545 | E136: 24 | F136: 17554 | K136: 0 | L136: 122
A137: 12 | B137: 17656 | C137: 13 | D137: 17665 | E137: 13 | F137: 17675 | K137: 0 | L137: 111
A138: 12 | B138: 17776 | C138: 13 | D138: 17780 | E138: 24 | F138: 17789 | K138: 0 | L138: 112
A139: 12 | B139: 17918 | C139: 13 | D139: 17925 | E139: 13 | F139: 17933 | K139: 0 | L139: 111
A140: 12 | B140: 18034 | C140: 24 | D140: 18040 | E140: 13 | F140: 18046 | K140: 0 | L140: 121
A141: 12 | B141: 18139 | C141: 13 | D141: 18149 | E141: 13 | F141: 18157 | K141: 0 | L141: 111
A142: 21 | B142: 18261 | C142: 22 | D142: 18266 | E142: 13 | F142: 18272 | K142: 0 | L142: 221
A143: 12 | B143: 18372 | C143: 13 | D143: 18378 | E143: 24 | F143: 18387 | K143: 0 | L143: 112
A144: 12 | B144: 18488 | C144: 13 | D144: 18517 | E144: 13 | F144: 18523 | K144: 0 | L144: 111
A145: 21 | B145: 18629 | C145: 11 | D145: 18635 | E145: 11 | F145: 18641 | K145: 0 | L145: 211
A146: 12 | B146: 18774 | C146: 13 | D146: 18793 | E146: 13 | F146: 18805 | K146: 0 | L146: 111
A147: 12 | B147: 18909 | C147: 13 | D147: 18914 | E147: 13 | F147: 18923 | K147: 0 | L147: 111
A148: 12 | B148: 19023 | C148: 13 | D148: 19028 | E148: 13 | F148: 19033 | K148: 0 | L148: 111
A149: 12 | B149: 19178 | C149: 13 | D149: 19184 | E149: 13 | F149: 19190 | K149: 0 | L149: 111
A150: 12 | B150: 19291 | C150: 24 | D150: 19295 | E150: 13 | F150: 19299 | K150: 0 | L150: 121
A151: 21 | B151: 19400 | C151: 11 | D151: 19405 | E151: 11 | F151: 19409 | K151: 0 | L151: 211
A152: 21 | B152: 19564 | C152: 11 | D152: 19568 | E152: 22 | F152: 19575 | K152: 0 | L152: 212
A153: 21 | B153: 19678 | C153: 11 | D153: 19683 | E153: 11 | F153: 19688 | K153: 0 | L153: 211
A154: 12 | B154: 19789 | C154: 24 | D154: 19800 | E154: 13 | F154: 19809 | K154: 0 | L154: 121
A155: 12 | B155: 19901 | C155: 13 | D155: 19912 | E155: 13 | F155: 19917 | K155: 0 | L155: 111
A156: 21 | B156: 20025 | C156: 11 | D156: 20030 | E156: 22 | F156: 20053 | K156: 0 | L156: 212
A157: 12 | B157: 20154 | C157: 13 | D157: 20158 | E157: 13 | F157: 20164 | K157: 0 | L157: 111
A158: 12 | B158: 20256 | C158: 13 | D158: 20268 | E158: 24 | F158: 20272 | K158: 0 | L158: 112
A159: 12 | B159: 20379 | C159: 13 | D159: 20425 | E159: 13 | F159: 20430 | K159: 0 | L159: 111
A160: 21 | B160: 20527 | C160: 22 | D160: 20537 | E160: 13 | F160: 20548 | K160: 0 | L160: 221
A161: 12 | B161: 20646 | C161: 24 | D161: 20652 | E161: 13 | F161: 20656 | K161: 0 | L161: 121
A162: 12 | B162: 20761 | C162: 13 | D162: 20765 | E162: 13 | F162: 20770 | K162: 0 | L162: 111
A163: 12 | B163: 20862 | C163: 13 | D163: 20871 | E163: 13 | F163: 20876 | K163: 0 | L163: 111
A164: 12 | B164: 20989 | C164: 13 | D164: 20993 | E164: 24 | F164: 20999 | K164: 0 | L164: 112
A165: 12 | B165: 21101 | C165: 24 | D165: 21107 | E165: 13 | F165: 21120 | K165: 0 | L165: 121
A166: 12 | B166: 21220 | C166: 24 | D166: 21229 | E166: 24 | F166: 21233 | K166: 0 | L166: 122
A167: 12 | B167: 21407 | C167: 13 | D167: 21419 | E167: 13 | F167: 21430 | K167: 0 | L167: 111
A168: 12 | B168: 21542 | C168: 13 | D168: 21551 | E168: 13 | F168: 21558 | K168: 0 | L168: 111
A169: 12 | B169: 21664 | C169: 24 | D169: 21674 | E169: 24 | F169: 21683 | K169: 0 | L169: 122
A170: 12 | B170: 21786 | C170: 13 | D170: 21790 | E170: 13 | F170: 21795 | K170: 0 | L170: 111
A171: 12 | B171: 21900 | C171: 24 | D171: 21904 | E171: 24 | F171: 21909 | K171: 0 | L171: 122
A172: 21 | B172: 22018 | C172: 11 | D172: 22023 | E172: 22 | F172: 22029 | K172: 0 | L172: 212
A173: 12 | B173: 23580 | C173: 13 | D173: 23584 | E173: 24 | F173: 23593 | K173: 0 | L173: 112
A174: 21 | B174: 23687 | C174: 11 | D174: 23701 | E174: 11 | F174: 23727 | K174: 0 | L174: 211
A175: 12 | B175: 23905 | C175: 13 | D175: 23918 | E175: 24 | F175: 23938 | L175: 112

Sheet !MC2493I.sha
A1: Report for:!MC2493I.sha
A2: Date: | B2: <date>
A3: Hen: | B3: <hen> | F3: Correct Sequence | G3: =Start!J2 -> 211 | P3: Total Sequences in Data | Q3: =4994-COUNTBLANK(L7:L5000) -> 191 | V3: Total Sequences in Block Data | W3: =COUNTA(L7:L38) -> 32 | AA3: Total Sequences in Block Data | AB3: =COUNTA(L39:L70) -> 32 | AF3: Total Sequences in Block Data | AG3: =COUNTA(L71:L101) -> 31 | AK3: Total Sequences in Block Data | AL3: =COUNTA(L102:L133) -> 32 | AP3: Total Sequences in Block Data | AQ3: =COUNTA(L134:L165) -> 32 | AU3: Total Sequences in Block Data | AV3: =COUNTA(L166:L197) -> 32
P4: Total Sequences in Summary | Q4: =SUM(O7:O14) -> 191 | V4: Total Sequences in Block Summary | W4: =SUM(U7:U14) -> 32 | AA4: Total Sequences in Block Summary | AB4: =SUM(Z7:Z14) -> 32 | AF4: Total Sequences in Block Summary | AG4: =SUM(AE7:AE14) -> 31 | AK4: Total Sequences in Block Summary | AL4: =SUM(AJ7:AJ14) -> 32 | AP4: Total Sequences in Block Summary | AQ4: =SUM(AO7:AO14) -> 32 | AU4: Total Sequences in Block Summary | AV4: =SUM(AT7:AT14) -> 32
T5: Block 1 | Y5: Block 2 | AD5: Block 3 | AI5: Block 4 | AN5: Block 5 | AS5: Block 6
A6: Sequence Component 1 | B6: Time 1 | C6: Sequence Component 2 | D6: Time 2 | E6: Sequence Component 3 | F6: Time 3 | G6: Sequence Component 4 | H6: Time 4 | I6: Sequence Component 5 | J6: Time 5 | K6: Correct? 0=No 1=Yes | L6: Sequence | N6: Frequency | P6: Relative Frequency | Q6: Variability | T6: Frequency | V6: Relative Frequency | W6: Variability | Y6: Frequency | AA6: Relative Frequency | AB6: Variability | AD6: Frequency | AF6: Relative Frequency | AG6: Variability | AI6: Frequency | AK6: Relative Frequency | AL6: Variability | AN6: Frequency | AP6: Relative Frequency | AQ6: Variability | AS6: Frequency | AU6: Relative Frequency | AV6: Variability
A7: 12 | B7: 9 | C7: 13 | D7: 15 | E7: 13 | F7: 20 | K7: 0 | L7: 111 | N7: 111 | O7: =COUNTIF($L$7:$L$500,N7) -> 102 | P7: =O7/$Q$4 -> 0.5340314136 | Q7: =IF(P7=0,0,(P7*((LOG(P7))/LOG(2)))) -> -0.483300291 | T7: =N7 -> 111 | U7: =COUNTIF(L7:L38,T7) -> 20 | V7: =U7/(W4-U11) -> 0.6896551724 | W7: =IF(V7=0,0,(V7*((LOG(V7))/LOG(2)))) -> -0.3696916553 | Y7: =N7 -> 111 | Z7: =COUNTIF(L39:L70,Y7) -> 12 | AA7: =Z7/(AB4-Z11) -> 0.4444444444 | AB7: =IF(AA7=0,0,(AA7*((LOG(AA7))/LOG(2)))) -> -0.5199666673 | AD7: =N7 -> 111 | AE7: =COUNTIF(L71:L101,AD7) -> 13 | AF7: =AE7/(AG4-AE11) -> 0.5416666667 | AG7: =IF(AF7=0,0,(AF7*((LOG(AF7))/LOG(2)))) -> -0.4791165072 | AI7: =N7 -> 111 | AJ7: =COUNTIF(L102:L133,AI7) -> 20 | AK7: =AJ7/(AL4-AJ11) -> 0.6666666667 | AL7: =IF(AK7=0,0,(AK7*((LOG(AK7))/LOG(2)))) -> -0.3899750005 | AN7: =N7 -> 111 | AO7: =COUNTIF(L134:L165,AN7) -> 17 | AP7: =AO7/(AQ4-AO11) -> 0.5666666667 | AQ7: =IF(AP7=0,0,(AP7*((LOG(AP7))/LOG(2)))) -> -0.4643423941 | AS7: =N7 -> 111 | AT7: =COUNTIF(L166:L197,AS7) -> 20 | AU7: =AT7/(AV4-AT11) -> 0.6896551724 | AV7: =IF(AU7=0,0,(AU7*((LOG(AU7))/LOG(2)))) -> -0.3696916553
A8: 12 | B8: 123 | C8: 13 | D8: 132 | E8: 13 | F8: 155 | K8: 0 | L8: 111 | N8: 112 | O8: 26 | P8: 0.1361256545 | Q8: -0.3916320254 | T8: 112 | U8: =COUNTIF(L7:L38,T8) -> 7 | V8: =U8/(W4-U11) -> 0.2413793103 | W8: =IF(V8=0,0,(V8*((LOG(V8))/LOG(2)))) -> -0.4949787073 | Y8: 112 | Z8: =COUNTIF(L39:L70,Y8) -> 6 | AA8: =Z8/(AB4-Z11) -> 0.2222222222 | AB8: =IF(AA8=0,0,(AA8*((LOG(AA8))/LOG(2)))) -> -0.4822055559 | AD8: 112 | AE8: =COUNTIF(L71:L101,AD8) -> 3 | AF8: =AE8/(AG4-AE11) -> 0.125 | AG8: =IF(AF8=0,0,(AF8*((LOG(AF8))/LOG(2)))) -> -0.375 | AI8: 112 | AJ8: =COUNTIF(L102:L133,AI8) -> 3 | AK8: =AJ8/(AL4-AJ11) -> 0.1 | AL8: =IF(AK8=0,0,(AK8*((LOG(AK8))/LOG(2)))) -> -0.3321928095 | AN8: 112 | AO8: =COUNTIF(L134:L165,AN8) -> 6 | AP8: =AO8/(AQ4-AO11) -> 0.2 | AQ8: =IF(AP8=0,0,(AP8*((LOG(AP8))/LOG(2)))) -> -0.464385619 | AS8: 112 | AT8: =COUNTIF(L166:L197,AS8) -> 1 | AU8: =AT8/(AV4-AT11) -> 0.03448275862 | AV8: =IF(AU8=0,0,(AU8*((LOG(AU8))/LOG(2)))) -> -0.167516586
A9: 12 | B9: 258 | C9: 13 | D9: 263 | E9: 24 | F9: 276 | K9: 0 | L9: 112 | N9: 121 | O9: 30 | P9: 0.1570680628 | Q9: -0.4194562669 | T9: 121 | U9: =COUNTIF(L7:L38,T9) -> 2 | V9: =U9/(W4-U11) -> 0.06896551724 | W9: =IF(V9=0,0,(V9*((LOG(V9))/LOG(2)))) -> -0.2660676548 | Y9: 121 | Z9: =COUNTIF(L39:L70,Y9) -> 5 | AA9: =Z9/(AB4-Z11) -> 0.1851851852 | AB9: =IF(AA9=0,0,(AA9*((LOG(AA9))/LOG(2)))) -> -0.4505480384 | AD9: 121 | AE9: =COUNTIF(L71:L101,AD9) -> 5 | AF9: =AE9/(AG4-AE11) -> 0.2083333333 | AG9: =IF(AF9=0,0,(AF9*((LOG(AF9))/LOG(2)))) -> -0.4714655012 | AI9: 121 | AJ9: =COUNTIF(L102:L133,AI9) -> 6 | AK9: =AJ9/(AL4-AJ11) -> 0.2 | AL9: =IF(AK9=0,0,(AK9*((LOG(AK9))/LOG(2)))) -> -0.464385619 | AN9: 121 | AO9: =COUNTIF(L134:L165,AN9) -> 5 | AP9: =AO9/(AQ4-AO11) -> 0.1666666667 | AQ9: =IF(AP9=0,0,(AP9*((LOG(AP9))/LOG(2)))) -> -0.4308270835 | AS9: 121 | AT9: =COUNTIF(L166:L197,AS9) -> 7 | AU9: =AT9/(AV4-AT11) -> 0.2413793103 | AV9: =IF(AU9=0,0,(AU9*((LOG(AU9))/LOG(2)))) -> -0.4949787073
A10: 12 | B10: 379 | C10: 13 | D10: 382 | E10: 24 | F10: 396 | K10: 0 | L10: 112 | N10: 122 | O10: 2 | P10: 0.01047120419 | Q10: -0.06887360029 | T10: 122 | U10: =COUNTIF(L7:L38,T10) -> 0 | V10: =U10/(W4-U11) -> 0 | W10: =IF(V10=0,0,(V10*((LOG(V10))/LOG(2)))) -> 0 | Y10: 122 | Z10: =COUNTIF(L39:L70,Y10) -> 1 | AA10: =Z10/(AB4-Z11) -> 0.03703703704 | AB10: =IF(AA10=0,0,(AA10*((LOG(AA10))/LOG(2)))) -> -0.1761069445 | AD10: 122 | AE10: =COUNTIF(L71:L101,AD10) -> 0 | AF10: =AE10/(AG4-AE11) -> 0 | AG10: =IF(AF10=0,0,(AF10*((LOG(AF10))/LOG(2)))) -> 0 | AI10: 122 | AJ10: =COUNTIF(L102:L133,AI10) -> 0 | AK10: =AJ10/(AL4-AJ11) -> 0 | AL10: =IF(AK10=0,0,(AK10*((LOG(AK10))/LOG(2)))) -> 0 | AN10: 122 | AO10: =COUNTIF(L134:L165,AN10) -> 1 | AP10: =AO10/(AQ4-AO11) -> 0.03333333333 | AQ10: =IF(AP10=0,0,(AP10*((LOG(AP10))/LOG(2)))) -> -0.1635630199 | AS10: 122 | AT10: =COUNTIF(L166:L197,AS10) -> 0 | AU10: =AT10/(AV4-AT11) -> 0 | AV10: =IF(AU10=0,0,(AU10*((LOG(AU10))/LOG(2)))) -> 0
A11: 12 | B11: 487 | C11: 13 | D11: 499 | E11: 24 | F11: 503 | K11: 0 | L11: 112 | N11: 211 | O11: 22 | P11: 0.1151832461 | Q11: -0.3591410398 | T11: 211 | U11: =COUNTIF(L7:L38,T11) -> 3 | Y11: 211 | Z11: =COUNTIF(L39:L70,Y11) -> 5 | AD11: 211 | AE11: =COUNTIF(L71:L101,AD11) -> 7 | AI11: 211 | AJ11: =COUNTIF(L102:L133,AI11) -> 2 | AN11: 211 | AO11: =COUNTIF(L134:L165,AN11) -> 2 | AS11: 211 | AT11: =COUNTIF(L166:L197,AS11) -> 3
A12: 21 | B12: 595 | C12: 11 | D12: 606 | E12: 11 | F12: 610 | K12: 0 | L12: 211 | N12: 212 | O12: 5 | P12: 0.02617801047 | Q12: -0.1375785532 | T12: 212 | U12: =COUNTIF(L7:L38,T12) -> 0 | V12: =U12/(W4-U11) -> 0 | W12: =IF(V12=0,0,(V12*((LOG(V12))/LOG(2)))) -> 0 | Y12: 212 | Z12: =COUNTIF(L39:L70,Y12) -> 2 | AA12: =Z12/(AB4-Z11) -> 0.07407407407 | AB12: =IF(AA12=0,0,(AA12*((LOG(AA12))/LOG(2)))) -> -0.278139815 | AD12: 212 | AE12: =COUNTIF(L71:L101,AD12) -> 1 | AF12: =AE12/(AG4-AE11) -> 0.04166666667 | AG12: =IF(AF12=0,0,(AF12*((LOG(AF12))/LOG(2)))) -> -0.1910401042 | AI12: 212 | AJ12: =COUNTIF(L102:L133,AI12) -> 1 | AK12: =AJ12/(AL4-AJ11) -> 0.03333333333 | AL12: =IF(AK12=0,0,(AK12*((LOG(AK12))/LOG(2)))) -> -0.1635630199 | AN12: 212 | AO12: =COUNTIF(L134:L165,AN12) -> 0 | AP12: =AO12/(AQ4-AO11) -> 0 | AQ12: =IF(AP12=0,0,(AP12*((LOG(AP12))/LOG(2)))) -> 0 | AS12: 212 | AT12: =COUNTIF(L166:L197,AS12) -> 1 | AU12: =AT12/(AV4-AT11) -> 0.03448275862 | AV12: =IF(AU12=0,0,(AU12*((LOG(AU12))/LOG(2)))) -> -0.167516586
A13: 12 | B13: 818 | C13: 13 | D13: 822 | E13: 13 | F13: 831 | K13: 0 | L13: 111 | N13: 221 | O13: 2 | P13: 0.01047120419 | Q13: -0.06887360029 | T13: 221 | U13: =COUNTIF(L7:L38,T13) -> 0 | V13: =U13/(W4-U11) -> 0 | W13: =IF(V13=0,0,(V13*((LOG(V13))/LOG(2)))) -> 0 | Y13: 221 | Z13: =COUNTIF(L39:L70,Y13) -> 0 | AA13: =Z13/(AB4-Z11) -> 0 | AB13: =IF(AA13=0,0,(AA13*((LOG(AA13))/LOG(2)))) -> 0 | AD13: 221 | AE13: =COUNTIF(L71:L101,AD13) -> 1 | AF13: =AE13/(AG4-AE11) -> 0.04166666667 | AG13: =IF(AF13=0,0,(AF13*((LOG(AF13))/LOG(2)))) -> -0.1910401042 | AI13: 221 | AJ13: =COUNTIF(L102:L133,AI13) -> 0 | AK13: =AJ13/(AL4-AJ11) -> 0 | AL13: =IF(AK13=0,0,(AK13*((LOG(AK13))/LOG(2)))) -> 0 | AN13: 221 | AO13: =COUNTIF(L134:L165,AN13) -> 1 | AP13: =AO13/(AQ4-AO11) -> 0.03333333333 | AQ13: =IF(AP13=0,0,(AP13*((LOG(AP13))/LOG(2)))) -> -0.1635630199 | AS13: 221 | AT13: =COUNTIF(L166:L197,AS13) -> 0 | AU13: =AT13/(AV4-AT11) -> 0 | AV13: =IF(AU13=0,0,(AU13*((LOG(AU13))/LOG(2)))) -> 0
A14: 12 | B14: 934 | C14: 13 | D14: 940 | E14: 24 | F14: 953 | K14: 0 | L14: 112 | N14: 222 | O14: 2 | P14: 0.01047120419 | Q14: -0.06887360029 | T14: 222 | U14: =COUNTIF(L7:L38,T14) -> 0 | V14: =U14/(W4-U11) -> 0 | W14: =IF(V14=0,0,(V14*((LOG(V14))/LOG(2)))) -> 0 | Y14: 222 | Z14: =COUNTIF(L39:L70,Y14) -> 1 | AA14: =Z14/(AB4-Z11) -> 0.03703703704 | AB14: =IF(AA14=0,0,(AA14*((LOG(AA14))/LOG(2)))) -> -0.1761069445 | AD14: 222 | AE14: =COUNTIF(L71:L101,AD14) -> 1 | AF14: =AE14/(AG4-AE11) -> 0.04166666667 | AG14: =IF(AF14=0,0,(AF14*((LOG(AF14))/LOG(2)))) -> -0.1910401042 | AI14: 222 | AJ14: =COUNTIF(L102:L133,AI14) -> 0 | AK14: =AJ14/(AL4-AJ11) -> 0 | AL14: =IF(AK14=0,0,(AK14*((LOG(AK14))/LOG(2)))) -> 0 | AN14: 222 | AO14: =COUNTIF(L134:L165,AN14) -> 0 | AP14: =AO14/(AQ4-AO11) -> 0 | AQ14: =IF(AP14=0,0,(AP14*((LOG(AP14))/LOG(2)))) -> 0 | AS14: 222 | AT14: =COUNTIF(L166:L197,AS14) -> 0 | AU14: =AT14/(AV4-AT11) -> 0 | AV14: =IF(AU14=0,0,(AU14*((LOG(AU14))/LOG(2)))) -> 0
A15: 12 | B15: 1054 | C15: 13 | D15: 1061 | E15: 24 | F15: 1071 | K15: 0 | L15: 112 | P15: =SUM(P7:P14) -> 1 | Q15: =-SUM(Q7:Q14) -> 1.997728977 | V15: =SUM(V7:V14) -> 1 | W15: =-SUM(W7:W14) -> 1.130738017 | AA15: =SUM(AA7:AA14) -> 1 | AB15: =-SUM(AB7:AB14) -> 2.083073966 | AF15: =SUM(AF7:AF14) -> 1 | AG15: =-SUM(AG7:AG14) -> 1.898702321 | AK15: =SUM(AK7:AK14) -> 1 | AL15: =-SUM(AL7:AL14) -> 1.350116449 | AP15: =SUM(AP7:AP14) -> 1 | AQ15: =-SUM(AQ7:AQ14) -> 1.686681136 | AU15: =SUM(AU7:AU14) -> 1 | AV15: =-SUM(AV7:AV14) -> 1.199703535
A16: 12 | B16: 1173 | C16: 13 | D16: 1177 | E16: 13 | F16: 1187 | K16: 0 | L16: 111 | P16: U= | Q16: =Q15/(LOG(Q4)/LOG(2)) -> 0.2636420642 | V16: U1= | W16: =W15/(LOG(W4)/LOG(2)) -> 0.2261476035 | AA16: U2= | AB16: =AB15/(LOG(AB4)/LOG(2)) -> 0.4166147931 | AF16: U3= | AG16: =AG15/(LOG(AG4)/LOG(2)) -> 0.3832513292 | AK16: U4= | AL16: =AL15/(LOG(AL4)/LOG(2)) -> 0.2700232898 | AP16: U5= | AQ16: =AQ15/(LOG(AQ4)/LOG(2)) -> 0.3373362273 | AU16: U6= | AV16: =AV15/(LOG(AV4)/LOG(2)) -> 0.2399407069
A17: 21 | B17: 1284 | C17: 11 | D17: 1293 | E17: 11 | F17: 1300 | K17: 0 | L17: 211
A18: 12 | B18: 1440 | C18: 13 | D18: 1458 | E18: 13 | F18: 1474 | K18: 0 | L18: 111
A19: 12 | B19: 1578 | C19: 13 | D19: 1582 | E19: 13 | F19: 1610 | K19: 0 | L19: 111 | N19: Total Target Seq
A20: 12 | B20: 1712 | C20: 24 | D20: 1725 | E20: 13 | F20: 1740 | K20: 0 | L20: 121 | N20: =COUNTIF(L7:L197,G3) -> 22 | P20: 32 | Q20: 32 | R20: 31 | S20: 32 | T20: 32 | U20: 32
A21: 12 | B21: 1842 | C21: 13 | D21: 1846 | E21: 13 | F21: 1856 | K21: 0 | L21: 111 | P21: % of reinforcement given in 6 equal intervals based on number of trials
A22: 12 | B22: 1953 | C22: 13 | D22: 1966 | E22: 24 | F22: 1975 | K22: 0 | L22: 112 | P22: %_1 | Q22: %_2 | R22: %_3 | S22: %_4 | T22: %_5 | U22: %_6
A23: 12 | B23: 2067 | C23: 24 | D23: 2079 | E23: 13 | F23: 2083 | K23: 0 | L23: 121 | O23: target sequence | P23: =$G$3 -> 211 | Q23: 211 | R23: 211 | S23: 211 | T23: 211 | U23: 211
A24: 21 | B24: 2179 | C24: 11 | D24: 2191 | E24: 11 | F24: 2198 | K24: 0 | L24: 211 | O24: total reinforcement | P24: =U11 -> 3 | Q24: =Z11 -> 5 | R24: =AE11 -> 7 | S24: =AJ11 -> 2 | T24: =AO11 -> 2 | U24: =AT11 -> 3
A25: 12 | B25: 2304 | C25: 13 | D25: 2310 | E25: 13 | F25: 2340 | K25: 0 | L25: 111 | O25: % target
A26: 12 | B26: 2454 | C26: 13 | D26: 2472 | E26: 13 | F26: 2481 | K26: 0 | L26: 111 | O26: CCRF
A27: 12 | B27: 2586 | C27: 13 | D27: 2591 | E27: 13 | F27: 2603 | K27: 0 | L27: 111 | O27: % CCRf
A28: 12 | B28: 2706 | C28: 13 | D28: 2710 | E28: 13 | F28: 2717 | K28: 0 | L28: 111 | O28: average response rate | P28: =F38/P20 -> 121.8125 | Q28: =(F70-F38)/Q20 -> 128.71875 | R28: =(F101-F70)/R20 -> 123.1290323 | S28: =(F133-F101)/S20 -> 123.375 | T28: =(F165-F133)/T20 -> 123.25 | U28: =(F197-F165)/U20 -> 128.71875
A29: 12 | B29: 2809 | C29: 13 | D29: 2829 | E29: 13 | F29: 2836 | K29: 0 | L29: 111
A30: 12 | B30: 2928 | C30: 13 | D30: 2939 | E30: 24 | F30: 2943 | K30: 0 | L30: 112
A31: 12 | B31: 3050 | C31: 13 | D31: 3054 | E31: 13 | F31: 3061 | K31: 0 | L31: 111
A32: 12 | B32: 3157 | C32: 13 | D32: 3172 | E32: 13 | F32: 3186 | K32: 0 | L32: 111
A33: 12 | B33: 3278 | C33: 13 | D33: 3294 | E33: 13 | F33: 3299 | K33: 0 | L33: 111
A34: 12 | B34: 3405 | C34: 13 | D34: 3410 | E34: 13 | F34: 3416 | K34: 0 | L34: 111
A35: 12 | B35: 3528 | C35: 13 | D35: 3554 | E35: 13 | F35: 3559 | K35: 0 | L35: 111
A36: 12 | B36: 3656 | C36: 13 | D36: 3666 | E36: 13 | F36: 3670 | K36: 0 | L36: 111
A37: 12 | B37: 3764 | C37: 13 | D37: 3773 | E37: 13 | F37: 3778 | K37: 0 | L37: 111
A38: 12 | B38: 3885 | C38: 13 | D38: 3890 | E38: 13 | F38: 3898 | K38: 0 | L38: 111
A39: 21 | B39: 4007 | C39: 11 | D39: 4011 | E39: 11 | F39: 4019 | K39: 0 | L39: 211
A40: 12 | B40: 4194 | C40: 13 | D40: 4203 | E40: 24 | F40: 4218 | K40: 0 | L40: 112
A41: 12 | B41: 4333 | C41: 24 | D41: 4338 | E41: 13 | F41: 4343 | K41: 0 | L41: 121
A42: 12 | B42: 4441 | C42: 13 | D42: 4458 | E42: 13 | F42: 4468 | K42: 0 | L42: 111
A43: 12 | B43: 4617 | C43: 13 | D43: 4622 | E43: 24 | F43: 4649 | K43: 0 | L43: 112
A44: 12 | B44: 4746 | C44: 13 | D44: 4756 | E44: 13 | F44: 4764 | K44: 0 | L44: 111
A45: 12 | B45: 4868 | C45: 13 | D45: 4874 | E45: 24 | F45: 4889 | K45: 0 | L45: 112
A46: 12 | B46: 4982 | C46: 24 | D46: 4991 | E46: 24 | F46: 5000 | K46: 0 | L46: 122
A47: 21 | B47: 5103 | C47: 11 | D47: 5121 | E47: 22 | F47: 5135 | K47: 0 | L47: 212
A48: 12 | B48: 5227 | C48: 13 | D48: 5239 | E48: 13 | F48: 5243 | K48: 0 | L48: 111
A49: 21 | B49: 5337 | C49: 11 | D49: 5348 | E49: 11 | F49: 5355 | K49: 0 | L49: 211
A50: 21 | B50: 5562 | C50: 11 | D50: 5566 | E50: 11 | F50: 5580 | K50: 0 | L50: 211
A51: 12 | B51: 5718 | C51: 13 | D51: 5741 | E51: 13 | F51: 5753 | K51: 0 | L51: 111
A52: 12 | B52: 5855 | C52: 13 | D52: 5861 | E52: 24 | F52: 5873 | K52: 0 | L52: 112
A53: 12 | B53: 5976 | C53: 13 | D53: 5981 | E53: 13 | F53: 5990 | K53: 0 | L53: 111
A54: 21 | B54: 6091 | C54: 22 | D54: 6096 | E54: 24 | F54: 6100 | K54: 0 | L54: 222
A55: 12 | B55: 6204 | C55: 13 | D55: 6212 | E55: 13 | F55: 6222 | K55: 0 | L55: 111
A56: 12 | B56: 6315 | C56: 24 | D56: 6327 | E56: 13 | F56: 6331 | K56: 0 | L56: 121
A57: 12 | B57: 6424 | C57: 13 | D57: 6434 | E57: 13 | F57: 6438 | K57: 0 | L57: 111
A58: 12 | B58: 6542 | C58: 13 | D58: 6554 | E58: 13 | F58: 6564 | K58: 0 | L58: 111
A59: 12 | B59: 6661 | C59: 13 | D59: 6675 | E59: 13 | F59: 6687 | K59: 0 | L59: 111
A60: 12 | B60: 6783 | C60: 13 | D60: 6793 | E60: 13 | F60: 6796 | K60: 0 | L60: 111
A61: 12 | B61: 6894 | C61: 13 | D61: 6903 | E61: 24 | F61: 6907 | K61: 0 | L61: 112
A62: 12 | B62: 6999 | C62: 24 | D62: 7010 | E62: 13 | F62: 7015 | K62: 0 | L62: 121
A63: 12 | B63: 7108 | C63: 13 | D63: 7120 | E63: 24 | F63: 7133 | K63: 0 | L63: 112
A64: 21 | B64: 7290 | C64: 11 | D64: 7295 | E64: 11 | F64: 7303 | K64: 0 | L64: 211
A65: 21 | B65: 7417 | C65: 11 | D65: 7421 | E65: 22 | F65: 7433 | K65: 0 | L65: 212
A66: 12 | B66: 7540 | C66: 24 | D66: 7547 | E66: 13 | F66: 7558 | K66: 0 | L66: 121
A67: 12 | B67: 7667 | C67: 24 | D67: 7671 | E67: 13 | F67: 7676 | K67: 0 | L67: 121
A68: 12 | B68: 7778 | C68: 13 | D68: 7782 | E68: 13 | F68: 7791 | K68: 0 | L68: 111
A69: 12 | B69: 7883 | C69: 13 | D69: 7890 | E69: 13 | F69: 7902 | K69: 0 | L69: 111
A70: 21 | B70: 8000 | C70: 11 | D70: 8010 | E70: 11 | F70: 8017 | K70: 0 | L70: 211
A71: 12 | B71: 8119 | C71: 13 | D71: 8125 | E71: 13 | F71: 8138 | K71: 0 | L71: 111
A72: 12 | B72: 8231 | C72: 13 | D72: 8247 | E72: 13 | F72: 8254 | K72: 0 | L72: 111
A73: 21 | B73: 8346 | C73: 11 | D73: 8353 | E73: 11 | F73: 8365 | K73: 0 | L73: 211
A74: 12 | B74: 8501 | C74: 13 | D74: 8515 | E74: 13 | F74: 8524 | K74: 0 | L74: 111
A75: 12 | B75: 8644 | C75: 13 | D75: 8648 | E75: 24 | F75: 8661 | K75: 0 | L75: 112
A76: 21 | B76: 8771 | C76: 22 | D76: 8775 | E76: 24 | F76: 8780 | K76: 0 | L76: 222
A77: 21 | B77: 8876 | C77: 11 | D77: 8886 | E77: 11 | F77: 8895 | K77: 0 | L77: 211
A78: 21 | B78: 9000 | C78: 22 | D78: 9009 | E78: 13 | F78: 9018 | K78: 0 | L78: 221
A79: 21 | B79: 9128 | C79: 11 | D79: 9132 | E79: 11 | F79: 9137 | K79: 0 | L79: 211
A80: 12 | B80: 9267 | C80: 13 | D80: 9280 | E80: 24 | F80: 9288 | K80: 0 | L80: 112
A81: 12 | B81: 9383 | C81: 13 | D81: 9403 | E81: 13 | F81: 9409 | K81: 0 | L81: 111
A82: 12 | B82: 9501 | C82: 13 | D82: 9512 | E82: 13 | F82: 9518 | K82: 0 | L82: 111
A83: 12 | B83: 9620 | C83: 13 | D83: 9625 | E83: 13 | F83: 9649 | K83: 0 | L83: 111
A84: 12 | B84: 9756 | C84: 13 | D84: 9770 | E84: 13 | F84: 9780 | K84: 0 | L84: 111
A85: 12 | B85: 9881 | C85: 24 | D85: 9885 | E85: 13 | F85: 9890 | K85: 0 | L85: 121
A86: 21 | B86: 9988 | C86: 11 | D86: 9999 | E86: 22 | F86: 10016 | K86: 0 | L86: 212
A87: 21 | B87: 10117 | C87: 11 | D87: 10125 | E87: 11 | F87: 10138 | K87: 0 | L87: 211
A88: 12 | B88: 10263 | C88: 13 | D88: 10268 | E88: 13 | F88: 10277 | K88: 0 | L88: 111
A89: 21 | B89: 10370 | C89: 11 | D89: 10379 | E89: 11 | F89: 10391 | K89: 0 | L89: 211
A90: 12 | B90: 10512 | C90: 24 | D90: 10516 | E90: 13 | F90: 10525 | K90: 0 | L90: 121
A91: 12 | B91: 10627 | C91: 13 | D91: 10631 | E91: 13 | F91: 10644 | K91: 0 | L91: 111
A92: 12 | B92: 10736 | C92: 24 | D92: 10746 | E92: 13 | F92: 10755 | K92: 0 | L92: 121
A93: 12 | B93: 10852 | C93: 13 | D93: 10858 | E93: 13 | F93: 10867 | K93: 0 | L93: 111
A94: 12 | B94: 10965 | C94: 13 | D94: 10973 | E94: 24 | F94: 10982 | K94: 0 | L94: 112
A95: 12 | B95: 11083 | C95: 13 | D95: 11088 | E95: 13 | F95: 11125 | K95: 0 | L95: 111
A96: 12 | B96: 11227 | C96: 24 | D96: 11232 | E96: 13 | F96: 11240 | K96: 0 | L96: 121
A97: 21 | B97: 11340 | C97: 11 | D97: 11344 | E97: 11 | F97: 11353 | K97: 0 | L97: 211
A98: 12 | B98: 11460 | C98: 13 | D98: 11469 | E98: 13 | F98: 11485 | K98: 0 | L98: 111
A99: 12 | B99: 11577 | C99: 13 | D99: 11586 | E99: 13 | F99: 11593 | K99: 0 | L99: 111
A100: 12 | B100: 11703 | C100: 24 | D100: 11706 | E100: 13 | F100: 11716 | K100: 0 | L100: 121
A101: 21 | B101: 11820 | C101: 11 | D101: 11824 | E101: 11 | F101: 11834 | K101: 0 | L101: 211
A102: 12 | B102: 11970 | C102: 13 | D102: 11972 | E102: 24 | F102: 11979 | K102: 0 | L102: 112
A103: 12 | B103: 12080 | C103: 13 | D103: 12096 | E103: 13 | F103: 12150 | K103: 0 | L103: 111
A104: 12 | B104: 12245 | C104: 13 | D104: 12255 | E104: 13 | F104: 12259 | K104: 0 | L104: 111
A105: 12 | B105: 12361 | C105: 24 | D105: 12369 | E105: 13 | F105: 12378 | K105: 0 | L105: 121
A106: 12 | B106: 12487 | C106: 13 | D106: 12492 | E106: 24 | F106: 12497 | K106: 0 | L106: 112
A107: 12 | B107: 12609 | C107: 13 | D107: 12616 | E107: 13 | F107: 12642 | K107: 0 | L107: 111
A108: 12 | B108: 12743 | C108: 13 | D108: 12749 | E108: 13 | F108: 12760 | K108: 0 | L108: 111
A109: 12 | B109: 12861 | C109: 13 | D109: 12865 | E109: 13 | F109: 12894 | K109: 0 | L109: 111
A110: 12 | B110: 12988 | C110: 24 | D110: 12999 | E110: 13 | F110: 13004 | K110: 0 | L110: 121
A111: 12 | B111: 13106 | C111: 13 | D111: 13110 | E111: 13 | F111: 13121 | K111: 0 | L111: 111
A112: 12 | B112: 13219 | C112: 13 | D112: 13223 | E112: 13 | F112: 13228 | K112: 0 | L112: 111
A113: 12 | B113: 13330 | C113: 13 | D113: 13337 | E113: 13 | F113: 13348 | K113: 0 | L113: 111
A114: 12 | B114: 13446 | C114: 13 | D114: 13454 | E114: 13 | F114: 13464 | K114: 0 | L114: 111
A115: 12 | B115: 13565 | C115: 13 | D115: 13572 | E115: 13 | F115: 13587 | K115: 0 | L115: 111
A116: 21 | B116: 13692 | C116: 11 | D116: 13697 | E116: 11 | F116: 13704 | K116: 0 | L116: 211
A117: 12 | B117: 13825 | C117: 13 | D117: 13832 | E117: 13 | F117: 13843 | K117: 0 | L117: 111
A118: 12 | B118: 13944 | C118: 13 | D118: 13948 | E118: 13 | F118: 13953 | K118: 0 | L118: 111
A119: 12 | B119: 14059 | C119: 13 | D119: 14064 | E119: 13 | F119: 14070 | K119: 0 | L119: 111
A120: 12 | B120: 14177 | C120: 13 | D120: 14182 | E120: 13 | F120: 14190 | K120: 0 | L120: 111
A121: 21 | B121: 14317 | C121: 11 | D121: 14326 | E121: 11 | F121: 14343 | K121: 0 | L121: 211
A122: 12 | B122: 14473 | C122: 13 | D122: 14485 | E122: 13 | F122: 14498 | K122: 0 | L122: 111
A123: 12 | B123: 14590 | C123: 13 | D123: 14600 | E123: 13 | F123: 14608 | K123: 0 | L123: 111
A124: 12 | B124: 14701 | C124: 24 | D124: 14713 | E124: 13 | F124: 14717 | K124: 0 | L124: 121
A125: 12 | B125: 14819 | C125: 24 | D125: 14823 | E125: 13 | F125: 14830 | K125: 0 | L125: 121
A126: 21 | B126: 14944 | C126: 11 | D126: 14949 | E126: 22 | F126: 14953 | K126: 0 | L126: 212
A127: 12 | B127: 15045 | C127: 13 | D127: 15056 | E127: 13 | F127: 15068 | K127: 0 | L127: 111
A128: 12 | B128: 15168 | C128: 24 | D128: 15177 | E128: 13 | F128: 15187 | K128: 0 | L128: 121
A129: 12 | B129: 15279 | C129: 13 | D129: 15289 | E129: 13 | F129: 15293 | K129: 0 | L129: 111
A130: 12 | B130: 15386 | C130: 13 | D130: 15402 | E130: 13 | F130: 15413 | K130: 0 | L130: 111
A131: 12 | B131: 15505 | C131: 24 | D131: 15519 | E131: 13 | F131: 15524 | K131: 0 | L131: 121
A132: 12 | B132: 15628 | C132: 13 | D132: 15632 | E132: 24 | F132: 15660 | K132: 0 | L132: 112
A133: 12 | B133: 15764 | C133: 13 | D133: 15777 | E133: 13 | F133: 15782 | K133: 0 | L133: 111
A134: 12 | B134: 15875 | C134: 24 | D134: 15884 | E134: 13 | F134: 15889 | K134: 0 | L134: 121
A135: 12 | B135: 15995 | C135: 13 | D135: 16002 | E135: 13 | F135: 16014 | K135: 0 | L135: 111
A136: 12 | B136: 16125 | C136: 13 | D136: 16129 | E136: 13 | F136: 16134 | K136: 0 | L136: 111
A137: 12 | B137: 16236 | C137: 13 | D137: 16240 | E137: 24 | F137: 16249 | K137: 0 | L137: 112
A138: 12 | B138: 16353 | C138: 13 | D138: 16356 | E138: 13 | F138: 16363 | K138: 0 | L138: 111
A139: 12 | B139: 16470 | C139: 13 | D139: 16476 | E139: 13 | F139: 16484 | K139: 0 | L139: 111
A140: 12 | B140: 16585 | C140: 13 | D140: 16588 | E140: 13 | F140: 16630 | K140: 0 | L140: 111
A141: 12 | B141: 16731 | C141: 13 | D141: 16739 | E141: 13 | F141: 16745 | K141: 0 | L141: 111
A142: 12 | B142: 16843 | C142: 13 | D142: 16852 | E142: 24 | F142: 16857 | K142: 0 | L142: 112
A143: 12 | B143: 16983 | C143: 24 | D143: 16996 | E143: 13 | F143: 17010 | K143: 0 | L143: 121
A144: 12 | B144: 17117 | C144: 24 | D144: 17121 | E144: 13 | F144: 17128 | K144: 0 | L144: 121
A145: 12 | B145: 17234 | C145: 24 | D145: 17238 | E145: 13 | F145: 17244 | K145: 0 | L145: 121
A146: 12 | B146: 17346 | C146: 13 | D146: 17355 | E146: 13 | F146: 17370 | K146: 0 | L146: 111
A147: 21 | B147: 17477 | C147: 22 | D147: 17482 | E147: 13 | F147: 17486 | K147: 0 | L147: 221
A148: 12 | B148: 17578 | C148: 13 | D148: 17587 | E148: 24 | F148: 17591 | K148: 0 | L148: 112
A149: 12 | B149: 17690 | C149: 13 | D149: 17700 | E149: 13 | F149: 17704 | K149: 0 | L149: 111
A150: 12 | B150: 17813 | C150: 24 | D150: 17820 | E150: 13 | F150: 17835 | K150: 0 | L150: 121
A151: 12 | B151: 17937 | C151: 13 | D151: 17941 | E151: 13 | F151: 17946 | K151: 0 | L151: 111
A152: 12 | B152: 18051 | C152: 13 | D152: 18055 | E152: 24 | F152: 18061 | K152: 0 | L152: 112
A153: 12 | B153: 18168 | C153: 13 | D153: 18172 | E153: 13 | F153: 18179 | K153: 0 | L153: 111
A154: 12 | B154: 18276 | C154: 13 | D154: 18282 | E154: 13 | F154: 18292 | K154: 0 | L154: 111
A155: 12 | B155: 18390 | C155: 13 | D155: 18400 | E155: 13 | F155: 18404 | K155: 0 | L155: 111
A156: 21 | B156: 18512 | C156: 11 | D156: 18516 | E156: 11 | F156: 18524 | K156: 0 | L156: 211
A157: 12 | B157: 18732 | C157: 24 | D157: 18737 | E157: 24 | F157: 18741 | K157: 0 | L157: 122
A158: 21 | B158: 18834 | C158: 11 | D158: 18844 | E158: 11 | F158: 18858 | K158: 0 | L158: 211
A159: 12 | B159: 19001 | C159: 13 | D159: 19014 | E159: 24 | F159: 19027 | K159: 0 | L159: 112
A160: 12 | B160: 19132 | C160: 13 | D160: 19140 | E160: 24 | F160: 19148 | K160: 0 | L160: 112
A161: 12 | B161: 19240 | C161: 13 | D161: 19257 | E161: 13 | F161: 19262 | K161: 0 | L161: 111
A162: 12 | B162: 19364 | C162: 13 | D162: 19371 | E162: 13 | F162: 19380 | K162: 0 | L162: 111
A163: 12 | B163: 19481 | C163: 13 | D163: 19487 | E163: 13 | F163: 19499 | K163: 0 | L163: 111
A164: 12 | B164: 19604 | C164: 13 | D164: 19609 | E164: 13 | F164: 19622 | K164: 0 | L164: 111
A165: 12 | B165: 19714 | C165: 13 | D165: 19718 | E165: 13 | F165: 19726 | K165: 0 | L165: 111
A166: 12 | B166: 19824 | C166: 13 | D166: 19833 | E166: 13 | F166: 19837 | K166: 0 | L166: 111
A167: 12 | B167: 19929 | C167: 13 | D167: 19946 | E167: 13 | F167: 19952 | K167: 0 | L167: 111
A168: 12 | B168: 20053 | C168: 24 | D168: 20057 | E168: 13 | F168: 20062 | K168: 0 | L168: 121
A169: 12 | B169: 20159 | C169: 13 | D169: 20167 | E169: 13 | F169: 20172 | K169: 0 | L169: 111
A170: 12 | B170: 20271 | C170: 24 | D170: 20284 | E170: 13 | F170: 20304 | K170: 0 | L170: 121
A171: 12 | B171: 20408 | C171: 24 | D171: 20412 | E171: 13 | F171: 20421 | K171: 0 | L171: 121
A172: 12 | B172: 20524 | C172: 13 | D172: 20530 | E172: 13 | F172: 20536 | K172: 0 | L172: 111
A173: 12 | B173: 20642 | C173: 13 | D173: 20652 | E173: 13 | F173: 20657 | K173: 0 | L173: 111
A174: 21 | B174: 20779 | C174: 11 | D174: 20789 | E174: 22 | F174: 20794 | K174: 0 | L174: 212
A175: 12 | B175: 20894 | C175: 13 | D175: 20898 | E175: 13 | F175: 20903 | K175: 0 | L175: 111
A176: 12 | B176: 21008 | C176: 13 | D176: 21013 | E176: 24 | F176: 21022 | K176: 0 | L176: 112
A177: 21 | B177: 21127 | C177: 11 | D177: 21132 | E177: 11 | F177: 21136 | K177: 0 | L177: 211
A178: 12 | B178: 21243 | C178: 24 | D178: 21247 | E178: 13 | F178: 21258 | K178: 0 | L178: 121
A179: 12 | B179: 21359 | C179: 13 | D179: 21363 | E179: 13 | F179: 21371 | K179: 0 | L179: 111
A180: 12 | B180: 21475 | C180: 13 | D180: 21485 | E180: 13 | F180: 21489 | K180: 0 | L180: 111
A181: 12 | B181: 21605 | C181: 13 | D181: 21614 | E181: 13 | F181: 21621 | K181: 0 | L181: 111
A182: 12 | B182: 21723 | C182: 24 | D182: 21733 | E182: 13 | F182: 21739 | K182: 0 | L182: 121
A183: 12 | B183: 21843 | C183: 24 | D183: 21852 | E183: 13 | F183: 21856 | K183: 0 | L183: 121
A184: 12 | B184: 21949 | C184: 24 | D184: 21962 | E184: 13 | F184: 21966 | K184: 0 | L184: 121
A185: 12 | B185: 22075 | C185: 13 | D185: 22079 | E185: 13 | F185: 22085 | K185: 0 | L185: 111
A186: 12 | B186: 22189 | C186: 13 | D186: 22192 | E186: 13 | F186: 22197 | K186: 0 | L186: 111
A187: 12 | B187: 22669 | C187: 13 | D187: 22696 | E187: 13 | F187: 22701 | K187: 0 | L187: 111
A188: 12 | B188: 22801 | C188: 13 | D188: 22805 | E188: 13 | F188: 22813 | K188: 0 | L188: 111
A189: 12 | B189: 22918 | C189: 13 | D189: 22922 | E189: 13 | F189: 22929 | K189: 0 | L189: 111
A190: 12 | B190: 23030 | C190: 13 | D190: 23037 | E190: 13 | F190: 23045 | K190: 0 | L190: 111
A191: 21 | B191: 23141 | C191: 11 | D191: 23153 | E191: 11 | F191: 23161 | K191: 0 | L191: 211
A192: 12 | B192: 23280 | C192: 13 | D192: 23284 | E192: 13 | F192: 23290 | K192: 0 | L192: 111
A193: 12 | B193: 23389 | C193: 13 | D193: 23395 | E193: 13 | F193: 23401 | K193: 0 | L193: 111
A194: 12 | B194: 23502 | C194: 13 | D194: 23506 | E194: 13 | F194: 23512 | K194: 0 | L194: 111
A195: 12 | B195: 23616 | C195: 13 | D195: 23621 | E195: 13 | F195: 23628 | K195: 0 | L195: 111
A196: 12 | B196: 23728 | C196: 13 | D196: 23733 | E196: 13 | F196: 23737 | K196: 0 | L196: 111
A197: 21 | B197: 23830 | C197: 11 | D197: 23841 | E197: 11 | F197: 23845 | K197: 0 | L197: 211

Sheet !MC2695I.sha
A1: Report for:!MC2695I.sha
A2: Date: | B2: <date>
A3: Hen: | B3: <hen> | F3: Correct Sequence | G3: =Start!J2 -> 211 | P3: Total Sequences in Data | Q3: =4994-COUNTBLANK(L7:L5000) -> 180 | V3: Total Sequences in Block Data | W3: =COUNTA(L7:L36) -> 30 | AA3: Total Sequences in Block Data | AB3: =COUNTA(L37:L66) -> 30 | AF3: Total Sequences in Block Data | AG3: =COUNTA(L67:L96) -> 30 | AK3: Total Sequences in Block Data | AL3: =COUNTA(L97:L126) -> 30 | AP3: Total Sequences in Block Data | AQ3: =COUNTA(L127:L156) -> 30 | AU3: Total Sequences in Block Data | AV3: =COUNTA(L157:L186) -> 30
P4: Total Sequences in Summary | Q4: =SUM(O7:O14) -> 180 | V4: Total Sequences in Block Summary | W4: =SUM(U7:U14) -> 30 | AA4: Total Sequences in Block Summary | AB4: =SUM(Z7:Z14) -> 30 | AF4: Total Sequences in Block Summary | AG4: =SUM(AE7:AE14) -> 30 | AK4: Total Sequences in Block Summary | AL4: =SUM(AJ7:AJ14) -> 30 | AP4: Total Sequences in Block Summary | AQ4: =SUM(AO7:AO14) -> 30 | AU4: Total Sequences in Block Summary | AV4: =SUM(AT7:AT14) -> 30
T5: Block 1 | Y5: Block 2 | AD5: Block 3 | AI5: Block 4 | AN5: Block 5 | AS5: Block 6
A6: Sequence Component 1 | B6: Time 1 | C6: Sequence Component 2 | D6: Time 2 | E6: Sequence Component 3 | F6: Time 3 | G6: Sequence Component 4 | H6: Time 4 | I6: Sequence Component 5 | J6: Time 5 | K6: Correct? 0=No 1=Yes | L6: Sequence | N6: Frequency | P6: Relative Frequency | Q6: Variability | T6: Frequency | V6: Relative Frequency | W6: Variability | Y6: Frequency | AA6: Relative Frequency | AB6: Variability | AD6: Frequency | AF6: Relative Frequency | AG6: Variability | AI6: Frequency | AK6: Relative Frequency | AL6: Variability | AN6: Frequency | AP6: Relative Frequency | AQ6: Variability | AS6: Frequency | AU6: Relative Frequency | AV6: Variability
A7: 12 | B7: 10 | C7: 24 | D7: 14 | E7: 13 | F7: 23 | K7: 0 | L7: 121 | N7: 111 | O7: =COUNTIF($L$7:$L$500,N7) -> 90 | P7: =O7/$Q$4 -> 0.5 | Q7: =IF(P7=0,0,(P7*((LOG(P7))/LOG(2)))) -> -0.5 | T7: =N7 -> 111 | U7: =COUNTIF(L7:L36,T7) -> 13 | V7: =U7/(W4-U11) -> 0.5652173913 | W7: =IF(V7=0,0,(V7*((LOG(V7))/LOG(2)))) -> -0.465243004 | Y7: =N7 -> 111 | Z7: =COUNTIF(L37:L66,Y7) -> 19 | AA7: =Z7/(AB4-Z11) -> 0.8260869565 | AB7: =IF(AA7=0,0,(AA7*((LOG(AA7))/LOG(2)))) -> -0.2276980178 | AD7: =N7 -> 111 | AE7: =COUNTIF(L67:L96,AD7) -> 15 | AF7: =AE7/(AG4-AE11) -> 0.6 | AG7: =IF(AF7=0,0,(AF7*((LOG(AF7))/LOG(2)))) -> -0.4421793565 | AI7: =N7 -> 111 | AJ7: =COUNTIF(L97:L126,AI7) -> 13 | AK7: =AJ7/(AL4-AJ11) -> 0.4642857143 | AL7: =IF(AK7=0,0,(AK7*((LOG(AK7))/LOG(2)))) -> -0.5139249161 | AN7: =N7 -> 111 | AO7: =COUNTIF(L127:L156,AN7) -> 18 | AP7: =AO7/(AQ4-AO11) -> 0.6923076923 | AQ7: =IF(AP7=0,0,(AP7*((LOG(AP7))/LOG(2)))) -> -0.3672794193 | AS7: =N7 -> 111 | AT7: =COUNTIF(L157:L186,AS7) -> 12 | AU7: =AT7/(AV4-AT11) -> 0.5454545455 | AV7: =IF(AU7=0,0,(AU7*((LOG(AU7))/LOG(2)))) -> -0.4769831552
A8: 12 | B8: 120 | C8: 13 | D8: 130 | E8: 13 | F8: 135 | K8: 0 | L8: 111 | N8: 112 | O8: 19 | P8: 0.1055555556 | Q8: -0.3424143671 | T8: 112 | U8: =COUNTIF(L7:L36,T8) -> 2 | V8: =U8/(W4-U11) -> 0.08695652174 | W8: =IF(V8=0,0,(V8*((LOG(V8))/LOG(2)))) -> -0.3063966918 | Y8: 112 | Z8: =COUNTIF(L37:L66,Y8) -> 2 | AA8: =Z8/(AB4-Z11) -> 0.08695652174 | AB8: =IF(AA8=0,0,(AA8*((LOG(AA8))/LOG(2)))) -> -0.3063966918 | AD8: 112 | AE8: =COUNTIF(L67:L96,AD8) -> 4 | AF8: =AE8/(AG4-AE11) -> 0.16 | AG8: =IF(AF8=0,0,(AF8*((LOG(AF8))/LOG(2)))) -> -0.4230169904 | AI8: 112 | AJ8: =COUNTIF(L97:L126,AI8) -> 6 | AK8: =AJ8/(AL4-AJ11) -> 0.2142857143 | AL8: =IF(AK8=0,0,(AK8*((LOG(AK8))/LOG(2)))) -> -0.4762269474 | AN8: 112 | AO8: =COUNTIF(L127:L156,AN8) -> 1 | AP8: =AO8/(AQ4-AO11) -> 0.03846153846 | AQ8: =IF(AP8=0,0,(AP8*((LOG(AP8))/LOG(2)))) -> -0.180786143 | AS8: 112 | AT8: =COUNTIF(L157:L186,AS8) -> 4 | AU8: =AT8/(AV4-AT11) -> 0.1818181818 | AV8: =IF(AU8=0,0,(AU8*((LOG(AU8))/LOG(2)))) -> -0.4471693852
A9: 12 | B9: 289 | C9: 13 | D9: 310 | E9: 13 | F9: 316 | K9: 0 | L9: 111 | N9: 121 | O9: 21 | P9: 0.1166666667 | Q9: -0.3616124952 | T9: 121 | U9: =COUNTIF(L7:L36,T9) -> 6 | V9: =U9/(W4-U11) -> 0.2608695652 | W9: =IF(V9=0,0,(V9*((LOG(V9))/LOG(2)))) -> -0.505721597 | Y9: 121 | Z9: =COUNTIF(L37:L66,Y9) -> 0 | AA9: =Z9/(AB4-Z11) -> 0 | AB9: =IF(AA9=0,0,(AA9*((LOG(AA9))/LOG(2)))) -> 0 | AD9: 121 | AE9: =COUNTIF(L67:L96,AD9) -> 5 | AF9: =AE9/(AG4-AE11) -> 0.2 | AG9: =IF(AF9=0,0,(AF9*((LOG(AF9))/LOG(2)))) -> -0.464385619 | AI9: 121 | AJ9: =COUNTIF(L97:L126,AI9) -> 2 | AK9: =AJ9/(AL4-AJ11) -> 0.07142857143 | AL9: =IF(AK9=0,0,(AK9*((LOG(AK9))/LOG(2)))) -> -0.271953923 | AN9: 121 | AO9: =COUNTIF(L127:L156,AN9) -> 4 | AP9: =AO9/(AQ4-AO11) -> 0.1538461538 | AQ9: =IF(AP9=0,0,(AP9*((LOG(AP9))/LOG(2)))) -> -0.4154522643 | AS9: 121 | AT9: =COUNTIF(L157:L186,AS9) -> 4 | AU9: =AT9/(AV4-AT11) -> 0.1818181818 | AV9: =IF(AU9=0,0,(AU9*((LOG(AU9))/LOG(2)))) -> -0.4471693852
A10: 12 | B10: 416 | C10: 24 | D10: 425 | E10: 13 | F10: 434 | K10: 0 | L10: 121 | N10: 122 | O10: 4 | P10: 0.02222222222 | Q10: -0.1220411799 | T10: 122 | U10: =COUNTIF(L7:L36,T10) -> 0 | V10: =U10/(W4-U11) -> 0 | W10: =IF(V10=0,0,(V10*((LOG(V10))/LOG(2)))) -> 0 | Y10: 122 | Z10: =COUNTIF(L37:L66,Y10) -> 0 | AA10: =Z10/(AB4-Z11) -> 0 | AB10: =IF(AA10=0,0,(AA10*((LOG(AA10))/LOG(2)))) -> 0 | AD10: 122 | AE10: =COUNTIF(L67:L96,AD10) -> 1 | AF10: =AE10/(AG4-AE11) -> 0.04 | AG10: =IF(AF10=0,0,(AF10*((LOG(AF10))/LOG(2)))) -> -0.1857542476 | AI10: 122 | AJ10: =COUNTIF(L97:L126,AI10) -> 2 | AK10: =AJ10/(AL4-AJ11) -> 0.07142857143 | AL10: =IF(AK10=0,0,(AK10*((LOG(AK10))/LOG(2)))) -> -0.271953923 | AN10: 122 | AO10: =COUNTIF(L127:L156,AN10) -> 1 | AP10: =AO10/(AQ4-AO11) -> 0.03846153846 | AQ10: =IF(AP10=0,0,(AP10*((LOG(AP10))/LOG(2)))) -> -0.180786143 | AS10: 122 | AT10: =COUNTIF(L157:L186,AS10) -> 0 | AU10: =AT10/(AV4-AT11) -> 0 | AV10: =IF(AU10=0,0,(AU10*((LOG(AU10))/LOG(2)))) -> 0
A11: 12 | B11: 537 | C11: 13 | D11: 542 | E11: 13 | F11: 548 | K11: 0 | L11: 111 | N11: 211 | O11: 33 | P11: 0.1833333333 | Q11: -0.4487008124 | T11: 211 | U11: =COUNTIF(L7:L36,T11) -> 7 | Y11: 211 | Z11: =COUNTIF(L37:L66,Y11) -> 7 | AD11: 211 | AE11: =COUNTIF(L67:L96,AD11) -> 5 | AI11: 211 | AJ11: =COUNTIF(L97:L126,AI11) -> 2 | AN11: 211 | AO11: =COUNTIF(L127:L156,AN11) -> 4 | AS11: 211 | AT11: =COUNTIF(L157:L186,AS11) -> 8
A12: 21 | B12: 649 | C12: 11 | D12: 654 | E12: 11 | F12: 660 | K12: 0 | L12: 211 | N12: 212 | O12: 8 | P12: 0.04444444444 | Q12: -0.1996379154 | T12: 212 | U12: =COUNTIF(L7:L36,T12) -> 2 | V12: =U12/(W4-U11) -> 0.08695652174 | W12: =IF(V12=0,0,(V12*((LOG(V12))/LOG(2)))) -> -0.3063966918 | Y12: 212 | Z12: =COUNTIF(L37:L66,Y12) -> 1 | AA12: =Z12/(AB4-Z11) -> 0.04347826087 | AB12: =IF(AA12=0,0,(AA12*((LOG(AA12))/LOG(2)))) -> -0.1966766068 | AD12: 212 | AE12: =COUNTIF(L67:L96,AD12) -> 0 | AF12: =AE12/(AG4-AE11) -> 0 | AG12: =IF(AF12=0,0,(AF12*((LOG(AF12))/LOG(2)))) -> 0 | AI12: 212 | AJ12: =COUNTIF(L97:L126,AI12) -> 3 | AK12: =AJ12/(AL4-AJ11) -> 0.1071428571 | AL12: =IF(AK12=0,0,(AK12*((LOG(AK12))/LOG(2)))) -> -0.3452563309 | AN12: 212 | AO12: =COUNTIF(L127:L156,AN12) -> 1 | AP12: =AO12/(AQ4-AO11) -> 0.03846153846 | AQ12: =IF(AP12=0,0,(AP12*((LOG(AP12))/LOG(2)))) -> -0.180786143 | AS12: 212 | AT12: =COUNTIF(L157:L186,AS12) -> 1 | AU12: =AT12/(AV4-AT11) -> 0.04545454545 | AV12: =IF(AU12=0,0,(AU12*((LOG(AU12))/LOG(2)))) -> -0.2027014372
A13: 21 | B13: 823 | C13: 11 | D13: 827 | E13: 11 | F13: 838 | K13: 0 | L13: 211 | N13: 221 | O13: 5 | P13: 0.02777777778 | Q13: -0.1436090278 | T13: 221 | U13: =COUNTIF(L7:L36,T13) -> 0 | V13: =U13/(W4-U11) -> 0 | W13: =IF(V13=0,0,(V13*((LOG(V13))/LOG(2)))) -> 0 | Y13: 221 | Z13: =COUNTIF(L37:L66,Y13) -> 1 | AA13: =Z13/(AB4-Z11) -> 0.04347826087 | AB13: =IF(AA13=0,0,(AA13*((LOG(AA13))/LOG(2)))) -> -0.1966766068 | AD13: 221 | AE13: =COUNTIF(L67:L96,AD13) -> 0 | AF13: =AE13/(AG4-AE11) -> 0 | AG13: =IF(AF13=0,0,(AF13*((LOG(AF13))/LOG(2)))) -> 0 | AI13: 221 | AJ13: =COUNTIF(L97:L126,AI13) -> 2 | AK13: =AJ13/(AL4-AJ11) -> 0.07142857143 | AL13: =IF(AK13=0,0,(AK13*((LOG(AK13))/LOG(2)))) -> -0.271953923 | AN13: 221 | AO13: =COUNTIF(L127:L156,AN13) -> 1 | AP13: =AO13/(AQ4-AO11) -> 0.03846153846 | AQ13: =IF(AP13=0,0,(AP13*((LOG(AP13))/LOG(2)))) -> -0.180786143 | AS13: 221 | AT13: =COUNTIF(L157:L186,AS13) -> 1 | AU13: =AT13/(AV4-AT11) -> 0.04545454545 | AV13: =IF(AU13=0,0,(AU13*((LOG(AU13))/LOG(2)))) -> -0.2027014372
A14: 12 | B14: 1012 | C14: 24 | D14: 1018 | E14: 13 | F14: 1024 | K14: 0 | L14: 121 | N14: 222 | O14: 0 | P14: 0 | Q14: 0 | T14: 222 | U14: =COUNTIF(L7:L36,T14) -> 0 | V14: =U14/(W4-U11) -> 0 | W14: =IF(V14=0,0,(V14*((LOG(V14))/LOG(2)))) -> 0 | Y14: 222 | Z14: =COUNTIF(L37:L66,Y14) -> 0 | AA14: =Z14/(AB4-Z11) -> 0 | AB14: =IF(AA14=0,0,(AA14*((LOG(AA14))/LOG(2)))) -> 0 | AD14: 222 | AE14: =COUNTIF(L67:L96,AD14) -> 0 | AF14: =AE14/(AG4-AE11) -> 0 | AG14: =IF(AF14=0,0,(AF14*((LOG(AF14))/LOG(2)))) -> 0 | AI14: 222 | AJ14: =COUNTIF(L97:L126,AI14) -> 0 | AK14: =AJ14/(AL4-AJ11) -> 0 | AL14: =IF(AK14=0,0,(AK14*((LOG(AK14))/LOG(2)))) -> 0 | AN14: 222 | AO14: =COUNTIF(L127:L156,AN14) -> 0 | AP14: =AO14/(AQ4-AO11) -> 0 | AQ14: =IF(AP14=0,0,(AP14*((LOG(AP14))/LOG(2)))) -> 0 | AS14: 222 | AT14: =COUNTIF(L157:L186,AS14) -> 0 | AU14: =AT14/(AV4-AT11) -> 0 | AV14: =IF(AU14=0,0,(AU14*((LOG(AU14))/LOG(2)))) -> 0
A15: 21 | B15: 1127 | C15: 11 | D15: 1132 | E15: 11 | F15: 1139 | K15: 0 | L15: 211 | P15: =SUM(P7:P14) -> 1 | Q15: =-SUM(Q7:Q14) -> 2.118015798 | V15: =SUM(V7:V14) -> 1 | W15: =-SUM(W7:W14) -> 1.583757985 | AA15: =SUM(AA7:AA14) -> 1 | AB15: =-SUM(AB7:AB14) -> 0.9274479232 | AF15: =SUM(AF7:AF14) -> 1 | AG15: =-SUM(AG7:AG14) -> 1.515336213 | AK15: =SUM(AK7:AK14) -> 1 | AL15: =-SUM(AL7:AL14) -> 2.151269963 | AP15: =SUM(AP7:AP14) -> 1 | AQ15: =-SUM(AQ7:AQ14) -> 1.505876256 | AU15: =SUM(AU7:AU14) -> 1 | AV15: =-SUM(AV7:AV14) -> 1.7767248
A16: 12 | B16: 1346 | C16: 13 | D16: 1354 | E16: 13 | F16: 1364 | K16: 0 | L16: 111 | P16: U= | Q16: =Q15/(LOG(Q4)/LOG(2)) -> 0.2827092003 | V16: U1= | W16: =W15/(LOG(W4)/LOG(2)) -> 0.3227620331 | AA16: U2= | AB16: =AB15/(LOG(AB4)/LOG(2)) -> 0.1890092932 | AF16: U3= | AG16: =AG15/(LOG(AG4)/LOG(2)) -> 0.308818015 | AK16: U4= | AL16: =AL15/(LOG(AL4)/LOG(2)) -> 0.4384181635 | AP16: U5= | AQ16: =AQ15/(LOG(AQ4)/LOG(2)) -> 0.3068901224 | AU16: U6= | AV16: =AV15/(LOG(AV4)/LOG(2)) -> 0.3620877143
A17: 12 | B17: 1467 | C17: 24 | D17: 1473 | E17: 13 | F17: 1479 | K17: 0 | L17: 121
A18: 12 | B18: 1585 | C18: 24 | D18: 1599 | E18: 13 | F18: 1607 | K18: 0 | L18: 121
A19: 12 | B19: 1717 | C19: 13 | D19: 1722 | E19: 13 | F19: 1729 | K19: 0 | L19: 111 | N19: Total Target Seq
A20: 12 | B20: 1849 | C20: 13 | D20: 1853 | E20: 24 | F20: 1861 | K20: 0 | L20: 112 | N20: =COUNTIF(L7:L186,G3) -> 33 | P20: 30 | Q20: 30 | R20: 30 | S20: 30 | T20: 30 | U20: 30
A21: 21 | B21: 1967 | C21: 11 | D21: 1972 | E21: 11 | F21: 1980 | K21: 0 | L21: 211 | P21: % of reinforcement given in 6 equal intervals based on number of trials
A22: 12 | B22: 2132 | C22: 13 | D22: 2137 | E22: 13 | F22: 2150 | K22: 0 | L22: 111 | P22: %_1 | Q22: %_2 | R22: %_3 | S22: %_4 | T22: %_5 | U22: %_6
A23: 21 | B23: 2242 | C23: 11 | D23: 2252 | E23: 22 | F23: 2256 | K23: 0 | L23: 212 | O23: target sequence | P23: =$G$3 -> 211 | Q23: 211 | R23: 211 | S23: 211 | T23: 211 | U23: 211
A24: 12 | B24: 2378 | C24: 13 | D24: 2390 | E24: 13 | F24: 2399 | K24: 0 | L24: 111 | O24: total reinforcement | P24: =U11 -> 7 | Q24: =Z11 -> 7 | R24: =AE11 -> 5 | S24: =AJ11 -> 2 | T24: =AO11 -> 4 | U24: =AT11 -> 8
A25: 21 | B25: 2491 | C25: 11 | D25: 2500 | E25: 11 | F25: 2504 | K25: 0 | L25: 211 | O25: % target
A26: 12 | B26: 2637 | C26: 13 | D26: 2646 | E26: 13 | F26: 2658 | K26: 0 | L26: 111 | O26: CCRF
A27: 21 | B27: 2762 | C27: 11 | D27: 2767 | E27: 11 | F27: 2777 | K27: 0 | L27: 211 | O27: % CCRf
A28: 12 | B28: 2918 | C28: 13 | D28: 2923 | E28: 13 | F28: 2930 | K28: 0 | L28: 111 | O28: average response rate | P28: =F36/P20 -> 130.1666667 | Q28: =(F66-F36)/Q20 -> 129.6666667 | R28: =(F96-F66)/R20 -> 125 | S28: =(F126-F96)/S20 -> 127.6666667 | T28: =(F156-F126)/T20 -> 161.0666667 | U28: =(F186-F156)/U20 -> 123.5
A29: 12 | B29: 3033 | C29: 13 | D29: 3037 | E29: 13 | F29: 3047 | K29: 0 | L29: 111
A30: 21 | B30: 3155 | C30: 11 | D30: 3160 | E30: 22 | F30: 3174 | K30: 0 | L30: 212
A31: 12 | B31: 3277 | C31: 13 | D31: 3281 | E31: 13 | F31: 3288 | K31: 0 | L31: 111
A32: 12 | B32: 3380 | C32: 13 | D32: 3394 | E32: 24 | F32: 3405 | K32: 0 | L32: 112
A33: 12 | B33: 3512 | C33: 13 | D33: 3516 | E33: 13 | F33: 3520 | K33: 0 | L33: 111
A34: 12 | B34: 3627 | C34: 13 | D34: 3636 | E34: 13 | F34: 3643 | K34: 0 | L34: 111
A35: 12 | B35: 3769 | C35: 24 | D35: 3780 | E35: 13 | F35: 3788 | K35: 0 | L35: 121
A36: 21 | B36: 3890 | C36: 11 | D36: 3894 | E36: 11 | F36: 3905 | K36: 0 | L36: 211
A37: 12 | B37: 4023 | C37: 13 | D37: 4036 | E37: 13 | F37: 4049 | K37: 0 | L37: 111
A38: 12 | B38: 4152 | C38: 13 | D38: 4178 | E38: 13 | F38: 4192 | K38: 0 | L38: 111
A39: 21 | B39: 4293 | C39: 11 | D39: 4300 | E39: 11 | F39: 4312 | K39: 0 | L39: 211
A40: 21 | B40: 4452 | C40: 11 | D40: 4456 | E40: 11 | F40: 4465 | K40: 0 | L40: 211
A41: 21 | B41: 4643 | C41: 22 | D41: 4651 | E41: 13 | F41: 4655 | K41: 0 | L41: 221
A42: 12 | B42: 4750 | C42: 13 | D42: 4760 | E42: 13 | F42: 4764 | K42: 0 | L42: 111
A43: 12 | B43: 4914 | C43: 13 | D43: 4920 | E43: 24 | F43: 4924 | K43: 0 | L43: 112
A44: 12 | B44: 5017 | C44: 13 | D44: 5031 | E44: 13 | F44: 5036 | K44: 0 | L44: 111
A45: 21 | B45: 5159 | C45: 11 | D45: 5178 | E45: 11 | F45: 5191 | K45: 0 | L45: 211
A46: 12 | B46: 5295 | C46: 13 | D46: 5299 | E46: 13 | F46: 5305 | K46: 0 | L46: 111
A47: 12 | B47: 5407 | C47: 13 | D47: 5431 | E47: 13 | F47: 5442 | K47: 0 | L47: 111
A48: 12 | B48: 5545 | C48: 13 | D48: 5551 | E48: 13 | F48: 5561 | K48: 0 | L48: 111
A49: 21 | B49: 5664 | C49: 11 | D49: 5669 | E49: 22 | F49: 5676 | K49: 0 | L49: 212
A50: 12 | B50: 5768 | C50: 13 | D50: 5774 | E50: 13 | F50: 5784 | K50: 0 | L50: 111
A51: 12 | B51: 5875 | C51: 13 | D51: 5880 | E51: 13 | F51: 5889 | K51: 0 | L51: 111
A52: 12 | B52: 6001 | C52: 13 | D52: 6006 | E52: 13 | F52: 6013 | K52: 0 | L52: 111
A53: 12 | B53: 6113 | C53: 13 | D53: 6117 | E53: 13 | F53: 6127 | K53: 0 | L53: 111
A54: 12 | B54: 6219 | C54: 13 | D54: 6224 | E54: 13 | F54: 6233 | K54: 0 | L54: 111
A55: 21 | B55: 6341 | C55: 11 | D55: 6346 | E55: 11 | F55: 6354 | K55: 0 | L55: 211
A56: 12 | B56: 6490 | C56: 13 | D56: 6498 | E56: 13 | F56: 6523 | K56: 0 | L56: 111
A57: 21 | B57: 6624 | C57: 11 | D57: 6629 | E57: 11 | F57: 6638 | K57: 0 | L57: 211
A58: 21 | B58: 6839 | C58: 11 | D58: 6843 | E58: 11 | F58: 6849 | K58: 0 | L58: 211
A59: 12 | B59: 6971 | C59: 13 | D59: 6980 | E59: 13 | F59: 6988 | K59: 0 | L59: 111
A60: 12 | B60: 7085 | C60: 13 | D60: 7093 | E60: 13 | F60: 7104 | K60: 0 | L60: 111
A61: 12 | B61: 7204 | C61: 13 | D61: 7219 | E61: 13 | F61: 7228 | K61: 0 | L61: 111
A62: 12 | B62: 7331 | C62: 13 | D62: 7336 | E62: 13 | F62: 7342 | K62: 0 | L62: 111
A63: 12 | B63: 7434 | C63: 13 | D63: 7442 | E63: 13 | F63: 7451 | K63: 0 | L63: 111
A64: 12 | B64: 7549 | C64: 13 | D64: 7559 | E64: 24 | F64: 7565 | K64: 0 | L64: 112
A65: 12 | B65: 7657 | C65: 13 | D65: 7667 | E65: 13 | F65: 7673 | K65: 0 | L65: 111
A66: 21 | B66: 7783 | C66: 11 | D66: 7788 | E66: 11 | F66: 7795 | K66: 0 | L66: 211
A67: 12 | B67: 7926 | C67: 24 | D67: 7942 | E67: 13 | F67: 7950 | K67: 0 | L67: 121
A68: 12 | B68: 8046 | C68: 13 | D68: 8054 | E68: 13 | F68: 8060 | K68: 0 | L68: 111
A69: 21 | B69: 8161 | C69: 11 | D69: 8166 | E69: 11 | F69: 8175 | K69: 0 | L69: 211
A70: 12 | B70: 8297 | C70: 13 | D70: 8307 | E70: 13 | F70: 8322 | K70: 0 | L70: 111
A71: 21 | B71: 8423 | C71: 11 | D71: 8428 | E71: 11 | F71: 8436 | K71: 0 | L71: 211
A72: 21 | B72: 8567 | C72: 11 | D72: 8572 | E72: 11 | F72: 8582 | K72: 0 | L72: 211
A73: 21 | B73: 8713 | C73: 11 | D73: 8733 | E73: 11 | F73: 8743 | K73: 0 | L73: 211
A74: 12 | B74: 8893 | C74: 13 | D74: 8898 | E74: 13 | F74: 8904 | K74: 0 | L74: 111
A75: 12 | B75: 9006 | C75: 13 | D75: 9011 | E75: 13 | F75: 9016 | K75: 0 | L75: 111
A76: 12 | B76: 9126 | C76: 13 | D76: 9132 | E76: 13 | F76: 9142 | K76: 0 | L76: 111
A77: 12 | B77: 9257 | C77: 13 | D77: 9265 | E77: 24 | F77: 9271 | K77: 0 | L77: 112
A78: 12 | B78: 9368 | C78: 13 | D78: 9387 | E78: 13 | F78: 9395 | K78: 0 | L78: 111
A79: 12 | B79: 9491 | C79: 24 | D79: 9501 | E79: 24 | F79: 9510 | K79: 0 | L79: 122
A80: 12 | B80: 9627 | C80: 13 | D80: 9632 | E80: 13 | F80: 9638 | K80: 0 | L80: 111
A81: 12 | B81: 9739 | C81: 13 | D81: 9746 | E81: 13 | F81: 9756 | K81: 0 | L81: 111
A82: 12 | B82: 9852 | C82: 24 | D82: 9857 | E82: 13 | F82: 9868 | K82: 0 | L82: 121
A83: 21 | B83: 9966 | C83: 11 | D83: 9984 | E83: 11 | F83: 9990 | K83: 0 | L83: 211
A84: 12 | B84: 10145 | C84: 13 | D84: 10150 | E84: 13 | F84: 10170 | K84: 0 | L84: 111
A85: 12 | B85: 10271 | C85: 13 | D85: 10281 | E85: 24 | F85: 10293 | K85: 0 | L85: 112
A86: 12 | B86: 10389 | C86: 13 | D86: 10394 | E86: 13 | F86: 10397 | K86: 0 | L86: 111
A87: 12 | B87: 10494 | C87: 13 | D87: 10502 | E87: 13 | F87: 10506 | K87: 0 | L87: 111
A88: 12 | B88: 10603 | C88: 24 | D88: 10615 | E88: 13 | F88: 10623 | K88: 0 | L88: 121
A89: 12 | B89: 10726 | C89: 13 | D89: 10732 | E89: 24 | F89: 10744 | K89: 0 | L89: 112
A90: 12 | B90: 10841 | C90: 13 | D90: 10849 | E90: 24 | F90: 10859 | K90: 0 | L90: 112
A91: 12 | B91: 10955 | C91: 13 | D91: 10965 | E91: 13 | F91: 10970 | K91: 0 | L91: 111
A92: 12 | B92: 11077 | C92: 24 | D92: 11091 | E92: 13 | F92: 11099 | K92: 0 | L92: 121
A93: 12 | B93: 11194 | C93: 13 | D93: 11209 | E93: 13 | F93: 11214 | K93: 0 | L93: 111
A94: 12 | B94: 11312 | C94: 13 | D94: 11327 | E94: 13 | F94: 11331 | K94: 0 | L94: 111
A95: 12 | B95: 11424 | C95: 13 | D95: 11429 | E95: 13 | F95: 11436 | K95: 0 | L95: 111
A96: 12 | B96: 11534 | C96: 24 | D96: 11538 | E96: 13 | F96: 11545 | K96: 0 | L96: 121
A97: 21 | B97: 11645 | C97: 22 | D97: 11650 | E97: 13 | F97: 11656 | K97: 0 | L97: 221
A98: 12 | B98: 11758 | C98: 13 | D98: 11764 | E98: 13 | F98: 11770 | K98: 0 | L98: 111
A99: 12 | B99: 11878 | C99: 13 | D99: 11888 | E99: 24 | F99: 11894 | K99: 0 | L99: 112
A100: 12 | B100: 11991 | C100: 13 | D100: 12000 | E100: 13 | F100: 12003 | K100: 0 | L100: 111
A101: 12 | B101: 12110 | C101: 13 | D101: 12115 | E101: 24 | F101: 12119 | K101: 0 | L101: 112
A102: 12 | B102: 12211 | C102: 13 | D102: 12224 | E102: 13 | F102: 12228 | K102: 0 | L102: 111
A103: 12 | B103: 12341 | C103: 13 | D103: 12346 | E103: 13 | F103: 12353 | K103: 0 | L103: 111
A104: 12 | B104: 12453 | C104: 13 | D104: 12457 | E104: 24 | F104: 12466 | K104: 0 | L104: 112
A105: 12 | B105: 12573 | C105: 24 | D105: 12577 | E105: 13 | F105: 12582 | K105: 0 | L105: 121
A106: 12 | B106: 12675 | C106: 13 | D106: 12684 | E106: 24 | F106: 12688 | K106: 0 | L106: 112
A107: 12 | B107: 12779 | C107: 13 | D107: 12791 | E107: 13 | F107: 12796 | K107: 0 | L107: 111
A108: 12 | B108: 12940 | C108: 13 | D108: 12945 | E108: 13 | F108: 12953 | K108: 0 | L108: 111
A109: 12 | B109: 13079 | C109: 13 | D109: 13084 | E109: 24 | F109: 13090 | K109: 0 | L109: 112
A110: 12 | B110: 13189 | C110: 24 | D110: 13201 | E110: 24 | F110: 13206 | K110: 0 | L110: 122
A111: 21 | B111: 13395 | C111: 11 | D111: 13401 | E111: 11 | F111: 13408 | K111: 0 | L111: 211
A112: 21 | B112: 13531 | C112: 11 | D112: 13536 | E112: 22 | F112: 13541 | K112: 0 | L112: 212
A113: 12 | B113: 13646 | C113: 13 | D113: 13651 | E113: 13 | F113: 13659 | K113: 0 | L113: 111
A114: 12 | B114: 13763 | C114: 13 | D114: 13767 | E114: 24 | F114: 13780 | K114: 0 | L114: 112
A115: 12 | B115: 13888 | C115: 24 | D115: 13892 | E115: 13 | F115: 13904 | K115: 0 | L115: 121
A116: 12 | B116: 14048 | C116: 13 | D116: 14054 | E116: 13 | F116: 14064 | K116: 0 | L116: 111
A117: 12 | B117: 14165 | C117: 13 | D117: 14169 | E117: 13 | F117: 14179 | K117: 0 | L117: 111
A118: 21 | B118: 14281 | C118: 11 | D118: 14285 | E118: 22 | F118: 14295 | K118: 0 | L118: 212
A119: 12 | B119: 14411 | C119: 24 | D119: 14421 | E119: 24 | F119: 14427 | K119: 0 | L119: 122
A120: 21 | B120: 14534 | C120: 22 | D120: 14539 | E120: 13 | F120: 14545 | K120: 0 | L120: 221
A121: 12 | B121: 14693 | C121: 13 | D121: 14712 | E121: 13 | F121: 14719 | K121: 0 | L121: 111
A122: 12 | B122: 14811 | C122: 13 | D122: 14822 | E122: 13 | F122: 14830 | K122: 0 | L122: 111
A123: 12 | B123: 14962 | C123: 13 | D123: 14967 | E123: 13 | F123: 14973 | K123: 0 | L123: 111
A124: 12 | B124: 15079 | C124: 13 | D124: 15085 | E124: 13 | F124: 15092 | K124: 0 | L124: 111
A125: 21 | B125: 15184 | C125: 11 | D125: 15196 | E125: 11 | F125: 15207 | K125: 0 | L125: 211
A126: 21 | B126: 15364 | C126: 11 | D126: 15369 | E126: 22 | F126: 15375 | K126: 0 | L126: 212
A127: 12 | B127: 15474 | C127: 24 | D127: 15484 | E127: 13 | F127: 15489 | K127: 0 | L127: 121
A128: 12 | B128: 15584 | C128: 13 | D128: 15594 | E128: 13 | F128: 15599 | K128: 0 | L128: 111
A129: 21 | B129: 15690 | C129: 11 | D129: 15707 | E129: 11 | F129: 15718 | K129: 0 | L129: 211
A130: 12 | B130: 15808 | C130: 13 | D130: 15816 | E130: 13 | F130: 15825 | K130: 0 | L130: 111
A131: 12 | B131: 15917 | C131: 13 | D131: 15928 | E131: 13 | F131: 15935 | K131: 0 | L131: 111
A132: 12 | B132: 16028 | C132: 24 | D132: 16036 | E132: 13 | F132: 16047 | K132: 0 | L132: 121
A133: 12 | B133: 16172 | C133: 13 | D133: 16183 | E133: 13 | F133: 16197 | K133: 0 | L133: 111
A134: 12 | B134: 16295 | C134: 13 | D134: 16304 | E134: 13 | F134: 16309 | K134: 0 | L134: 111
A135: 12 | B135: 16401 | C135: 24 | D135: 16417 | E135: 24 | F135: 16421 | K135: 0 | L135: 122
A136: 12 | B136: 16513 | C136: 24 | D136: 16516 | E136: 13 | F136: 16527 | K136: 0 | L136: 121
A137: 21 | B137: 16622 | C137: 11 | D137: 16626 | E137: 22 | F137: 16630 | K137: 0 | L137: 212
A138: 12 | B138: 16729 | C138: 13 | D138: 16735 | E138: 13 | F138: 16742 | K138: 0 | L138: 111
A139: 12 | B139: 16845 | C139: 13 | D139: 16858 | E139: 13 | F139: 16869 | K139: 0 | L139: 111
A140: 12 | B140: 16961 | C140: 13 | D140: 16970 | E140: 13 | F140: 16975 | K140: 0 | L140: 111
A141: 12 | B141: 17068 | C141: 13 | D141: 17079 | E141: 13 | F141: 17083 | K141: 0 | L141: 111
A142: 12 | B142: 17184 | C142: 13 | D142: 17188 | E142: 13 | F142: 17194 | K142: 0 | L142: 111
A143: 12 | B143: 17300 | C143: 13 | D143: 17306 | E143: 13 | F143: 17314 | K143: 0 | L143: 111
A144: 12 | B144: 17420 | C144: 13 | D144: 17426 | E144: 13 | F144: 17433 | K144: 0 | L144: 111
A145: 12 | B145: 17539 | C145: 13 | D145: 17544 | E145: 13 | F145: 17558 | K145: 0 | L145: 111
A146: 12 | B146: 18927 | C146: 24 | D146: 18933 | E146: 13 | F146: 18937 | K146: 0 | L146: 121
A147: 12 | B147: 19036 | C147: 13 | D147: 19040 | E147: 13 | F147: 19045 | K147: 0 | L147: 111
A148: 21 | B148: 19155 | C148: 11 | D148: 19160 | E148: 11 | F148: 19165 | K148: 0 | L148: 211
A149: 21 | B149: 19308 | C149: 11 | D149: 19316 | E149: 11 | F149: 19327 | K149: 0 | L149: 211
A150: 12 | B150: 19483 | C150: 13 | D150: 19489 | E150: 24 | F150: 19495 | K150: 0 | L150: 112
A151: 12 | B151: 19603 | C151: 13 | D151: 19607 | E151: 13 | F151: 19616 | K151: 0 | L151: 111
A152: 21 | B152: 19716 | C152: 11 | D152: 19721 | E152: 11 | F152: 19728 | K152: 0 | L152: 211
A153: 12 | B153: 19852 | C153: 13 | D153: 19856 | E153: 13 | F153: 19864 | K153: 0 | L153: 111
A154: 12 | B154: 19959 | C154: 13 | D154: 19972 | E154: 13 | F154: 19977 | K154: 0 | L154: 111
A155: 21 | B155: 20069 | C155: 22 | D155: 20080 | E155: 13 | F155: 20084 | K155: 0 | L155: 221
A156: 12 | B156: 20189 | C156: 13 | D156: 20199 | E156: 13 | F156: 20207 | K156: 0 | L156: 111
A157: 12 | B157: 20309 | C157: 13 | D157: 20315 | E157: 13 | F157: 20323 | K157: 0 | L157: 111
A158: 12 | B158: 20415 | C158: 13 | D158: 20426 | E158: 13 | F158: 20432 | K158: 0 | L158: 111
A159: 12 | B159: 20539 | C159: 13 | D159: 20544 | E159: 13 | F159: 20550 | K159: 0 | L159: 111
A160: 12 | B160: 20657 | C160: 13 | D160: 20663 | E160: 13 | F160: 20670 | K160: 0 | L160: 111
A161: 21 | B161: 20774 | C161: 11 | D161: 20779 | E161: 11 | F161: 20786 | K161: 0 | L161: 211
A162: 21 | B162: 20953 | C162: 11 | D162: 20959 | E162: 11 | F162: 20968 | K162: 0 | L162: 211
A163: 12 | B163: 21124 | C163: 24 | D163: 21128 | E163: 13 | F163: 21135 | K163: 0 | L163: 121
A164: 12 | B164: 21238 | C164: 13 | D164: 21246 | E164: 13 | F164: 21253 | K164: 0 | L164: 111
A165: 12 | B165: 21359 | C165: 13 | D165: 21362 | E165: 13 | F165: 21368 | K165: 0 | L165: 111
A166: 21 | B166: 21472 | C166: 11 | D166: 21477 | E166: 22 | F166: 21484 | K166: 0 | L166: 212
A167: 21 | B167: 21588 | C167: 11 | D167: 21593 | E167: 11 | F167: 21602 | K167: 0 | L167: 211
A168: 21 | B168: 21699 | C168: 11 | D168: 21709 | E168: 11 | F168: 21717 | K168: 0 | L168: 211
A169: 12 | B169: 21849 | C169: 13 | D169: 21858 | E169: 13 | F169: 21884 | K169: 0 | L169: 111
A170: 21 | B170: 21992 | C170: 11 | D170: 21996 | E170: 11 | F170: 22001 | K170: 0 | L170: 211
A171: 12 | B171: 22143 | C171: 13 | D171: 22151 | E171: 13 | F171: 22160 | K171: 0 | L171: 111
A172: 12 | B172: 22265 | C172: 13 | D172: 22275 | E172: 13 | F172: 22285 | K172: 0 | L172: 111
A173: 12 | B173: 22385 | C173: 13 | D173: 22390 | E173: 24 | F173: 22422 | K173: 0 | L173: 112
A174: 21 | B174: 22523 | C174: 11 | D174: 22531 | E174: 11 | F174: 22537 | K174: 0 | L174: 211
A175: 12 | B175: 22643 | C175: 13 | D175: 22650 | E175: 24 | F175: 22661 | K175: 0 | L175: 112
A176: 12 | B176: 22760 | C176: 13 | D176: 22767 | E176: 24 | F176: 22773 | K176: 0 | L176: 112
A177: 12 | B177: 22865 | C177: 13 | D177: 22875 | E177: 13 | F177: 22879 | K177: 0 | L177: 111
A178: 21 | B178: 22972 | C178: 11 | D178: 22981 | E178: 11 | F178: 22985 | K178: 0 | L178: 211
A179: 12 | B179: 23090 | C179: 24 | D179: 23100 | E179: 13 | F179: 23115 | K179: 0 | L179: 121
A180: 12 | B180: 23227 | C180: 13 | D180: 23239 | E180: 13 | F180: 23248 | K180: 0 | L180: 111
A181: 12 | B181: 23343 | C181: 24 | D181: 23346 | E181: 13 | F181: 23355 | K181: 0 | L181: 121
A182: 12 | B182: 23447 | C182: 13 | D182: 23452 | E182: 13 | F182: 23461 | K182: 0 | L182: 111
A183: 21 | B183: 23566 | C183: 22 | D183: 23571 | E183: 13 | F183: 23577 | K183: 0 | L183: 221
A184: 21 | B184: 23677 | C184: 11 | D184: 23681 | E184: 11 | F184: 23687 | K184: 0 | L184: 211
A185: 12 | B185: 23793 | C185: 13 | D185: 23797 | E185: 24 | F185: 23806 | K185: 0 | L185: 112
A186: 12 | B186: 23899 | C186: 24 | D186: 23908 | E186: 13 | F186: 23912 | L186: 121

Sheet !MC2795I.sha
A1: Report for:!MC2795I.sha
A2: Date: | B2: <date>
A3: Hen: | B3: <hen> | F3: Correct Sequence | G3: =Start!J2 -> 211 | P3: Total Sequences in Data | Q3: =4994-COUNTBLANK(L7:L5000) -> 195 | V3: Total Sequences in Block Data | W3: =COUNTA(L7:L39) -> 33 | AA3: Total Sequences in Block Data | AB3: =COUNTA(L40:L71) -> 32 | AF3: Total Sequences in Block Data | AG3: =COUNTA(L72:L104) -> 33 | AK3: Total Sequences in Block Data | AL3: =COUNTA(L105:L136) -> 32 | AP3: Total Sequences in Block Data | AQ3: =COUNTA(L137:L169) -> 33 | AU3: Total Sequences in Block Data | AV3: =COUNTA(L170:L201) -> 32
P4: Total Sequences in Summary | Q4: =SUM(O7:O14) -> 195 | V4: Total Sequences in Block Summary | W4: =SUM(U7:U14) -> 33 | AA4: Total Sequences in Block Summary | AB4: =SUM(Z7:Z14) -> 32 | AF4: Total Sequences in Block Summary | AG4: =SUM(AE7:AE14) -> 33 | AK4: Total Sequences in Block Summary | AL4: =SUM(AJ7:AJ14) -> 32 | AP4: Total Sequences in Block Summary | AQ4: =SUM(AO7:AO14) -> 33 | AU4: Total Sequences in Block Summary | AV4: =SUM(AT7:AT14) -> 32
T5: Block 1 | Y5: Block 2 | AD5: Block 3 | AI5: Block 4 | AN5: Block 5 | AS5: Block 6
A6: Sequence Component 1 | B6: Time 1 | C6: Sequence Component 2 | D6: Time 2 | E6: Sequence Component 3 | F6: Time 3 | G6: Sequence Component 4 | H6: Time 4 | I6: Sequence Component 5 | J6: Time 5 | K6: Correct? 0=No 1=Yes | L6: Sequence | N6: Frequency | P6: Relative Frequency | Q6: Variability | T6: Frequency | V6: Relative Frequency | W6: Variability | Y6: Frequency | AA6: Relative Frequency | AB6: Variability | AD6: Frequency | AF6: Relative Frequency | AG6: Variability | AI6: Frequency | AK6: Relative Frequency | AL6: Variability | AN6: Frequency | AP6: Relative Frequency | AQ6: Variability | AS6: Frequency | AU6: Relative Frequency | AV6: Variability
A7: 12 | B7: 16 | C7: 13 | D7: 21 | E7: 13 | F7: 34 | K7: 0 | L7: 111 | N7: 111 | O7: =COUNTIF($L$7:$L$500,N7) -> 104 | P7: =O7/$Q$4 -> 0.5333333333 | Q7: =IF(P7=0,0,(P7*((LOG(P7))/LOG(2)))) -> -0.4836749843 | T7: =N7 -> 111 | U7: =COUNTIF(L7:L39,T7) -> 18 | V7: =U7/(W4-U11) -> 0.6428571429 | W7: =IF(V7=0,0,(V7*((LOG(V7))/LOG(2)))) -> -0.4097763775 | Y7: =N7 -> 111 | Z7: =COUNTIF(L40:L71,Y7) -> 19 | AA7: =Z7/(AB4-Z11) -> 0.7037037037 | AB7: =IF(AA7=0,0,(AA7*((LOG(AA7))/LOG(2)))) -> -0.3567496217 | AD7: =N7 -> 111 | AE7: =COUNTIF(L72:L104,AD7) -> 21 | AF7: =AE7/(AG4-AE11) -> 0.7 | AG7: =IF(AF7=0,0,(AF7*((LOG(AF7))/LOG(2)))) -> -0.360201221 | AI7: =N7 -> 111 | AJ7: =COUNTIF(L105:L136,AI7) -> 17 | AK7: =AJ7/(AL4-AJ11) -> 0.6538461538 | AL7: =IF(AK7=0,0,(AK7*((LOG(AK7))/LOG(2)))) -> -0.4007925734 | AN7: =N7 -> 111 | AO7: =COUNTIF(L137:L169,AN7) -> 13 | AP7: =AO7/(AQ4-AO11) -> 0.5652173913 | AQ7: =IF(AP7=0,0,(AP7*((LOG(AP7))/LOG(2)))) -> -0.465243004 | AS7: =N7 -> 111 | AT7: =COUNTIF(L170:L201,AS7) -> 16 | AU7: =AT7/(AV4-AT11) -> 0.6666666667 | AV7: =IF(AU7=0,0,(AU7*((LOG(AU7))/LOG(2)))) -> -0.3899750005
A8: 12 | B8: 135 | C8: 13 | D8: 140 | E8: 13 | F8: 147 | K8: 0 | L8: 111 | N8: 112 | O8: 21 | P8: 0.1076923077 | Q8: -0.3462321575 | T8: 112 | U8: =COUNTIF(L7:L39,T8) -> 4 | V8: =U8/(W4-U11) -> 0.1428571429 | W8: =IF(V8=0,0,(V8*((LOG(V8))/LOG(2)))) -> -0.4010507032 | Y8: 112 | Z8: =COUNTIF(L40:L71,Y8) -> 2 | AA8: =Z8/(AB4-Z11) -> 0.07407407407 | AB8: =IF(AA8=0,0,(AA8*((LOG(AA8))/LOG(2)))) -> -0.278139815 | AD8: 112 | AE8: =COUNTIF(L72:L104,AD8) -> 3 | AF8: =AE8/(AG4-AE11) -> 0.1 | AG8: =IF(AF8=0,0,(AF8*((LOG(AF8))/LOG(2)))) -> -0.3321928095 | AI8: 112 | AJ8: =COUNTIF(L105:L136,AI8) -> 4 | AK8: =AJ8/(AL4-AJ11) -> 0.1538461538 | AL8: =IF(AK8=0,0,(AK8*((LOG(AK8))/LOG(2)))) -> -0.4154522643 | AN8: 112 | AO8: =COUNTIF(L137:L169,AN8) -> 3 | AP8: =AO8/(AQ4-AO11) -> 0.1304347826 | AQ8: =IF(AP8=0,0,(AP8*((LOG(AP8))/LOG(2)))) -> -0.3832955811 | AS8: 112 | AT8: =COUNTIF(L170:L201,AS8) -> 5 | AU8: =AT8/(AV4-AT11) -> 0.2083333333 | AV8: =IF(AU8=0,0,(AU8*((LOG(AU8))/LOG(2)))) -> -0.4714655012
A9: 21 | B9: 244 | C9: 11 | D9: 254 | E9: 11 | F9: 257 | K9: 0 | L9: 211 | N9: 121 | O9: 15 | P9: 0.07692307692 | Q9: -0.2846492091 | T9: 121 | U9: =COUNTIF(L7:L39,T9) -> 1 | V9: =U9/(W4-U11) -> 0.03571428571 | W9: =IF(V9=0,0,(V9*((LOG(V9))/LOG(2)))) -> -0.1716912472 | Y9: 121 | Z9: =COUNTIF(L40:L71,Y9) -> 5 | AA9: =Z9/(AB4-Z11) -> 0.1851851852 | AB9: =IF(AA9=0,0,(AA9*((LOG(AA9))/LOG(2)))) -> -0.4505480384 | AD9: 121 | AE9: =COUNTIF(L72:L104,AD9) -> 2 | AF9: =AE9/(AG4-AE11) -> 0.06666666667 | AG9: =IF(AF9=0,0,(AF9*((LOG(AF9))/LOG(2)))) -> -0.260459373 | AI9: 121 | AJ9: =COUNTIF(L105:L136,AI9) -> 4 | AK9: =AJ9/(AL4-AJ11) -> 0.1538461538 | AL9: =IF(AK9=0,0,(AK9*((LOG(AK9))/LOG(2)))) -> -0.4154522643 | AN9: 121 | AO9: =COUNTIF(L137:L169,AN9) -> 2 | AP9: =AO9/(AQ4-AO11) -> 0.08695652174 | AQ9: =IF(AP9=0,0,(AP9*((LOG(AP9))/LOG(2)))) -> -0.3063966918 | AS9: 121 | AT9: =COUNTIF(L170:L201,AS9) -> 1 | AU9: =AT9/(AV4-AT11) -> 0.04166666667 | AV9: =IF(AU9=0,0,(AU9*((LOG(AU9))/LOG(2)))) -> -0.1910401042
A10: 21 | B10: 397 | C10: 11 | D10: 407 | E10: 11 | F10: 423 | K10: 0 | L10: 211 | N10: 122 | O10: 0 | P10: 0 | Q10: 0 | T10: 122 | U10: =COUNTIF(L7:L39,T10) -> 0 | V10: =U10/(W4-U11) -> 0 | W10: =IF(V10=0,0,(V10*((LOG(V10))/LOG(2)))) -> 0 | Y10: 122 | Z10: =COUNTIF(L40:L71,Y10) -> 0 | AA10: =Z10/(AB4-Z11) -> 0 | AB10: =IF(AA10=0,0,(AA10*((LOG(AA10))/LOG(2)))) -> 0 | AD10: 122 | AE10: =COUNTIF(L72:L104,AD10) -> 0 | AF10: =AE10/(AG4-AE11) -> 0 | AG10: =IF(AF10=0,0,(AF10*((LOG(AF10))/LOG(2)))) -> 0 | AI10: 122 | AJ10: =COUNTIF(L105:L136,AI10) -> 0 | AK10: =AJ10/(AL4-AJ11) -> 0 | AL10: =IF(AK10=0,0,(AK10*((LOG(AK10))/LOG(2)))) -> 0 | AN10: 122 | AO10: =COUNTIF(L137:L169,AN10) -> 0 | AP10: =AO10/(AQ4-AO11) -> 0 | AQ10: =IF(AP10=0,0,(AP10*((LOG(AP10))/LOG(2)))) -> 0 | AS10: 122 | AT10: =COUNTIF(L170:L201,AS10) -> 0 | AU10: =AT10/(AV4-AT11) -> 0 | AV10: =IF(AU10=0,0,(AU10*((LOG(AU10))/LOG(2)))) -> 0
A11: 12 | B11: 538 | C11: 13 | D11: 543 | E11: 13 | F11: 548 | K11: 0 | L11: 111 | N11: 211 | O11: 37 | P11: 0.1897435897 | Q11: -0.4549817799 | T11: 211 | U11: =COUNTIF(L7:L39,T11) -> 5 | Y11: 211 | Z11: =COUNTIF(L40:L71,Y11) -> 5 | AD11: 211 | AE11: =COUNTIF(L72:L104,AD11) -> 3 | AI11: 211 | AJ11: =COUNTIF(L105:L136,AI11) -> 6 | AN11: 211 | AO11: =COUNTIF(L137:L169,AN11) -> 10 | AS11: 211 | AT11: =COUNTIF(L170:L201,AS11) -> 8
A12: 12 | B12: 650 | C12: 13 | D12: 655 | E12: 13 | F12: 667 | K12: 0 | L12: 111 | N12: 212 | O12: 7 | P12: 0.0358974359 | Q12: -0.1723068089 | T12: 212 | U12: =COUNTIF(L7:L39,T12) -> 2 | V12: =U12/(W4-U11) -> 0.07142857143 | W12: =IF(V12=0,0,(V12*((LOG(V12))/LOG(2)))) -> -0.271953923 | Y12: 212 | Z12: =COUNTIF(L40:L71,Y12) -> 0 | AA12: =Z12/(AB4-Z11) -> 0 | AB12: =IF(AA12=0,0,(AA12*((LOG(AA12))/LOG(2)))) -> 0 | AD12: 212 | AE12: =COUNTIF(L72:L104,AD12) -> 1 | AF12: =AE12/(AG4-AE11) -> 0.03333333333 | AG12: =IF(AF12=0,0,(AF12*((LOG(AF12))/LOG(2)))) -> -0.1635630199 | AI12: 212 | AJ12: =COUNTIF(L105:L136,AI12) -> 0 | AK12: =AJ12/(AL4-AJ11) -> 0 | AL12: =IF(AK12=0,0,(AK12*((LOG(AK12))/LOG(2)))) -> 0 | AN12: 212 | AO12: =COUNTIF(L137:L169,AN12) -> 3 | AP12: =AO12/(AQ4-AO11) -> 0.1304347826 | AQ12: =IF(AP12=0,0,(AP12*((LOG(AP12))/LOG(2)))) -> -0.3832955811 | AS12: 212 | AT12: =COUNTIF(L170:L201,AS12) -> 1 | AU12: =AT12/(AV4-AT11) -> 0.04166666667 | AV12: =IF(AU12=0,0,(AU12*((LOG(AU12))/LOG(2)))) -> -0.1910401042
A13: 21 | B13: 759 | C13: 11 | D13: 779 | E13: 22 | F13: 783 | K13: 0 | L13: 212 | N13: 221 | O13: 9 | P13: 0.04615384615 | Q13: -0.2048033221 | T13: 221 | U13: =COUNTIF(L7:L39,T13) -> 2 | V13: =U13/(W4-U11) -> 0.07142857143 | W13: =IF(V13=0,0,(V13*((LOG(V13))/LOG(2)))) -> -0.271953923 | Y13: 221 | Z13: =COUNTIF(L40:L71,Y13) -> 1 | AA13: =Z13/(AB4-Z11) -> 0.03703703704 | AB13: =IF(AA13=0,0,(AA13*((LOG(AA13))/LOG(2)))) -> -0.1761069445 | AD13: 221 | AE13: =COUNTIF(L72:L104,AD13) -> 2 | AF13: =AE13/(AG4-AE11) -> 0.06666666667 | AG13: =IF(AF13=0,0,(AF13*((LOG(AF13))/LOG(2)))) -> -0.260459373 | AI13: 221 | AJ13: =COUNTIF(L105:L136,AI13) -> 1 | AK13: =AJ13/(AL4-AJ11) -> 0.03846153846 | AL13: =IF(AK13=0,0,(AK13*((LOG(AK13))/LOG(2)))) -> -0.180786143 | AN13: 221 | AO13: =COUNTIF(L137:L169,AN13) -> 2 | AP13: =AO13/(AQ4-AO11) -> 0.08695652174 | AQ13: =IF(AP13=0,0,(AP13*((LOG(AP13))/LOG(2)))) -> -0.3063966918 | AS13: 221 | AT13: =COUNTIF(L170:L201,AS13) -> 1 | AU13: =AT13/(AV4-AT11) -> 0.04166666667 | AV13: =IF(AU13=0,0,(AU13*((LOG(AU13))/LOG(2)))) -> -0.1910401042
A14: 21 | B14: 881 | C14: 11 | D14: 893 | E14: 11 | F14: 897 | K14: 0 | L14: 211 | N14: 222 | O14: 2 | P14: 0.01025641026 | Q14: -0.0677674904 | T14: 222 | U14: =COUNTIF(L7:L39,T14) -> 1 | V14: =U14/(W4-U11) -> 0.03571428571 | W14: =IF(V14=0,0,(V14*((LOG(V14))/LOG(2)))) -> -0.1716912472 | Y14: 222 | Z14: =COUNTIF(L40:L71,Y14) -> 0 | AA14: =Z14/(AB4-Z11) -> 0 | AB14: =IF(AA14=0,0,(AA14*((LOG(AA14))/LOG(2)))) -> 0 | AD14: 222 | AE14: =COUNTIF(L72:L104,AD14) -> 1 | AF14: =AE14/(AG4-AE11) -> 0.03333333333 | AG14: =IF(AF14=0,0,(AF14*((LOG(AF14))/LOG(2)))) -> -0.1635630199 | AI14: 222 | AJ14: =COUNTIF(L105:L136,AI14) -> 0 | AK14: =AJ14/(AL4-AJ11) -> 0 | AL14: =IF(AK14=0,0,(AK14*((LOG(AK14))/LOG(2)))) -> 0 | AN14: 222 | AO14: =COUNTIF(L137:L169,AN14) -> 0 | AP14: =AO14/(AQ4-AO11) -> 0 | AQ14: =IF(AP14=0,0,(AP14*((LOG(AP14))/LOG(2)))) -> 0 | AS14: 222 | AT14: =COUNTIF(L170:L201,AS14) -> 0 | AU14: =AT14/(AV4-AT11) -> 0 | AV14: =IF(AU14=0,0,(AU14*((LOG(AU14))/LOG(2)))) -> 0
A15: 12 | B15: 1064 | C15: 13 | D15: 1072 | E15: 13 | F15: 1081 | K15: 0 | L15: 111 | P15: =SUM(P7:P14) -> 1 | Q15: =-SUM(Q7:Q14) -> 2.014415752 | V15: =SUM(V7:V14) -> 1 | W15: =-SUM(W7:W14) -> 1.698117421 | AA15: =SUM(AA7:AA14) -> 1 | AB15: =-SUM(AB7:AB14) -> 1.26154442 | AF15: =SUM(AF7:AF14) -> 1 | AG15: =-SUM(AG7:AG14) -> 1.540438816 | AK15: =SUM(AK7:AK14) -> 1 | AL15: =-SUM(AL7:AL14) -> 1.412483245 | AP15: =SUM(AP7:AP14) -> 1 | AQ15: =-SUM(AQ7:AQ14) -> 1.84462755 | AU15: =SUM(AU7:AU14) -> 1 | AV15: =-SUM(AV7:AV14) -> 1.434560814
A16: 12 | B16: 1189 | C16: 13 | D16: 1193 | E16: 13 | F16: 1198 | K16: 0 | L16: 111 | P16: U= | Q16: =Q15/(LOG(Q4)/LOG(2)) -> 0.2647993014 | V16: U1= | W16: =W15/(LOG(W4)/LOG(2)) -> 0.3366345652 | AA16: U2= | AB16: =AB15/(LOG(AB4)/LOG(2)) -> 0.2523088839 | AF16: U3= | AG16: =AG15/(LOG(AG4)/LOG(2)) -> 0.3053763802 | AK16: U4= | AL16: =AL15/(LOG(AL4)/LOG(2)) -> 0.282496649 | AP16: U5= | AQ16: =AQ15/(LOG(AQ4)/LOG(2)) -> 0.3656787131 | AU16: U6= | AV16: =AV15/(LOG(AV4)/LOG(2)) -> 0.2869121629
A17: 21 | B17: 1289 | C17: 22 | D17: 1300 | E17: 24 | F17: 1304 | K17: 0 | L17: 222
A18: 21 | B18: 1402 | C18: 22 | D18: 1406 | E18: 13 | F18: 1416 | K18: 0 | L18: 221
A19: 12 | B19: 1531 | C19: 13 | D19: 1550 | E19: 13 | F19: 1553 | K19: 0 | L19: 111 | N19: Total Target Seq
A20: 21 | B20: 1658 | C20: 11 | D20: 1662 | E20: 11 | F20: 1671 | K20: 0 | L20: 211 | N20: =COUNTIF(L7:L201,G3) -> 37 | P20: 33 | Q20: 32 | R20: 33 | S20: 32 | T20: 33 | U20: 32
A21: 12 | B21: 1768 | C21: 13 | D21: 1774 | E21: 13 | F21: 1788 | K21: 0 | L21: 111 | P21: % of reinforcement given in 6 equal intervals based on number of trials
A22: 12 | B22: 1887 | C22: 13 | D22: 1895 | E22: 13 | F22: 1901 | K22: 0 | L22: 111 | P22: %_1 | Q22: %_2 | R22: %_3 | S22: %_4 | T22: %_5 | U22: %_6
A23: 12 | B23: 2033 | C23: 24 | D23: 2041 | E23: 13 | F23: 2051 | K23: 0 | L23: 121 | O23: target sequence | P23: =$G$3 -> 211 | Q23: 211 | R23: 211 | S23: 211 | T23: 211 | U23: 211
A24: 12 | B24: 2164 | C24: 13 | D24: 2167 | E24: 13 | F24: 2174 | K24: 0 | L24: 111 | O24: total reinforcement | P24: =U11 -> 5 | Q24: =Z11 -> 5 | R24: =AE11 -> 3 | S24: =AJ11 -> 6 | T24: =AO11 -> 10 | U24: =AT11 -> 8
A25: 12 | B25: 2275 | C25: 13 | D25: 2280 | E25: 24 | F25: 2285 | K25: 0 | L25: 112 | O25: % target
A26: 21 | B26: 2427 | C26: 11 | D26: 2439 | E26: 22 | F26: 2446 | K26: 0 | L26: 212 | O26: CCRF
A27: 12 | B27: 2548 | C27: 13 | D27: 2555 | E27: 13 | F27: 2622 | K27: 0 | L27: 111 | O27: % CCRf
A28: 12 | B28: 2724 | C28: 13 | D28: 2734 | E28: 24 | F28: 2738 | K28: 0 | L28: 112 | O28: average response rate | P28: =F39/P20 -> 122.5757576 | Q28: =(F71-F39)/Q20 -> 119.09375 | R28: =(F104-F71)/R20 -> 121.9393939 | S28: =(F136-F104)/S20 -> 127.1875 | T28: =(F169-F136)/T20 -> 123.030303 | U28: =(F201-F169)/U20 -> 123.8125
A29: 12 | B29: 2839 | C29: 13 | D29: 2844 | E29: 13 | F29: 2854 | K29: 0 | L29: 111
A30: 12 | B30: 2952 | C30: 13 | D30: 2962 | E30: 24 | F30: 2969 | K30: 0 | L30: 112
A31: 21 | B31: 3066 | C31: 22 | D31: 3071 | E31: 13 | F31: 3073 | K31: 0 | L31: 221
A32: 12 | B32: 3165 | C32: 13 | D32: 3176 | E32: 13 | F32: 3185 | K32: 0 | L32: 111
A33: 12 | B33: 3284 | C33: 13 | D33: 3288 | E33: 13 | F33: 3298 | K33: 0 | L33: 111
A34: 12 | B34: 3396 | C34: 13 | D34: 3405 | E34: 13 | F34: 3412 | K34: 0 | L34: 111
A35: 12 | B35: 3518 | C35: 13 | D35: 3529 | E35: 13 | F35: 3543 | K35: 0 | L35: 111
A36: 12 | B36: 3649 | C36: 13 | D36: 3654 | E36: 13 | F36: 3664 | K36: 0 | L36: 111
A37: 21 | B37: 3772 | C37: 11 | D37: 3777 | E37: 11 | F37: 3782 | K37: 0 | L37: 211
A38: 12 | B38: 3918 | C38: 13 | D38: 3924 | E38: 13 | F38: 3941 | K38: 0 | L38: 111
A39: 12 | B39: 4034 | C39: 13 | D39: 4041 | E39: 24 | F39: 4045 | K39: 0 | L39: 112
A40: 21 | B40: 4145 | C40: 11 | D40: 4155 | E40: 11 | F40: 4162 | K40: 0 | L40: 211
A41: 21 | B41: 4266 | C41: 11 | D41: 4285 | E41: 11 | F41: 4295 | K41: 0 | L41: 211
A42: 12 | B42: 4410 | C42: 13 | D42: 4420 | E42: 13 | F42: 4433 | K42: 0 | L42: 111
A43: 12 | B43: 4541 | C43: 13 | D43: 4547 | E43: 24 | F43: 4557 | K43: 0 | L43: 112
A44: 21 | B44: 4657 | C44: 11 | D44: 4662 | E44: 11 | F44: 4669 | K44: 0 | L44: 211
A45: 12 | B45: 4768 | C45: 13 | D45: 4777 | E45: 13 | F45: 4793 | K45: 0 | L45: 111
A46: 21 | B46: 4889 | C46: 22 | D46: 4899 | E46: 13 | F46: 4904 | K46: 0 | L46: 221
A47: 21 | B47: 4997 | C47: 11 | D47: 5003 | E47: 11 | F47: 5013 | K47: 0 | L47: 211
A48: 12 | B48: 5111 | C48: 13 | D48: 5120 | E48: 13 | F48: 5137 | K48: 0 | L48: 111
A49: 12 | B49: 5248 | C49: 24 | D49: 5253 | E49: 13 | F49: 5259 | K49: 0 | L49: 121
A50: 12 | B50: 5362 | C50: 13 | D50: 5372 | E50: 13 | F50: 5379 | K50: 0 | L50: 111
A51: 12 | B51: 5482 | C51: 13 | D51: 5500 | E51: 13 | F51: 5507 | K51: 0 | L51: 111
A52: 21 | B52: 5620 | C52: 11 | D52: 5642 | E52: 11 | F52: 5648 | K52: 0 | L52: 211
A53: 12 | B53: 5744 | C53: 13 | D53: 5752 | E53: 13 | F53: 5757 | K53: 0 | L53: 111
A54: 12 | B54: 5849 | C54: 13 | D54: 5857 | E54: 13 | F54: 5866 | K54: 0 | L54: 111
A55: 12 | B55: 5965 | C55: 13 | D55: 5968 | E55: 24 | F55: 5971 | K55: 0 | L55: 112
A56: 12 | B56: 6079 | C56: 13 | D56: 6093 | E56: 13 | F56: 6104 | K56: 0 | L56: 111
A57: 12 | B57: 6203 | C57: 13 | D57: 6213 | E57: 13 | F57: 6225 | K57: 0 | L57: 111
A58: 12 | B58: 6316 | C58: 13 | D58: 6320 | E58: 13 | F58: 6325 | K58: 0 | L58: 111
A59: 12 | B59: 6425 | C59: 13 | D59: 6430 | E59: 13 | F59: 6442 | K59: 0 | L59: 111
A60: 12 | B60: 6557 | C60: 24 | D60: 6562 | E60: 13 | F60: 6567 | K60: 0 | L60: 121
A61: 12 | B61: 6663 | C61: 13 | D61: 6675 | E61: 13 | F61: 6687 | K61: 0 | L61: 111
A62: 12 | B62: 6787 | C62: 24 | D62: 6802 | E62: 13 | F62: 6806 | K62: 0 | L62: 121
A63: 12 | B63: 6899 | C63: 13 | D63: 6903 | E63: 13 | F63: 6907 | K63: 0 | L63: 111
A64: 12 | B64: 7015 | C64: 24 | D64: 7020 | E64: 13 | F64: 7026 | K64: 0 | L64: 121
A65: 12 | B65: 7133 | C65: 24 | D65: 7142 | E65: 13 | F65: 7151 | K65: 0 | L65: 121
A66: 12 | B66: 7243 | C66: 13 | D66: 7258 | E66: 13 | F66: 7269 | K66: 0 | L66: 111
A67: 12 | B67: 7369 | C67: 13 | D67: 7378 | E67: 13 | F67: 7390 | K67: 0 | L67: 111
A68: 12 | B68: 7497 | C68: 13 | D68: 7503 | E68: 13 | F68: 7512 | K68: 0 | L68: 111
A69: 12 | B69: 7610 | C69: 13 | D69: 7618 | E69: 13 | F69: 7630 | K69: 0 | L69: 111
A70: 12 | B70: 7727 | C70: 13 | D70: 7732 | E70: 13 | F70: 7741 | K70: 0 | L70: 111
A71: 12 | B71: 7843 | C71: 13 | D71: 7850 | E71: 13 | F71: 7856 | K71: 0 | L71: 111
A72: 21 | B72: 7955 | C72: 11 | D72: 7963 | E72: 11 | F72: 7970 | K72: 0 | L72: 211
A73: 12 | B73: 8097 | C73: 13 | D73: 8101 | E73: 24 | F73: 8109 | K73: 0 | L73: 112
A74: 21 | B74: 8200 | C74: 22 | D74: 8210 | E74: 24 | F74: 8215 | K74: 0 | L74: 222
A75: 21 | B75: 8323 | C75: 22 | D75: 8328 | E75: 13 | F75: 8339 | K75: 0 | L75: 221
A76: 12 | B76: 8437 | C76: 13 | D76: 8442 | E76: 13 | F76: 8449 | K76: 0 | L76: 111
A77: 12 | B77: 8570 | C77: 13 | D77: 8588 | E77: 13 | F77: 8594 | K77: 0 | L77: 111
A78: 12 | B78: 8699 | C78: 13 | D78: 8708 | E78: 13 | F78: 8716 | K78: 0 | L78: 111
A79: 12 | B79: 8809 | C79: 13 | D79: 8815 | E79: 13 | F79: 8825 | K79: 0 | L79: 111
A80: 12 | B80: 8923 | C80: 13 | D80: 8932 | E80: 13 | F80: 8942 | K80: 0 | L80: 111
A81: 12 | B81: 9045 | C81: 24 | D81: 9052 | E81: 13 | F81: 9060 | K81: 0 | L81: 121
A82: 12 | B82: 9152 | C82: 13 | D82: 9157 | E82: 13 | F82: 9166 | K82: 0 | L82: 111
A83: 12 | B83: 9264 | C83: 13 | D83: 9273 | E83: 13 | F83: 9280 | K83: 0 | L83: 111
A84: 12 | B84: 9372 | C84: 13 | D84: 9379 | E84: 13 | F84: 9387 | K84: 0 | L84: 111
A85: 12 | B85: 9490 | C85: 13 | D85: 9495 | E85: 13 | F85: 9504 | K85: 0 | L85: 111
A86: 12 | B86: 9601 | C86: 13 | D86: 9610 | E86: 13 | F86: 9615 | K86: 0 | L86: 111
A87: 12 | B87: 9713 | C87: 13 | D87: 9722 | E87: 13 | F87: 9727 | K87: 0 | L87: 111
A88: 12 | B88: 9819 | C88: 13 | D88: 9836 | E88: 24 | F88: 9841 | K88: 0 | L88: 112
A89: 12 | B89: 9937 | C89: 13 | D89: 9939 | E89: 13 | F89: 9949 | K89: 0 | L89: 111
A90: 21 | B90: 10063 | C90: 11 | D90: 10066 | E90: 22 | F90: 10072 | K90: 0 | L90: 212
A91: 12 | B91: 10172 | C91: 13 | D91: 10181 | E91: 13 | F91: 10185 | K91: 0 | L91: 111
A92: 21 | B92: 10282 | C92: 11 | D92: 10285 | E92: 11 | F92: 10295 | K92: 0 | L92: 211
A93: 12 | B93: 10453 | C93: 13 | D93: 10459 | E93: 13 | F93: 10469 | K93: 0 | L93: 111
A94: 12 | B94: 10572 | C94: 24 | D94: 10655 | E94: 13 | F94: 10669 | K94: 0 | L94: 121
A95: 21 | B95: 10764 | C95: 22 | D95: 10772 | E95: 13 | F95: 10784 | K95: 0 | L95: 221
A96: 12 | B96: 10877 | C96: 13 | D96: 10887 | E96: 13 | F96: 10895 | K96: 0 | L96: 111
A97: 21 | B97: 10987 | C97: 11 | D97: 10992 | E97: 11 | F97: 11002 | K97: 0 | L97: 211
A98: 12 | B98: 11176 | C98: 13 | D98: 11185 | E98: 13 | F98: 11198 | K98: 0 | L98: 111
A99: 12 | B99: 11290 | C99: 13 | D99: 11297 | E99: 13 | F99: 11306 | K99: 0 | L99: 111
A100: 12 | B100: 11417 | C100: 13 | D100: 11430 | E100: 13 | F100: 11439 | K100: 0 | L100: 111
A101: 12 | B101: 11535 | C101: 13 | D101: 11538 | E101: 13 | F101: 11548 | K101: 0 | L101: 111
A102: 12 | B102: 11640 | C102: 13 | D102: 11649 | E102: 13 | F102: 11655 | K102: 0 | L102: 111
A103: 12 | B103: 11752 | C103: 13 | D103: 11760 | E103: 13 | F103: 11765 | K103: 0 | L103: 111
A104: 12 | B104: 11868 | C104: 13 | D104: 11873 | E104: 24 | F104: 11880 | K104: 0 | L104: 112
A105: 12 | B105: 11985 | C105: 13 | D105: 11989 | E105: 13 | F105: 11999 | K105: 0 | L105: 111
A106: 12 | B106: 12103 | C106: 13 | D106: 12109 | E106: 13 | F106: 12117 | K106: 0 | L106: 111
A107: 21 | B107: 12218 | C107: 11 | D107: 12224 | E107: 11 | F107: 12232 | K107: 0 | L107: 211
A108: 12 | B108: 12422 | C108: 13 | D108: 12428 | E108: 13 | F108: 12434 | K108: 0 | L108: 111
A109: 12 | B109: 12538 | C109: 13 | D109: 12550 | E109: 13 | F109: 12561 | K109: 0 | L109: 111
A110: 21 | B110: 12680 | C110: 22 | D110: 12685 | E110: 13 | F110: 12691 | K110: 0 | L110: 221
A111: 12 | B111: 12787 | C111: 13 | D111: 12791 | E111: 13 | F111: 12795 | K111: 0 | L111: 111
A112: 12 | B112: 12888 | C112: 13 | D112: 12907 | E112: 13 | F112: 12912 | K112: 0 | L112: 111
A113: 12 | B113: 13004 | C113: 24 | D113: 13014 | E113: 13 | F113: 13019 | K113: 0 | L113: 121
A114: 12 | B114: 13110 | C114: 13 | D114: 13126 | E114: 13 | F114: 13144 | K114: 0 | L114: 111
A115: 21 | B115: 13240 | C115: 11 | D115: 13250 | E115: 11 | F115: 13255 | K115: 0 | L115: 211
A116: 12 | B116: 13386 | C116: 13 | D116: 13390 | E116: 13 | F116: 13399 | K116: 0 | L116: 111
A117: 12 | B117: 13491 | C117: 24 | D117: 13496 | E117: 13 | F117: 13511 | K117: 0 | L117: 121
A118: 12 | B118: 13608 | C118: 13 | D118: 13622 | E118: 24 | F118: 13627 | K118: 0 | L118: 112
A119: 12 | B119: 13727 | C119: 13 | D119: 13736 | E119: 13 | F119: 13746 | K119: 0 | L119: 111
A120: 12 | B120: 13840 | C120: 24 | D120: 13853 | E120: 13 | F120: 13858 | K120: 0 | L120: 121
A121: 12 | B121: 13962 | C121: 13 | D121: 13966 | E121: 24 | F121: 13974 | K121: 0 | L121: 112
A122: 12 | B122: 14081 | C122: 13 | D122: 14086 | E122: 13 | F122: 14094 | K122: 0 | L122: 111
A123: 21 | B123: 14186 | C123: 11 | D123: 14196 | E123: 11 | F123: 14202 | K123: 0 | L123: 211
A124: 21 | B124: 14335 | C124: 11 | D124: 14341 | E124: 11 | F124: 14350 | K124: 0 | L124: 211
A125: 12 | B125: 14572 | C125: 13 | D125: 14579 | E125: 13 | F125: 14588 | K125: 0 | L125: 111
A126: 12 | B126: 14692 | C126: 13 | D126: 14696 | E126: 13 | F126: 14702 | K126: 0 | L126: 111
A127: 12 | B127: 14803 | C127: 13 | D127: 14813 | E127: 13 | F127: 14818 | K127: 0 | L127: 111
A128: 21 | B128: 14921 | C128: 11 | D128: 14926 | E128: 11 | F128: 14931 | K128: 0 | L128: 211
A129: 21 | B129: 15068 | C129: 11 | D129: 15073 | E129: 11 | F129: 15080 | K129: 0 | L129: 211
A130: 12 | B130: 15229 | C130: 13 | D130: 15238 | E130: 13 | F130: 15244 | K130: 0 | L130: 111
A131: 12 | B131: 15348 | C131: 13 | D131: 15353 | E131: 24 | F131: 15362 | K131: 0 | L131: 112
A132: 12 | B132: 15458 | C132: 13 | D132: 15466 | E132: 24 | F132: 15475 | K132: 0 | L132: 112
A133: 12 | B133: 15568 | C133: 13 | D133: 15583 | E133: 13 | F133: 15589 | K133: 0 | L133: 111
A134: 12 | B134: 15686 | C134: 24 | D134: 15694 | E134: 13 | F134: 15700 | K134: 0 | L134: 121
A135: 12 | B135: 15795 | C135: 13 | D135: 15805 | E135: 13 | F135: 15821 | K135: 0 | L135: 111
A136: 12 | B136: 15932 | C136: 13 | D136: 15941 | E136: 13 | F136: 15950 | K136: 0 | L136: 111
A137: 21 | B137: 16042 | C137: 11 | D137: 16052 | E137: 22 | F137: 16056 | K137: 0 | L137: 212
A138: 21 | B138: 16147 | C138: 11 | D138: 16154 | E138: 11 | F138: 16161 | K138: 0 | L138: 211
A139: 21 | B139: 16253 | C139: 11 | D139: 16281 | E139: 11 | F139: 16292 | K139: 0 | L139: 211
A140: 12 | B140: 16441 | C140: 13 | D140: 16448 | E140: 13 | F140: 16458 | K140: 0 | L140: 111
A141: 21 | B141: 16550 | C141: 22 | D141: 16555 | E141: 13 | F141: 16563 | K141: 0 | L141: 221
A142: 21 | B142: 16655 | C142: 11 | D142: 16667 | E142: 11 | F142: 16672 | K142: 0 | L142: 211
A143: 12 | B143: 16803 | C143: 13 | D143: 16810 | E143: 13 | F143: 16815 | K143: 0 | L143: 111
A144: 12 | B144: 16920 | C144: 13 | D144: 16924 | E144: 13 | F144: 16932 | K144: 0 | L144: 111
A145: 12 | B145: 17034 | C145: 13 | D145: 17042 | E145: 13 | F145: 17051 | K145: 0 | L145: 111
A146: 21 | B146: 17155 | C146: 11 | D146: 17164 | E146: 11 | F146: 17169 | K146: 0 | L146: 211
A147: 21 | B147: 17278 | C147: 11 | D147: 17292 | E147: 11 | F147: 17302 | K147: 0 | L147: 211
A148: 21 | B148: 17446 | C148: 11 | D148: 17474 | E148: 11 | F148: 17483 | K148: 0 | L148: 211
A149: 12 | B149: 17640 | C149: 13 | D149: 17647 | E149: 13 | F149: 17661 | K149: 0 | L149: 111
A150: 12 | B150: 17767 | C150: 13 | D150: 17772 | E150: 13 | F150: 17780 | K150: 0 | L150: 111
A151: 21 | B151: 17879 | C151: 11 | D151: 17888 | E151: 11 | F151: 17894 | K151: 0 | L151: 211
A152: 12 | B152: 18016 | C152: 13 | D152: 18021 | E152: 13 | F152: 18028 | K152: 0 | L152: 111
A153: 21 | B153: 18134 | C153: 11 | D153: 18139 | E153: 22 | F153: 18144 | K153: 0 | L153: 212
A154: 12 | B154: 18245 | C154: 13 | D154: 18255 | E154: 13 | F154: 18262 | K154: 0 | L154: 111
A155: 12 | B155: 18367 | C155: 13 | D155: 18372 | E155: 13 | F155: 18379 | K155: 0 | L155: 111
A156: 21 | B156: 18484 | C156: 22 | D156: 18490 | E156: 13 | F156: 18496 | K156: 0 | L156: 221
A157: 12 | B157: 18594 | C157: 13 | D157: 18603 | E157: 13 | F157: 18609 | K157: 0 | L157: 111
A158: 12 | B158: 18700 | C158: 13 | D158: 18712 | E158: 24 | F158: 18717 | K158: 0 | L158: 112
A159: 21 | B159: 18808 | C159: 11 | D159: 18811 | E159: 22 | F159: 18817 | K159: 0 | L159: 212
A160: 12 | B160: 18922 | C160: 13 | D160: 18927 | E160: 13 | F160: 18936 | K160: 0 | L160: 111
A161: 21 | B161: 19031 | C161: 11 | D161: 19047 | E161: 11 | F161: 19051 | K161: 0 | L161: 211
A162: 21 | B162: 19157 | C162: 11 | D162: 19170 | E162: 11 | F162: 19179 | K162: 0 | L162: 211
A163: 12 | B163: 19310 | C163: 13 | D163: 19327 | E163: 13 | F163: 19333 | K163: 0 | L163: 111
A164: 12 | B164: 19425 | C164: 24 | D164: 19440 | E164: 13 | F164: 19445 | K164: 0 | L164: 121
A165: 12 | B165: 19541 | C165: 13 | D165: 19545 | E165: 24 | F165: 19555 | K165: 0 | L165: 112
A166: 12 | B166: 19660 | C166: 13 | D166: 19664 | E166: 24 | F166: 19669 | K166: 0 | L166: 112
A167: 12 | B167: 19773 | C167: 13 | D167: 19779 | E167: 13 | F167: 19787 | K167: 0 | L167: 111
A168: 21 | B168: 19886 | C168: 11 | D168: 19895 | E168: 11 | F168: 19901 | K168: 0 | L168: 211
